Workbook

Sheet Analysis
A3: Sum of P&L | B3: Column Labels | H3: ROI
A4: Row Labels | B4: ATP | C4: WTA | D4: Challenger | E4: Grand Total | H4: ATP | I4: WTA | J4: Challenger | K4: Grand Total
A5: Outright Winner | B5: 25.25 | C5: 8.25 | E5: 33.5 | G5: Outright Winner | H5: =IF(ISNUMBER(B5),B5/B19,"") -> 1.683333333 | I5: =IF(ISNUMBER(C5),C5/C19,"") -> 1.375 | K5: 1.595238095
A6: Set Betting | B6: 29.60505051 | C6: 3.113636364 | E6: 32.71868687 | G6: Set Betting | H6: =IF(ISNUMBER(B6),B6/B20,"") -> 1.287176109 | I6: 1.556818182 | K6: 1.308747475
A7: Games Handicap | B7: 9.03030303 | C7: 1.580519481 | E7: 10.61082251 | G7: Games Handicap | H7: =IF(ISNUMBER(B7),B7/B21,"") -> 0.5643939394 | I7: 0.3951298701 | K7: 0.5305411255
A8: Match Winner | B8: 3.566702742 | C8: 2.957070707 | D8: 2.602272727 | E8: 9.126046176 | G8: Match Winner | H8: =IF(ISNUMBER(B8),B8/B22,"") -> 0.1049030218 | I8: 0.4928451178 | J8: 1.301136364 | K8: 0.2172868137
A9: Set Handicap | B9: -0.7 | C9: -1 | E9: -1.7 | G9: Set Handicap | H9: =IF(ISNUMBER(B9),B9/B23,"") -> -0.35 | I9: -1 | K9: -0.5666666667
A10: Tie Break in Match Yes | B10: 2 | E10: 2 | G10: Tie Break in Match Yes | H10: =IF(ISNUMBER(B10),B10/B24,"") -> 2 | K10: 2
A11: To Win 1st Set Yes | B11: 2.5 | E11: 2.5 | G11: To Win 1st Set Yes | H11: =IF(ISNUMBER(B11),B11/B25,"") -> 2.5 | K11: 2.5
A12: To win a set Yes | B12: -0.5 | C12: 1.2 | E12: 0.7 | G12: To win a set Yes | H12: =IF(ISNUMBER(B12),B12/B26,"") -> -0.1666666667 | I12: 1.2 | K12: 0.175
A13: Total Games | B13: -1 | E13: -1 | G13: Total Games | H13: =IF(ISNUMBER(B13),B13/B27,"") -> -1 | K13: -1
A14: Grand Total | B14: 69.75205628 | C14: 16.10122655 | D14: 2.602272727 | E14: 88.45555556 | G14: Grand Total | H14: =IF(ISNUMBER(B14),B14/B28,"") -> 0.7265839196 | I14: =IF(ISNUMBER(C14),C14/C28,"") -> 0.8050613276 | J14: =IF(ISNUMBER(D14),D14/D28,"") -> 1.301136364 | K14: =IF(ISNUMBER(E14),E14/E28,"") -> 0.7496233522
A17: Count of P&L | B17: Column Labels
A18: Row Labels | B18: ATP | C18: WTA | D18: Challenger | E18: Grand Total
A19: Outright Winner | B19: 15 | C19: 6 | E19: 21
A20: Set Betting | B20: 23 | C20: 2 | E20: 25
A21: Games Handicap | B21: 16 | C21: 4 | E21: 20
A22: Match Winner | B22: 34 | C22: 6 | D22: 2 | E22: 42
A23: Set Handicap | B23: 2 | C23: 1 | E23: 3
A24: Tie Break in Match Yes | B24: 1 | E24: 1
A25: To Win 1st Set Yes | B25: 1 | E25: 1
A26: To win a set Yes | B26: 3 | C26: 1 | E26: 4
A27: Total Games | B27: 1 | E27: 1
A28: Grand Total | B28: 96 | C28: 20 | D28: 2 | E28: 118
B32: Values
A33: Row Labels | B33: Sum of P&L | C33: Count of P&L2 | D33: ROI | E33: Strike Rate
A34: Win | B34: 125.4555556 | C34: 81
A35: Loss | B35: -37 | C35: 37
A36: Grand Total | B36: 88.45555556 | C36: 118 | D36: =B36/C36 -> 0.7496233522 | E36: =C34/C36 -> 0.686440678
A40: Row Labels | B40: Sum of P&L | C40: Running P & L
A41: MAR2014 | B41: 19.8268759 | C41: =B41 -> 19.8268759
A42: APR2014 | B42: -1.840909091 | C42: =C41+B42 -> 17.98596681
A43: MAY2014 | B43: 24.85505051 | C43: =C42+B43 -> 42.84101732
A44: JUN2014 | B44: 11.69444444 | C44: 54.53546176
A45: JUL2014 | B45: 31.97564935 | C45: 86.51111111
A46: AUG2014 | B46: 1.944444444 | C46: 88.45555556
A47: Grand Total | B47: 88.45555556

Sheet Predictions
A1: Date: | B1: Match: | C1: Tournamant: | D1: Our Tip: | E1: Odds: | F1: TRIM(Match) | G1: TRIM(Tournment) | H1: TRIM(Our Tip) | I1: Find "(" | J1: Bet Type | K1: Bet Mapping | L1: Grand Slam | M1: Tournment Type | N1: Location | O1: 1st space | P1: " v " or "(" | Q1: last space | R1: Player 1 | S1: Player 2 | T1: Tip Winner: 1st space | U1: Tip Winner: 2nd space (if exists) | V1: Tip Winner: "(" | W1: Tip Winner | X1: Tip Set Margin | Y1: Tip Game Margin | Z1: Tip Total Games | AA1: Lookup Key | AB1: Match Result Index 1 | AC1: Match Result Index 2 | AD1: Winner | AE1: Set Margin | AF1: Game Margin | AG1: Total Games | AH1: Tie Break In Match | AI1: First Set Winner | AJ1: Win A Set | AK1: Outright Winner Index | AL1: Outright Winner | AM1: Prediction | AN1: Odds to Numeral: Location of "/" | AO1: Odds (Fraction) | AP1: P&L | AQ1: Running P&L From Inception | AR1: Running P&L Month
A2: 2014-03-21 | B2: N/A | C2: ATP Miami 2014 | D2: Novak Djokovic (Outright Winner) | E2: 2/1 | F2: =TRIM(B2) -> N/A | G2: =TRIM(C2) -> ATP Miami 2014 | H2: =TRIM(D2) -> Novak Djokovic (Outright Winner) | I2: =FIND("(",H2) -> 16 | J2: =MID(H2,I2+1,LEN(H2)-I2-1) -> Outright Winner | K2: =VLOOKUP(J2,Mapping!$A$5:$B$18,2,0) -> 30 | L2: =IF(IFERROR(FIND("French",$C2),0),"Paris",IF(IFERROR(FIND("Wimbledon",$C2),0),"London",IF(IFERROR(FIND("US",$C2),0),"New York",IF(IFERROR(FIND("Australian",$C2),0),"Melbourne","NO")))) -> NO | M2: =IF(L2="NO",IF(IFERROR(FIND("ATP",C2),0),"ATP",IF(IFERROR(FIND("WTA",C2),0),"WTA","Challenger")),IF(IFERROR(FIND("Women",C2),0),"WTA","ATP")) -> ATP | N2: =IF(L2="NO",IF(M2="Challenger",RIGHT(G2,LEN(G2)-11),IF(IFERROR(FIND("2014",G2),0),MID(G2,5,FIND("2014",G2)-6),MID(G2,5,LEN(G2)-4))),L2) -> Miami | O2: =IF(K2<>30,FIND(" ",F2),FIND(" ",H2)) -> 6 | P2: =IF(K2<>30,FIND(" v ",F2),FIND("(",H2)) -> 16 | Q2: =IF(K2<>30,IF(O2<>P2,FIND(" ",F2,P2+3),O2),O2) -> 6 | R2: =IF(K2<>30,IF(O2<>P2,MID(F2,O2+1,P2-O2-1),LEFT(F2,P2-1)),IF(P2-O2>2,MID(H2,O2+1,P2-O2-1),LEFT(H2,O2))) -> Djokovic | S2: =IF($K2<>30,IF($O2<>$P2,RIGHT(F2,LEN($F2)-$Q2),RIGHT($F2,LEN($F2)-$Q2-2)),"") ->  | T2: =FIND(" ",H2) -> 6 | U2: =IF(OR($K2=1,$K2=11,$K2=13,$K2=30),IF($V2-$T2>2,FIND(" ",$H2,$T2+1),$V2-1),IF(OR($K2=2,$K2=3,$K2=4),IF(OR(ISNUMBER(1*MID($H2,$T2+1,1)),MID($H2,$T2+1,1)="-",MID($H2,$T2+1,1)="+"),$T2,FIND(" ",$H2,$T2+1)),IF(OR($K2=5,,$K2=15),$T2,"other"))) -> 15 | V2: =FIND("(",H2) -> 16 | W2: =IF(K2=15,"N/A",IF(T2=U2,LEFT(H2,U2-1),MID(H2,T2+1,U2-T2-1))) -> Djokovic | X2: =IF(K2=2,MID(H2,U2+1,1)*1-MID(H2,U2+3,1)*1,IF(K2=3,MID(H2,U2+1,V2-U2-1)*1,"N/A")) -> N/A | Y2: =IF($K2=4,MID($H2,$U2+1,$V2-$U2-1)*1,"N/A") -> N/A | Z2: =IF($K2=5,MID($H2,$U2+1,$V2-$U2-1)*1,"N/A") -> N/A | AA2: =N2&R2&S2 -> MiamiDjokovic | AB2: =IF($M2="ATP",MATCH($AA2,'ATP2014'!$AS:$AS,0),MATCH($AA2,'WTA2014'!$AO:$AO,0)) ->  | AC2: =IF($M2="ATP",MATCH($AA2,'ATP2014'!AT:AT,0),MATCH($AA2,'WTA2014'!$AP:$AP,0)) ->  | AD2: =INDEX(IF(M2="ATP",'ATP2014'!AQ:AQ,'WTA2014'!AM:AM),IF(ISNUMBER(AB2),AB2,AC2)) ->  | AE2: =INDEX(IF($M2="ATP",'ATP2014'!$AU:$AU,'WTA2014'!$AQ:$AQ),IF(ISNUMBER($AB2),$AB2,$AC2)) ->  | AF2: =INDEX(IF($M2="ATP",'ATP2014'!$AV:$AV,'WTA2014'!$AR:$AR),IF(ISNUMBER($AB2),$AB2,$AC2)) ->  | AG2: =INDEX(IF($M2="ATP",'ATP2014'!$AW:$AW,'WTA2014'!$AS:$AS),IF(ISNUMBER($AB2),$AB2,$AC2)) ->  | AH2: =INDEX(IF($M2="ATP",'ATP2014'!$AX:$AX,'WTA2014'!$AT:$AT),IF(ISNUMBER($AB2),$AB2,$AC2)) ->  | AI2: =INDEX(IF($M2="ATP",'ATP2014'!$AY:$AY,'WTA2014'!$AU:$AU),IF(ISNUMBER($AB2),$AB2,$AC2)) ->  | AJ2: =IF(W2=AD2,"TRUE",INDEX(IF($M2="ATP",'ATP2014'!$AZ:$AZ,'WTA2014'!$AV:$AV),IF(ISNUMBER($AB2),$AB2,$AC2))) ->  | AK2: =IF(K2=30,IF($M2="ATP",MATCH($N2&"The Final",'ATP2014'!$BA:$BA,0),MATCH($N2&"The Final",'WTA2014'!$AW:$AW,0)),"N/A") -> 805 | AL2: =IF(K2=30,INDEX(IF(M2="ATP",'ATP2014'!AQ:AQ,'WTA2014'!AM:AM),AK2),"N/A") -> Djokovic | AM2: =IF(K2=1,IF(W2=AD2,"Win","Loss"),IF(K2=2,IF(W2<>AD2,"Loss",IF(K2<AE2,"Loss","Win")),IF(K2=3,IF(W2<>AD2,"Loss",IF(AE2+X2<0,"Loss","Win")),IF(K2=4,IF(AF2+Y2>0,"Win",IF(AF2+Y2<0,"Loss","Void")),IF(K2=5,IF(W2="Over",IF(AG2>Z2,"Win",IF(AG2<Z2,"Loss","Void")),IF(AG2<Z2,"Win",IF(AG2>Z2,"Loss","Void"))),IF(K2=15,IF(AH2=TRUE,"Win","Loss"),IF(K2=13,IF(W2=AI2,"Win","Loss"),IF(K2=11,IF(AJ2=TRUE,"Win","Loss"),IF(K2=30,IF(W2=AL2,"Win","Loss"),"Other"))))))))) -> Win | AN2: =FIND("/",E2) -> 2 | AO2: =VALUE(LEFT(E2,AN2-1))/VALUE(RIGHT(E2,LEN(E2)-AN2))*1 -> 2 | AP2: =IF(AM2="Win",AO2,IF(AM2="Loss",-1,0)) -> 2 | AQ2: =AP2 -> 2 | AR2: =CHOOSE(MONTH(A2),"JAN","FEB","MAR","APR","MAY","JUN","JUL","AUG","SEP","OCT","NOV","DEC")&YEAR(A2) -> MAR2014
A3: 2014-03-22 | B3: Edouard Roger-Vasselin v Marin Cilic | C3: ATP Miami 2014 | D3: (Tie Break in Match Yes) | E3: 2/1 | F3: Edouard Roger-Vasselin v Marin Cilic | G3: =TRIM(C3) -> ATP Miami 2014 | H3: =TRIM(D3) -> (Tie Break in Match Yes) | I3: =FIND("(",H3) -> 1 | J3: =MID(H3,I3+1,LEN(H3)-I3-1) -> Tie Break in Match Yes | K3: =VLOOKUP(J3,Mapping!$A$5:$B$18,2,0) -> 15 | L3: NO | M3: ATP | N3: =IF(L3="NO",IF(M3="Challenger",RIGHT(G3,LEN(G3)-11),IF(IFERROR(FIND("2014",G3),0),MID(G3,5,FIND("2014",G3)-6),MID(G3,5,LEN(G3)-4))),L3) -> Miami | O3: 8 | P3: 23 | Q3: 31 | R3: Roger-Vasselin | S3: Cilic | T3: 5 | U3: 5 | V3: 1 | W3: N/A | X3: N/A | Y3: N/A | Z3: N/A | AA3: MiamiRoger-VasselinCilic | AB3: =IF($M3="ATP",MATCH($AA3,'ATP2014'!$AS:$AS,0),MATCH($AA3,'WTA2014'!$AO:$AO,0)) -> 760 | AC3: =IF($M3="ATP",MATCH($AA3,'ATP2014'!AT:AT,0),MATCH($AA3,'WTA2014'!$AP:$AP,0)) ->  | AD3: =INDEX(IF(M3="ATP",'ATP2014'!AQ:AQ,'WTA2014'!AM:AM),IF(ISNUMBER(AB3),AB3,AC3)) -> Roger-Vasselin | AE3: =INDEX(IF($M3="ATP",'ATP2014'!$AU:$AU,'WTA2014'!$AQ:$AQ),IF(ISNUMBER($AB3),$AB3,$AC3)) -> 2 | AF3: =INDEX(IF($M3="ATP",'ATP2014'!$AV:$AV,'WTA2014'!$AR:$AR),IF(ISNUMBER($AB3),$AB3,$AC3)) -> 5 | AG3: =INDEX(IF($M3="ATP",'ATP2014'!$AW:$AW,'WTA2014'!$AS:$AS),IF(ISNUMBER($AB3),$AB3,$AC3)) -> 21 | AH3: =INDEX(IF($M3="ATP",'ATP2014'!$AX:$AX,'WTA2014'!$AT:$AT),IF(ISNUMBER($AB3),$AB3,$AC3)) -> TRUE | AI3: =INDEX(IF($M3="ATP",'ATP2014'!$AY:$AY,'WTA2014'!$AU:$AU),IF(ISNUMBER($AB3),$AB3,$AC3)) -> Roger-Vasselin | AJ3: =IF(W3=AD3,TRUE,INDEX(IF($M3="ATP",'ATP2014'!$AZ:$AZ,'WTA2014'!$AV:$AV),IF(ISNUMBER($AB3),$AB3,$AC3))) -> FALSE | AK3: =IF(K3=30,IF($M3="ATP",MATCH($N3&"The Final",'ATP2014'!$BA:$BA,0),MATCH($N3&"The Final",'WTA2014'!$AW:$AW,0)),"N/A") -> N/A | AL3: =IF(K3=30,INDEX(IF(M3="ATP",'ATP2014'!AQ:AQ,'WTA2014'!AM:AM),AK3),"N/A") -> N/A | AM3: Win | AN3: =FIND("/",E3) -> 2 | AO3: 2 | AP3: 2 | AQ3: =AP3+AQ2 -> 4 | AR3: =CHOOSE(MONTH(A3),"JAN","FEB","MAR","APR","MAY","JUN","JUL","AUG","SEP","OCT","NOV","DEC")&YEAR(A3) -> MAR2014
A4: 2014-03-22 | B4: Bryan/Bryan v Fleming/Hutchins | C4: ATP Miami 2014 | D4: Bryan/Bryan 2-1 (Set Betting) | E4: 10/3 | F4: Bryan/Bryan v Fleming/Hutchins | G4: ATP Miami 2014 | H4: Bryan/Bryan 2-1 (Set Betting) | I4: 17 | J4: Set Betting | K4: =VLOOKUP(J4,Mapping!$A$5:$B$18,2,0) -> 2 | L4: NO | M4: ATP | N4: Miami | O4: 12 | P4: 12 | Q4: 12 | R4: Bryan/Bryan | S4: Fleming/Hutchins | T4: 12 | U4: 12 | V4: 17 | W4: Bryan/Bryan | X4: 1 | Y4: N/A | Z4: N/A | AA4: MiamiBryan/BryanFleming/Hutchins | AB4: =IF($M4="ATP",MATCH($AA4,'ATP2014'!$AS:$AS,0),MATCH($AA4,'WTA2014'!$AO:$AO,0)) ->  | AC4: =IF($M4="ATP",MATCH($AA4,'ATP2014'!AT:AT,0),MATCH($AA4,'WTA2014'!$AP:$AP,0)) ->  | AD4: Bryan/Bryan | AE4: 2 | AF4: =INDEX(IF($M4="ATP",'ATP2014'!$AV:$AV,'WTA2014'!$AR:$AR),IF(ISNUMBER($AB4),$AB4,$AC4)) ->  | AG4: =INDEX(IF($M4="ATP",'ATP2014'!$AW:$AW,'WTA2014'!$AS:$AS),IF(ISNUMBER($AB4),$AB4,$AC4)) ->  | AH4: =INDEX(IF($M4="ATP",'ATP2014'!$AX:$AX,'WTA2014'!$AT:$AT),IF(ISNUMBER($AB4),$AB4,$AC4)) ->  | AI4: =INDEX(IF($M4="ATP",'ATP2014'!$AY:$AY,'WTA2014'!$AU:$AU),IF(ISNUMBER($AB4),$AB4,$AC4)) ->  | AJ4: =IF(W4=AD4,TRUE,INDEX(IF($M4="ATP",'ATP2014'!$AZ:$AZ,'WTA2014'!$AV:$AV),IF(ISNUMBER($AB4),$AB4,$AC4))) -> TRUE | AK4: =IF(K4=30,IF($M4="ATP",MATCH($N4&"The Final",'ATP2014'!$BA:$BA,0),MATCH($N4&"The Final",'WTA2014'!$AW:$AW,0)),"N/A") -> N/A | AL4: =IF(K4=30,INDEX(IF(M4="ATP",'ATP2014'!AQ:AQ,'WTA2014'!AM:AM),AK4),"N/A") -> N/A | AM4: Win | AN4: 3 | AO4: 3.333333333 | AP4: 3.333333333 | AQ4: =AP4+AQ3 -> 7.333333333 | AR4: MAR2014
A5: 2014-03-22 | B5: Maria Sharapova v Lucie Safarova | C5: WTA Miami 2014 | D5: Lucie Safarova (To win a set Yes) | E5: 6/5 | F5: Maria Sharapova v Lucie Safarova | G5: WTA Miami 2014 | H5: Lucie Safarova (To win a set Yes) | I5: 16 | J5: To win a set Yes | K5: =VLOOKUP(J5,Mapping!$A$5:$B$18,2,0) -> 11 | L5: NO | M5: WTA | N5: Miami | O5: 6 | P5: 16 | Q5: 24 | R5: Sharapova | S5: Safarova | T5: 6 | U5: 15 | V5: 16 | W5: Safarova | X5: N/A | Y5: N/A | Z5: N/A | AA5: MiamiSharapovaSafarova | AB5: =IF($M5="ATP",MATCH($AA5,'ATP2014'!$AS:$AS,0),MATCH($AA5,'WTA2014'!$AO:$AO,0)) -> 678 | AC5: =IF($M5="ATP",MATCH($AA5,'ATP2014'!AT:AT,0),MATCH($AA5,'WTA2014'!$AP:$AP,0)) ->  | AD5: =INDEX(IF(M5="ATP",'ATP2014'!AQ:AQ,'WTA2014'!AM:AM),IF(ISNUMBER(AB5),AB5,AC5)) -> Sharapova | AE5: =INDEX(IF($M5="ATP",'ATP2014'!$AU:$AU,'WTA2014'!$AQ:$AQ),IF(ISNUMBER($AB5),$AB5,$AC5)) -> 1 | AF5: =INDEX(IF($M5="ATP",'ATP2014'!$AV:$AV,'WTA2014'!$AR:$AR),IF(ISNUMBER($AB5),$AB5,$AC5)) -> 5 | AG5: =INDEX(IF($M5="ATP",'ATP2014'!$AW:$AW,'WTA2014'!$AS:$AS),IF(ISNUMBER($AB5),$AB5,$AC5)) -> 31 | AH5: =INDEX(IF($M5="ATP",'ATP2014'!$AX:$AX,'WTA2014'!$AT:$AT),IF(ISNUMBER($AB5),$AB5,$AC5)) -> TRUE | AI5: =INDEX(IF($M5="ATP",'ATP2014'!$AY:$AY,'WTA2014'!$AU:$AU),IF(ISNUMBER($AB5),$AB5,$AC5)) -> Sharapova | AJ5: =IF(W5=AD5,TRUE,INDEX(IF($M5="ATP",'ATP2014'!$AZ:$AZ,'WTA2014'!$AV:$AV),IF(ISNUMBER($AB5),$AB5,$AC5))) -> TRUE | AK5: =IF(K5=30,IF($M5="ATP",MATCH($N5&"The Final",'ATP2014'!$BA:$BA,0),MATCH($N5&"The Final",'WTA2014'!$AW:$AW,0)),"N/A") -> N/A | AL5: =IF(K5=30,INDEX(IF(M5="ATP",'ATP2014'!AQ:AQ,'WTA2014'!AM:AM),AK5),"N/A") -> N/A | AM5: Win | AN5: 2 | AO5: 1.2 | AP5: 1.2 | AQ5: 8.533333333 | AR5: MAR2014
A6: 2014-03-22 | B6: John Isner v Donald Young | C6: ATP Miami 2014 | D6: John Isner (Match Winner) | E6: 1/6 | F6: =TRIM(B6) -> John Isner v Donald Young | G6: ATP Miami 2014 | H6: John Isner (Match Winner) | I6: 12 | J6: Match Winner | K6: =VLOOKUP(J6,Mapping!$A$5:$B$18,2,0) -> 1 | L6: NO | M6: ATP | N6: Miami | O6: 5 | P6: 11 | Q6: 20 | R6: =IF(K6<>30,IF(O6<>P6,MID(F6,O6+1,P6-O6-1),LEFT(F6,P6-1)),IF(P6-O6>2,MID(H6,O6+1,P6-O6-1),LEFT(H6,O6))) -> Isner | S6: Young | T6: =FIND(" ",H6) -> 5 | U6: 11 | V6: =FIND("(",H6) -> 12 | W6: Isner | X6: N/A | Y6: N/A | Z6: N/A | AA6: =N6&R6&S6 -> MiamiIsnerYoung | AB6: =IF($M6="ATP",MATCH($AA6,'ATP2014'!$AS:$AS,0),MATCH($AA6,'WTA2014'!$AO:$AO,0)) -> 767 | AC6: =IF($M6="ATP",MATCH($AA6,'ATP2014'!AT:AT,0),MATCH($AA6,'WTA2014'!$AP:$AP,0)) ->  | AD6: =INDEX(IF(M6="ATP",'ATP2014'!AQ:AQ,'WTA2014'!AM:AM),IF(ISNUMBER(AB6),AB6,AC6)) -> Isner | AE6: =INDEX(IF($M6="ATP",'ATP2014'!$AU:$AU,'WTA2014'!$AQ:$AQ),IF(ISNUMBER($AB6),$AB6,$AC6)) -> 1 | AF6: =INDEX(IF($M6="ATP",'ATP2014'!$AV:$AV,'WTA2014'!$AR:$AR),IF(ISNUMBER($AB6),$AB6,$AC6)) -> 4 | AG6: =INDEX(IF($M6="ATP",'ATP2014'!$AW:$AW,'WTA2014'!$AS:$AS),IF(ISNUMBER($AB6),$AB6,$AC6)) -> 32 | AH6: =INDEX(IF($M6="ATP",'ATP2014'!$AX:$AX,'WTA2014'!$AT:$AT),IF(ISNUMBER($AB6),$AB6,$AC6)) -> TRUE | AI6: =INDEX(IF($M6="ATP",'ATP2014'!$AY:$AY,'WTA2014'!$AU:$AU),IF(ISNUMBER($AB6),$AB6,$AC6)) -> Young | AJ6: =IF(W6=AD6,TRUE,INDEX(IF($M6="ATP",'ATP2014'!$AZ:$AZ,'WTA2014'!$AV:$AV),IF(ISNUMBER($AB6),$AB6,$AC6))) -> TRUE | AK6: =IF(K6=30,IF($M6="ATP",MATCH($N6&"The Final",'ATP2014'!$BA:$BA,0),MATCH($N6&"The Final",'WTA2014'!$AW:$AW,0)),"N/A") -> N/A | AL6: =IF(K6=30,INDEX(IF(M6="ATP",'ATP2014'!AQ:AQ,'WTA2014'!AM:AM),AK6),"N/A") -> N/A | AM6: Win | AN6: 2 | AO6: 0.1666666667 | AP6: 0.1666666667 | AQ6: 8.7 | AR6: MAR2014
A7: 2014-03-22 | B7: Grigor Dimitrov v Kei Nishikori | C7: ATP Miami 2014 | D7: Kei Nishikori 2-0 (Set Betting) | E7: 12/5 | F7: =TRIM(B7) -> Grigor Dimitrov v Kei Nishikori | G7: ATP Miami 2014 | H7: Kei Nishikori 2-0 (Set Betting) | I7: 19 | J7: Set Betting | K7: =VLOOKUP(J7,Mapping!$A$5:$B$18,2,0) -> 2 | L7: NO | M7: ATP | N7: Miami | O7: 7 | P7: 16 | Q7: 22 | R7: Dimitrov | S7: Nishikori | T7: =FIND(" ",H7) -> 4 | U7: 14 | V7: =FIND("(",H7) -> 19 | W7: Nishikori | X7: 2 | Y7: N/A | Z7: N/A | AA7: =N7&R7&S7 -> MiamiDimitrovNishikori | AB7: =IF($M7="ATP",MATCH($AA7,'ATP2014'!$AS:$AS,0),MATCH($AA7,'WTA2014'!$AO:$AO,0)) ->  | AC7: =IF($M7="ATP",MATCH($AA7,'ATP2014'!AT:AT,0),MATCH($AA7,'WTA2014'!$AP:$AP,0)) -> 781 | AD7: =INDEX(IF(M7="ATP",'ATP2014'!AQ:AQ,'WTA2014'!AM:AM),IF(ISNUMBER(AB7),AB7,AC7)) -> Nishikori | AE7: =INDEX(IF($M7="ATP",'ATP2014'!$AU:$AU,'WTA2014'!$AQ:$AQ),IF(ISNUMBER($AB7),$AB7,$AC7)) -> 2 | AF7: =INDEX(IF($M7="ATP",'ATP2014'!$AV:$AV,'WTA2014'!$AR:$AR),IF(ISNUMBER($AB7),$AB7,$AC7)) -> 3 | AG7: =INDEX(IF($M7="ATP",'ATP2014'!$AW:$AW,'WTA2014'!$AS:$AS),IF(ISNUMBER($AB7),$AB7,$AC7)) -> 25 | AH7: =INDEX(IF($M7="ATP",'ATP2014'!$AX:$AX,'WTA2014'!$AT:$AT),IF(ISNUMBER($AB7),$AB7,$AC7)) -> TRUE | AI7: =INDEX(IF($M7="ATP",'ATP2014'!$AY:$AY,'WTA2014'!$AU:$AU),IF(ISNUMBER($AB7),$AB7,$AC7)) -> Nishikori | AJ7: =IF(W7=AD7,TRUE,INDEX(IF($M7="ATP",'ATP2014'!$AZ:$AZ,'WTA2014'!$AV:$AV),IF(ISNUMBER($AB7),$AB7,$AC7))) -> TRUE | AK7: =IF(K7=30,IF($M7="ATP",MATCH($N7&"The Final",'ATP2014'!$BA:$BA,0),MATCH($N7&"The Final",'WTA2014'!$AW:$AW,0)),"N/A") -> N/A | AL7: =IF(K7=30,INDEX(IF(M7="ATP",'ATP2014'!AQ:AQ,'WTA2014'!AM:AM),AK7),"N/A") -> N/A | AM7: Win | AN7: 3 | AO7: 2.4 | AP7: 2.4 | AQ7: 11.1 | AR7: MAR2014
A8: 2014-03-24 | B8: Roger Federer v Richard Gasquet | C8: ATP Miami 2014 | D8: Roger Federer 2-0 (Set Betting) | E8: 1/3 | F8: Roger Federer v Richard Gasquet | G8: ATP Miami 2014 | H8: Roger Federer 2-0 (Set Betting) | I8: 19 | J8: Set Betting | K8: =VLOOKUP(J8,Mapping!$A$5:$B$18,2,0) -> 2 | L8: NO | M8: ATP | N8: Miami | O8: 6 | P8: 14 | Q8: 24 | R8: Federer | S8: Gasquet | T8: 6 | U8: 14 | V8: 19 | W8: Federer | X8: 2 | Y8: N/A | Z8: N/A | AA8: MiamiFedererGasquet | AB8: =IF($M8="ATP",MATCH($AA8,'ATP2014'!$AS:$AS,0),MATCH($AA8,'WTA2014'!$AO:$AO,0)) -> 795 | AC8: =IF($M8="ATP",MATCH($AA8,'ATP2014'!AT:AT,0),MATCH($AA8,'WTA2014'!$AP:$AP,0)) ->  | AD8: =INDEX(IF(M8="ATP",'ATP2014'!AQ:AQ,'WTA2014'!AM:AM),IF(ISNUMBER(AB8),AB8,AC8)) -> Federer | AE8: =INDEX(IF($M8="ATP",'ATP2014'!$AU:$AU,'WTA2014'!$AQ:$AQ),IF(ISNUMBER($AB8),$AB8,$AC8)) -> 2 | AF8: =INDEX(IF($M8="ATP",'ATP2014'!$AV:$AV,'WTA2014'!$AR:$AR),IF(ISNUMBER($AB8),$AB8,$AC8)) -> 9 | AG8: =INDEX(IF($M8="ATP",'ATP2014'!$AW:$AW,'WTA2014'!$AS:$AS),IF(ISNUMBER($AB8),$AB8,$AC8)) -> 15 | AH8: =INDEX(IF($M8="ATP",'ATP2014'!$AX:$AX,'WTA2014'!$AT:$AT),IF(ISNUMBER($AB8),$AB8,$AC8)) -> FALSE | AI8: =INDEX(IF($M8="ATP",'ATP2014'!$AY:$AY,'WTA2014'!$AU:$AU),IF(ISNUMBER($AB8),$AB8,$AC8)) -> Federer | AJ8: =IF(W8=AD8,TRUE,INDEX(IF($M8="ATP",'ATP2014'!$AZ:$AZ,'WTA2014'!$AV:$AV),IF(ISNUMBER($AB8),$AB8,$AC8))) -> TRUE | AK8: =IF(K8=30,IF($M8="ATP",MATCH($N8&"The Final",'ATP2014'!$BA:$BA,0),MATCH($N8&"The Final",'WTA2014'!$AW:$AW,0)),"N/A") -> N/A | AL8: =IF(K8=30,INDEX(IF(M8="ATP",'ATP2014'!AQ:AQ,'WTA2014'!AM:AM),AK8),"N/A") -> N/A | AM8: Win | AN8: 2 | AO8: 0.3333333333 | AP8: 0.3333333333 | AQ8: 11.43333333 | AR8: MAR2014
A9: 2014-03-25 | B9: Rafael Nadal v Fabio Fognini | C9: ATP Miami 2014 | D9: Rafael Nadal 2-0 (Set Betting) | E9: 1/5 | F9: Rafael Nadal v Fabio Fognini | G9: ATP Miami 2014 | H9: Rafael Nadal 2-0 (Set Betting) | I9: 18 | J9: Set Betting | K9: =VLOOKUP(J9,Mapping!$A$5:$B$18,2,0) -> 2 | L9: NO | M9: ATP | N9: Miami | O9: 7 | P9: 13 | Q9: 21 | R9: Nadal | S9: Fognini | T9: 7 | U9: 13 | V9: 18 | W9: Nadal | X9: 2 | Y9: N/A | Z9: N/A | AA9: MiamiNadalFognini | AB9: =IF($M9="ATP",MATCH($AA9,'ATP2014'!$AS:$AS,0),MATCH($AA9,'WTA2014'!$AO:$AO,0)) -> 798 | AC9: =IF($M9="ATP",MATCH($AA9,'ATP2014'!AT:AT,0),MATCH($AA9,'WTA2014'!$AP:$AP,0)) ->  | AD9: =INDEX(IF(M9="ATP",'ATP2014'!AQ:AQ,'WTA2014'!AM:AM),IF(ISNUMBER(AB9),AB9,AC9)) -> Nadal | AE9: =INDEX(IF($M9="ATP",'ATP2014'!$AU:$AU,'WTA2014'!$AQ:$AQ),IF(ISNUMBER($AB9),$AB9,$AC9)) -> 2 | AF9: =INDEX(IF($M9="ATP",'ATP2014'!$AV:$AV,'WTA2014'!$AR:$AR),IF(ISNUMBER($AB9),$AB9,$AC9)) -> 8 | AG9: =INDEX(IF($M9="ATP",'ATP2014'!$AW:$AW,'WTA2014'!$AS:$AS),IF(ISNUMBER($AB9),$AB9,$AC9)) -> 16 | AH9: =INDEX(IF($M9="ATP",'ATP2014'!$AX:$AX,'WTA2014'!$AT:$AT),IF(ISNUMBER($AB9),$AB9,$AC9)) -> FALSE | AI9: =INDEX(IF($M9="ATP",'ATP2014'!$AY:$AY,'WTA2014'!$AU:$AU),IF(ISNUMBER($AB9),$AB9,$AC9)) -> Nadal | AJ9: =IF(W9=AD9,TRUE,INDEX(IF($M9="ATP",'ATP2014'!$AZ:$AZ,'WTA2014'!$AV:$AV),IF(ISNUMBER($AB9),$AB9,$AC9))) -> TRUE | AK9: =IF(K9=30,IF($M9="ATP",MATCH($N9&"The Final",'ATP2014'!$BA:$BA,0),MATCH($N9&"The Final",'WTA2014'!$AW:$AW,0)),"N/A") -> N/A | AL9: =IF(K9=30,INDEX(IF(M9="ATP",'ATP2014'!AQ:AQ,'WTA2014'!AM:AM),AK9),"N/A") -> N/A | AM9: Win | AN9: 2 | AO9: 0.2 | AP9: 0.2 | AQ9: 11.63333333 | AR9: MAR2014
A10: 2014-03-26 | B10: Andy Murray v Novak Djokovic | C10: ATP Miami 2014 | D10: Novak Djokovic (Match Winner) | E10: 2/7 | F10: Andy Murray v Novak Djokovic | G10: ATP Miami 2014 | H10: Novak Djokovic (Match Winner) | I10: 16 | J10: Match Winner | K10: =VLOOKUP(J10,Mapping!$A$5:$B$18,2,0) -> 1 | L10: NO | M10: ATP | N10: Miami | O10: =IF(K10<>30,FIND(" ",F10),FIND(" ",H10)) -> 5 | P10: =IF(K10<>30,FIND(" v ",F10),FIND("(",H10)) -> 12 | Q10: =IF(K10<>30,IF(O10<>P10,FIND(" ",F10,P10+3),O10),O10) -> 20 | R10: Murray | S10: Djokovic | T10: 6 | U10: 15 | V10: 16 | W10: Djokovic | X10: N/A | Y10: N/A | Z10: N/A | AA10: MiamiMurrayDjokovic | AB10: =IF($M10="ATP",MATCH($AA10,'ATP2014'!$AS:$AS,0),MATCH($AA10,'WTA2014'!$AO:$AO,0)) ->  | AC10: =IF($M10="ATP",MATCH($AA10,'ATP2014'!AT:AT,0),MATCH($AA10,'WTA2014'!$AP:$AP,0)) -> 799 | AD10: =INDEX(IF(M10="ATP",'ATP2014'!AQ:AQ,'WTA2014'!AM:AM),IF(ISNUMBER(AB10),AB10,AC10)) -> Djokovic | AE10: =INDEX(IF($M10="ATP",'ATP2014'!$AU:$AU,'WTA2014'!$AQ:$AQ),IF(ISNUMBER($AB10),$AB10,$AC10)) -> 2 | AF10: =INDEX(IF($M10="ATP",'ATP2014'!$AV:$AV,'WTA2014'!$AR:$AR),IF(ISNUMBER($AB10),$AB10,$AC10)) -> 5 | AG10: =INDEX(IF($M10="ATP",'ATP2014'!$AW:$AW,'WTA2014'!$AS:$AS),IF(ISNUMBER($AB10),$AB10,$AC10)) -> 21 | AH10: =INDEX(IF($M10="ATP",'ATP2014'!$AX:$AX,'WTA2014'!$AT:$AT),IF(ISNUMBER($AB10),$AB10,$AC10)) -> FALSE | AI10: =INDEX(IF($M10="ATP",'ATP2014'!$AY:$AY,'WTA2014'!$AU:$AU),IF(ISNUMBER($AB10),$AB10,$AC10)) -> Djokovic | AJ10: =IF(W10=AD10,TRUE,INDEX(IF($M10="ATP",'ATP2014'!$AZ:$AZ,'WTA2014'!$AV:$AV),IF(ISNUMBER($AB10),$AB10,$AC10))) -> TRUE | AK10: =IF(K10=30,IF($M10="ATP",MATCH($N10&"The Final",'ATP2014'!$BA:$BA,0),MATCH($N10&"The Final",'WTA2014'!$AW:$AW,0)),"N/A") -> N/A | AL10: =IF(K10=30,INDEX(IF(M10="ATP",'ATP2014'!AQ:AQ,'WTA2014'!AM:AM),AK10),"N/A") -> N/A | AM10: Win | AN10: 2 | AO10: 0.2857142857 | AP10: 0.2857142857 | AQ10: 11.91904762 | AR10: MAR2014
A11: 2014-03-26 | B11: Roger Federer v Kei Nishikori | C11: ATP Miami 2014 | D11: Roger Federer (Match Winner) | E11: 1/7 | F11: Roger Federer v Kei Nishikori | G11: ATP Miami 2014 | H11: Roger Federer (Match Winner) | I11: 15 | J11: Match Winner | K11: =VLOOKUP(J11,Mapping!$A$5:$B$18,2,0) -> 1 | L11: NO | M11: ATP | N11: Miami | O11: =IF(K11<>30,FIND(" ",F11),FIND(" ",H11)) -> 6 | P11: =IF(K11<>30,FIND(" v ",F11),FIND("(",H11)) -> 14 | Q11: =IF(K11<>30,IF(O11<>P11,FIND(" ",F11,P11+3),O11),O11) -> 20 | R11: Federer | S11: Nishikori | T11: 6 | U11: 14 | V11: 15 | W11: Federer | X11: N/A | Y11: N/A | Z11: N/A | AA11: MiamiFedererNishikori | AB11: =IF($M11="ATP",MATCH($AA11,'ATP2014'!$AS:$AS,0),MATCH($AA11,'WTA2014'!$AO:$AO,0)) ->  | AC11: =IF($M11="ATP",MATCH($AA11,'ATP2014'!AT:AT,0),MATCH($AA11,'WTA2014'!$AP:$AP,0)) -> 800 | AD11: =INDEX(IF(M11="ATP",'ATP2014'!AQ:AQ,'WTA2014'!AM:AM),IF(ISNUMBER(AB11),AB11,AC11)) -> Nishikori | AE11: =INDEX(IF($M11="ATP",'ATP2014'!$AU:$AU,'WTA2014'!$AQ:$AQ),IF(ISNUMBER($AB11),$AB11,$AC11)) -> 1 | AF11: =INDEX(IF($M11="ATP",'ATP2014'!$AV:$AV,'WTA2014'!$AR:$AR),IF(ISNUMBER($AB11),$AB11,$AC11)) -> 1 | AG11: =INDEX(IF($M11="ATP",'ATP2014'!$AW:$AW,'WTA2014'!$AS:$AS),IF(ISNUMBER($AB11),$AB11,$AC11)) -> 31 | AH11: =INDEX(IF($M11="ATP",'ATP2014'!$AX:$AX,'WTA2014'!$AT:$AT),IF(ISNUMBER($AB11),$AB11,$AC11)) -> FALSE | AI11: =INDEX(IF($M11="ATP",'ATP2014'!$AY:$AY,'WTA2014'!$AU:$AU),IF(ISNUMBER($AB11),$AB11,$AC11)) -> Federer | AJ11: =IF(W11=AD11,TRUE,INDEX(IF($M11="ATP",'ATP2014'!$AZ:$AZ,'WTA2014'!$AV:$AV),IF(ISNUMBER($AB11),$AB11,$AC11))) -> TRUE | AK11: =IF(K11=30,IF($M11="ATP",MATCH($N11&"The Final",'ATP2014'!$BA:$BA,0),MATCH($N11&"The Final",'WTA2014'!$AW:$AW,0)),"N/A") -> N/A | AL11: =IF(K11=30,INDEX(IF(M11="ATP",'ATP2014'!AQ:AQ,'WTA2014'!AM:AM),AK11),"N/A") -> N/A | AM11: Loss | AN11: 2 | AO11: 0.1428571429 | AP11: -1 | AQ11: 10.91904762 | AR11: MAR2014
A12: 2014-03-26 | B12: Rafael Nadal v Milos Raonic | C12: ATP Miami 2014 | D12: Rafael Nadal (Match Winner) | E12: 1/10 | F12: Rafael Nadal v Milos Raonic | G12: ATP Miami 2014 | H12: Rafael Nadal (Match Winner) | I12: 14 | J12: Match Winner | K12: =VLOOKUP(J12,Mapping!$A$5:$B$18,2,0) -> 1 | L12: NO | M12: ATP | N12: Miami | O12: 7 | P12: 13 | Q12: 21 | R12: Nadal | S12: Raonic | T12: 7 | U12: 13 | V12: 14 | W12: Nadal | X12: N/A | Y12: N/A | Z12: N/A | AA12: MiamiNadalRaonic | AB12: =IF($M12="ATP",MATCH($AA12,'ATP2014'!$AS:$AS,0),MATCH($AA12,'WTA2014'!$AO:$AO,0)) -> 802 | AC12: =IF($M12="ATP",MATCH($AA12,'ATP2014'!AT:AT,0),MATCH($AA12,'WTA2014'!$AP:$AP,0)) ->  | AD12: =INDEX(IF(M12="ATP",'ATP2014'!AQ:AQ,'WTA2014'!AM:AM),IF(ISNUMBER(AB12),AB12,AC12)) -> Nadal | AE12: =INDEX(IF($M12="ATP",'ATP2014'!$AU:$AU,'WTA2014'!$AQ:$AQ),IF(ISNUMBER($AB12),$AB12,$AC12)) -> 1 | AF12: =INDEX(IF($M12="ATP",'ATP2014'!$AV:$AV,'WTA2014'!$AR:$AR),IF(ISNUMBER($AB12),$AB12,$AC12)) -> 4 | AG12: =INDEX(IF($M12="ATP",'ATP2014'!$AW:$AW,'WTA2014'!$AS:$AS),IF(ISNUMBER($AB12),$AB12,$AC12)) -> 28 | AH12: =INDEX(IF($M12="ATP",'ATP2014'!$AX:$AX,'WTA2014'!$AT:$AT),IF(ISNUMBER($AB12),$AB12,$AC12)) -> FALSE | AI12: =INDEX(IF($M12="ATP",'ATP2014'!$AY:$AY,'WTA2014'!$AU:$AU),IF(ISNUMBER($AB12),$AB12,$AC12)) -> Raonic | AJ12: =IF(W12=AD12,TRUE,INDEX(IF($M12="ATP",'ATP2014'!$AZ:$AZ,'WTA2014'!$AV:$AV),IF(ISNUMBER($AB12),$AB12,$AC12))) -> TRUE | AK12: =IF(K12=30,IF($M12="ATP",MATCH($N12&"The Final",'ATP2014'!$BA:$BA,0),MATCH($N12&"The Final",'WTA2014'!$AW:$AW,0)),"N/A") -> N/A | AL12: =IF(K12=30,INDEX(IF(M12="ATP",'ATP2014'!AQ:AQ,'WTA2014'!AM:AM),AK12),"N/A") -> N/A | AM12: Win | AN12: 2 | AO12: 0.1 | AP12: 0.1 | AQ12: 11.01904762 | AR12: MAR2014
A13: 2014-03-26 | B13: Serena Williams v Maria Sharapova | C13: WTA Miami 2014 | D13: Serena Williams (Match Winner) | E13: 1/6 | F13: Serena Williams v Maria Sharapova | G13: WTA Miami 2014 | H13: Serena Williams (Match Winner) | I13: 17 | J13: Match Winner | K13: =VLOOKUP(J13,Mapping!$A$5:$B$18,2,0) -> 1 | L13: NO | M13: WTA | N13: Miami | O13: 7 | P13: 16 | Q13: 24 | R13: Williams | S13: Sharapova | T13: 7 | U13: 16 | V13: 17 | W13: Williams | X13: N/A | Y13: N/A | Z13: N/A | AA13: MiamiWilliamsSharapova | AB13: =IF($M13="ATP",MATCH($AA13,'ATP2014'!$AS:$AS,0),MATCH($AA13,'WTA2014'!$AO:$AO,0)) -> 700 | AC13: =IF($M13="ATP",MATCH($AA13,'ATP2014'!AT:AT,0),MATCH($AA13,'WTA2014'!$AP:$AP,0)) ->  | AD13: =INDEX(IF(M13="ATP",'ATP2014'!AQ:AQ,'WTA2014'!AM:AM),IF(ISNUMBER(AB13),AB13,AC13)) -> Williams | AE13: =INDEX(IF($M13="ATP",'ATP2014'!$AU:$AU,'WTA2014'!$AQ:$AQ),IF(ISNUMBER($AB13),$AB13,$AC13)) -> 2 | AF13: =INDEX(IF($M13="ATP",'ATP2014'!$AV:$AV,'WTA2014'!$AR:$AR),IF(ISNUMBER($AB13),$AB13,$AC13)) -> 5 | AG13: =INDEX(IF($M13="ATP",'ATP2014'!$AW:$AW,'WTA2014'!$AS:$AS),IF(ISNUMBER($AB13),$AB13,$AC13)) -> 19 | AH13: =INDEX(IF($M13="ATP",'ATP2014'!$AX:$AX,'WTA2014'!$AT:$AT),IF(ISNUMBER($AB13),$AB13,$AC13)) -> FALSE | AI13: =INDEX(IF($M13="ATP",'ATP2014'!$AY:$AY,'WTA2014'!$AU:$AU),IF(ISNUMBER($AB13),$AB13,$AC13)) -> Williams | AJ13: =IF(W13=AD13,TRUE,INDEX(IF($M13="ATP",'ATP2014'!$AZ:$AZ,'WTA2014'!$AV:$AV),IF(ISNUMBER($AB13),$AB13,$AC13))) -> TRUE | AK13: =IF(K13=30,IF($M13="ATP",MATCH($N13&"The Final",'ATP2014'!$BA:$BA,0),MATCH($N13&"The Final",'WTA2014'!$AW:$AW,0)),"N/A") -> N/A | AL13: =IF(K13=30,INDEX(IF(M13="ATP",'ATP2014'!AQ:AQ,'WTA2014'!AM:AM),AK13),"N/A") -> N/A | AM13: Win | AN13: 2 | AO13: 0.1666666667 | AP13: 0.1666666667 | AQ13: 11.18571429 | AR13: MAR2014
A14: 2014-03-26 | B14: Bryan/Bryan v Llodra/Mahut | C14: ATP Miami 2014 | D14: Bryan/Bryan 2-1 (Set Betting) | E14: 11/4 | F14: Bryan/Bryan v Llodra/Mahut | G14: ATP Miami 2014 | H14: Bryan/Bryan 2-1 (Set Betting) | I14: 17 | J14: Set Betting | K14: =VLOOKUP(J14,Mapping!$A$5:$B$18,2,0) -> 2 | L14: NO | M14: ATP | N14: Miami | O14: 12 | P14: 12 | Q14: 12 | R14: Bryan/Bryan | S14: Llodra/Mahut | T14: 12 | U14: 12 | V14: 17 | W14: Bryan/Bryan | X14: 1 | Y14: N/A | Z14: N/A | AA14: MiamiBryan/BryanLlodra/Mahut | AB14: =IF($M14="ATP",MATCH($AA14,'ATP2014'!$AS:$AS,0),MATCH($AA14,'WTA2014'!$AO:$AO,0)) ->  | AC14: =IF($M14="ATP",MATCH($AA14,'ATP2014'!AT:AT,0),MATCH($AA14,'WTA2014'!$AP:$AP,0)) ->  | AD14: Bryan/Bryan | AE14: 2 | AF14: =INDEX(IF($M14="ATP",'ATP2014'!$AV:$AV,'WTA2014'!$AR:$AR),IF(ISNUMBER($AB14),$AB14,$AC14)) ->  | AG14: =INDEX(IF($M14="ATP",'ATP2014'!$AW:$AW,'WTA2014'!$AS:$AS),IF(ISNUMBER($AB14),$AB14,$AC14)) ->  | AH14: =INDEX(IF($M14="ATP",'ATP2014'!$AX:$AX,'WTA2014'!$AT:$AT),IF(ISNUMBER($AB14),$AB14,$AC14)) ->  | AI14: =INDEX(IF($M14="ATP",'ATP2014'!$AY:$AY,'WTA2014'!$AU:$AU),IF(ISNUMBER($AB14),$AB14,$AC14)) ->  | AJ14: =IF(W14=AD14,TRUE,INDEX(IF($M14="ATP",'ATP2014'!$AZ:$AZ,'WTA2014'!$AV:$AV),IF(ISNUMBER($AB14),$AB14,$AC14))) -> TRUE | AK14: =IF(K14=30,IF($M14="ATP",MATCH($N14&"The Final",'ATP2014'!$BA:$BA,0),MATCH($N14&"The Final",'WTA2014'!$AW:$AW,0)),"N/A") -> N/A | AL14: =IF(K14=30,INDEX(IF(M14="ATP",'ATP2014'!AQ:AQ,'WTA2014'!AM:AM),AK14),"N/A") -> N/A | AM14: Win | AN14: 3 | AO14: 2.75 | AP14: 2.75 | AQ14: 13.93571429 | AR14: MAR2014
A15: 2014-03-26 | B15: Berdych v Dolgopolov | C15: ATP Miami 2014 | D15: Tomas Berdych (Match Winner) | E15: 2/5 | F15: Berdych v Dolgopolov | G15: ATP Miami 2014 | H15: Tomas Berdych (Match Winner) | I15: 15 | J15: Match Winner | K15: =VLOOKUP(J15,Mapping!$A$5:$B$18,2,0) -> 1 | L15: NO | M15: ATP | N15: Miami | O15: 8 | P15: 8 | Q15: 8 | R15: Berdych | S15: Dolgopolov | T15: 6 | U15: 14 | V15: 15 | W15: Berdych | X15: N/A | Y15: N/A | Z15: N/A | AA15: MiamiBerdychDolgopolov | AB15: =IF($M15="ATP",MATCH($AA15,'ATP2014'!$AS:$AS,0),MATCH($AA15,'WTA2014'!$AO:$AO,0)) -> 801 | AC15: =IF($M15="ATP",MATCH($AA15,'ATP2014'!AT:AT,0),MATCH($AA15,'WTA2014'!$AP:$AP,0)) ->  | AD15: =INDEX(IF(M15="ATP",'ATP2014'!AQ:AQ,'WTA2014'!AM:AM),IF(ISNUMBER(AB15),AB15,AC15)) -> Berdych | AE15: =INDEX(IF($M15="ATP",'ATP2014'!$AU:$AU,'WTA2014'!$AQ:$AQ),IF(ISNUMBER($AB15),$AB15,$AC15)) -> 2 | AF15: =INDEX(IF($M15="ATP",'ATP2014'!$AV:$AV,'WTA2014'!$AR:$AR),IF(ISNUMBER($AB15),$AB15,$AC15)) -> 3 | AG15: =INDEX(IF($M15="ATP",'ATP2014'!$AW:$AW,'WTA2014'!$AS:$AS),IF(ISNUMBER($AB15),$AB15,$AC15)) -> 23 | AH15: =INDEX(IF($M15="ATP",'ATP2014'!$AX:$AX,'WTA2014'!$AT:$AT),IF(ISNUMBER($AB15),$AB15,$AC15)) -> TRUE | AI15: =INDEX(IF($M15="ATP",'ATP2014'!$AY:$AY,'WTA2014'!$AU:$AU),IF(ISNUMBER($AB15),$AB15,$AC15)) -> Berdych | AJ15: =IF(W15=AD15,TRUE,INDEX(IF($M15="ATP",'ATP2014'!$AZ:$AZ,'WTA2014'!$AV:$AV),IF(ISNUMBER($AB15),$AB15,$AC15))) -> TRUE | AK15: =IF(K15=30,IF($M15="ATP",MATCH($N15&"The Final",'ATP2014'!$BA:$BA,0),MATCH($N15&"The Final",'WTA2014'!$AW:$AW,0)),"N/A") -> N/A | AL15: =IF(K15=30,INDEX(IF(M15="ATP",'ATP2014'!AQ:AQ,'WTA2014'!AM:AM),AK15),"N/A") -> N/A | AM15: Win | AN15: 2 | AO15: 0.4 | AP15: 0.4 | AQ15: 14.33571429 | AR15: MAR2014
A16: 2014-03-28 | B16: Novak Djokovic v Kei Nishikori | C16: ATP Miami 2014 | D16: Novak Djokovic (Match Winner) | E16: 1/8 | F16: Novak Djokovic v Kei Nishikori | G16: ATP Miami 2014 | H16: Novak Djokovic (Match Winner) | I16: 16 | J16: Match Winner | K16: =VLOOKUP(J16,Mapping!$A$5:$B$18,2,0) -> 1 | L16: NO | M16: ATP | N16: Miami | O16: 6 | P16: 15 | Q16: 21 | R16: Djokovic | S16: Nishikori | T16: 6 | U16: 15 | V16: 16 | W16: Djokovic | X16: N/A | Y16: N/A | Z16: N/A | AA16: MiamiDjokovicNishikori | AB16: =IF($M16="ATP",MATCH($AA16,'ATP2014'!$AS:$AS,0),MATCH($AA16,'WTA2014'!$AO:$AO,0)) -> 803 | AC16: =IF($M16="ATP",MATCH($AA16,'ATP2014'!AT:AT,0),MATCH($AA16,'WTA2014'!$AP:$AP,0)) ->  | AD16: =INDEX(IF(M16="ATP",'ATP2014'!AQ:AQ,'WTA2014'!AM:AM),IF(ISNUMBER(AB16),AB16,AC16)) -> Djokovic | AE16: =INDEX(IF($M16="ATP",'ATP2014'!$AU:$AU,'WTA2014'!$AQ:$AQ),IF(ISNUMBER($AB16),$AB16,$AC16)) -> 0 | AF16: =INDEX(IF($M16="ATP",'ATP2014'!$AV:$AV,'WTA2014'!$AR:$AR),IF(ISNUMBER($AB16),$AB16,$AC16)) -> 0 | AG16: =INDEX(IF($M16="ATP",'ATP2014'!$AW:$AW,'WTA2014'!$AS:$AS),IF(ISNUMBER($AB16),$AB16,$AC16)) -> 0 | AH16: =INDEX(IF($M16="ATP",'ATP2014'!$AX:$AX,'WTA2014'!$AT:$AT),IF(ISNUMBER($AB16),$AB16,$AC16)) -> FALSE | AI16: =INDEX(IF($M16="ATP",'ATP2014'!$AY:$AY,'WTA2014'!$AU:$AU),IF(ISNUMBER($AB16),$AB16,$AC16)) -> Nishikori | AJ16: =IF(W16=AD16,TRUE,INDEX(IF($M16="ATP",'ATP2014'!$AZ:$AZ,'WTA2014'!$AV:$AV),IF(ISNUMBER($AB16),$AB16,$AC16))) -> TRUE | AK16: =IF(K16=30,IF($M16="ATP",MATCH($N16&"The Final",'ATP2014'!$BA:$BA,0),MATCH($N16&"The Final",'WTA2014'!$AW:$AW,0)),"N/A") -> N/A | AL16: =IF(K16=30,INDEX(IF(M16="ATP",'ATP2014'!AQ:AQ,'WTA2014'!AM:AM),AK16),"N/A") -> N/A | AM16: Win | AN16: 2 | AO16: 0.125 | AP16: 0.125 | AQ16: 14.46071429 | AR16: MAR2014
A17: 2014-03-28 | B17: Berdych v Nadal | C17: ATP Miami 2014 | D17: Tomas Berdych (To Win 1st Set Yes) | E17: 5/2 | F17: Berdych v Nadal | G17: ATP Miami 2014 | H17: Tomas Berdych (To Win 1st Set Yes) | I17: 15 | J17: To Win 1st Set Yes | K17: =VLOOKUP(J17,Mapping!$A$5:$B$18,2,0) -> 13 | L17: NO | M17: ATP | N17: Miami | O17: 8 | P17: 8 | Q17: 8 | R17: Berdych | S17: Nadal | T17: 6 | U17: 14 | V17: 15 | W17: Berdych | X17: N/A | Y17: N/A | Z17: N/A | AA17: MiamiBerdychNadal | AB17: =IF($M17="ATP",MATCH($AA17,'ATP2014'!$AS:$AS,0),MATCH($AA17,'WTA2014'!$AO:$AO,0)) ->  | AC17: =IF($M17="ATP",MATCH($AA17,'ATP2014'!AT:AT,0),MATCH($AA17,'WTA2014'!$AP:$AP,0)) -> 804 | AD17: =INDEX(IF(M17="ATP",'ATP2014'!AQ:AQ,'WTA2014'!AM:AM),IF(ISNUMBER(AB17),AB17,AC17)) -> Nadal | AE17: =INDEX(IF($M17="ATP",'ATP2014'!$AU:$AU,'WTA2014'!$AQ:$AQ),IF(ISNUMBER($AB17),$AB17,$AC17)) -> 0 | AF17: =INDEX(IF($M17="ATP",'ATP2014'!$AV:$AV,'WTA2014'!$AR:$AR),IF(ISNUMBER($AB17),$AB17,$AC17)) -> 0 | AG17: =INDEX(IF($M17="ATP",'ATP2014'!$AW:$AW,'WTA2014'!$AS:$AS),IF(ISNUMBER($AB17),$AB17,$AC17)) -> 0 | AH17: =INDEX(IF($M17="ATP",'ATP2014'!$AX:$AX,'WTA2014'!$AT:$AT),IF(ISNUMBER($AB17),$AB17,$AC17)) -> FALSE | AI17: =INDEX(IF($M17="ATP",'ATP2014'!$AY:$AY,'WTA2014'!$AU:$AU),IF(ISNUMBER($AB17),$AB17,$AC17)) -> Berdych | AJ17: =IF(W17=AD17,TRUE,INDEX(IF($M17="ATP",'ATP2014'!$AZ:$AZ,'WTA2014'!$AV:$AV),IF(ISNUMBER($AB17),$AB17,$AC17))) -> FALSE | AK17: =IF(K17=30,IF($M17="ATP",MATCH($N17&"The Final",'ATP2014'!$BA:$BA,0),MATCH($N17&"The Final",'WTA2014'!$AW:$AW,0)),"N/A") -> N/A | AL17: =IF(K17=30,INDEX(IF(M17="ATP",'ATP2014'!AQ:AQ,'WTA2014'!AM:AM),AK17),"N/A") -> N/A | AM17: Win | AN17: 2 | AO17: 2.5 | AP17: 2.5 | AQ17: 16.96071429 | AR17: MAR2014
A18: 2014-03-28 | B18: Hingis/Lisicki v Black/Mirza | C18: WTA Miami 2014 | D18: Hingis/Lisicki (Match Winner) | E18: 7/4 | F18: Hingis/Lisicki v Black/Mirza | G18: WTA Miami 2014 | H18: Hingis/Lisicki (Match Winner) | I18: 16 | J18: Match Winner | K18: =VLOOKUP(J18,Mapping!$A$5:$B$18,2,0) -> 1 | L18: NO | M18: WTA | N18: Miami | O18: 15 | P18: 15 | Q18: 15 | R18: Hingis/Lisicki | S18: Black/Mirza | T18: 15 | U18: 15 | V18: 16 | W18: Hingis/Lisicki | X18: N/A | Y18: N/A | Z18: N/A | AA18: MiamiHingis/LisickiBlack/Mirza | AB18: =IF($M18="ATP",MATCH($AA18,'ATP2014'!$AS:$AS,0),MATCH($AA18,'WTA2014'!$AO:$AO,0)) ->  | AC18: =IF($M18="ATP",MATCH($AA18,'ATP2014'!AT:AT,0),MATCH($AA18,'WTA2014'!$AP:$AP,0)) ->  | AD18: Hingis/Lisicki | AE18: =INDEX(IF($M18="ATP",'ATP2014'!$AU:$AU,'WTA2014'!$AQ:$AQ),IF(ISNUMBER($AB18),$AB18,$AC18)) ->  | AF18: =INDEX(IF($M18="ATP",'ATP2014'!$AV:$AV,'WTA2014'!$AR:$AR),IF(ISNUMBER($AB18),$AB18,$AC18)) ->  | AG18: =INDEX(IF($M18="ATP",'ATP2014'!$AW:$AW,'WTA2014'!$AS:$AS),IF(ISNUMBER($AB18),$AB18,$AC18)) ->  | AH18: =INDEX(IF($M18="ATP",'ATP2014'!$AX:$AX,'WTA2014'!$AT:$AT),IF(ISNUMBER($AB18),$AB18,$AC18)) ->  | AI18: =INDEX(IF($M18="ATP",'ATP2014'!$AY:$AY,'WTA2014'!$AU:$AU),IF(ISNUMBER($AB18),$AB18,$AC18)) ->  | AJ18: =IF(W18=AD18,TRUE,INDEX(IF($M18="ATP",'ATP2014'!$AZ:$AZ,'WTA2014'!$AV:$AV),IF(ISNUMBER($AB18),$AB18,$AC18))) -> TRUE | AK18: =IF(K18=30,IF($M18="ATP",MATCH($N18&"The Final",'ATP2014'!$BA:$BA,0),MATCH($N18&"The Final",'WTA2014'!$AW:$AW,0)),"N/A") -> N/A | AL18: =IF(K18=30,INDEX(IF(M18="ATP",'ATP2014'!AQ:AQ,'WTA2014'!AM:AM),AK18),"N/A") -> N/A | AM18: Win | AN18: 2 | AO18: 1.75 | AP18: 1.75 | AQ18: 18.71071429 | AR18: MAR2014
A19: 2014-03-29 | B19: Nadal v Djokovic | C19: ATP Miami 2014 | D19: Novak Djokovic (Match Winner) | E19: 8/11 | F19: Nadal v Djokovic | G19: ATP Miami 2014 | H19: Novak Djokovic (Match Winner) | I19: 16 | J19: Match Winner | K19: =VLOOKUP(J19,Mapping!$A$5:$B$18,2,0) -> 1 | L19: NO | M19: ATP | N19: Miami | O19: 6 | P19: 6 | Q19: 6 | R19: Nadal | S19: Djokovic | T19: 6 | U19: 15 | V19: 16 | W19: Djokovic | X19: N/A | Y19: N/A | Z19: N/A | AA19: MiamiNadalDjokovic | AB19: =IF($M19="ATP",MATCH($AA19,'ATP2014'!$AS:$AS,0),MATCH($AA19,'WTA2014'!$AO:$AO,0)) ->  | AC19: =IF($M19="ATP",MATCH($AA19,'ATP2014'!AT:AT,0),MATCH($AA19,'WTA2014'!$AP:$AP,0)) -> 805 | AD19: =INDEX(IF(M19="ATP",'ATP2014'!AQ:AQ,'WTA2014'!AM:AM),IF(ISNUMBER(AB19),AB19,AC19)) -> Djokovic | AE19: =INDEX(IF($M19="ATP",'ATP2014'!$AU:$AU,'WTA2014'!$AQ:$AQ),IF(ISNUMBER($AB19),$AB19,$AC19)) -> 2 | AF19: =INDEX(IF($M19="ATP",'ATP2014'!$AV:$AV,'WTA2014'!$AR:$AR),IF(ISNUMBER($AB19),$AB19,$AC19)) -> 6 | AG19: =INDEX(IF($M19="ATP",'ATP2014'!$AW:$AW,'WTA2014'!$AS:$AS),IF(ISNUMBER($AB19),$AB19,$AC19)) -> 18 | AH19: =INDEX(IF($M19="ATP",'ATP2014'!$AX:$AX,'WTA2014'!$AT:$AT),IF(ISNUMBER($AB19),$AB19,$AC19)) -> FALSE | AI19: =INDEX(IF($M19="ATP",'ATP2014'!$AY:$AY,'WTA2014'!$AU:$AU),IF(ISNUMBER($AB19),$AB19,$AC19)) -> Djokovic | AJ19: =IF(W19=AD19,TRUE,INDEX(IF($M19="ATP",'ATP2014'!$AZ:$AZ,'WTA2014'!$AV:$AV),IF(ISNUMBER($AB19),$AB19,$AC19))) -> TRUE | AK19: =IF(K19=30,IF($M19="ATP",MATCH($N19&"The Final",'ATP2014'!$BA:$BA,0),MATCH($N19&"The Final",'WTA2014'!$AW:$AW,0)),"N/A") -> N/A | AL19: =IF(K19=30,INDEX(IF(M19="ATP",'ATP2014'!AQ:AQ,'WTA2014'!AM:AM),AK19),"N/A") -> N/A | AM19: Win | AN19: 2 | AO19: 0.7272727273 | AP19: 0.7272727273 | AQ19: 19.43798701 | AR19: MAR2014
A20: 2014-03-29 | B20: Williams v Li | C20: WTA Miami 2014 | D20: Serena Williams (Match Winner) | E20: 2/9 | F20: Williams v Li | G20: WTA Miami 2014 | H20: Serena Williams (Match Winner) | I20: 17 | J20: Match Winner | K20: =VLOOKUP(J20,Mapping!$A$5:$B$18,2,0) -> 1 | L20: NO | M20: WTA | N20: Miami | O20: 9 | P20: 9 | Q20: 9 | R20: Williams | S20: Li | T20: 7 | U20: 16 | V20: 17 | W20: Williams | X20: N/A | Y20: N/A | Z20: N/A | AA20: MiamiWilliamsLi | AB20: =IF($M20="ATP",MATCH($AA20,'ATP2014'!$AS:$AS,0),MATCH($AA20,'WTA2014'!$AO:$AO,0)) -> 702 | AC20: =IF($M20="ATP",MATCH($AA20,'ATP2014'!AT:AT,0),MATCH($AA20,'WTA2014'!$AP:$AP,0)) ->  | AD20: =INDEX(IF(M20="ATP",'ATP2014'!AQ:AQ,'WTA2014'!AM:AM),IF(ISNUMBER(AB20),AB20,AC20)) -> Williams | AE20: =INDEX(IF($M20="ATP",'ATP2014'!$AU:$AU,'WTA2014'!$AQ:$AQ),IF(ISNUMBER($AB20),$AB20,$AC20)) -> 2 | AF20: =INDEX(IF($M20="ATP",'ATP2014'!$AV:$AV,'WTA2014'!$AR:$AR),IF(ISNUMBER($AB20),$AB20,$AC20)) -> 7 | AG20: =INDEX(IF($M20="ATP",'ATP2014'!$AW:$AW,'WTA2014'!$AS:$AS),IF(ISNUMBER($AB20),$AB20,$AC20)) -> 19 | AH20: =INDEX(IF($M20="ATP",'ATP2014'!$AX:$AX,'WTA2014'!$AT:$AT),IF(ISNUMBER($AB20),$AB20,$AC20)) -> FALSE | AI20: =INDEX(IF($M20="ATP",'ATP2014'!$AY:$AY,'WTA2014'!$AU:$AU),IF(ISNUMBER($AB20),$AB20,$AC20)) -> Williams | AJ20: =IF(W20=AD20,TRUE,INDEX(IF($M20="ATP",'ATP2014'!$AZ:$AZ,'WTA2014'!$AV:$AV),IF(ISNUMBER($AB20),$AB20,$AC20))) -> TRUE | AK20: =IF(K20=30,IF($M20="ATP",MATCH($N20&"The Final",'ATP2014'!$BA:$BA,0),MATCH($N20&"The Final",'WTA2014'!$AW:$AW,0)),"N/A") -> N/A | AL20: =IF(K20=30,INDEX(IF(M20="ATP",'ATP2014'!AQ:AQ,'WTA2014'!AM:AM),AK20),"N/A") -> N/A | AM20: Win | AN20: 2 | AO20: 0.2222222222 | AP20: 0.2222222222 | AQ20: 19.66020924 | AR20: MAR2014
A21: 2014-03-29 | B21: Bryan/Bryan v Cabal/Farah | C21: ATP Miami 2014 | D21: Bryan/Bryan (Match Winner) | E21: 1/6 | F21: Bryan/Bryan v Cabal/Farah | G21: ATP Miami 2014 | H21: Bryan/Bryan (Match Winner) | I21: 13 | J21: Match Winner | K21: =VLOOKUP(J21,Mapping!$A$5:$B$18,2,0) -> 1 | L21: NO | M21: ATP | N21: Miami | O21: 12 | P21: 12 | Q21: 12 | R21: Bryan/Bryan | S21: Cabal/Farah | T21: 12 | U21: 12 | V21: 13 | W21: Bryan/Bryan | X21: N/A | Y21: N/A | Z21: N/A | AA21: MiamiBryan/BryanCabal/Farah | AB21: =IF($M21="ATP",MATCH($AA21,'ATP2014'!$AS:$AS,0),MATCH($AA21,'WTA2014'!$AO:$AO,0)) ->  | AC21: =IF($M21="ATP",MATCH($AA21,'ATP2014'!AT:AT,0),MATCH($AA21,'WTA2014'!$AP:$AP,0)) ->  | AD21: Bryan/Bryan | AE21: =INDEX(IF($M21="ATP",'ATP2014'!$AU:$AU,'WTA2014'!$AQ:$AQ),IF(ISNUMBER($AB21),$AB21,$AC21)) ->  | AF21: =INDEX(IF($M21="ATP",'ATP2014'!$AV:$AV,'WTA2014'!$AR:$AR),IF(ISNUMBER($AB21),$AB21,$AC21)) ->  | AG21: =INDEX(IF($M21="ATP",'ATP2014'!$AW:$AW,'WTA2014'!$AS:$AS),IF(ISNUMBER($AB21),$AB21,$AC21)) ->  | AH21: =INDEX(IF($M21="ATP",'ATP2014'!$AX:$AX,'WTA2014'!$AT:$AT),IF(ISNUMBER($AB21),$AB21,$AC21)) ->  | AI21: =INDEX(IF($M21="ATP",'ATP2014'!$AY:$AY,'WTA2014'!$AU:$AU),IF(ISNUMBER($AB21),$AB21,$AC21)) ->  | AJ21: =IF(W21=AD21,TRUE,INDEX(IF($M21="ATP",'ATP2014'!$AZ:$AZ,'WTA2014'!$AV:$AV),IF(ISNUMBER($AB21),$AB21,$AC21))) -> TRUE | AK21: =IF(K21=30,IF($M21="ATP",MATCH($N21&"The Final",'ATP2014'!$BA:$BA,0),MATCH($N21&"The Final",'WTA2014'!$AW:$AW,0)),"N/A") -> N/A | AL21: =IF(K21=30,INDEX(IF(M21="ATP",'ATP2014'!AQ:AQ,'WTA2014'!AM:AM),AK21),"N/A") -> N/A | AM21: Win | AN21: 2 | AO21: 0.1666666667 | AP21: 0.1666666667 | AQ21: 19.8268759 | AR21: MAR2014
A22: 2014-04-05 | B22: N/A | C22: ATP Monte Carlo 2014 | D22: Rafael Nadal (Outright Winner) | E22: 8/11 | F22: N/A | G22: ATP Monte Carlo 2014 | H22: Rafael Nadal (Outright Winner) | I22: 14 | J22: Outright Winner | K22: =VLOOKUP(J22,Mapping!$A$5:$B$18,2,0) -> 30 | L22: NO | M22: ATP | N22: Monte Carlo | O22: 7 | P22: 14 | Q22: 7 | R22: Nadal | T22: 7 | U22: 13 | V22: 14 | W22: Nadal | X22: N/A | Y22: N/A | Z22: N/A | AA22: Monte CarloNadal | AB22: =IF($M22="ATP",MATCH($AA22,'ATP2014'!$AS:$AS,0),MATCH($AA22,'WTA2014'!$AO:$AO,0)) ->  | AC22: =IF($M22="ATP",MATCH($AA22,'ATP2014'!AT:AT,0),MATCH($AA22,'WTA2014'!$AP:$AP,0)) ->  | AD22: =INDEX(IF(M22="ATP",'ATP2014'!AQ:AQ,'WTA2014'!AM:AM),IF(ISNUMBER(AB22),AB22,AC22)) ->  | AE22: =INDEX(IF($M22="ATP",'ATP2014'!$AU:$AU,'WTA2014'!$AQ:$AQ),IF(ISNUMBER($AB22),$AB22,$AC22)) ->  | AF22: =INDEX(IF($M22="ATP",'ATP2014'!$AV:$AV,'WTA2014'!$AR:$AR),IF(ISNUMBER($AB22),$AB22,$AC22)) ->  | AG22: =INDEX(IF($M22="ATP",'ATP2014'!$AW:$AW,'WTA2014'!$AS:$AS),IF(ISNUMBER($AB22),$AB22,$AC22)) ->  | AH22: =INDEX(IF($M22="ATP",'ATP2014'!$AX:$AX,'WTA2014'!$AT:$AT),IF(ISNUMBER($AB22),$AB22,$AC22)) ->  | AI22: =INDEX(IF($M22="ATP",'ATP2014'!$AY:$AY,'WTA2014'!$AU:$AU),IF(ISNUMBER($AB22),$AB22,$AC22)) ->  | AJ22: =IF(W22=AD22,TRUE,INDEX(IF($M22="ATP",'ATP2014'!$AZ:$AZ,'WTA2014'!$AV:$AV),IF(ISNUMBER($AB22),$AB22,$AC22))) ->  | AK22: =IF(K22=30,IF($M22="ATP",MATCH($N22&"The Final",'ATP2014'!$BA:$BA,0),MATCH($N22&"The Final",'WTA2014'!$AW:$AW,0)),"N/A") -> 914 | AL22: =IF(K22=30,INDEX(IF(M22="ATP",'ATP2014'!AQ:AQ,'WTA2014'!AM:AM),AK22),"N/A") -> Wawrinka | AM22: Loss | AN22: 2 | AO22: 0.7272727273 | AP22: -1 | AQ22: 18.8268759 | AR22: APR2014
A23: 2014-04-07 | B23: N/A | C23: ATP Houston 2014 | D23: John Isner (Outright Winner) | E23: 3/1 | F23: N/A | G23: ATP Houston 2014 | H23: John Isner (Outright Winner) | I23: 12 | J23: Outright Winner | K23: =VLOOKUP(J23,Mapping!$A$5:$B$18,2,0) -> 30 | L23: NO | M23: ATP | N23: Houston | O23: 5 | P23: 12 | Q23: 5 | R23: Isner | T23: 5 | U23: 11 | V23: 12 | W23: Isner | X23: N/A | Y23: N/A | Z23: N/A | AA23: HoustonIsner | AB23: =IF($M23="ATP",MATCH($AA23,'ATP2014'!$AS:$AS,0),MATCH($AA23,'WTA2014'!$AO:$AO,0)) ->  | AC23: =IF($M23="ATP",MATCH($AA23,'ATP2014'!AT:AT,0),MATCH($AA23,'WTA2014'!$AP:$AP,0)) ->  | AD23: =INDEX(IF(M23="ATP",'ATP2014'!AQ:AQ,'WTA2014'!AM:AM),IF(ISNUMBER(AB23),AB23,AC23)) ->  | AE23: =INDEX(IF($M23="ATP",'ATP2014'!$AU:$AU,'WTA2014'!$AQ:$AQ),IF(ISNUMBER($AB23),$AB23,$AC23)) ->  | AF23: =INDEX(IF($M23="ATP",'ATP2014'!$AV:$AV,'WTA2014'!$AR:$AR),IF(ISNUMBER($AB23),$AB23,$AC23)) ->  | AG23: =INDEX(IF($M23="ATP",'ATP2014'!$AW:$AW,'WTA2014'!$AS:$AS),IF(ISNUMBER($AB23),$AB23,$AC23)) ->  | AH23: =INDEX(IF($M23="ATP",'ATP2014'!$AX:$AX,'WTA2014'!$AT:$AT),IF(ISNUMBER($AB23),$AB23,$AC23)) ->  | AI23: =INDEX(IF($M23="ATP",'ATP2014'!$AY:$AY,'WTA2014'!$AU:$AU),IF(ISNUMBER($AB23),$AB23,$AC23)) ->  | AJ23: =IF(W23=AD23,TRUE,INDEX(IF($M23="ATP",'ATP2014'!$AZ:$AZ,'WTA2014'!$AV:$AV),IF(ISNUMBER($AB23),$AB23,$AC23))) ->  | AK23: =IF(K23=30,IF($M23="ATP",MATCH($N23&"The Final",'ATP2014'!$BA:$BA,0),MATCH($N23&"The Final",'WTA2014'!$AW:$AW,0)),"N/A") -> 859 | AL23: =IF(K23=30,INDEX(IF(M23="ATP",'ATP2014'!AQ:AQ,'WTA2014'!AM:AM),AK23),"N/A") -> Verdasco | AM23: Loss | AN23: 2 | AO23: 3 | AP23: -1 | AQ23: 17.8268759 | AR23: APR2014
A24: 2014-04-07 | B24: N/A | C24: WTA Katowice 2014 | D24: Agnieszka Radwanska (Outright Winner) | E24: 1/1 | F24: N/A | G24: WTA Katowice 2014 | H24: Agnieszka Radwanska (Outright Winner) | I24: 21 | J24: Outright Winner | K24: =VLOOKUP(J24,Mapping!$A$5:$B$18,2,0) -> 30 | L24: NO | M24: WTA | N24: Katowice | O24: 10 | P24: 21 | Q24: 10 | R24: Radwanska | T24: 10 | U24: 20 | V24: 21 | W24: Radwanska | X24: N/A | Y24: N/A | Z24: N/A | AA24: KatowiceRadwanska | AB24: =IF($M24="ATP",MATCH($AA24,'ATP2014'!$AS:$AS,0),MATCH($AA24,'WTA2014'!$AO:$AO,0)) ->  | AC24: =IF($M24="ATP",MATCH($AA24,'ATP2014'!AT:AT,0),MATCH($AA24,'WTA2014'!$AP:$AP,0)) ->  | AD24: =INDEX(IF(M24="ATP",'ATP2014'!AQ:AQ,'WTA2014'!AM:AM),IF(ISNUMBER(AB24),AB24,AC24)) ->  | AE24: =INDEX(IF($M24="ATP",'ATP2014'!$AU:$AU,'WTA2014'!$AQ:$AQ),IF(ISNUMBER($AB24),$AB24,$AC24)) ->  | AF24: =INDEX(IF($M24="ATP",'ATP2014'!$AV:$AV,'WTA2014'!$AR:$AR),IF(ISNUMBER($AB24),$AB24,$AC24)) ->  | AG24: =INDEX(IF($M24="ATP",'ATP2014'!$AW:$AW,'WTA2014'!$AS:$AS),IF(ISNUMBER($AB24),$AB24,$AC24)) ->  | AH24: =INDEX(IF($M24="ATP",'ATP2014'!$AX:$AX,'WTA2014'!$AT:$AT),IF(ISNUMBER($AB24),$AB24,$AC24)) ->  | AI24: =INDEX(IF($M24="ATP",'ATP2014'!$AY:$AY,'WTA2014'!$AU:$AU),IF(ISNUMBER($AB24),$AB24,$AC24)) ->  | AJ24: =IF(W24=AD24,TRUE,INDEX(IF($M24="ATP",'ATP2014'!$AZ:$AZ,'WTA2014'!$AV:$AV),IF(ISNUMBER($AB24),$AB24,$AC24))) ->  | AK24: =IF(K24=30,IF($M24="ATP",MATCH($N24&"The Final",'ATP2014'!$BA:$BA,0),MATCH($N24&"The Final",'WTA2014'!$AW:$AW,0)),"N/A") -> 850 | AL24: =IF(K24=30,INDEX(IF(M24="ATP",'ATP2014'!AQ:AQ,'WTA2014'!AM:AM),AK24),"N/A") -> Cornet | AM24: Loss | AN24: 2 | AO24: 1 | AP24: -1 | AQ24: 16.8268759 | AR24: APR2014
A25: 2014-04-10 | B25: Lopez v Gonzalez | C25: ATP Houston 2014 | D25: Lopez (Match Winner) | E25: 4/9 | F25: Lopez v Gonzalez | G25: ATP Houston 2014 | H25: Lopez (Match Winner) | I25: 7 | J25: Match Winner | K25: =VLOOKUP(J25,Mapping!$A$5:$B$18,2,0) -> 1 | L25: NO | M25: ATP | N25: Houston | O25: 6 | P25: 6 | Q25: 6 | R25: Lopez | S25: Gonzalez | T25: 6 | U25: 6 | V25: 7 | W25: Lopez | X25: N/A | Y25: N/A | Z25: N/A | AA25: HoustonLopezGonzalez | AB25: =IF($M25="ATP",MATCH($AA25,'ATP2014'!$AS:$AS,0),MATCH($AA25,'WTA2014'!$AO:$AO,0)) ->  | AC25: =IF($M25="ATP",MATCH($AA25,'ATP2014'!AT:AT,0),MATCH($AA25,'WTA2014'!$AP:$AP,0)) -> 849 | AD25: =INDEX(IF(M25="ATP",'ATP2014'!AQ:AQ,'WTA2014'!AM:AM),IF(ISNUMBER(AB25),AB25,AC25)) -> Gonzalez | AE25: =INDEX(IF($M25="ATP",'ATP2014'!$AU:$AU,'WTA2014'!$AQ:$AQ),IF(ISNUMBER($AB25),$AB25,$AC25)) -> 1 | AF25: =INDEX(IF($M25="ATP",'ATP2014'!$AV:$AV,'WTA2014'!$AR:$AR),IF(ISNUMBER($AB25),$AB25,$AC25)) -> 5 | AG25: =INDEX(IF($M25="ATP",'ATP2014'!$AW:$AW,'WTA2014'!$AS:$AS),IF(ISNUMBER($AB25),$AB25,$AC25)) -> 11 | AH25: =INDEX(IF($M25="ATP",'ATP2014'!$AX:$AX,'WTA2014'!$AT:$AT),IF(ISNUMBER($AB25),$AB25,$AC25)) -> FALSE | AI25: =INDEX(IF($M25="ATP",'ATP2014'!$AY:$AY,'WTA2014'!$AU:$AU),IF(ISNUMBER($AB25),$AB25,$AC25)) -> Gonzalez | AJ25: =IF(W25=AD25,TRUE,INDEX(IF($M25="ATP",'ATP2014'!$AZ:$AZ,'WTA2014'!$AV:$AV),IF(ISNUMBER($AB25),$AB25,$AC25))) -> FALSE | AK25: =IF(K25=30,IF($M25="ATP",MATCH($N25&"The Final",'ATP2014'!$BA:$BA,0),MATCH($N25&"The Final",'WTA2014'!$AW:$AW,0)),"N/A") -> N/A | AL25: =IF(K25=30,INDEX(IF(M25="ATP",'ATP2014'!AQ:AQ,'WTA2014'!AM:AM),AK25),"N/A") -> N/A | AM25: Loss | AN25: 2 | AO25: 0.4444444444 | AP25: -1 | AQ25: 15.8268759 | AR25: APR2014
A26: 2014-04-12 | B26: Marrero/Verdasco v Bryan/Bryan | C26: ATP Houston 2014 | D26: Marrero/Verdaco (Match Winner) | E26: 5/2 | F26: Marrero/Verdasco v Bryan/Bryan | G26: ATP Houston 2014 | H26: Marrero/Verdaco (Match Winner) | I26: 17 | J26: Match Winner | K26: =VLOOKUP(J26,Mapping!$A$5:$B$18,2,0) -> 1 | L26: NO | M26: ATP | N26: Houston | O26: 17 | P26: 17 | Q26: 17 | R26: Marrero/Verdasco | S26: Bryan/Bryan | T26: 16 | U26: 16 | V26: 17 | W26: Marrero/Verdaco | X26: N/A | Y26: N/A | Z26: N/A | AA26: HoustonMarrero/VerdascoBryan/Bryan | AB26: =IF($M26="ATP",MATCH($AA26,'ATP2014'!$AS:$AS,0),MATCH($AA26,'WTA2014'!$AO:$AO,0)) ->  | AC26: =IF($M26="ATP",MATCH($AA26,'ATP2014'!AT:AT,0),MATCH($AA26,'WTA2014'!$AP:$AP,0)) ->  | AD26: Bryan/Bryan | AE26: =INDEX(IF($M26="ATP",'ATP2014'!$AU:$AU,'WTA2014'!$AQ:$AQ),IF(ISNUMBER($AB26),$AB26,$AC26)) ->  | AF26: =INDEX(IF($M26="ATP",'ATP2014'!$AV:$AV,'WTA2014'!$AR:$AR),IF(ISNUMBER($AB26),$AB26,$AC26)) ->  | AG26: =INDEX(IF($M26="ATP",'ATP2014'!$AW:$AW,'WTA2014'!$AS:$AS),IF(ISNUMBER($AB26),$AB26,$AC26)) ->  | AH26: =INDEX(IF($M26="ATP",'ATP2014'!$AX:$AX,'WTA2014'!$AT:$AT),IF(ISNUMBER($AB26),$AB26,$AC26)) ->  | AI26: =INDEX(IF($M26="ATP",'ATP2014'!$AY:$AY,'WTA2014'!$AU:$AU),IF(ISNUMBER($AB26),$AB26,$AC26)) ->  | AJ26: =IF(W26=AD26,TRUE,INDEX(IF($M26="ATP",'ATP2014'!$AZ:$AZ,'WTA2014'!$AV:$AV),IF(ISNUMBER($AB26),$AB26,$AC26))) ->  | AK26: =IF(K26=30,IF($M26="ATP",MATCH($N26&"The Final",'ATP2014'!$BA:$BA,0),MATCH($N26&"The Final",'WTA2014'!$AW:$AW,0)),"N/A") -> N/A | AL26: =IF(K26=30,INDEX(IF(M26="ATP",'ATP2014'!AQ:AQ,'WTA2014'!AM:AM),AK26),"N/A") -> N/A | AM26: Loss | AN26: 2 | AO26: 2.5 | AP26: -1 | AQ26: 14.8268759 | AR26: APR2014
A27: 2014-04-13 | B27: Cornet v Giorgi | C27: WTA Katowice 2014 | D27: Cornet (Match Winner) | E27: 10/11 | F27: Cornet v Giorgi | G27: WTA Katowice 2014 | H27: Cornet (Match Winner) | I27: 8 | J27: Match Winner | K27: =VLOOKUP(J27,Mapping!$A$5:$B$18,2,0) -> 1 | L27: NO | M27: WTA | N27: Katowice | O27: 7 | P27: 7 | Q27: 7 | R27: Cornet | S27: Giorgi | T27: 7 | U27: 7 | V27: 8 | W27: Cornet | X27: N/A | Y27: N/A | Z27: N/A | AA27: KatowiceCornetGiorgi | AB27: =IF($M27="ATP",MATCH($AA27,'ATP2014'!$AS:$AS,0),MATCH($AA27,'WTA2014'!$AO:$AO,0)) -> 850 | AC27: =IF($M27="ATP",MATCH($AA27,'ATP2014'!AT:AT,0),MATCH($AA27,'WTA2014'!$AP:$AP,0)) ->  | AD27: =INDEX(IF(M27="ATP",'ATP2014'!AQ:AQ,'WTA2014'!AM:AM),IF(ISNUMBER(AB27),AB27,AC27)) -> Cornet | AE27: =INDEX(IF($M27="ATP",'ATP2014'!$AU:$AU,'WTA2014'!$AQ:$AQ),IF(ISNUMBER($AB27),$AB27,$AC27)) -> 1 | AF27: =INDEX(IF($M27="ATP",'ATP2014'!$AV:$AV,'WTA2014'!$AR:$AR),IF(ISNUMBER($AB27),$AB27,$AC27)) -> 1 | AG27: =INDEX(IF($M27="ATP",'ATP2014'!$AW:$AW,'WTA2014'!$AS:$AS),IF(ISNUMBER($AB27),$AB27,$AC27)) -> 37 | AH27: =INDEX(IF($M27="ATP",'ATP2014'!$AX:$AX,'WTA2014'!$AT:$AT),IF(ISNUMBER($AB27),$AB27,$AC27)) -> TRUE | AI27: =INDEX(IF($M27="ATP",'ATP2014'!$AY:$AY,'WTA2014'!$AU:$AU),IF(ISNUMBER($AB27),$AB27,$AC27)) -> Cornet | AJ27: =IF(W27=AD27,TRUE,INDEX(IF($M27="ATP",'ATP2014'!$AZ:$AZ,'WTA2014'!$AV:$AV),IF(ISNUMBER($AB27),$AB27,$AC27))) -> TRUE | AK27: =IF(K27=30,IF($M27="ATP",MATCH($N27&"The Final",'ATP2014'!$BA:$BA,0),MATCH($N27&"The Final",'WTA2014'!$AW:$AW,0)),"N/A") -> N/A | AL27: =IF(K27=30,INDEX(IF(M27="ATP",'ATP2014'!AQ:AQ,'WTA2014'!AM:AM),AK27),"N/A") -> N/A | AM27: Win | AN27: 3 | AO27: 0.9090909091 | AP27: 0.9090909091 | AQ27: 15.73596681 | AR27: APR2014
A28: 2014-04-14 | B28: Dimitrov v Granollers | C28: ATP Monte Carlo 2014 | D28: Dimitrov (Match Winner) | E28: 2/5 | F28: Dimitrov v Granollers | G28: ATP Monte Carlo 2014 | H28: Dimitrov (Match Winner) | I28: 10 | J28: Match Winner | K28: =VLOOKUP(J28,Mapping!$A$5:$B$18,2,0) -> 1 | L28: NO | M28: ATP | N28: Monte Carlo | O28: 9 | P28: 9 | Q28: 9 | R28: Dimitrov | S28: Granollers | T28: 9 | U28: 9 | V28: 10 | W28: Dimitrov | X28: N/A | Y28: N/A | Z28: N/A | AA28: Monte CarloDimitrovGranollers | AB28: =IF($M28="ATP",MATCH($AA28,'ATP2014'!$AS:$AS,0),MATCH($AA28,'WTA2014'!$AO:$AO,0)) -> 880 | AC28: =IF($M28="ATP",MATCH($AA28,'ATP2014'!AT:AT,0),MATCH($AA28,'WTA2014'!$AP:$AP,0)) ->  | AD28: =INDEX(IF(M28="ATP",'ATP2014'!AQ:AQ,'WTA2014'!AM:AM),IF(ISNUMBER(AB28),AB28,AC28)) -> Dimitrov | AE28: =INDEX(IF($M28="ATP",'ATP2014'!$AU:$AU,'WTA2014'!$AQ:$AQ),IF(ISNUMBER($AB28),$AB28,$AC28)) -> 1 | AF28: =INDEX(IF($M28="ATP",'ATP2014'!$AV:$AV,'WTA2014'!$AR:$AR),IF(ISNUMBER($AB28),$AB28,$AC28)) -> 6 | AG28: =INDEX(IF($M28="ATP",'ATP2014'!$AW:$AW,'WTA2014'!$AS:$AS),IF(ISNUMBER($AB28),$AB28,$AC28)) -> 26 | AH28: =INDEX(IF($M28="ATP",'ATP2014'!$AX:$AX,'WTA2014'!$AT:$AT),IF(ISNUMBER($AB28),$AB28,$AC28)) -> FALSE | AI28: =INDEX(IF($M28="ATP",'ATP2014'!$AY:$AY,'WTA2014'!$AU:$AU),IF(ISNUMBER($AB28),$AB28,$AC28)) -> Dimitrov | AJ28: =IF(W28=AD28,TRUE,INDEX(IF($M28="ATP",'ATP2014'!$AZ:$AZ,'WTA2014'!$AV:$AV),IF(ISNUMBER($AB28),$AB28,$AC28))) -> TRUE | AK28: =IF(K28=30,IF($M28="ATP",MATCH($N28&"The Final",'ATP2014'!$BA:$BA,0),MATCH($N28&"The Final",'WTA2014'!$AW:$AW,0)),"N/A") -> N/A | AL28: =IF(K28=30,INDEX(IF(M28="ATP",'ATP2014'!AQ:AQ,'WTA2014'!AM:AM),AK28),"N/A") -> N/A | AM28: Win | AN28: 2 | AO28: 0.4 | AP28: 0.4 | AQ28: 16.13596681 | AR28: APR2014
A29: 2014-04-19 | B29: Federer v Wawrinka | C29: ATP Monte Carlo 2014 | D29: Wawrinka (Match Winner) | E29: 11/10 | F29: Federer v Wawrinka | G29: ATP Monte Carlo 2014 | H29: Wawrinka (Match Winner) | I29: 10 | J29: Match Winner | K29: =VLOOKUP(J29,Mapping!$A$5:$B$18,2,0) -> 1 | L29: NO | M29: ATP | N29: Monte Carlo | O29: 8 | P29: 8 | Q29: 8 | R29: Federer | S29: Wawrinka | T29: 9 | U29: 9 | V29: 10 | W29: Wawrinka | X29: N/A | Y29: N/A | Z29: N/A | AA29: Monte CarloFedererWawrinka | AB29: =IF($M29="ATP",MATCH($AA29,'ATP2014'!$AS:$AS,0),MATCH($AA29,'WTA2014'!$AO:$AO,0)) ->  | AC29: =IF($M29="ATP",MATCH($AA29,'ATP2014'!AT:AT,0),MATCH($AA29,'WTA2014'!$AP:$AP,0)) -> 914 | AD29: =INDEX(IF(M29="ATP",'ATP2014'!AQ:AQ,'WTA2014'!AM:AM),IF(ISNUMBER(AB29),AB29,AC29)) -> Wawrinka | AE29: =INDEX(IF($M29="ATP",'ATP2014'!$AU:$AU,'WTA2014'!$AQ:$AQ),IF(ISNUMBER($AB29),$AB29,$AC29)) -> 1 | AF29: =INDEX(IF($M29="ATP",'ATP2014'!$AV:$AV,'WTA2014'!$AR:$AR),IF(ISNUMBER($AB29),$AB29,$AC29)) -> 3 | AG29: =INDEX(IF($M29="ATP",'ATP2014'!$AW:$AW,'WTA2014'!$AS:$AS),IF(ISNUMBER($AB29),$AB29,$AC29)) -> 31 | AH29: =INDEX(IF($M29="ATP",'ATP2014'!$AX:$AX,'WTA2014'!$AT:$AT),IF(ISNUMBER($AB29),$AB29,$AC29)) -> TRUE | AI29: =INDEX(IF($M29="ATP",'ATP2014'!$AY:$AY,'WTA2014'!$AU:$AU),IF(ISNUMBER($AB29),$AB29,$AC29)) -> Federer | AJ29: =IF(W29=AD29,TRUE,INDEX(IF($M29="ATP",'ATP2014'!$AZ:$AZ,'WTA2014'!$AV:$AV),IF(ISNUMBER($AB29),$AB29,$AC29))) -> TRUE | AK29: =IF(K29=30,IF($M29="ATP",MATCH($N29&"The Final",'ATP2014'!$BA:$BA,0),MATCH($N29&"The Final",'WTA2014'!$AW:$AW,0)),"N/A") -> N/A | AL29: =IF(K29=30,INDEX(IF(M29="ATP",'ATP2014'!AQ:AQ,'WTA2014'!AM:AM),AK29),"N/A") -> N/A | AM29: Win | AN29: 3 | AO29: 1.1 | AP29: 1.1 | AQ29: 17.23596681 | AR29: APR2014
A30: 2014-04-22 | B30: N/A | C30: ATP Barcelona 2014 | D30: Rafael Nadal (Outright Winner) | E30: 1/2 | F30: N/A | G30: ATP Barcelona 2014 | H30: Rafael Nadal (Outright Winner) | I30: 14 | J30: Outright Winner | K30: =VLOOKUP(J30,Mapping!$A$5:$B$18,2,0) -> 30 | L30: NO | M30: ATP | N30: Barcelona | O30: 7 | P30: 14 | Q30: 7 | R30: Nadal | T30: 7 | U30: 13 | V30: 14 | W30: Nadal | X30: N/A | Y30: N/A | Z30: N/A | AA30: BarcelonaNadal | AB30: =IF($M30="ATP",MATCH($AA30,'ATP2014'!$AS:$AS,0),MATCH($AA30,'WTA2014'!$AO:$AO,0)) ->  | AC30: =IF($M30="ATP",MATCH($AA30,'ATP2014'!AT:AT,0),MATCH($AA30,'WTA2014'!$AP:$AP,0)) ->  | AD30: =INDEX(IF(M30="ATP",'ATP2014'!AQ:AQ,'WTA2014'!AM:AM),IF(ISNUMBER(AB30),AB30,AC30)) ->  | AE30: =INDEX(IF($M30="ATP",'ATP2014'!$AU:$AU,'WTA2014'!$AQ:$AQ),IF(ISNUMBER($AB30),$AB30,$AC30)) ->  | AF30: =INDEX(IF($M30="ATP",'ATP2014'!$AV:$AV,'WTA2014'!$AR:$AR),IF(ISNUMBER($AB30),$AB30,$AC30)) ->  | AG30: =INDEX(IF($M30="ATP",'ATP2014'!$AW:$AW,'WTA2014'!$AS:$AS),IF(ISNUMBER($AB30),$AB30,$AC30)) ->  | AH30: =INDEX(IF($M30="ATP",'ATP2014'!$AX:$AX,'WTA2014'!$AT:$AT),IF(ISNUMBER($AB30),$AB30,$AC30)) ->  | AI30: =INDEX(IF($M30="ATP",'ATP2014'!$AY:$AY,'WTA2014'!$AU:$AU),IF(ISNUMBER($AB30),$AB30,$AC30)) ->  | AJ30: =IF(W30=AD30,TRUE,INDEX(IF($M30="ATP",'ATP2014'!$AZ:$AZ,'WTA2014'!$AV:$AV),IF(ISNUMBER($AB30),$AB30,$AC30))) ->  | AK30: =IF(K30=30,IF($M30="ATP",MATCH($N30&"The Final",'ATP2014'!$BA:$BA,0),MATCH($N30&"The Final",'WTA2014'!$AW:$AW,0)),"N/A") -> 961 | AL30: =IF(K30=30,INDEX(IF(M30="ATP",'ATP2014'!AQ:AQ,'WTA2014'!AM:AM),AK30),"N/A") -> Nishikori | AM30: Loss | AN30: 2 | AO30: 0.5 | AP30: -1 | AQ30: 16.23596681 | AR30: APR2014
A31: 2014-04-22 | B31: N/A | C31: WTA Stuttgart 2014 | D31: Simona Halep (Outright Winner) | E31: 6/1 | F31: N/A | G31: WTA Stuttgart 2014 | H31: Simona Halep (Outright Winner) | I31: 14 | J31: Outright Winner | K31: =VLOOKUP(J31,Mapping!$A$5:$B$18,2,0) -> 30 | L31: NO | M31: WTA | N31: Stuttgart | O31: 7 | P31: 14 | Q31: 7 | R31: Halep | T31: 7 | U31: 13 | V31: 14 | W31: Halep | X31: N/A | Y31: N/A | Z31: N/A | AA31: StuttgartHalep | AB31: =IF($M31="ATP",MATCH($AA31,'ATP2014'!$AS:$AS,0),MATCH($AA31,'WTA2014'!$AO:$AO,0)) ->  | AC31: =IF($M31="ATP",MATCH($AA31,'ATP2014'!AT:AT,0),MATCH($AA31,'WTA2014'!$AP:$AP,0)) ->  | AD31: =INDEX(IF(M31="ATP",'ATP2014'!AQ:AQ,'WTA2014'!AM:AM),IF(ISNUMBER(AB31),AB31,AC31)) ->  | AE31: =INDEX(IF($M31="ATP",'ATP2014'!$AU:$AU,'WTA2014'!$AQ:$AQ),IF(ISNUMBER($AB31),$AB31,$AC31)) ->  | AF31: =INDEX(IF($M31="ATP",'ATP2014'!$AV:$AV,'WTA2014'!$AR:$AR),IF(ISNUMBER($AB31),$AB31,$AC31)) ->  | AG31: =INDEX(IF($M31="ATP",'ATP2014'!$AW:$AW,'WTA2014'!$AS:$AS),IF(ISNUMBER($AB31),$AB31,$AC31)) ->  | AH31: =INDEX(IF($M31="ATP",'ATP2014'!$AX:$AX,'WTA2014'!$AT:$AT),IF(ISNUMBER($AB31),$AB31,$AC31)) ->  | AI31: =INDEX(IF($M31="ATP",'ATP2014'!$AY:$AY,'WTA2014'!$AU:$AU),IF(ISNUMBER($AB31),$AB31,$AC31)) ->  | AJ31: =IF(W31=AD31,TRUE,INDEX(IF($M31="ATP",'ATP2014'!$AZ:$AZ,'WTA2014'!$AV:$AV),IF(ISNUMBER($AB31),$AB31,$AC31))) ->  | AK31: =IF(K31=30,IF($M31="ATP",MATCH($N31&"The Final",'ATP2014'!$BA:$BA,0),MATCH($N31&"The Final",'WTA2014'!$AW:$AW,0)),"N/A") -> 939 | AL31: =IF(K31=30,INDEX(IF(M31="ATP",'ATP2014'!AQ:AQ,'WTA2014'!AM:AM),AK31),"N/A") -> Sharapova | AM31: Loss | AN31: 2 | AO31: 6 | AP31: -1 | AQ31: 15.23596681 | AR31: APR2014
A32: 2014-04-22 | B32: N/A | C32: ATP Bucharest 2014 | D32: Grigor Dimitrov (Outright Winner) | E32: 11/4 | F32: N/A | G32: ATP Bucharest 2014 | H32: Grigor Dimitrov (Outright Winner) | I32: 17 | J32: Outright Winner | K32: =VLOOKUP(J32,Mapping!$A$5:$B$18,2,0) -> 30 | L32: NO | M32: ATP | N32: Bucharest | O32: 7 | P32: 17 | Q32: 7 | R32: Dimitrov | T32: 7 | U32: 16 | V32: 17 | W32: Dimitrov | X32: N/A | Y32: N/A | Z32: N/A | AA32: BucharestDimitrov | AB32: =IF($M32="ATP",MATCH($AA32,'ATP2014'!$AS:$AS,0),MATCH($AA32,'WTA2014'!$AO:$AO,0)) ->  | AC32: =IF($M32="ATP",MATCH($AA32,'ATP2014'!AT:AT,0),MATCH($AA32,'WTA2014'!$AP:$AP,0)) ->  | AD32: =INDEX(IF(M32="ATP",'ATP2014'!AQ:AQ,'WTA2014'!AM:AM),IF(ISNUMBER(AB32),AB32,AC32)) ->  | AE32: =INDEX(IF($M32="ATP",'ATP2014'!$AU:$AU,'WTA2014'!$AQ:$AQ),IF(ISNUMBER($AB32),$AB32,$AC32)) ->  | AF32: =INDEX(IF($M32="ATP",'ATP2014'!$AV:$AV,'WTA2014'!$AR:$AR),IF(ISNUMBER($AB32),$AB32,$AC32)) ->  | AG32: =INDEX(IF($M32="ATP",'ATP2014'!$AW:$AW,'WTA2014'!$AS:$AS),IF(ISNUMBER($AB32),$AB32,$AC32)) ->  | AH32: =INDEX(IF($M32="ATP",'ATP2014'!$AX:$AX,'WTA2014'!$AT:$AT),IF(ISNUMBER($AB32),$AB32,$AC32)) ->  | AI32: =INDEX(IF($M32="ATP",'ATP2014'!$AY:$AY,'WTA2014'!$AU:$AU),IF(ISNUMBER($AB32),$AB32,$AC32)) ->  | AJ32: =IF(W32=AD32,TRUE,INDEX(IF($M32="ATP",'ATP2014'!$AZ:$AZ,'WTA2014'!$AV:$AV),IF(ISNUMBER($AB32),$AB32,$AC32))) ->  | AK32: =IF(K32=30,IF($M32="ATP",MATCH($N32&"The Final",'ATP2014'!$BA:$BA,0),MATCH($N32&"The Final",'WTA2014'!$AW:$AW,0)),"N/A") -> 988 | AL32: =IF(K32=30,INDEX(IF(M32="ATP",'ATP2014'!AQ:AQ,'WTA2014'!AM:AM),AK32),"N/A") -> Dimitrov | AM32: Win | AN32: 3 | AO32: 2.75 | AP32: 2.75 | AQ32: 17.98596681 | AR32: APR2014
A33: 2014-05-17 | B33: N/A | C33: ATP Dusseldorf 2014 | D33: Philipp Kohlschreiber (Outright Winner) | E33: 5/2 | F33: N/A | G33: ATP Dusseldorf 2014 | H33: Philipp Kohlschreiber (Outright Winner) | I33: 23 | J33: Outright Winner | K33: =VLOOKUP(J33,Mapping!$A$5:$B$18,2,0) -> 30 | L33: NO | M33: ATP | N33: Dusseldorf | O33: 8 | P33: 23 | Q33: 8 | R33: Kohlschreiber | T33: 8 | U33: 22 | V33: 23 | W33: Kohlschreiber | X33: N/A | Y33: N/A | Z33: N/A | AA33: DusseldorfKohlschreiber | AB33: =IF($M33="ATP",MATCH($AA33,'ATP2014'!$AS:$AS,0),MATCH($AA33,'WTA2014'!$AO:$AO,0)) ->  | AC33: =IF($M33="ATP",MATCH($AA33,'ATP2014'!AT:AT,0),MATCH($AA33,'WTA2014'!$AP:$AP,0)) ->  | AD33: =INDEX(IF(M33="ATP",'ATP2014'!AQ:AQ,'WTA2014'!AM:AM),IF(ISNUMBER(AB33),AB33,AC33)) ->  | AE33: =INDEX(IF($M33="ATP",'ATP2014'!$AU:$AU,'WTA2014'!$AQ:$AQ),IF(ISNUMBER($AB33),$AB33,$AC33)) ->  | AF33: =INDEX(IF($M33="ATP",'ATP2014'!$AV:$AV,'WTA2014'!$AR:$AR),IF(ISNUMBER($AB33),$AB33,$AC33)) ->  | AG33: =INDEX(IF($M33="ATP",'ATP2014'!$AW:$AW,'WTA2014'!$AS:$AS),IF(ISNUMBER($AB33),$AB33,$AC33)) ->  | AH33: =INDEX(IF($M33="ATP",'ATP2014'!$AX:$AX,'WTA2014'!$AT:$AT),IF(ISNUMBER($AB33),$AB33,$AC33)) ->  | AI33: =INDEX(IF($M33="ATP",'ATP2014'!$AY:$AY,'WTA2014'!$AU:$AU),IF(ISNUMBER($AB33),$AB33,$AC33)) ->  | AJ33: =IF(W33=AD33,TRUE,INDEX(IF($M33="ATP",'ATP2014'!$AZ:$AZ,'WTA2014'!$AV:$AV),IF(ISNUMBER($AB33),$AB33,$AC33))) ->  | AK33: =IF(K33=30,IF($M33="ATP",MATCH($N33&"The Final",'ATP2014'!$BA:$BA,0),MATCH($N33&"The Final",'WTA2014'!$AW:$AW,0)),"N/A") -> 1179 | AL33: =IF(K33=30,INDEX(IF(M33="ATP",'ATP2014'!AQ:AQ,'WTA2014'!AM:AM),AK33),"N/A") -> Kohlschreiber | AM33: Win | AN33: 2 | AO33: 2.5 | AP33: 2.5 | AQ33: 20.48596681 | AR33: MAY2014
A34: 2014-05-17 | B34: N/A | C34: ATP Nice 2014 | D34: Ernests Gulblis (Outright Winner) | E34: 7/2 | F34: N/A | G34: ATP Nice 2014 | H34: Ernests Gulblis (Outright Winner) | I34: 17 | J34: Outright Winner | K34: =VLOOKUP(J34,Mapping!$A$5:$B$18,2,0) -> 30 | L34: NO | M34: ATP | N34: Nice | O34: 8 | P34: 17 | Q34: 8 | R34: Gulblis | T34: 8 | U34: 16 | V34: 17 | W34: Gulblis | X34: N/A | Y34: N/A | Z34: N/A | AA34: NiceGulblis | AB34: =IF($M34="ATP",MATCH($AA34,'ATP2014'!$AS:$AS,0),MATCH($AA34,'WTA2014'!$AO:$AO,0)) ->  | AC34: =IF($M34="ATP",MATCH($AA34,'ATP2014'!AT:AT,0),MATCH($AA34,'WTA2014'!$AP:$AP,0)) ->  | AD34: =INDEX(IF(M34="ATP",'ATP2014'!AQ:AQ,'WTA2014'!AM:AM),IF(ISNUMBER(AB34),AB34,AC34)) ->  | AE34: =INDEX(IF($M34="ATP",'ATP2014'!$AU:$AU,'WTA2014'!$AQ:$AQ),IF(ISNUMBER($AB34),$AB34,$AC34)) ->  | AF34: =INDEX(IF($M34="ATP",'ATP2014'!$AV:$AV,'WTA2014'!$AR:$AR),IF(ISNUMBER($AB34),$AB34,$AC34)) ->  | AG34: =INDEX(IF($M34="ATP",'ATP2014'!$AW:$AW,'WTA2014'!$AS:$AS),IF(ISNUMBER($AB34),$AB34,$AC34)) ->  | AH34: =INDEX(IF($M34="ATP",'ATP2014'!$AX:$AX,'WTA2014'!$AT:$AT),IF(ISNUMBER($AB34),$AB34,$AC34)) ->  | AI34: =INDEX(IF($M34="ATP",'ATP2014'!$AY:$AY,'WTA2014'!$AU:$AU),IF(ISNUMBER($AB34),$AB34,$AC34)) ->  | AJ34: =IF(W34=AD34,TRUE,INDEX(IF($M34="ATP",'ATP2014'!$AZ:$AZ,'WTA2014'!$AV:$AV),IF(ISNUMBER($AB34),$AB34,$AC34))) ->  | AK34: =IF(K34=30,IF($M34="ATP",MATCH($N34&"The Final",'ATP2014'!$BA:$BA,0),MATCH($N34&"The Final",'WTA2014'!$AW:$AW,0)),"N/A") -> 1206 | AL34: =IF(K34=30,INDEX(IF(M34="ATP",'ATP2014'!AQ:AQ,'WTA2014'!AM:AM),AK34),"N/A") -> Gulbis | AM34: Loss | AN34: 2 | AO34: =VALUE(LEFT(E34,AN34-1))/VALUE(RIGHT(E34,LEN(E34)-AN34))*1 -> 3.5 | AP34: -1 | AQ34: 19.48596681 | AR34: MAY2014
A35: 2014-05-17 | B35: N/A | C35: WTA Nurnberg 2014 | D35: Eugenie Bouchard (Outright Winner) | E35: 10/1 | F35: N/A | G35: WTA Nurnberg 2014 | H35: =TRIM(D35) -> Eugenie Bouchard (Outright Winner) | I35: 18 | J35: Outright Winner | K35: =VLOOKUP(J35,Mapping!$A$5:$B$18,2,0) -> 30 | L35: NO | M35: WTA | N35: Nurnberg | O35: 8 | P35: 18 | Q35: 8 | R35: Bouchard | T35: 8 | U35: 17 | V35: 18 | W35: Bouchard | X35: N/A | Y35: N/A | Z35: N/A | AA35: NurnbergBouchard | AB35: =IF($M35="ATP",MATCH($AA35,'ATP2014'!$AS:$AS,0),MATCH($AA35,'WTA2014'!$AO:$AO,0)) ->  | AC35: =IF($M35="ATP",MATCH($AA35,'ATP2014'!AT:AT,0),MATCH($AA35,'WTA2014'!$AP:$AP,0)) ->  | AD35: =INDEX(IF(M35="ATP",'ATP2014'!AQ:AQ,'WTA2014'!AM:AM),IF(ISNUMBER(AB35),AB35,AC35)) ->  | AE35: =INDEX(IF($M35="ATP",'ATP2014'!$AU:$AU,'WTA2014'!$AQ:$AQ),IF(ISNUMBER($AB35),$AB35,$AC35)) ->  | AF35: =INDEX(IF($M35="ATP",'ATP2014'!$AV:$AV,'WTA2014'!$AR:$AR),IF(ISNUMBER($AB35),$AB35,$AC35)) ->  | AG35: =INDEX(IF($M35="ATP",'ATP2014'!$AW:$AW,'WTA2014'!$AS:$AS),IF(ISNUMBER($AB35),$AB35,$AC35)) ->  | AH35: =INDEX(IF($M35="ATP",'ATP2014'!$AX:$AX,'WTA2014'!$AT:$AT),IF(ISNUMBER($AB35),$AB35,$AC35)) ->  | AI35: =INDEX(IF($M35="ATP",'ATP2014'!$AY:$AY,'WTA2014'!$AU:$AU),IF(ISNUMBER($AB35),$AB35,$AC35)) ->  | AJ35: =IF(W35=AD35,TRUE,INDEX(IF($M35="ATP",'ATP2014'!$AZ:$AZ,'WTA2014'!$AV:$AV),IF(ISNUMBER($AB35),$AB35,$AC35))) ->  | AK35: =IF(K35=30,IF($M35="ATP",MATCH($N35&"The Final",'ATP2014'!$BA:$BA,0),MATCH($N35&"The Final",'WTA2014'!$AW:$AW,0)),"N/A") -> 1119 | AL35: =IF(K35=30,INDEX(IF(M35="ATP",'ATP2014'!AQ:AQ,'WTA2014'!AM:AM),AK35),"N/A") -> Bouchard | AM35: Win | AN35: 3 | AO35: 10 | AP35: 10 | AQ35: 29.48596681 | AR35: MAY2014
A36: 2014-05-18 | B36: Djokovic v Nadal | C36: ATP Rome 2014 | D36: Novak Djokovic (Match Winner) | E36: 13/10 | F36: Djokovic v Nadal | G36: ATP Rome 2014 | H36: Novak Djokovic (Match Winner) | I36: 16 | J36: Match Winner | K36: =VLOOKUP(J36,Mapping!$A$5:$B$18,2,0) -> 1 | L36: NO | M36: ATP | N36: Rome | O36: 9 | P36: 9 | Q36: 9 | R36: Djokovic | S36: Nadal | T36: 6 | U36: 15 | V36: 16 | W36: Djokovic | X36: N/A | Y36: N/A | Z36: N/A | AA36: RomeDjokovicNadal | AB36: =IF($M36="ATP",MATCH($AA36,'ATP2014'!$AS:$AS,0),MATCH($AA36,'WTA2014'!$AO:$AO,0)) -> 1152 | AC36: =IF($M36="ATP",MATCH($AA36,'ATP2014'!AT:AT,0),MATCH($AA36,'WTA2014'!$AP:$AP,0)) ->  | AD36: =INDEX(IF(M36="ATP",'ATP2014'!AQ:AQ,'WTA2014'!AM:AM),IF(ISNUMBER(AB36),AB36,AC36)) -> Djokovic | AE36: =INDEX(IF($M36="ATP",'ATP2014'!$AU:$AU,'WTA2014'!$AQ:$AQ),IF(ISNUMBER($AB36),$AB36,$AC36)) -> 1 | AF36: =INDEX(IF($M36="ATP",'ATP2014'!$AV:$AV,'WTA2014'!$AR:$AR),IF(ISNUMBER($AB36),$AB36,$AC36)) -> 4 | AG36: =INDEX(IF($M36="ATP",'ATP2014'!$AW:$AW,'WTA2014'!$AS:$AS),IF(ISNUMBER($AB36),$AB36,$AC36)) -> 28 | AH36: =INDEX(IF($M36="ATP",'ATP2014'!$AX:$AX,'WTA2014'!$AT:$AT),IF(ISNUMBER($AB36),$AB36,$AC36)) -> FALSE | AI36: =INDEX(IF($M36="ATP",'ATP2014'!$AY:$AY,'WTA2014'!$AU:$AU),IF(ISNUMBER($AB36),$AB36,$AC36)) -> Nadal | AJ36: =IF(W36=AD36,TRUE,INDEX(IF($M36="ATP",'ATP2014'!$AZ:$AZ,'WTA2014'!$AV:$AV),IF(ISNUMBER($AB36),$AB36,$AC36))) -> TRUE | AK36: =IF(K36=30,IF($M36="ATP",MATCH($N36&"The Final",'ATP2014'!$BA:$BA,0),MATCH($N36&"The Final",'WTA2014'!$AW:$AW,0)),"N/A") -> N/A | AL36: =IF(K36=30,INDEX(IF(M36="ATP",'ATP2014'!AQ:AQ,'WTA2014'!AM:AM),AK36),"N/A") -> N/A | AM36: Win | AN36: 3 | AO36: 1.3 | AP36: 1.3 | AQ36: 30.78596681 | AR36: MAY2014
A37: 2014-05-18 | B37: N/A | C37: ATP Rome 2014 | D37: Novak Djokovic (Outright Winner) | E37: 3/1 | F37: N/A | G37: ATP Rome 2014 | H37: Novak Djokovic (Outright Winner) | I37: 16 | J37: Outright Winner | K37: =VLOOKUP(J37,Mapping!$A$5:$B$18,2,0) -> 30 | L37: NO | M37: ATP | N37: Rome | O37: 6 | P37: 16 | Q37: 6 | R37: Djokovic | T37: 6 | U37: 15 | V37: 16 | W37: Djokovic | X37: N/A | Y37: N/A | Z37: N/A | AA37: RomeDjokovic | AB37: =IF($M37="ATP",MATCH($AA37,'ATP2014'!$AS:$AS,0),MATCH($AA37,'WTA2014'!$AO:$AO,0)) ->  | AC37: =IF($M37="ATP",MATCH($AA37,'ATP2014'!AT:AT,0),MATCH($AA37,'WTA2014'!$AP:$AP,0)) ->  | AD37: =INDEX(IF(M37="ATP",'ATP2014'!AQ:AQ,'WTA2014'!AM:AM),IF(ISNUMBER(AB37),AB37,AC37)) ->  | AE37: =INDEX(IF($M37="ATP",'ATP2014'!$AU:$AU,'WTA2014'!$AQ:$AQ),IF(ISNUMBER($AB37),$AB37,$AC37)) ->  | AF37: =INDEX(IF($M37="ATP",'ATP2014'!$AV:$AV,'WTA2014'!$AR:$AR),IF(ISNUMBER($AB37),$AB37,$AC37)) ->  | AG37: =INDEX(IF($M37="ATP",'ATP2014'!$AW:$AW,'WTA2014'!$AS:$AS),IF(ISNUMBER($AB37),$AB37,$AC37)) ->  | AH37: =INDEX(IF($M37="ATP",'ATP2014'!$AX:$AX,'WTA2014'!$AT:$AT),IF(ISNUMBER($AB37),$AB37,$AC37)) ->  | AI37: =INDEX(IF($M37="ATP",'ATP2014'!$AY:$AY,'WTA2014'!$AU:$AU),IF(ISNUMBER($AB37),$AB37,$AC37)) ->  | AJ37: =IF(W37=AD37,TRUE,INDEX(IF($M37="ATP",'ATP2014'!$AZ:$AZ,'WTA2014'!$AV:$AV),IF(ISNUMBER($AB37),$AB37,$AC37))) ->  | AK37: =IF(K37=30,IF($M37="ATP",MATCH($N37&"The Final",'ATP2014'!$BA:$BA,0),MATCH($N37&"The Final",'WTA2014'!$AW:$AW,0)),"N/A") -> 1152 | AL37: =IF(K37=30,INDEX(IF(M37="ATP",'ATP2014'!AQ:AQ,'WTA2014'!AM:AM),AK37),"N/A") -> Djokovic | AM37: Win | AN37: 2 | AO37: 3 | AP37: 3 | AQ37: 33.78596681 | AR37: MAY2014
A38: 2014-05-18 | B38: N/A | C38: WTA Rome 2014 | D38: Serena Williams (Outright Winner) | E38: 9/4 | F38: N/A | G38: WTA Rome 2014 | H38: Serena Williams (Outright Winner) | I38: 17 | J38: Outright Winner | K38: =VLOOKUP(J38,Mapping!$A$5:$B$18,2,0) -> 30 | L38: NO | M38: WTA | N38: Rome | O38: 7 | P38: 17 | Q38: 7 | R38: Williams | T38: 7 | U38: 16 | V38: 17 | W38: Williams | X38: N/A | Y38: N/A | Z38: N/A | AA38: RomeWilliams | AB38: =IF($M38="ATP",MATCH($AA38,'ATP2014'!$AS:$AS,0),MATCH($AA38,'WTA2014'!$AO:$AO,0)) ->  | AC38: =IF($M38="ATP",MATCH($AA38,'ATP2014'!AT:AT,0),MATCH($AA38,'WTA2014'!$AP:$AP,0)) ->  | AD38: =INDEX(IF(M38="ATP",'ATP2014'!AQ:AQ,'WTA2014'!AM:AM),IF(ISNUMBER(AB38),AB38,AC38)) ->  | AE38: =INDEX(IF($M38="ATP",'ATP2014'!$AU:$AU,'WTA2014'!$AQ:$AQ),IF(ISNUMBER($AB38),$AB38,$AC38)) ->  | AF38: =INDEX(IF($M38="ATP",'ATP2014'!$AV:$AV,'WTA2014'!$AR:$AR),IF(ISNUMBER($AB38),$AB38,$AC38)) ->  | AG38: =INDEX(IF($M38="ATP",'ATP2014'!$AW:$AW,'WTA2014'!$AS:$AS),IF(ISNUMBER($AB38),$AB38,$AC38)) ->  | AH38: =INDEX(IF($M38="ATP",'ATP2014'!$AX:$AX,'WTA2014'!$AT:$AT),IF(ISNUMBER($AB38),$AB38,$AC38)) ->  | AI38: =INDEX(IF($M38="ATP",'ATP2014'!$AY:$AY,'WTA2014'!$AU:$AU),IF(ISNUMBER($AB38),$AB38,$AC38)) ->  | AJ38: =IF(W38=AD38,TRUE,INDEX(IF($M38="ATP",'ATP2014'!$AZ:$AZ,'WTA2014'!$AV:$AV),IF(ISNUMBER($AB38),$AB38,$AC38))) ->  | AK38: =IF(K38=30,IF($M38="ATP",MATCH($N38&"The Final",'ATP2014'!$BA:$BA,0),MATCH($N38&"The Final",'WTA2014'!$AW:$AW,0)),"N/A") -> 1088 | AL38: =IF(K38=30,INDEX(IF(M38="ATP",'ATP2014'!AQ:AQ,'WTA2014'!AM:AM),AK38),"N/A") -> Williams | AM38: Win | AN38: 2 | AO38: 2.25 | AP38: 2.25 | AQ38: 36.03596681 | AR38: MAY2014
A39: 2014-05-28 | B39: Milos Raonic v Jiri Vesely | C39: French Open 2014 | D39: Milos Raonic (Match Winner) | E39: 1/5 | F39: Milos Raonic v Jiri Vesely | G39: French Open 2014 | H39: Milos Raonic (Match Winner) | I39: 14 | J39: Match Winner | K39: =VLOOKUP(J39,Mapping!$A$5:$B$18,2,0) -> 1 | L39: Paris | M39: ATP | N39: Paris | O39: 6 | P39: 13 | Q39: 20 | R39: Raonic | S39: Vesely | T39: 6 | U39: 13 | V39: 14 | W39: Raonic | X39: N/A | Y39: N/A | Z39: N/A | AA39: ParisRaonicVesely | AB39: =IF($M39="ATP",MATCH($AA39,'ATP2014'!$AS:$AS,0),MATCH($AA39,'WTA2014'!$AO:$AO,0)) -> 1281 | AC39: =IF($M39="ATP",MATCH($AA39,'ATP2014'!AT:AT,0),MATCH($AA39,'WTA2014'!$AP:$AP,0)) ->  | AD39: =INDEX(IF(M39="ATP",'ATP2014'!AQ:AQ,'WTA2014'!AM:AM),IF(ISNUMBER(AB39),AB39,AC39)) -> Raonic | AE39: =INDEX(IF($M39="ATP",'ATP2014'!$AU:$AU,'WTA2014'!$AQ:$AQ),IF(ISNUMBER($AB39),$AB39,$AC39)) -> 3 | AF39: =INDEX(IF($M39="ATP",'ATP2014'!$AV:$AV,'WTA2014'!$AR:$AR),IF(ISNUMBER($AB39),$AB39,$AC39)) -> 8 | AG39: =INDEX(IF($M39="ATP",'ATP2014'!$AW:$AW,'WTA2014'!$AS:$AS),IF(ISNUMBER($AB39),$AB39,$AC39)) -> 30 | AH39: =INDEX(IF($M39="ATP",'ATP2014'!$AX:$AX,'WTA2014'!$AT:$AT),IF(ISNUMBER($AB39),$AB39,$AC39)) -> TRUE | AI39: =INDEX(IF($M39="ATP",'ATP2014'!$AY:$AY,'WTA2014'!$AU:$AU),IF(ISNUMBER($AB39),$AB39,$AC39)) -> Raonic | AJ39: =IF(W39=AD39,TRUE,INDEX(IF($M39="ATP",'ATP2014'!$AZ:$AZ,'WTA2014'!$AV:$AV),IF(ISNUMBER($AB39),$AB39,$AC39))) -> TRUE | AK39: =IF(K39=30,IF($M39="ATP",MATCH($N39&"The Final",'ATP2014'!$BA:$BA,0),MATCH($N39&"The Final",'WTA2014'!$AW:$AW,0)),"N/A") -> N/A | AL39: =IF(K39=30,INDEX(IF(M39="ATP",'ATP2014'!AQ:AQ,'WTA2014'!AM:AM),AK39),"N/A") -> N/A | AM39: Win | AN39: 2 | AO39: 0.2 | AP39: 0.2 | AQ39: 36.23596681 | AR39: MAY2014
A40: 2014-05-14 | B40: Novak Djokovic v Philipp Kohlschreiber | C40: ATP Rome 2014 | D40: Novak Djokovic -5.5 (Games Handicap) | E40: 8/11 | F40: Novak Djokovic v Philipp Kohlschreiber | G40: ATP Rome 2014 | H40: Novak Djokovic -5.5 (Games Handicap) | I40: 21 | J40: Games Handicap | K40: =VLOOKUP(J40,Mapping!$A$5:$B$18,2,0) -> 4 | L40: NO | M40: ATP | N40: Rome | O40: 6 | P40: 15 | Q40: 25 | R40: Djokovic | S40: Kohlschreiber | T40: 6 | U40: 15 | V40: 21 | W40: Djokovic | X40: =IF($K40=2,MID($H40,$U40+1,1)*1-MID($H40,$U40+3,1)*1,IF($K40=3,MID($H40,$U40+1,$V40-$U40-1)*1,"N/A")) -> N/A | Y40: -5.5 | Z40: N/A | AA40: RomeDjokovicKohlschreiber | AB40: =IF($M40="ATP",MATCH($AA40,'ATP2014'!$AS:$AS,0),MATCH($AA40,'WTA2014'!$AO:$AO,0)) -> 1145 | AC40: =IF($M40="ATP",MATCH($AA40,'ATP2014'!AT:AT,0),MATCH($AA40,'WTA2014'!$AP:$AP,0)) ->  | AD40: =INDEX(IF(M40="ATP",'ATP2014'!AQ:AQ,'WTA2014'!AM:AM),IF(ISNUMBER(AB40),AB40,AC40)) -> Djokovic | AE40: =INDEX(IF($M40="ATP",'ATP2014'!$AU:$AU,'WTA2014'!$AQ:$AQ),IF(ISNUMBER($AB40),$AB40,$AC40)) -> 1 | AF40: =INDEX(IF($M40="ATP",'ATP2014'!$AV:$AV,'WTA2014'!$AR:$AR),IF(ISNUMBER($AB40),$AB40,$AC40)) -> 7 | AG40: =INDEX(IF($M40="ATP",'ATP2014'!$AW:$AW,'WTA2014'!$AS:$AS),IF(ISNUMBER($AB40),$AB40,$AC40)) -> 25 | AH40: =INDEX(IF($M40="ATP",'ATP2014'!$AX:$AX,'WTA2014'!$AT:$AT),IF(ISNUMBER($AB40),$AB40,$AC40)) -> FALSE | AI40: =INDEX(IF($M40="ATP",'ATP2014'!$AY:$AY,'WTA2014'!$AU:$AU),IF(ISNUMBER($AB40),$AB40,$AC40)) -> Kohlschreiber | AJ40: =IF(W40=AD40,TRUE,INDEX(IF($M40="ATP",'ATP2014'!$AZ:$AZ,'WTA2014'!$AV:$AV),IF(ISNUMBER($AB40),$AB40,$AC40))) -> TRUE | AK40: =IF(K40=30,IF($M40="ATP",MATCH($N40&"The Final",'ATP2014'!$BA:$BA,0),MATCH($N40&"The Final",'WTA2014'!$AW:$AW,0)),"N/A") -> N/A | AL40: =IF(K40=30,INDEX(IF(M40="ATP",'ATP2014'!AQ:AQ,'WTA2014'!AM:AM),AK40),"N/A") -> N/A | AM40: Win | AN40: 2 | AO40: 0.7272727273 | AP40: 0.7272727273 | AQ40: 36.96323954 | AR40: MAY2014
A41: 2014-05-14 | B41: Tomas Berdych v Dmitry Tursunov | C41: ATP Rome 2014 | D41: Tomas Berdych 2-0 (Set Betting) | E41: 1/3 | F41: Tomas Berdych v Dmitry Tursunov | G41: ATP Rome 2014 | H41: Tomas Berdych 2-0 (Set Betting) | I41: 19 | J41: Set Betting | K41: =VLOOKUP(J41,Mapping!$A$5:$B$18,2,0) -> 2 | L41: NO | M41: ATP | N41: Rome | O41: 6 | P41: 14 | Q41: 23 | R41: Berdych | S41: Tursunov | T41: 6 | U41: 14 | V41: 19 | W41: Berdych | X41: 2 | Y41: N/A | Z41: N/A | AA41: RomeBerdychTursunov | AB41: =IF($M41="ATP",MATCH($AA41,'ATP2014'!$AS:$AS,0),MATCH($AA41,'WTA2014'!$AO:$AO,0)) -> 1137 | AC41: =IF($M41="ATP",MATCH($AA41,'ATP2014'!AT:AT,0),MATCH($AA41,'WTA2014'!$AP:$AP,0)) ->  | AD41: =INDEX(IF(M41="ATP",'ATP2014'!AQ:AQ,'WTA2014'!AM:AM),IF(ISNUMBER(AB41),AB41,AC41)) -> Berdych | AE41: =INDEX(IF($M41="ATP",'ATP2014'!$AU:$AU,'WTA2014'!$AQ:$AQ),IF(ISNUMBER($AB41),$AB41,$AC41)) -> 2 | AF41: =INDEX(IF($M41="ATP",'ATP2014'!$AV:$AV,'WTA2014'!$AR:$AR),IF(ISNUMBER($AB41),$AB41,$AC41)) -> 5 | AG41: =INDEX(IF($M41="ATP",'ATP2014'!$AW:$AW,'WTA2014'!$AS:$AS),IF(ISNUMBER($AB41),$AB41,$AC41)) -> 19 | AH41: =INDEX(IF($M41="ATP",'ATP2014'!$AX:$AX,'WTA2014'!$AT:$AT),IF(ISNUMBER($AB41),$AB41,$AC41)) -> FALSE | AI41: =INDEX(IF($M41="ATP",'ATP2014'!$AY:$AY,'WTA2014'!$AU:$AU),IF(ISNUMBER($AB41),$AB41,$AC41)) -> Berdych | AJ41: =IF(W41=AD41,TRUE,INDEX(IF($M41="ATP",'ATP2014'!$AZ:$AZ,'WTA2014'!$AV:$AV),IF(ISNUMBER($AB41),$AB41,$AC41))) -> TRUE | AK41: =IF(K41=30,IF($M41="ATP",MATCH($N41&"The Final",'ATP2014'!$BA:$BA,0),MATCH($N41&"The Final",'WTA2014'!$AW:$AW,0)),"N/A") -> N/A | AL41: =IF(K41=30,INDEX(IF(M41="ATP",'ATP2014'!AQ:AQ,'WTA2014'!AM:AM),AK41),"N/A") -> N/A | AM41: Win | AN41: 2 | AO41: 0.3333333333 | AP41: 0.3333333333 | AQ41: 37.29657287 | AR41: MAY2014
A42: 2014-05-15 | B42: Jelena Jankovic v Svetlana Kuznetsova | C42: WTA Rome 2014 | D42: Jelena Jankovic (Match Winner) | E42: 10/11 | F42: Jelena Jankovic v Svetlana Kuznetsova | G42: WTA Rome 2014 | H42: Jelena Jankovic (Match Winner) | I42: 17 | J42: Match Winner | K42: =VLOOKUP(J42,Mapping!$A$5:$B$18,2,0) -> 1 | L42: NO | M42: WTA | N42: Rome | O42: 7 | P42: 16 | Q42: 27 | R42: Jankovic | S42: Kuznetsova | T42: 7 | U42: 16 | V42: 17 | W42: Jankovic | X42: N/A | Y42: N/A | Z42: N/A | AA42: RomeJankovicKuznetsova | AB42: =IF($M42="ATP",MATCH($AA42,'ATP2014'!$AS:$AS,0),MATCH($AA42,'WTA2014'!$AO:$AO,0)) -> 1073 | AC42: =IF($M42="ATP",MATCH($AA42,'ATP2014'!AT:AT,0),MATCH($AA42,'WTA2014'!$AP:$AP,0)) ->  | AD42: =INDEX(IF(M42="ATP",'ATP2014'!AQ:AQ,'WTA2014'!AM:AM),IF(ISNUMBER(AB42),AB42,AC42)) -> Jankovic | AE42: =INDEX(IF($M42="ATP",'ATP2014'!$AU:$AU,'WTA2014'!$AQ:$AQ),IF(ISNUMBER($AB42),$AB42,$AC42)) -> 1 | AF42: =INDEX(IF($M42="ATP",'ATP2014'!$AV:$AV,'WTA2014'!$AR:$AR),IF(ISNUMBER($AB42),$AB42,$AC42)) -> 8 | AG42: =INDEX(IF($M42="ATP",'ATP2014'!$AW:$AW,'WTA2014'!$AS:$AS),IF(ISNUMBER($AB42),$AB42,$AC42)) -> 12 | AH42: =INDEX(IF($M42="ATP",'ATP2014'!$AX:$AX,'WTA2014'!$AT:$AT),IF(ISNUMBER($AB42),$AB42,$AC42)) -> FALSE | AI42: =INDEX(IF($M42="ATP",'ATP2014'!$AY:$AY,'WTA2014'!$AU:$AU),IF(ISNUMBER($AB42),$AB42,$AC42)) -> Jankovic | AJ42: =IF(W42=AD42,TRUE,INDEX(IF($M42="ATP",'ATP2014'!$AZ:$AZ,'WTA2014'!$AV:$AV),IF(ISNUMBER($AB42),$AB42,$AC42))) -> TRUE | AK42: =IF(K42=30,IF($M42="ATP",MATCH($N42&"The Final",'ATP2014'!$BA:$BA,0),MATCH($N42&"The Final",'WTA2014'!$AW:$AW,0)),"N/A") -> N/A | AL42: =IF(K42=30,INDEX(IF(M42="ATP",'ATP2014'!AQ:AQ,'WTA2014'!AM:AM),AK42),"N/A") -> N/A | AM42: Win | AN42: 3 | AO42: 0.9090909091 | AP42: 0.9090909091 | AQ42: 38.20566378 | AR42: MAY2014
A43: 2014-05-16 | B43: Jeremy Chardy v Milos Raonic | C43: ATP Rome 2014 | D43: Jeremy Chardy +3.5 (Games Handicap) | E43: 4/5 | F43: Jeremy Chardy v Milos Raonic | G43: ATP Rome 2014 | H43: Jeremy Chardy +3.5 (Games Handicap) | I43: 20 | J43: Games Handicap | K43: =VLOOKUP(J43,Mapping!$A$5:$B$18,2,0) -> 4 | L43: NO | M43: ATP | N43: Rome | O43: 7 | P43: 14 | Q43: 22 | R43: Chardy | S43: Raonic | T43: 7 | U43: 14 | V43: 20 | W43: Chardy | X43: N/A | Y43: 3.5 | Z43: N/A | AA43: RomeChardyRaonic | AB43: =IF($M43="ATP",MATCH($AA43,'ATP2014'!$AS:$AS,0),MATCH($AA43,'WTA2014'!$AO:$AO,0)) ->  | AC43: =IF($M43="ATP",MATCH($AA43,'ATP2014'!AT:AT,0),MATCH($AA43,'WTA2014'!$AP:$AP,0)) -> 1146 | AD43: =INDEX(IF(M43="ATP",'ATP2014'!AQ:AQ,'WTA2014'!AM:AM),IF(ISNUMBER(AB43),AB43,AC43)) -> Raonic | AE43: =INDEX(IF($M43="ATP",'ATP2014'!$AU:$AU,'WTA2014'!$AQ:$AQ),IF(ISNUMBER($AB43),$AB43,$AC43)) -> 1 | AF43: =INDEX(IF($M43="ATP",'ATP2014'!$AV:$AV,'WTA2014'!$AR:$AR),IF(ISNUMBER($AB43),$AB43,$AC43)) -> 5 | AG43: =INDEX(IF($M43="ATP",'ATP2014'!$AW:$AW,'WTA2014'!$AS:$AS),IF(ISNUMBER($AB43),$AB43,$AC43)) -> 29 | AH43: =INDEX(IF($M43="ATP",'ATP2014'!$AX:$AX,'WTA2014'!$AT:$AT),IF(ISNUMBER($AB43),$AB43,$AC43)) -> FALSE | AI43: =INDEX(IF($M43="ATP",'ATP2014'!$AY:$AY,'WTA2014'!$AU:$AU),IF(ISNUMBER($AB43),$AB43,$AC43)) -> Raonic | AJ43: =IF(W43=AD43,TRUE,INDEX(IF($M43="ATP",'ATP2014'!$AZ:$AZ,'WTA2014'!$AV:$AV),IF(ISNUMBER($AB43),$AB43,$AC43))) -> TRUE | AK43: =IF(K43=30,IF($M43="ATP",MATCH($N43&"The Final",'ATP2014'!$BA:$BA,0),MATCH($N43&"The Final",'WTA2014'!$AW:$AW,0)),"N/A") -> N/A | AL43: =IF(K43=30,INDEX(IF(M43="ATP",'ATP2014'!AQ:AQ,'WTA2014'!AM:AM),AK43),"N/A") -> N/A | AM43: Win | AN43: 2 | AO43: 0.8 | AP43: 0.8 | AQ43: 39.00566378 | AR43: MAY2014
A44: 2014-05-16 | B44: Tommy Haas v Grigor Dimitrov | C44: ATP Rome 2014 | D44: Grigor Dimitrov (Match Winner) | E44: 4/9 | F44: Tommy Haas v Grigor Dimitrov | G44: ATP Rome 2014 | H44: Grigor Dimitrov (Match Winner) | I44: 17 | J44: Match Winner | K44: =VLOOKUP(J44,Mapping!$A$5:$B$18,2,0) -> 1 | L44: NO | M44: ATP | N44: Rome | O44: 6 | P44: 11 | Q44: 20 | R44: Haas | S44: Dimitrov | T44: 7 | U44: 16 | V44: 17 | W44: Dimitrov | X44: N/A | Y44: N/A | Z44: N/A | AA44: RomeHaasDimitrov | AB44: =IF($M44="ATP",MATCH($AA44,'ATP2014'!$AS:$AS,0),MATCH($AA44,'WTA2014'!$AO:$AO,0)) ->  | AC44: =IF($M44="ATP",MATCH($AA44,'ATP2014'!AT:AT,0),MATCH($AA44,'WTA2014'!$AP:$AP,0)) -> 1147 | AD44: =INDEX(IF(M44="ATP",'ATP2014'!AQ:AQ,'WTA2014'!AM:AM),IF(ISNUMBER(AB44),AB44,AC44)) -> Dimitrov | AE44: =INDEX(IF($M44="ATP",'ATP2014'!$AU:$AU,'WTA2014'!$AQ:$AQ),IF(ISNUMBER($AB44),$AB44,$AC44)) -> 1 | AF44: =INDEX(IF($M44="ATP",'ATP2014'!$AV:$AV,'WTA2014'!$AR:$AR),IF(ISNUMBER($AB44),$AB44,$AC44)) -> 4 | AG44: =INDEX(IF($M44="ATP",'ATP2014'!$AW:$AW,'WTA2014'!$AS:$AS),IF(ISNUMBER($AB44),$AB44,$AC44)) -> 8 | AH44: =INDEX(IF($M44="ATP",'ATP2014'!$AX:$AX,'WTA2014'!$AT:$AT),IF(ISNUMBER($AB44),$AB44,$AC44)) -> FALSE | AI44: =INDEX(IF($M44="ATP",'ATP2014'!$AY:$AY,'WTA2014'!$AU:$AU),IF(ISNUMBER($AB44),$AB44,$AC44)) -> Dimitrov | AJ44: =IF(W44=AD44,TRUE,INDEX(IF($M44="ATP",'ATP2014'!$AZ:$AZ,'WTA2014'!$AV:$AV),IF(ISNUMBER($AB44),$AB44,$AC44))) -> TRUE | AK44: =IF(K44=30,IF($M44="ATP",MATCH($N44&"The Final",'ATP2014'!$BA:$BA,0),MATCH($N44&"The Final",'WTA2014'!$AW:$AW,0)),"N/A") -> N/A | AL44: =IF(K44=30,INDEX(IF(M44="ATP",'ATP2014'!AQ:AQ,'WTA2014'!AM:AM),AK44),"N/A") -> N/A | AM44: Win | AN44: 2 | AO44: 0.4444444444 | AP44: 0.4444444444 | AQ44: 39.45010823 | AR44: MAY2014
A45: 2014-05-16 | B45: David Ferrer v Novak Djokovic | C45: ATP Rome 2014 | D45: Novak Djokovic 2-1 (Set Betting) | E45: 14/5 | F45: David Ferrer v Novak Djokovic | G45: ATP Rome 2014 | H45: Novak Djokovic 2-1 (Set Betting) | I45: 20 | J45: Set Betting | K45: =VLOOKUP(J45,Mapping!$A$5:$B$18,2,0) -> 2 | L45: NO | M45: ATP | N45: Rome | O45: 6 | P45: 13 | Q45: 21 | R45: Ferrer | S45: Djokovic | T45: 6 | U45: 15 | V45: 20 | W45: Djokovic | X45: 1 | Y45: N/A | Z45: N/A | AA45: RomeFerrerDjokovic | AB45: =IF($M45="ATP",MATCH($AA45,'ATP2014'!$AS:$AS,0),MATCH($AA45,'WTA2014'!$AO:$AO,0)) ->  | AC45: =IF($M45="ATP",MATCH($AA45,'ATP2014'!AT:AT,0),MATCH($AA45,'WTA2014'!$AP:$AP,0)) -> 1148 | AD45: =INDEX(IF(M45="ATP",'ATP2014'!AQ:AQ,'WTA2014'!AM:AM),IF(ISNUMBER(AB45),AB45,AC45)) -> Djokovic | AE45: =INDEX(IF($M45="ATP",'ATP2014'!$AU:$AU,'WTA2014'!$AQ:$AQ),IF(ISNUMBER($AB45),$AB45,$AC45)) -> 1 | AF45: =INDEX(IF($M45="ATP",'ATP2014'!$AV:$AV,'WTA2014'!$AR:$AR),IF(ISNUMBER($AB45),$AB45,$AC45)) -> 3 | AG45: =INDEX(IF($M45="ATP",'ATP2014'!$AW:$AW,'WTA2014'!$AS:$AS),IF(ISNUMBER($AB45),$AB45,$AC45)) -> 31 | AH45: =INDEX(IF($M45="ATP",'ATP2014'!$AX:$AX,'WTA2014'!$AT:$AT),IF(ISNUMBER($AB45),$AB45,$AC45)) -> FALSE | AI45: =INDEX(IF($M45="ATP",'ATP2014'!$AY:$AY,'WTA2014'!$AU:$AU),IF(ISNUMBER($AB45),$AB45,$AC45)) -> Djokovic | AJ45: =IF(W45=AD45,TRUE,INDEX(IF($M45="ATP",'ATP2014'!$AZ:$AZ,'WTA2014'!$AV:$AV),IF(ISNUMBER($AB45),$AB45,$AC45))) -> TRUE | AK45: =IF(K45=30,IF($M45="ATP",MATCH($N45&"The Final",'ATP2014'!$BA:$BA,0),MATCH($N45&"The Final",'WTA2014'!$AW:$AW,0)),"N/A") -> N/A | AL45: =IF(K45=30,INDEX(IF(M45="ATP",'ATP2014'!AQ:AQ,'WTA2014'!AM:AM),AK45),"N/A") -> N/A | AM45: Win | AN45: 3 | AO45: 2.8 | AP45: 2.8 | AQ45: 42.25010823 | AR45: MAY2014
A46: 2014-05-16 | B46: Rafael Nadal v Andy Murray | C46: ATP Rome 2014 | D46: Andy Murray (To Win a Set Yes) | E46: 6/4 | F46: Rafael Nadal v Andy Murray | G46: ATP Rome 2014 | H46: Andy Murray (To Win a Set Yes) | I46: 13 | J46: To Win a Set Yes | K46: =VLOOKUP(J46,Mapping!$A$5:$B$18,2,0) -> 11 | L46: NO | M46: ATP | N46: Rome | O46: 7 | P46: 13 | Q46: 20 | R46: Nadal | S46: Murray | T46: 5 | U46: 12 | V46: 13 | W46: Murray | X46: N/A | Y46: N/A | Z46: N/A | AA46: RomeNadalMurray | AB46: =IF($M46="ATP",MATCH($AA46,'ATP2014'!$AS:$AS,0),MATCH($AA46,'WTA2014'!$AO:$AO,0)) -> 1149 | AC46: =IF($M46="ATP",MATCH($AA46,'ATP2014'!AT:AT,0),MATCH($AA46,'WTA2014'!$AP:$AP,0)) ->  | AD46: =INDEX(IF(M46="ATP",'ATP2014'!AQ:AQ,'WTA2014'!AM:AM),IF(ISNUMBER(AB46),AB46,AC46)) -> Nadal | AE46: =INDEX(IF($M46="ATP",'ATP2014'!$AU:$AU,'WTA2014'!$AQ:$AQ),IF(ISNUMBER($AB46),$AB46,$AC46)) -> 1 | AF46: =INDEX(IF($M46="ATP",'ATP2014'!$AV:$AV,'WTA2014'!$AR:$AR),IF(ISNUMBER($AB46),$AB46,$AC46)) -> 0 | AG46: =INDEX(IF($M46="ATP",'ATP2014'!$AW:$AW,'WTA2014'!$AS:$AS),IF(ISNUMBER($AB46),$AB46,$AC46)) -> 28 | AH46: =INDEX(IF($M46="ATP",'ATP2014'!$AX:$AX,'WTA2014'!$AT:$AT),IF(ISNUMBER($AB46),$AB46,$AC46)) -> FALSE | AI46: =INDEX(IF($M46="ATP",'ATP2014'!$AY:$AY,'WTA2014'!$AU:$AU),IF(ISNUMBER($AB46),$AB46,$AC46)) -> Murray | AJ46: =IF(W46=AD46,TRUE,INDEX(IF($M46="ATP",'ATP2014'!$AZ:$AZ,'WTA2014'!$AV:$AV),IF(ISNUMBER($AB46),$AB46,$AC46))) -> TRUE | AK46: =IF(K46=30,IF($M46="ATP",MATCH($N46&"The Final",'ATP2014'!$BA:$BA,0),MATCH($N46&"The Final",'WTA2014'!$AW:$AW,0)),"N/A") -> N/A | AL46: =IF(K46=30,INDEX(IF(M46="ATP",'ATP2014'!AQ:AQ,'WTA2014'!AM:AM),AK46),"N/A") -> N/A | AM46: Win | AN46: 2 | AO46: 1.5 | AP46: 1.5 | AQ46: 43.75010823 | AR46: MAY2014
A47: 2014-05-16 | B47: Carla Suarez v Ana Ivanovic | C47: WTA Rome 2014 | D47: Ana Ivanovic -3.5 (Games Handicap) | E47: 10/11 | F47: Carla Suarez v Ana Ivanovic | G47: WTA Rome 2014 | H47: Ana Ivanovic -3.5 (Games Handicap) | I47: 19 | J47: Games Handicap | K47: =VLOOKUP(J47,Mapping!$A$5:$B$18,2,0) -> 4 | L47: NO | M47: WTA | N47: Rome | O47: 6 | P47: 13 | Q47: 19 | R47: Suarez | S47: Ivanovic | T47: 4 | U47: 13 | V47: 19 | W47: Ivanovic | X47: N/A | Y47: -3.5 | Z47: N/A | AA47: RomeSuarezIvanovic | AB47: =IF($M47="ATP",MATCH($AA47,'ATP2014'!$AS:$AS,0),MATCH($AA47,'WTA2014'!$AO:$AO,0)) ->  | AC47: =IF($M47="ATP",MATCH($AA47,'ATP2014'!AT:AT,0),MATCH($AA47,'WTA2014'!$AP:$AP,0)) -> 1083 | AD47: =INDEX(IF(M47="ATP",'ATP2014'!AQ:AQ,'WTA2014'!AM:AM),IF(ISNUMBER(AB47),AB47,AC47)) -> Ivanovic | AE47: =INDEX(IF($M47="ATP",'ATP2014'!$AU:$AU,'WTA2014'!$AQ:$AQ),IF(ISNUMBER($AB47),$AB47,$AC47)) -> 1 | AF47: =INDEX(IF($M47="ATP",'ATP2014'!$AV:$AV,'WTA2014'!$AR:$AR),IF(ISNUMBER($AB47),$AB47,$AC47)) -> 1 | AG47: =INDEX(IF($M47="ATP",'ATP2014'!$AW:$AW,'WTA2014'!$AS:$AS),IF(ISNUMBER($AB47),$AB47,$AC47)) -> 29 | AH47: =INDEX(IF($M47="ATP",'ATP2014'!$AX:$AX,'WTA2014'!$AT:$AT),IF(ISNUMBER($AB47),$AB47,$AC47)) -> FALSE | AI47: =INDEX(IF($M47="ATP",'ATP2014'!$AY:$AY,'WTA2014'!$AU:$AU),IF(ISNUMBER($AB47),$AB47,$AC47)) -> Ivanovic | AJ47: =IF(W47=AD47,TRUE,INDEX(IF($M47="ATP",'ATP2014'!$AZ:$AZ,'WTA2014'!$AV:$AV),IF(ISNUMBER($AB47),$AB47,$AC47))) -> TRUE | AK47: =IF(K47=30,IF($M47="ATP",MATCH($N47&"The Final",'ATP2014'!$BA:$BA,0),MATCH($N47&"The Final",'WTA2014'!$AW:$AW,0)),"N/A") -> N/A | AL47: =IF(K47=30,INDEX(IF(M47="ATP",'ATP2014'!AQ:AQ,'WTA2014'!AM:AM),AK47),"N/A") -> N/A | AM47: Loss | AN47: 3 | AO47: 0.9090909091 | AP47: -1 | AQ47: 42.75010823 | AR47: MAY2014
A48: 2014-05-17 | B48: Serena Williams v Sara Errani | C48: WTA Rome 2014 | D48: Serena Williams 2-0 (Set Betting) | E48: 4/11 | F48: Serena Williams v Sara Errani | G48: WTA Rome 2014 | H48: Serena Williams 2-0 (Set Betting) | I48: 21 | J48: Set Betting | K48: =VLOOKUP(J48,Mapping!$A$5:$B$18,2,0) -> 2 | L48: NO | M48: WTA | N48: Rome | O48: 7 | P48: 16 | Q48: 23 | R48: Williams | S48: Errani | T48: 7 | U48: 16 | V48: 21 | W48: Williams | X48: 2 | Y48: N/A | Z48: N/A | AA48: RomeWilliamsErrani | AB48: =IF($M48="ATP",MATCH($AA48,'ATP2014'!$AS:$AS,0),MATCH($AA48,'WTA2014'!$AO:$AO,0)) -> 1088 | AC48: =IF($M48="ATP",MATCH($AA48,'ATP2014'!AT:AT,0),MATCH($AA48,'WTA2014'!$AP:$AP,0)) ->  | AD48: =INDEX(IF(M48="ATP",'ATP2014'!AQ:AQ,'WTA2014'!AM:AM),IF(ISNUMBER(AB48),AB48,AC48)) -> Williams | AE48: =INDEX(IF($M48="ATP",'ATP2014'!$AU:$AU,'WTA2014'!$AQ:$AQ),IF(ISNUMBER($AB48),$AB48,$AC48)) -> 2 | AF48: =INDEX(IF($M48="ATP",'ATP2014'!$AV:$AV,'WTA2014'!$AR:$AR),IF(ISNUMBER($AB48),$AB48,$AC48)) -> 9 | AG48: =INDEX(IF($M48="ATP",'ATP2014'!$AW:$AW,'WTA2014'!$AS:$AS),IF(ISNUMBER($AB48),$AB48,$AC48)) -> 15 | AH48: =INDEX(IF($M48="ATP",'ATP2014'!$AX:$AX,'WTA2014'!$AT:$AT),IF(ISNUMBER($AB48),$AB48,$AC48)) -> FALSE | AI48: =INDEX(IF($M48="ATP",'ATP2014'!$AY:$AY,'WTA2014'!$AU:$AU),IF(ISNUMBER($AB48),$AB48,$AC48)) -> Williams | AJ48: =IF(W48=AD48,TRUE,INDEX(IF($M48="ATP",'ATP2014'!$AZ:$AZ,'WTA2014'!$AV:$AV),IF(ISNUMBER($AB48),$AB48,$AC48))) -> TRUE | AK48: =IF(K48=30,IF($M48="ATP",MATCH($N48&"The Final",'ATP2014'!$BA:$BA,0),MATCH($N48&"The Final",'WTA2014'!$AW:$AW,0)),"N/A") -> N/A | AL48: =IF(K48=30,INDEX(IF(M48="ATP",'ATP2014'!AQ:AQ,'WTA2014'!AM:AM),AK48),"N/A") -> N/A | AM48: Win | AN48: 2 | AO48: 0.3636363636 | AP48: 0.3636363636 | AQ48: 43.11374459 | AR48: MAY2014
A49: 2014-05-18 | B49: Rafael Nadal v Novak Djokovic | C49: ATP Rome 2014 | D49: Novak Djokovic (Match Winner) | E49: 13/10 | F49: Rafael Nadal v Novak Djokovic | G49: ATP Rome 2014 | H49: Novak Djokovic (Match Winner) | I49: 16 | J49: Match Winner | K49: =VLOOKUP(J49,Mapping!$A$5:$B$18,2,0) -> 1 | L49: NO | M49: ATP | N49: Rome | O49: 7 | P49: 13 | Q49: 21 | R49: Nadal | S49: Djokovic | T49: 6 | U49: 15 | V49: 16 | W49: Djokovic | X49: N/A | Y49: N/A | Z49: N/A | AA49: RomeNadalDjokovic | AB49: =IF($M49="ATP",MATCH($AA49,'ATP2014'!$AS:$AS,0),MATCH($AA49,'WTA2014'!$AO:$AO,0)) ->  | AC49: =IF($M49="ATP",MATCH($AA49,'ATP2014'!AT:AT,0),MATCH($AA49,'WTA2014'!$AP:$AP,0)) -> 1152 | AD49: =INDEX(IF(M49="ATP",'ATP2014'!AQ:AQ,'WTA2014'!AM:AM),IF(ISNUMBER(AB49),AB49,AC49)) -> Djokovic | AE49: =INDEX(IF($M49="ATP",'ATP2014'!$AU:$AU,'WTA2014'!$AQ:$AQ),IF(ISNUMBER($AB49),$AB49,$AC49)) -> 1 | AF49: =INDEX(IF($M49="ATP",'ATP2014'!$AV:$AV,'WTA2014'!$AR:$AR),IF(ISNUMBER($AB49),$AB49,$AC49)) -> 4 | AG49: =INDEX(IF($M49="ATP",'ATP2014'!$AW:$AW,'WTA2014'!$AS:$AS),IF(ISNUMBER($AB49),$AB49,$AC49)) -> 28 | AH49: =INDEX(IF($M49="ATP",'ATP2014'!$AX:$AX,'WTA2014'!$AT:$AT),IF(ISNUMBER($AB49),$AB49,$AC49)) -> FALSE | AI49: =INDEX(IF($M49="ATP",'ATP2014'!$AY:$AY,'WTA2014'!$AU:$AU),IF(ISNUMBER($AB49),$AB49,$AC49)) -> Nadal | AJ49: =IF(W49=AD49,TRUE,INDEX(IF($M49="ATP",'ATP2014'!$AZ:$AZ,'WTA2014'!$AV:$AV),IF(ISNUMBER($AB49),$AB49,$AC49))) -> TRUE | AK49: =IF(K49=30,IF($M49="ATP",MATCH($N49&"The Final",'ATP2014'!$BA:$BA,0),MATCH($N49&"The Final",'WTA2014'!$AW:$AW,0)),"N/A") -> N/A | AL49: =IF(K49=30,INDEX(IF(M49="ATP",'ATP2014'!AQ:AQ,'WTA2014'!AM:AM),AK49),"N/A") -> N/A | AM49: Win | AN49: 3 | AO49: 1.3 | AP49: 1.3 | AQ49: 44.41374459 | AR49: MAY2014
A50: 2014-05-19 | B50: N/A | C50: ATP Dusseldorf 2014 | D50: Philipp Kohlscreiber (Outright Winner) | E50: 5/2 | F50: N/A | G50: ATP Dusseldorf 2014 | H50: Philipp Kohlscreiber (Outright Winner) | I50: 22 | J50: Outright Winner | K50: =VLOOKUP(J50,Mapping!$A$5:$B$18,2,0) -> 30 | L50: NO | M50: ATP | N50: Dusseldorf | O50: 8 | P50: 22 | Q50: 8 | R50: Kohlscreiber | T50: 8 | U50: 21 | V50: 22 | W50: Kohlscreiber | X50: N/A | Y50: N/A | Z50: N/A | AA50: DusseldorfKohlscreiber | AB50: =IF($M50="ATP",MATCH($AA50,'ATP2014'!$AS:$AS,0),MATCH($AA50,'WTA2014'!$AO:$AO,0)) ->  | AC50: =IF($M50="ATP",MATCH($AA50,'ATP2014'!AT:AT,0),MATCH($AA50,'WTA2014'!$AP:$AP,0)) ->  | AD50: =INDEX(IF(M50="ATP",'ATP2014'!AQ:AQ,'WTA2014'!AM:AM),IF(ISNUMBER(AB50),AB50,AC50)) ->  | AE50: =INDEX(IF($M50="ATP",'ATP2014'!$AU:$AU,'WTA2014'!$AQ:$AQ),IF(ISNUMBER($AB50),$AB50,$AC50)) ->  | AF50: =INDEX(IF($M50="ATP",'ATP2014'!$AV:$AV,'WTA2014'!$AR:$AR),IF(ISNUMBER($AB50),$AB50,$AC50)) ->  | AG50: =INDEX(IF($M50="ATP",'ATP2014'!$AW:$AW,'WTA2014'!$AS:$AS),IF(ISNUMBER($AB50),$AB50,$AC50)) ->  | AH50: =INDEX(IF($M50="ATP",'ATP2014'!$AX:$AX,'WTA2014'!$AT:$AT),IF(ISNUMBER($AB50),$AB50,$AC50)) ->  | AI50: =INDEX(IF($M50="ATP",'ATP2014'!$AY:$AY,'WTA2014'!$AU:$AU),IF(ISNUMBER($AB50),$AB50,$AC50)) ->  | AJ50: =IF(W50=AD50,TRUE,INDEX(IF($M50="ATP",'ATP2014'!$AZ:$AZ,'WTA2014'!$AV:$AV),IF(ISNUMBER($AB50),$AB50,$AC50))) ->  | AK50: =IF(K50=30,IF($M50="ATP",MATCH($N50&"The Final",'ATP2014'!$BA:$BA,0),MATCH($N50&"The Final",'WTA2014'!$AW:$AW,0)),"N/A") -> 1179 | AL50: =IF(K50=30,INDEX(IF(M50="ATP",'ATP2014'!AQ:AQ,'WTA2014'!AM:AM),AK50),"N/A") -> Kohlschreiber | AM50: Loss | AN50: 2 | AO50: 2.5 | AP50: -1 | AQ50: 43.41374459 | AR50: MAY2014
A51: 2014-05-20 | B51: N/A | C51: ATP Nice 2014 | D51: Ernests Gulbis (Outright Winner) | E51: 7/2 | F51: N/A | G51: ATP Nice 2014 | H51: Ernests Gulbis (Outright Winner) | I51: 16 | J51: Outright Winner | K51: =VLOOKUP(J51,Mapping!$A$5:$B$18,2,0) -> 30 | L51: NO | M51: ATP | N51: Nice | O51: 8 | P51: 16 | Q51: 8 | R51: Gulbis | T51: 8 | U51: 15 | V51: 16 | W51: Gulbis | X51: N/A | Y51: N/A | Z51: N/A | AA51: NiceGulbis | AB51: =IF($M51="ATP",MATCH($AA51,'ATP2014'!$AS:$AS,0),MATCH($AA51,'WTA2014'!$AO:$AO,0)) ->  | AC51: =IF($M51="ATP",MATCH($AA51,'ATP2014'!AT:AT,0),MATCH($AA51,'WTA2014'!$AP:$AP,0)) ->  | AD51: =INDEX(IF(M51="ATP",'ATP2014'!AQ:AQ,'WTA2014'!AM:AM),IF(ISNUMBER(AB51),AB51,AC51)) ->  | AE51: =INDEX(IF($M51="ATP",'ATP2014'!$AU:$AU,'WTA2014'!$AQ:$AQ),IF(ISNUMBER($AB51),$AB51,$AC51)) ->  | AF51: =INDEX(IF($M51="ATP",'ATP2014'!$AV:$AV,'WTA2014'!$AR:$AR),IF(ISNUMBER($AB51),$AB51,$AC51)) ->  | AG51: =INDEX(IF($M51="ATP",'ATP2014'!$AW:$AW,'WTA2014'!$AS:$AS),IF(ISNUMBER($AB51),$AB51,$AC51)) ->  | AH51: =INDEX(IF($M51="ATP",'ATP2014'!$AX:$AX,'WTA2014'!$AT:$AT),IF(ISNUMBER($AB51),$AB51,$AC51)) ->  | AI51: =INDEX(IF($M51="ATP",'ATP2014'!$AY:$AY,'WTA2014'!$AU:$AU),IF(ISNUMBER($AB51),$AB51,$AC51)) ->  | AJ51: =IF(W51=AD51,TRUE,INDEX(IF($M51="ATP",'ATP2014'!$AZ:$AZ,'WTA2014'!$AV:$AV),IF(ISNUMBER($AB51),$AB51,$AC51))) ->  | AK51: =IF(K51=30,IF($M51="ATP",MATCH($N51&"The Final",'ATP2014'!$BA:$BA,0),MATCH($N51&"The Final",'WTA2014'!$AW:$AW,0)),"N/A") -> 1206 | AL51: =IF(K51=30,INDEX(IF(M51="ATP",'ATP2014'!AQ:AQ,'WTA2014'!AM:AM),AK51),"N/A") -> Gulbis | AM51: Win | AN51: 2 | AO51: 3.5 | AP51: 3.5 | AQ51: 46.91374459 | AR51: MAY2014
A52: 2014-05-21 | B52: Ernests Gulbis v Dmitry Tursunov | C52: ATP Nice 2014 | D52: Ernests Gulbis 2-0 (Set Betting) | E52: 8/11 | F52: Ernests Gulbis v Dmitry Tursunov | G52: ATP Nice 2014 | H52: Ernests Gulbis 2-0 (Set Betting) | I52: 20 | J52: Set Betting | K52: =VLOOKUP(J52,Mapping!$A$5:$B$18,2,0) -> 2 | L52: NO | M52: ATP | N52: Nice | O52: 8 | P52: 15 | Q52: 24 | R52: Gulbis | S52: Tursunov | T52: 8 | U52: 15 | V52: 20 | W52: Gulbis | X52: 2 | Y52: N/A | Z52: N/A | AA52: NiceGulbisTursunov | AB52: =IF($M52="ATP",MATCH($AA52,'ATP2014'!$AS:$AS,0),MATCH($AA52,'WTA2014'!$AO:$AO,0)) -> 1201 | AC52: =IF($M52="ATP",MATCH($AA52,'ATP2014'!AT:AT,0),MATCH($AA52,'WTA2014'!$AP:$AP,0)) ->  | AD52: =INDEX(IF(M52="ATP",'ATP2014'!AQ:AQ,'WTA2014'!AM:AM),IF(ISNUMBER(AB52),AB52,AC52)) -> Gulbis | AE52: =INDEX(IF($M52="ATP",'ATP2014'!$AU:$AU,'WTA2014'!$AQ:$AQ),IF(ISNUMBER($AB52),$AB52,$AC52)) -> 1 | AF52: =INDEX(IF($M52="ATP",'ATP2014'!$AV:$AV,'WTA2014'!$AR:$AR),IF(ISNUMBER($AB52),$AB52,$AC52)) -> 1 | AG52: =INDEX(IF($M52="ATP",'ATP2014'!$AW:$AW,'WTA2014'!$AS:$AS),IF(ISNUMBER($AB52),$AB52,$AC52)) -> 31 | AH52: =INDEX(IF($M52="ATP",'ATP2014'!$AX:$AX,'WTA2014'!$AT:$AT),IF(ISNUMBER($AB52),$AB52,$AC52)) -> TRUE | AI52: =INDEX(IF($M52="ATP",'ATP2014'!$AY:$AY,'WTA2014'!$AU:$AU),IF(ISNUMBER($AB52),$AB52,$AC52)) -> Gulbis | AJ52: =IF(W52=AD52,TRUE,INDEX(IF($M52="ATP",'ATP2014'!$AZ:$AZ,'WTA2014'!$AV:$AV),IF(ISNUMBER($AB52),$AB52,$AC52))) -> TRUE | AK52: =IF(K52=30,IF($M52="ATP",MATCH($N52&"The Final",'ATP2014'!$BA:$BA,0),MATCH($N52&"The Final",'WTA2014'!$AW:$AW,0)),"N/A") -> N/A | AL52: =IF(K52=30,INDEX(IF(M52="ATP",'ATP2014'!AQ:AQ,'WTA2014'!AM:AM),AK52),"N/A") -> N/A | AM52: Win | AN52: 2 | AO52: 0.7272727273 | AP52: 0.7272727273 | AQ52: 47.64101732 | AR52: MAY2014
A53: 2014-05-22 | B53: Leonardo Mayer v Albert Montanes | C53: ATP Nice 2014 | D53: Leonardo Mayer (Match Winner) | E53: 5/4 | F53: Leonardo Mayer v Albert Montanes | G53: ATP Nice 2014 | H53: Leonardo Mayer (Match Winner) | I53: 16 | J53: Match Winner | K53: =VLOOKUP(J53,Mapping!$A$5:$B$18,2,0) -> 1 | L53: NO | M53: ATP | N53: Nice | O53: 9 | P53: 15 | Q53: 24 | R53: Mayer | S53: Montanes | T53: 9 | U53: 15 | V53: 16 | W53: Mayer | X53: N/A | Y53: N/A | Z53: N/A | AA53: NiceMayerMontanes | AB53: =IF($M53="ATP",MATCH($AA53,'ATP2014'!$AS:$AS,0),MATCH($AA53,'WTA2014'!$AO:$AO,0)) ->  | AC53: =IF($M53="ATP",MATCH($AA53,'ATP2014'!AT:AT,0),MATCH($AA53,'WTA2014'!$AP:$AP,0)) -> 1200 | AD53: =INDEX(IF(M53="ATP",'ATP2014'!AQ:AQ,'WTA2014'!AM:AM),IF(ISNUMBER(AB53),AB53,AC53)) -> Montanes | AE53: =INDEX(IF($M53="ATP",'ATP2014'!$AU:$AU,'WTA2014'!$AQ:$AQ),IF(ISNUMBER($AB53),$AB53,$AC53)) -> 1 | AF53: =INDEX(IF($M53="ATP",'ATP2014'!$AV:$AV,'WTA2014'!$AR:$AR),IF(ISNUMBER($AB53),$AB53,$AC53)) -> 3 | AG53: =INDEX(IF($M53="ATP",'ATP2014'!$AW:$AW,'WTA2014'!$AS:$AS),IF(ISNUMBER($AB53),$AB53,$AC53)) -> 33 | AH53: =INDEX(IF($M53="ATP",'ATP2014'!$AX:$AX,'WTA2014'!$AT:$AT),IF(ISNUMBER($AB53),$AB53,$AC53)) -> TRUE | AI53: =INDEX(IF($M53="ATP",'ATP2014'!$AY:$AY,'WTA2014'!$AU:$AU),IF(ISNUMBER($AB53),$AB53,$AC53)) -> Mayer | AJ53: =IF(W53=AD53,TRUE,INDEX(IF($M53="ATP",'ATP2014'!$AZ:$AZ,'WTA2014'!$AV:$AV),IF(ISNUMBER($AB53),$AB53,$AC53))) -> TRUE | AK53: =IF(K53=30,IF($M53="ATP",MATCH($N53&"The Final",'ATP2014'!$BA:$BA,0),MATCH($N53&"The Final",'WTA2014'!$AW:$AW,0)),"N/A") -> N/A | AL53: =IF(K53=30,INDEX(IF(M53="ATP",'ATP2014'!AQ:AQ,'WTA2014'!AM:AM),AK53),"N/A") -> N/A | AM53: Loss | AN53: 2 | AO53: 1.25 | AP53: -1 | AQ53: 46.64101732 | AR53: MAY2014
A54: 2014-05-23 | B54: N/A | C54: French Open (Roland Garros) 2014 | D54: Novak Djokovic (Outright Winner) | E54: 6/4 | F54: N/A | G54: French Open (Roland Garros) 2014 | H54: Novak Djokovic (Outright Winner) | I54: 16 | J54: Outright Winner | K54: =VLOOKUP(J54,Mapping!$A$5:$B$18,2,0) -> 30 | L54: Paris | M54: ATP | N54: Paris | O54: 6 | P54: 16 | Q54: 6 | R54: Djokovic | T54: 6 | U54: 15 | V54: 16 | W54: Djokovic | X54: N/A | Y54: N/A | Z54: N/A | AA54: ParisDjokovic | AB54: =IF($M54="ATP",MATCH($AA54,'ATP2014'!$AS:$AS,0),MATCH($AA54,'WTA2014'!$AO:$AO,0)) ->  | AC54: =IF($M54="ATP",MATCH($AA54,'ATP2014'!AT:AT,0),MATCH($AA54,'WTA2014'!$AP:$AP,0)) ->  | AD54: =INDEX(IF(M54="ATP",'ATP2014'!AQ:AQ,'WTA2014'!AM:AM),IF(ISNUMBER(AB54),AB54,AC54)) ->  | AE54: =INDEX(IF($M54="ATP",'ATP2014'!$AU:$AU,'WTA2014'!$AQ:$AQ),IF(ISNUMBER($AB54),$AB54,$AC54)) ->  | AF54: =INDEX(IF($M54="ATP",'ATP2014'!$AV:$AV,'WTA2014'!$AR:$AR),IF(ISNUMBER($AB54),$AB54,$AC54)) ->  | AG54: =INDEX(IF($M54="ATP",'ATP2014'!$AW:$AW,'WTA2014'!$AS:$AS),IF(ISNUMBER($AB54),$AB54,$AC54)) ->  | AH54: =INDEX(IF($M54="ATP",'ATP2014'!$AX:$AX,'WTA2014'!$AT:$AT),IF(ISNUMBER($AB54),$AB54,$AC54)) ->  | AI54: =INDEX(IF($M54="ATP",'ATP2014'!$AY:$AY,'WTA2014'!$AU:$AU),IF(ISNUMBER($AB54),$AB54,$AC54)) ->  | AJ54: =IF(W54=AD54,TRUE,INDEX(IF($M54="ATP",'ATP2014'!$AZ:$AZ,'WTA2014'!$AV:$AV),IF(ISNUMBER($AB54),$AB54,$AC54))) ->  | AK54: =IF(K54=30,IF($M54="ATP",MATCH($N54&"The Final",'ATP2014'!$BA:$BA,0),MATCH($N54&"The Final",'WTA2014'!$AW:$AW,0)),"N/A") -> 1333 | AL54: =IF(K54=30,INDEX(IF(M54="ATP",'ATP2014'!AQ:AQ,'WTA2014'!AM:AM),AK54),"N/A") -> Nadal | AM54: Loss | AN54: 2 | AO54: 1.5 | AP54: -1 | AQ54: 45.64101732 | AR54: MAY2014
A55: 2014-05-23 | B55: N/A | C55: French Open 2014 (Women's Singles) | D55: Serena Williams (Outright Winner) | E55: 5/4 | F55: N/A | G55: French Open 2014 (Women's Singles) | H55: Serena Williams (Outright Winner) | I55: 17 | J55: Outright Winner | K55: =VLOOKUP(J55,Mapping!$A$5:$B$18,2,0) -> 30 | L55: Paris | M55: WTA | N55: Paris | O55: 7 | P55: 17 | Q55: 7 | R55: Williams | T55: 7 | U55: 16 | V55: 17 | W55: Williams | X55: N/A | Y55: N/A | Z55: N/A | AA55: ParisWilliams | AB55: =IF($M55="ATP",MATCH($AA55,'ATP2014'!$AS:$AS,0),MATCH($AA55,'WTA2014'!$AO:$AO,0)) ->  | AC55: =IF($M55="ATP",MATCH($AA55,'ATP2014'!AT:AT,0),MATCH($AA55,'WTA2014'!$AP:$AP,0)) ->  | AD55: =INDEX(IF(M55="ATP",'ATP2014'!AQ:AQ,'WTA2014'!AM:AM),IF(ISNUMBER(AB55),AB55,AC55)) ->  | AE55: =INDEX(IF($M55="ATP",'ATP2014'!$AU:$AU,'WTA2014'!$AQ:$AQ),IF(ISNUMBER($AB55),$AB55,$AC55)) ->  | AF55: =INDEX(IF($M55="ATP",'ATP2014'!$AV:$AV,'WTA2014'!$AR:$AR),IF(ISNUMBER($AB55),$AB55,$AC55)) ->  | AG55: =INDEX(IF($M55="ATP",'ATP2014'!$AW:$AW,'WTA2014'!$AS:$AS),IF(ISNUMBER($AB55),$AB55,$AC55)) ->  | AH55: =INDEX(IF($M55="ATP",'ATP2014'!$AX:$AX,'WTA2014'!$AT:$AT),IF(ISNUMBER($AB55),$AB55,$AC55)) ->  | AI55: =INDEX(IF($M55="ATP",'ATP2014'!$AY:$AY,'WTA2014'!$AU:$AU),IF(ISNUMBER($AB55),$AB55,$AC55)) ->  | AJ55: =IF(W55=AD55,TRUE,INDEX(IF($M55="ATP",'ATP2014'!$AZ:$AZ,'WTA2014'!$AV:$AV),IF(ISNUMBER($AB55),$AB55,$AC55))) ->  | AK55: =IF(K55=30,IF($M55="ATP",MATCH($N55&"The Final",'ATP2014'!$BA:$BA,0),MATCH($N55&"The Final",'WTA2014'!$AW:$AW,0)),"N/A") -> 306 | AL55: =IF(K55=30,INDEX(IF(M55="ATP",'ATP2014'!AQ:AQ,'WTA2014'!AM:AM),AK55),"N/A") -> Pavlyuchenkova | AM55: Loss | AN55: 2 | AO55: 1.25 | AP55: -1 | AQ55: 44.64101732 | AR55: MAY2014
A56: 2014-05-25 | B56: Philipp Kohlschreiber v Pere Riba | C56: French Open 2014 | D56: Kohlschreiber 3-0 (Set Betting) | E56: 4/6 | F56: Philipp Kohlschreiber v Pere Riba | G56: French Open 2014 | H56: Kohlschreiber 3-0 (Set Betting) | I56: 19 | J56: Set Betting | K56: =VLOOKUP(J56,Mapping!$A$5:$B$18,2,0) -> 2 | L56: Paris | M56: ATP | N56: Paris | O56: 8 | P56: 22 | Q56: 29 | R56: Kohlschreiber | S56: Riba | T56: 14 | U56: 14 | V56: 19 | W56: Kohlschreiber | X56: 3 | Y56: N/A | Z56: N/A | AA56: ParisKohlschreiberRiba | AB56: =IF($M56="ATP",MATCH($AA56,'ATP2014'!$AS:$AS,0),MATCH($AA56,'WTA2014'!$AO:$AO,0)) -> 1254 | AC56: =IF($M56="ATP",MATCH($AA56,'ATP2014'!AT:AT,0),MATCH($AA56,'WTA2014'!$AP:$AP,0)) ->  | AD56: =INDEX(IF(M56="ATP",'ATP2014'!AQ:AQ,'WTA2014'!AM:AM),IF(ISNUMBER(AB56),AB56,AC56)) -> Kohlschreiber | AE56: =INDEX(IF($M56="ATP",'ATP2014'!$AU:$AU,'WTA2014'!$AQ:$AQ),IF(ISNUMBER($AB56),$AB56,$AC56)) -> 3 | AF56: =INDEX(IF($M56="ATP",'ATP2014'!$AV:$AV,'WTA2014'!$AR:$AR),IF(ISNUMBER($AB56),$AB56,$AC56)) -> 9 | AG56: =INDEX(IF($M56="ATP",'ATP2014'!$AW:$AW,'WTA2014'!$AS:$AS),IF(ISNUMBER($AB56),$AB56,$AC56)) -> 29 | AH56: =INDEX(IF($M56="ATP",'ATP2014'!$AX:$AX,'WTA2014'!$AT:$AT),IF(ISNUMBER($AB56),$AB56,$AC56)) -> FALSE | AI56: =INDEX(IF($M56="ATP",'ATP2014'!$AY:$AY,'WTA2014'!$AU:$AU),IF(ISNUMBER($AB56),$AB56,$AC56)) -> Kohlschreiber | AJ56: =IF(W56=AD56,TRUE,INDEX(IF($M56="ATP",'ATP2014'!$AZ:$AZ,'WTA2014'!$AV:$AV),IF(ISNUMBER($AB56),$AB56,$AC56))) -> TRUE | AK56: =IF(K56=30,IF($M56="ATP",MATCH($N56&"The Final",'ATP2014'!$BA:$BA,0),MATCH($N56&"The Final",'WTA2014'!$AW:$AW,0)),"N/A") -> N/A | AL56: =IF(K56=30,INDEX(IF(M56="ATP",'ATP2014'!AQ:AQ,'WTA2014'!AM:AM),AK56),"N/A") -> N/A | AM56: Loss | AN56: 2 | AO56: 0.6666666667 | AP56: -1 | AQ56: 43.64101732 | AR56: MAY2014
A57: 2014-05-28 | B57: Jeremy Chardy v Novak Djokovic | C57: French Open 2014 | D57: Novak Djokovic 3-0 (Set Betting) | E57: 1/7 | F57: Jeremy Chardy v Novak Djokovic | G57: French Open 2014 | H57: Novak Djokovic 3-0 (Set Betting) | I57: 20 | J57: Set Betting | K57: =VLOOKUP(J57,Mapping!$A$5:$B$18,2,0) -> 2 | L57: Paris | M57: ATP | N57: Paris | O57: 7 | P57: 14 | Q57: 22 | R57: Chardy | S57: Djokovic | T57: 6 | U57: 15 | V57: 20 | W57: Djokovic | X57: 3 | Y57: N/A | Z57: N/A | AA57: ParisChardyDjokovic | AB57: =IF($M57="ATP",MATCH($AA57,'ATP2014'!$AS:$AS,0),MATCH($AA57,'WTA2014'!$AO:$AO,0)) ->  | AC57: =IF($M57="ATP",MATCH($AA57,'ATP2014'!AT:AT,0),MATCH($AA57,'WTA2014'!$AP:$AP,0)) -> 1279 | AD57: =INDEX(IF(M57="ATP",'ATP2014'!AQ:AQ,'WTA2014'!AM:AM),IF(ISNUMBER(AB57),AB57,AC57)) -> Djokovic | AE57: =INDEX(IF($M57="ATP",'ATP2014'!$AU:$AU,'WTA2014'!$AQ:$AQ),IF(ISNUMBER($AB57),$AB57,$AC57)) -> 3 | AF57: =INDEX(IF($M57="ATP",'ATP2014'!$AV:$AV,'WTA2014'!$AR:$AR),IF(ISNUMBER($AB57),$AB57,$AC57)) -> 11 | AG57: =INDEX(IF($M57="ATP",'ATP2014'!$AW:$AW,'WTA2014'!$AS:$AS),IF(ISNUMBER($AB57),$AB57,$AC57)) -> 25 | AH57: =INDEX(IF($M57="ATP",'ATP2014'!$AX:$AX,'WTA2014'!$AT:$AT),IF(ISNUMBER($AB57),$AB57,$AC57)) -> FALSE | AI57: =INDEX(IF($M57="ATP",'ATP2014'!$AY:$AY,'WTA2014'!$AU:$AU),IF(ISNUMBER($AB57),$AB57,$AC57)) -> Djokovic | AJ57: =IF(W57=AD57,TRUE,INDEX(IF($M57="ATP",'ATP2014'!$AZ:$AZ,'WTA2014'!$AV:$AV),IF(ISNUMBER($AB57),$AB57,$AC57))) -> TRUE | AK57: =IF(K57=30,IF($M57="ATP",MATCH($N57&"The Final",'ATP2014'!$BA:$BA,0),MATCH($N57&"The Final",'WTA2014'!$AW:$AW,0)),"N/A") -> N/A | AL57: =IF(K57=30,INDEX(IF(M57="ATP",'ATP2014'!AQ:AQ,'WTA2014'!AM:AM),AK57),"N/A") -> N/A | AM57: Loss | AN57: 2 | AO57: 0.1428571429 | AP57: -1 | AQ57: 42.64101732 | AR57: MAY2014
A58: 2014-05-29 | B58: Milos Raonic v Jiri Vesely | C58: French Open 2014 | D58: Milos Raonic (Match Winner) | E58: 1/5 | F58: Milos Raonic v Jiri Vesely | G58: French Open 2014 | H58: Milos Raonic (Match Winner) | I58: 14 | J58: Match Winner | K58: =VLOOKUP(J58,Mapping!$A$5:$B$18,2,0) -> 1 | L58: Paris | M58: ATP | N58: Paris | O58: 6 | P58: 13 | Q58: 20 | R58: Raonic | S58: Vesely | T58: 6 | U58: 13 | V58: 14 | W58: Raonic | X58: N/A | Y58: N/A | Z58: N/A | AA58: ParisRaonicVesely | AB58: =IF($M58="ATP",MATCH($AA58,'ATP2014'!$AS:$AS,0),MATCH($AA58,'WTA2014'!$AO:$AO,0)) -> 1281 | AC58: =IF($M58="ATP",MATCH($AA58,'ATP2014'!AT:AT,0),MATCH($AA58,'WTA2014'!$AP:$AP,0)) ->  | AD58: =INDEX(IF(M58="ATP",'ATP2014'!AQ:AQ,'WTA2014'!AM:AM),IF(ISNUMBER(AB58),AB58,AC58)) -> Raonic | AE58: =INDEX(IF($M58="ATP",'ATP2014'!$AU:$AU,'WTA2014'!$AQ:$AQ),IF(ISNUMBER($AB58),$AB58,$AC58)) -> 3 | AF58: =INDEX(IF($M58="ATP",'ATP2014'!$AV:$AV,'WTA2014'!$AR:$AR),IF(ISNUMBER($AB58),$AB58,$AC58)) -> 8 | AG58: =INDEX(IF($M58="ATP",'ATP2014'!$AW:$AW,'WTA2014'!$AS:$AS),IF(ISNUMBER($AB58),$AB58,$AC58)) -> 30 | AH58: =INDEX(IF($M58="ATP",'ATP2014'!$AX:$AX,'WTA2014'!$AT:$AT),IF(ISNUMBER($AB58),$AB58,$AC58)) -> TRUE | AI58: =INDEX(IF($M58="ATP",'ATP2014'!$AY:$AY,'WTA2014'!$AU:$AU),IF(ISNUMBER($AB58),$AB58,$AC58)) -> Raonic | AJ58: =IF(W58=AD58,TRUE,INDEX(IF($M58="ATP",'ATP2014'!$AZ:$AZ,'WTA2014'!$AV:$AV),IF(ISNUMBER($AB58),$AB58,$AC58))) -> TRUE | AK58: =IF(K58=30,IF($M58="ATP",MATCH($N58&"The Final",'ATP2014'!$BA:$BA,0),MATCH($N58&"The Final",'WTA2014'!$AW:$AW,0)),"N/A") -> N/A | AL58: =IF(K58=30,INDEX(IF(M58="ATP",'ATP2014'!AQ:AQ,'WTA2014'!AM:AM),AK58),"N/A") -> N/A | AM58: Win | AN58: 2 | AO58: 0.2 | AP58: 0.2 | AQ58: 42.84101732 | AR58: MAY2014
A59: 2014-06-03 | B59: Rafael Nadal v David Ferrer | C59: French Open 2014 | D59: Rafael Nadal 3-1 (Set Betting) | E59: 5/2 | F59: Rafael Nadal v David Ferrer | G59: French Open 2014 | H59: Rafael Nadal 3-1 (Set Betting) | I59: 18 | J59: Set Betting | K59: =VLOOKUP(J59,Mapping!$A$5:$B$18,2,0) -> 2 | L59: Paris | M59: ATP | N59: Paris | O59: 7 | P59: 13 | Q59: 21 | R59: Nadal | S59: Ferrer | T59: 7 | U59: 13 | V59: 18 | W59: Nadal | X59: 2 | Y59: N/A | Z59: N/A | AA59: ParisNadalFerrer | AB59: =IF($M59="ATP",MATCH($AA59,'ATP2014'!$AS:$AS,0),MATCH($AA59,'WTA2014'!$AO:$AO,0)) -> 1330 | AC59: =IF($M59="ATP",MATCH($AA59,'ATP2014'!AT:AT,0),MATCH($AA59,'WTA2014'!$AP:$AP,0)) ->  | AD59: =INDEX(IF(M59="ATP",'ATP2014'!AQ:AQ,'WTA2014'!AM:AM),IF(ISNUMBER(AB59),AB59,AC59)) -> Nadal | AE59: =INDEX(IF($M59="ATP",'ATP2014'!$AU:$AU,'WTA2014'!$AQ:$AQ),IF(ISNUMBER($AB59),$AB59,$AC59)) -> 2 | AF59: =INDEX(IF($M59="ATP",'ATP2014'!$AV:$AV,'WTA2014'!$AR:$AR),IF(ISNUMBER($AB59),$AB59,$AC59)) -> 11 | AG59: =INDEX(IF($M59="ATP",'ATP2014'!$AW:$AW,'WTA2014'!$AS:$AS),IF(ISNUMBER($AB59),$AB59,$AC59)) -> 33 | AH59: =INDEX(IF($M59="ATP",'ATP2014'!$AX:$AX,'WTA2014'!$AT:$AT),IF(ISNUMBER($AB59),$AB59,$AC59)) -> FALSE | AI59: =INDEX(IF($M59="ATP",'ATP2014'!$AY:$AY,'WTA2014'!$AU:$AU),IF(ISNUMBER($AB59),$AB59,$AC59)) -> Ferrer | AJ59: =IF(W59=AD59,TRUE,INDEX(IF($M59="ATP",'ATP2014'!$AZ:$AZ,'WTA2014'!$AV:$AV),IF(ISNUMBER($AB59),$AB59,$AC59))) -> TRUE | AK59: =IF(K59=30,IF($M59="ATP",MATCH($N59&"The Final",'ATP2014'!$BA:$BA,0),MATCH($N59&"The Final",'WTA2014'!$AW:$AW,0)),"N/A") -> N/A | AL59: =IF(K59=30,INDEX(IF(M59="ATP",'ATP2014'!AQ:AQ,'WTA2014'!AM:AM),AK59),"N/A") -> N/A | AM59: Win | AN59: 2 | AO59: 2.5 | AP59: 2.5 | AQ59: 45.34101732 | AR59: JUN2014
A60: 2014-06-05 | B60: Andy Murray v Gael Monfils | C60: French Open 2014 | D60: Andy Murray (Match Winner) | E60: 4/9 | F60: Andy Murray v Gael Monfils | G60: French Open 2014 | H60: Andy Murray (Match Winner) | I60: 13 | J60: Match Winner | K60: =VLOOKUP(J60,Mapping!$A$5:$B$18,2,0) -> 1 | L60: Paris | M60: ATP | N60: Paris | O60: 5 | P60: 12 | Q60: 19 | R60: Murray | S60: Monfils | T60: 5 | U60: 12 | V60: 13 | W60: Murray | X60: N/A | Y60: N/A | Z60: N/A | AA60: ParisMurrayMonfils | AB60: =IF($M60="ATP",MATCH($AA60,'ATP2014'!$AS:$AS,0),MATCH($AA60,'WTA2014'!$AO:$AO,0)) -> 1329 | AC60: =IF($M60="ATP",MATCH($AA60,'ATP2014'!AT:AT,0),MATCH($AA60,'WTA2014'!$AP:$AP,0)) ->  | AD60: =INDEX(IF(M60="ATP",'ATP2014'!AQ:AQ,'WTA2014'!AM:AM),IF(ISNUMBER(AB60),AB60,AC60)) -> Murray | AE60: =INDEX(IF($M60="ATP",'ATP2014'!$AU:$AU,'WTA2014'!$AQ:$AQ),IF(ISNUMBER($AB60),$AB60,$AC60)) -> 1 | AF60: =INDEX(IF($M60="ATP",'ATP2014'!$AV:$AV,'WTA2014'!$AR:$AR),IF(ISNUMBER($AB60),$AB60,$AC60)) -> 6 | AG60: =INDEX(IF($M60="ATP",'ATP2014'!$AW:$AW,'WTA2014'!$AS:$AS),IF(ISNUMBER($AB60),$AB60,$AC60)) -> 40 | AH60: =INDEX(IF($M60="ATP",'ATP2014'!$AX:$AX,'WTA2014'!$AT:$AT),IF(ISNUMBER($AB60),$AB60,$AC60)) -> FALSE | AI60: =INDEX(IF($M60="ATP",'ATP2014'!$AY:$AY,'WTA2014'!$AU:$AU),IF(ISNUMBER($AB60),$AB60,$AC60)) -> Murray | AJ60: =IF(W60=AD60,TRUE,INDEX(IF($M60="ATP",'ATP2014'!$AZ:$AZ,'WTA2014'!$AV:$AV),IF(ISNUMBER($AB60),$AB60,$AC60))) -> TRUE | AK60: =IF(K60=30,IF($M60="ATP",MATCH($N60&"The Final",'ATP2014'!$BA:$BA,0),MATCH($N60&"The Final",'WTA2014'!$AW:$AW,0)),"N/A") -> N/A | AL60: =IF(K60=30,INDEX(IF(M60="ATP",'ATP2014'!AQ:AQ,'WTA2014'!AM:AM),AK60),"N/A") -> N/A | AM60: Win | AN60: 2 | AO60: 0.4444444444 | AP60: 0.4444444444 | AQ60: 45.78546176 | AR60: JUN2014
A61: 2014-06-12 | B61: N/A | C61: Wimbledon 2014 Men's Singles | D61: Novak Djokovic (Outright Winner) | E61: 2/1 | F61: N/A | G61: Wimbledon 2014 Men's Singles | H61: Novak Djokovic (Outright Winner) | I61: 16 | J61: Outright Winner | K61: =VLOOKUP(J61,Mapping!$A$5:$B$18,2,0) -> 30 | L61: London | M61: ATP | N61: London | O61: 6 | P61: 16 | Q61: 6 | R61: Djokovic | T61: 6 | U61: 15 | V61: 16 | W61: Djokovic | X61: N/A | Y61: N/A | Z61: N/A | AA61: LondonDjokovic | AB61: =IF($M61="ATP",MATCH($AA61,'ATP2014'!$AS:$AS,0),MATCH($AA61,'WTA2014'!$AO:$AO,0)) ->  | AC61: =IF($M61="ATP",MATCH($AA61,'ATP2014'!AT:AT,0),MATCH($AA61,'WTA2014'!$AP:$AP,0)) ->  | AD61: =INDEX(IF(M61="ATP",'ATP2014'!AQ:AQ,'WTA2014'!AM:AM),IF(ISNUMBER(AB61),AB61,AC61)) ->  | AE61: =INDEX(IF($M61="ATP",'ATP2014'!$AU:$AU,'WTA2014'!$AQ:$AQ),IF(ISNUMBER($AB61),$AB61,$AC61)) ->  | AF61: =INDEX(IF($M61="ATP",'ATP2014'!$AV:$AV,'WTA2014'!$AR:$AR),IF(ISNUMBER($AB61),$AB61,$AC61)) ->  | AG61: =INDEX(IF($M61="ATP",'ATP2014'!$AW:$AW,'WTA2014'!$AS:$AS),IF(ISNUMBER($AB61),$AB61,$AC61)) ->  | AH61: =INDEX(IF($M61="ATP",'ATP2014'!$AX:$AX,'WTA2014'!$AT:$AT),IF(ISNUMBER($AB61),$AB61,$AC61)) ->  | AI61: =INDEX(IF($M61="ATP",'ATP2014'!$AY:$AY,'WTA2014'!$AU:$AU),IF(ISNUMBER($AB61),$AB61,$AC61)) ->  | AJ61: =IF(W61=AD61,TRUE,INDEX(IF($M61="ATP",'ATP2014'!$AZ:$AZ,'WTA2014'!$AV:$AV),IF(ISNUMBER($AB61),$AB61,$AC61))) ->  | AK61: =IF(K61=30,IF($M61="ATP",MATCH($N61&"The Final",'ATP2014'!$BA:$BA,0),MATCH($N61&"The Final",'WTA2014'!$AW:$AW,0)),"N/A") -> 1600 | AL61: =IF(K61=30,INDEX(IF(M61="ATP",'ATP2014'!AQ:AQ,'WTA2014'!AM:AM),AK61),"N/A") -> Djokovic | AM61: Win | AN61: 2 | AO61: 2 | AP61: 2 | AQ61: 47.78546176 | AR61: JUN2014
A62: 2014-06-13 | B62: N/A | C62: Wimbledon 2014 Women's Singles | D62: Eugenie Bouchard (Outright Winner) | E62: 6/1 | F62: N/A | G62: Wimbledon 2014 Women's Singles | H62: Eugenie Bouchard (Outright Winner) | I62: 18 | J62: Outright Winner | K62: =VLOOKUP(J62,Mapping!$A$5:$B$18,2,0) -> 30 | L62: London | M62: WTA | N62: London | O62: 8 | P62: 18 | Q62: 8 | R62: Bouchard | T62: 8 | U62: 17 | V62: 18 | W62: Bouchard | X62: N/A | Y62: N/A | Z62: N/A | AA62: LondonBouchard | AB62: =IF($M62="ATP",MATCH($AA62,'ATP2014'!$AS:$AS,0),MATCH($AA62,'WTA2014'!$AO:$AO,0)) ->  | AC62: =IF($M62="ATP",MATCH($AA62,'ATP2014'!AT:AT,0),MATCH($AA62,'WTA2014'!$AP:$AP,0)) ->  | AD62: =INDEX(IF(M62="ATP",'ATP2014'!AQ:AQ,'WTA2014'!AM:AM),IF(ISNUMBER(AB62),AB62,AC62)) ->  | AE62: =INDEX(IF($M62="ATP",'ATP2014'!$AU:$AU,'WTA2014'!$AQ:$AQ),IF(ISNUMBER($AB62),$AB62,$AC62)) ->  | AF62: =INDEX(IF($M62="ATP",'ATP2014'!$AV:$AV,'WTA2014'!$AR:$AR),IF(ISNUMBER($AB62),$AB62,$AC62)) ->  | AG62: =INDEX(IF($M62="ATP",'ATP2014'!$AW:$AW,'WTA2014'!$AS:$AS),IF(ISNUMBER($AB62),$AB62,$AC62)) ->  | AH62: =INDEX(IF($M62="ATP",'ATP2014'!$AX:$AX,'WTA2014'!$AT:$AT),IF(ISNUMBER($AB62),$AB62,$AC62)) ->  | AI62: =INDEX(IF($M62="ATP",'ATP2014'!$AY:$AY,'WTA2014'!$AU:$AU),IF(ISNUMBER($AB62),$AB62,$AC62)) ->  | AJ62: =IF(W62=AD62,TRUE,INDEX(IF($M62="ATP",'ATP2014'!$AZ:$AZ,'WTA2014'!$AV:$AV),IF(ISNUMBER($AB62),$AB62,$AC62))) ->  | AK62: =IF(K62=30,IF($M62="ATP",MATCH($N62&"The Final",'ATP2014'!$BA:$BA,0),MATCH($N62&"The Final",'WTA2014'!$AW:$AW,0)),"N/A") -> 1521 | AL62: =IF(K62=30,INDEX(IF(M62="ATP",'ATP2014'!AQ:AQ,'WTA2014'!AM:AM),AK62),"N/A") -> Kvitova | AM62: Loss | AN62: 2 | AO62: 6 | AP62: -1 | AQ62: 46.78546176 | AR62: JUN2014
A63: 2014-06-14 | B63: Radek Stepanek v Feliciano Lopez | C63: ATP Queens Club | D63: Feliciano Lopez 2-1 (Set Betting) | E63: 11/4 | F63: Radek Stepanek v Feliciano Lopez | G63: ATP Queens Club | H63: Feliciano Lopez 2-1 (Set Betting) | I63: 21 | J63: Set Betting | K63: =VLOOKUP(J63,Mapping!$A$5:$B$18,2,0) -> 2 | L63: NO | M63: ATP | N63: Queens Club | O63: 6 | P63: 15 | Q63: 27 | R63: Stepanek | S63: Lopez | T63: 10 | U63: 16 | V63: 21 | W63: Lopez | X63: 1 | Y63: N/A | Z63: N/A | AA63: Queens ClubStepanekLopez | AB63: =IF($M63="ATP",MATCH($AA63,'ATP2014'!$AS:$AS,0),MATCH($AA63,'WTA2014'!$AO:$AO,0)) ->  | AC63: =IF($M63="ATP",MATCH($AA63,'ATP2014'!AT:AT,0),MATCH($AA63,'WTA2014'!$AP:$AP,0)) -> 1414 | AD63: =INDEX(IF(M63="ATP",'ATP2014'!AQ:AQ,'WTA2014'!AM:AM),IF(ISNUMBER(AB63),AB63,AC63)) -> Lopez | AE63: =INDEX(IF($M63="ATP",'ATP2014'!$AU:$AU,'WTA2014'!$AQ:$AQ),IF(ISNUMBER($AB63),$AB63,$AC63)) -> 2 | AF63: =INDEX(IF($M63="ATP",'ATP2014'!$AV:$AV,'WTA2014'!$AR:$AR),IF(ISNUMBER($AB63),$AB63,$AC63)) -> 3 | AG63: =INDEX(IF($M63="ATP",'ATP2014'!$AW:$AW,'WTA2014'!$AS:$AS),IF(ISNUMBER($AB63),$AB63,$AC63)) -> 23 | AH63: =INDEX(IF($M63="ATP",'ATP2014'!$AX:$AX,'WTA2014'!$AT:$AT),IF(ISNUMBER($AB63),$AB63,$AC63)) -> TRUE | AI63: =INDEX(IF($M63="ATP",'ATP2014'!$AY:$AY,'WTA2014'!$AU:$AU),IF(ISNUMBER($AB63),$AB63,$AC63)) -> Lopez | AJ63: =IF(W63=AD63,TRUE,INDEX(IF($M63="ATP",'ATP2014'!$AZ:$AZ,'WTA2014'!$AV:$AV),IF(ISNUMBER($AB63),$AB63,$AC63))) -> TRUE | AK63: =IF(K63=30,IF($M63="ATP",MATCH($N63&"The Final",'ATP2014'!$BA:$BA,0),MATCH($N63&"The Final",'WTA2014'!$AW:$AW,0)),"N/A") -> N/A | AL63: =IF(K63=30,INDEX(IF(M63="ATP",'ATP2014'!AQ:AQ,'WTA2014'!AM:AM),AK63),"N/A") -> N/A | AM63: Win | AN63: 3 | AO63: 2.75 | AP63: 2.75 | AQ63: 49.53546176 | AR63: JUN2014
A64: 2014-06-14 | B64: Stanislas Wawrinka v Grigor Dimitrov | C64: ATP Queens Club | D64: Grigor Dimitrov (Match Winner) | E64: 6/4 | F64: Stanislas Wawrinka v Grigor Dimitrov | G64: ATP Queens Club | H64: Grigor Dimitrov (Match Winner) | I64: 17 | J64: Match Winner | K64: =VLOOKUP(J64,Mapping!$A$5:$B$18,2,0) -> 1 | L64: NO | M64: ATP | N64: Queens Club | O64: 10 | P64: 19 | Q64: 28 | R64: Wawrinka | S64: Dimitrov | T64: 7 | U64: 16 | V64: 17 | W64: Dimitrov | X64: N/A | Y64: N/A | Z64: N/A | AA64: Queens ClubWawrinkaDimitrov | AB64: =IF($M64="ATP",MATCH($AA64,'ATP2014'!$AS:$AS,0),MATCH($AA64,'WTA2014'!$AO:$AO,0)) ->  | AC64: =IF($M64="ATP",MATCH($AA64,'ATP2014'!AT:AT,0),MATCH($AA64,'WTA2014'!$AP:$AP,0)) -> 1413 | AD64: =INDEX(IF(M64="ATP",'ATP2014'!AQ:AQ,'WTA2014'!AM:AM),IF(ISNUMBER(AB64),AB64,AC64)) -> Dimitrov | AE64: =INDEX(IF($M64="ATP",'ATP2014'!$AU:$AU,'WTA2014'!$AQ:$AQ),IF(ISNUMBER($AB64),$AB64,$AC64)) -> 2 | AF64: =INDEX(IF($M64="ATP",'ATP2014'!$AV:$AV,'WTA2014'!$AR:$AR),IF(ISNUMBER($AB64),$AB64,$AC64)) -> 6 | AG64: =INDEX(IF($M64="ATP",'ATP2014'!$AW:$AW,'WTA2014'!$AS:$AS),IF(ISNUMBER($AB64),$AB64,$AC64)) -> 18 | AH64: =INDEX(IF($M64="ATP",'ATP2014'!$AX:$AX,'WTA2014'!$AT:$AT),IF(ISNUMBER($AB64),$AB64,$AC64)) -> FALSE | AI64: =INDEX(IF($M64="ATP",'ATP2014'!$AY:$AY,'WTA2014'!$AU:$AU),IF(ISNUMBER($AB64),$AB64,$AC64)) -> Dimitrov | AJ64: =IF(W64=AD64,TRUE,INDEX(IF($M64="ATP",'ATP2014'!$AZ:$AZ,'WTA2014'!$AV:$AV),IF(ISNUMBER($AB64),$AB64,$AC64))) -> TRUE | AK64: =IF(K64=30,IF($M64="ATP",MATCH($N64&"The Final",'ATP2014'!$BA:$BA,0),MATCH($N64&"The Final",'WTA2014'!$AW:$AW,0)),"N/A") -> N/A | AL64: =IF(K64=30,INDEX(IF(M64="ATP",'ATP2014'!AQ:AQ,'WTA2014'!AM:AM),AK64),"N/A") -> N/A | AM64: Win | AN64: 2 | AO64: 1.5 | AP64: 1.5 | AQ64: 51.03546176 | AR64: JUN2014
A65: 2014-06-15 | B65: Andrey Golubev v Bernard Tomic | C65: ATP Eastbourne | D65: Golubev (To Win a Set Yes) | E65: 8/11 | F65: Andrey Golubev v Bernard Tomic | G65: ATP Eastbourne | H65: Golubev (To Win a Set Yes) | I65: 9 | J65: To Win a Set Yes | K65: =VLOOKUP(J65,Mapping!$A$5:$B$18,2,0) -> 11 | L65: NO | M65: ATP | N65: Eastbourne | O65: 7 | P65: 15 | Q65: 25 | R65: Golubev | S65: Tomic | T65: 8 | U65: 8 | V65: 9 | W65: Golubev | X65: N/A | Y65: N/A | Z65: N/A | AA65: EastbourneGolubevTomic | AB65: =IF($M65="ATP",MATCH($AA65,'ATP2014'!$AS:$AS,0),MATCH($AA65,'WTA2014'!$AO:$AO,0)) ->  | AC65: =IF($M65="ATP",MATCH($AA65,'ATP2014'!AT:AT,0),MATCH($AA65,'WTA2014'!$AP:$AP,0)) -> 1421 | AD65: =INDEX(IF(M65="ATP",'ATP2014'!AQ:AQ,'WTA2014'!AM:AM),IF(ISNUMBER(AB65),AB65,AC65)) -> Tomic | AE65: =INDEX(IF($M65="ATP",'ATP2014'!$AU:$AU,'WTA2014'!$AQ:$AQ),IF(ISNUMBER($AB65),$AB65,$AC65)) -> 2 | AF65: =INDEX(IF($M65="ATP",'ATP2014'!$AV:$AV,'WTA2014'!$AR:$AR),IF(ISNUMBER($AB65),$AB65,$AC65)) -> 4 | AG65: =INDEX(IF($M65="ATP",'ATP2014'!$AW:$AW,'WTA2014'!$AS:$AS),IF(ISNUMBER($AB65),$AB65,$AC65)) -> 20 | AH65: =INDEX(IF($M65="ATP",'ATP2014'!$AX:$AX,'WTA2014'!$AT:$AT),IF(ISNUMBER($AB65),$AB65,$AC65)) -> FALSE | AI65: =INDEX(IF($M65="ATP",'ATP2014'!$AY:$AY,'WTA2014'!$AU:$AU),IF(ISNUMBER($AB65),$AB65,$AC65)) -> Tomic | AJ65: =IF(W65=AD65,TRUE,INDEX(IF($M65="ATP",'ATP2014'!$AZ:$AZ,'WTA2014'!$AV:$AV),IF(ISNUMBER($AB65),$AB65,$AC65))) -> FALSE | AK65: =IF(K65=30,IF($M65="ATP",MATCH($N65&"The Final",'ATP2014'!$BA:$BA,0),MATCH($N65&"The Final",'WTA2014'!$AW:$AW,0)),"N/A") -> N/A | AL65: =IF(K65=30,INDEX(IF(M65="ATP",'ATP2014'!AQ:AQ,'WTA2014'!AM:AM),AK65),"N/A") -> N/A | AM65: Loss | AN65: 2 | AO65: 0.7272727273 | AP65: -1 | AQ65: 50.03546176 | AR65: JUN2014
A66: 2014-06-16 | B66: Donald Young v James Ward | C66: ATP Eastbourne | D66: James Ward (Match Winner) | E66: 6/5 | F66: Donald Young v James Ward | G66: ATP Eastbourne | H66: James Ward (Match Winner) | I66: 12 | J66: Match Winner | K66: =VLOOKUP(J66,Mapping!$A$5:$B$18,2,0) -> 1 | L66: =IF(IFERROR(FIND("French",$C66),0),"Paris",IF(IFERROR(FIND("Wimbledon",$C66),0),"London",IF(IFERROR(FIND("US",$C66),0),"New York",IF(IFERROR(FIND("Australian",$C66),0),"Melbourne","NO")))) -> NO | M66: =IF(L66="NO",IF(IFERROR(FIND("ATP",C66),0),"ATP",IF(IFERROR(FIND("WTA",C66),0),"WTA","Challenger")),IF(IFERROR(FIND("Women",C66),0),"WTA","ATP")) -> ATP | N66: Eastbourne | O66: 7 | P66: 13 | Q66: 21 | R66: =IF(K66<>30,IF(O66<>P66,MID(F66,O66+1,P66-O66-1),LEFT(F66,P66-1)),IF(P66-O66>2,MID(H66,O66+1,P66-O66-1),LEFT(H66,O66))) -> Young | S66: =IF($K66<>30,IF($O66<>$P66,RIGHT(F66,LEN($F66)-$Q66),RIGHT($F66,LEN($F66)-$Q66-2)),"") -> Ward | T66: 6 | U66: =IF(OR($K66=1,$K66=11,$K66=13,$K66=30),IF($V66-$T66>2,FIND(" ",$H66,$T66+1),$V66-1),IF(OR($K66=2,$K66=3,$K66=4),IF(OR(ISNUMBER(1*MID($H66,$T66+1,1)),MID($H66,$T66+1,1)="-",MID($H66,$T66+1,1)="+"),$T66,FIND(" ",$H66,$T66+1)),IF(OR($K66=5,,$K66=15),$T66,"other"))) -> 11 | V66: 12 | W66: =IF(K66=15,"N/A",IF(T66=U66,LEFT(H66,U66-1),MID(H66,T66+1,U66-T66-1))) -> Ward | X66: =IF(K66=2,MID(H66,U66+1,1)*1-MID(H66,U66+3,1)*1,IF(K66=3,MID(H66,U66+1,V66-U66-1)*1,"N/A")) -> N/A | Y66: =IF($K66=4,MID($H66,$U66+1,$V66-$U66-1)*1,"N/A") -> N/A | Z66: =IF($K66=5,MID($H66,$U66+1,$V66-$U66-1)*1,"N/A") -> N/A | AA66: EastbourneYoungWard | AB66: =IF($M66="ATP",MATCH($AA66,'ATP2014'!$AS:$AS,0),MATCH($AA66,'WTA2014'!$AO:$AO,0)) -> 1427 | AC66: =IF($M66="ATP",MATCH($AA66,'ATP2014'!AT:AT,0),MATCH($AA66,'WTA2014'!$AP:$AP,0)) ->  | AD66: =INDEX(IF(M66="ATP",'ATP2014'!AQ:AQ,'WTA2014'!AM:AM),IF(ISNUMBER(AB66),AB66,AC66)) -> Young | AE66: =INDEX(IF($M66="ATP",'ATP2014'!$AU:$AU,'WTA2014'!$AQ:$AQ),IF(ISNUMBER($AB66),$AB66,$AC66)) -> 2 | AF66: =INDEX(IF($M66="ATP",'ATP2014'!$AV:$AV,'WTA2014'!$AR:$AR),IF(ISNUMBER($AB66),$AB66,$AC66)) -> 7 | AG66: =INDEX(IF($M66="ATP",'ATP2014'!$AW:$AW,'WTA2014'!$AS:$AS),IF(ISNUMBER($AB66),$AB66,$AC66)) -> 17 | AH66: =INDEX(IF($M66="ATP",'ATP2014'!$AX:$AX,'WTA2014'!$AT:$AT),IF(ISNUMBER($AB66),$AB66,$AC66)) -> FALSE | AI66: =INDEX(IF($M66="ATP",'ATP2014'!$AY:$AY,'WTA2014'!$AU:$AU),IF(ISNUMBER($AB66),$AB66,$AC66)) -> Young | AJ66: =IF(W66=AD66,TRUE,INDEX(IF($M66="ATP",'ATP2014'!$AZ:$AZ,'WTA2014'!$AV:$AV),IF(ISNUMBER($AB66),$AB66,$AC66))) -> FALSE | AK66: =IF(K66=30,IF($M66="ATP",MATCH($N66&"The Final",'ATP2014'!$BA:$BA,0),MATCH($N66&"The Final",'WTA2014'!$AW:$AW,0)),"N/A") -> N/A | AL66: =IF(K66=30,INDEX(IF(M66="ATP",'ATP2014'!AQ:AQ,'WTA2014'!AM:AM),AK66),"N/A") -> N/A | AM66: =IF(K66=1,IF(W66=AD66,"Win","Loss"),IF(K66=2,IF(W66<>AD66,"Loss",IF(K66<AE66,"Loss","Win")),IF(K66=3,IF(W66<>AD66,"Loss",IF(AE66+X66<0,"Loss","Win")),IF(K66=4,IF(AF66+Y66>0,"Win",IF(AF66+Y66<0,"Loss","Void")),IF(K66=5,IF(W66="Over",IF(AG66>Z66,"Win",IF(AG66<Z66,"Loss","Void")),IF(AG66<Z66,"Win",IF(AG66>Z66,"Loss","Void"))),IF(K66=15,IF(AH66=TRUE,"Win","Loss"),IF(K66=13,IF(W66=AI66,"Win","Loss"),IF(K66=11,IF(AJ66=TRUE,"Win","Loss"),IF(K66=30,IF(W66=AL66,"Win","Loss"),"Other"))))))))) -> Loss | AN66: 2 | AO66: =VALUE(LEFT(E66,AN66-1))/VALUE(RIGHT(E66,LEN(E66)-AN66))*1 -> 1.2 | AP66: -1 | AQ66: 49.03546176 | AR66: JUN2014
A67: 2014-06-19 | B67: Richard Gasquet v Martin Klizan | C67: ATP Eastbourne | D67: Martin Klizan (Match Winner) | E67: 2/1 | F67: Richard Gasquet v Martin Klizan | G67: =TRIM(C67) -> ATP Eastbourne | H67: =TRIM(D67) -> Martin Klizan (Match Winner) | I67: =FIND("(",H67) -> 15 | J67: =MID(H67,I67+1,LEN(H67)-I67-1) -> Match Winner | K67: =VLOOKUP(J67,Mapping!$A$5:$B$18,2,0) -> 1 | L67: NO | M67: ATP | N67: =IF(L67="NO",IF(M67="Challenger",RIGHT(G67,LEN(G67)-11),IF(IFERROR(FIND("2014",G67),0),MID(G67,5,FIND("2014",G67)-6),MID(G67,5,LEN(G67)-4))),L67) -> Eastbourne | O67: 8 | P67: 16 | Q67: 25 | R67: Gasquet | S67: Klizan | T67: 7 | U67: 14 | V67: 15 | W67: Klizan | X67: N/A | Y67: N/A | Z67: N/A | AA67: EastbourneGasquetKlizan | AB67: =IF($M67="ATP",MATCH($AA67,'ATP2014'!$AS:$AS,0),MATCH($AA67,'WTA2014'!$AO:$AO,0)) -> 1436 | AC67: =IF($M67="ATP",MATCH($AA67,'ATP2014'!AT:AT,0),MATCH($AA67,'WTA2014'!$AP:$AP,0)) ->  | AD67: =INDEX(IF(M67="ATP",'ATP2014'!AQ:AQ,'WTA2014'!AM:AM),IF(ISNUMBER(AB67),AB67,AC67)) -> Gasquet | AE67: =INDEX(IF($M67="ATP",'ATP2014'!$AU:$AU,'WTA2014'!$AQ:$AQ),IF(ISNUMBER($AB67),$AB67,$AC67)) -> 2 | AF67: =INDEX(IF($M67="ATP",'ATP2014'!$AV:$AV,'WTA2014'!$AR:$AR),IF(ISNUMBER($AB67),$AB67,$AC67)) -> 5 | AG67: =INDEX(IF($M67="ATP",'ATP2014'!$AW:$AW,'WTA2014'!$AS:$AS),IF(ISNUMBER($AB67),$AB67,$AC67)) -> 19 | AH67: =INDEX(IF($M67="ATP",'ATP2014'!$AX:$AX,'WTA2014'!$AT:$AT),IF(ISNUMBER($AB67),$AB67,$AC67)) -> FALSE | AI67: =INDEX(IF($M67="ATP",'ATP2014'!$AY:$AY,'WTA2014'!$AU:$AU),IF(ISNUMBER($AB67),$AB67,$AC67)) -> Gasquet | AJ67: =IF(W67=AD67,TRUE,INDEX(IF($M67="ATP",'ATP2014'!$AZ:$AZ,'WTA2014'!$AV:$AV),IF(ISNUMBER($AB67),$AB67,$AC67))) -> FALSE | AK67: =IF(K67=30,IF($M67="ATP",MATCH($N67&"The Final",'ATP2014'!$BA:$BA,0),MATCH($N67&"The Final",'WTA2014'!$AW:$AW,0)),"N/A") -> N/A | AL67: =IF(K67=30,INDEX(IF(M67="ATP",'ATP2014'!AQ:AQ,'WTA2014'!AM:AM),AK67),"N/A") -> N/A | AM67: Loss | AN67: =FIND("/",E67) -> 2 | AO67: 2 | AP67: =IF(AM67="Win",AO67,IF(AM67="Loss",-1,0)) -> -1 | AQ67: 48.03546176 | AR67: =CHOOSE(MONTH(A67),"JAN","FEB","MAR","APR","MAY","JUN","JUL","AUG","SEP","OCT","NOV","DEC")&YEAR(A67) -> JUN2014
A68: 2014-06-20 | B68: Roberto Bautista Agut v Benjamin Becker | C68: ATP 's-Hertogenbosch | D68: Bautista Agut (Match Winner) | E68: 4/7 | F68: Roberto Bautista Agut v Benjamin Becker | G68: ATP 's-Hertogenbosch | H68: Bautista Agut (Match Winner) | I68: 15 | J68: Match Winner | K68: =VLOOKUP(J68,Mapping!$A$5:$B$18,2,0) -> 1 | L68: NO | M68: ATP | N68: 's-Hertogenbosch | O68: 8 | P68: 22 | Q68: 33 | R68: Bautista | S68: Becker | T68: =FIND(" ",H68) -> 9 | U68: 14 | V68: =FIND("(",H68) -> 15 | W68: Agut | X68: N/A | Y68: N/A | Z68: N/A | AA68: =N68&R68&S68 -> 's-HertogenboschBautistaBecker | AB68: =IF($M68="ATP",MATCH($AA68,'ATP2014'!$AS:$AS,0),MATCH($AA68,'WTA2014'!$AO:$AO,0)) -> 1473 | AC68: =IF($M68="ATP",MATCH($AA68,'ATP2014'!AT:AT,0),MATCH($AA68,'WTA2014'!$AP:$AP,0)) ->  | AD68: =INDEX(IF(M68="ATP",'ATP2014'!AQ:AQ,'WTA2014'!AM:AM),IF(ISNUMBER(AB68),AB68,AC68)) -> Bautista | AE68: =INDEX(IF($M68="ATP",'ATP2014'!$AU:$AU,'WTA2014'!$AQ:$AQ),IF(ISNUMBER($AB68),$AB68,$AC68)) -> 1 | AF68: =INDEX(IF($M68="ATP",'ATP2014'!$AV:$AV,'WTA2014'!$AR:$AR),IF(ISNUMBER($AB68),$AB68,$AC68)) -> -1 | AG68: =INDEX(IF($M68="ATP",'ATP2014'!$AW:$AW,'WTA2014'!$AS:$AS),IF(ISNUMBER($AB68),$AB68,$AC68)) -> 31 | AH68: =INDEX(IF($M68="ATP",'ATP2014'!$AX:$AX,'WTA2014'!$AT:$AT),IF(ISNUMBER($AB68),$AB68,$AC68)) -> TRUE | AI68: =INDEX(IF($M68="ATP",'ATP2014'!$AY:$AY,'WTA2014'!$AU:$AU),IF(ISNUMBER($AB68),$AB68,$AC68)) -> Becker | AJ68: =IF(W68=AD68,TRUE,INDEX(IF($M68="ATP",'ATP2014'!$AZ:$AZ,'WTA2014'!$AV:$AV),IF(ISNUMBER($AB68),$AB68,$AC68))) -> TRUE | AK68: =IF(K68=30,IF($M68="ATP",MATCH($N68&"The Final",'ATP2014'!$BA:$BA,0),MATCH($N68&"The Final",'WTA2014'!$AW:$AW,0)),"N/A") -> N/A | AL68: =IF(K68=30,INDEX(IF(M68="ATP",'ATP2014'!AQ:AQ,'WTA2014'!AM:AM),AK68),"N/A") -> N/A | AM68: Loss | AN68: 2 | AO68: 0.5714285714 | AP68: -1 | AQ68: =AP68+AQ67 -> 47.03546176 | AR68: JUN2014
A69: 2014-06-21 | B69: Feliciano Lopez v Richard Gasquet | C69: ATP Eastbourne | D69: Feliciano Lopez 2-1 (Set Betting) | E69: 4/1 | F69: Feliciano Lopez v Richard Gasquet | G69: ATP Eastbourne | H69: Feliciano Lopez 2-1 (Set Betting) | I69: 21 | J69: Set Betting | K69: =VLOOKUP(J69,Mapping!$A$5:$B$18,2,0) -> 2 | L69: NO | M69: ATP | N69: Eastbourne | O69: 10 | P69: 16 | Q69: 26 | R69: Lopez | S69: Gasquet | T69: 10 | U69: 16 | V69: 21 | W69: Lopez | X69: 1 | Y69: N/A | Z69: N/A | AA69: EastbourneLopezGasquet | AB69: =IF($M69="ATP",MATCH($AA69,'ATP2014'!$AS:$AS,0),MATCH($AA69,'WTA2014'!$AO:$AO,0)) -> 1442 | AC69: =IF($M69="ATP",MATCH($AA69,'ATP2014'!AT:AT,0),MATCH($AA69,'WTA2014'!$AP:$AP,0)) ->  | AD69: =INDEX(IF(M69="ATP",'ATP2014'!AQ:AQ,'WTA2014'!AM:AM),IF(ISNUMBER(AB69),AB69,AC69)) -> Lopez | AE69: =INDEX(IF($M69="ATP",'ATP2014'!$AU:$AU,'WTA2014'!$AQ:$AQ),IF(ISNUMBER($AB69),$AB69,$AC69)) -> 1 | AF69: =INDEX(IF($M69="ATP",'ATP2014'!$AV:$AV,'WTA2014'!$AR:$AR),IF(ISNUMBER($AB69),$AB69,$AC69)) -> 4 | AG69: =INDEX(IF($M69="ATP",'ATP2014'!$AW:$AW,'WTA2014'!$AS:$AS),IF(ISNUMBER($AB69),$AB69,$AC69)) -> 34 | AH69: =INDEX(IF($M69="ATP",'ATP2014'!$AX:$AX,'WTA2014'!$AT:$AT),IF(ISNUMBER($AB69),$AB69,$AC69)) -> TRUE | AI69: =INDEX(IF($M69="ATP",'ATP2014'!$AY:$AY,'WTA2014'!$AU:$AU),IF(ISNUMBER($AB69),$AB69,$AC69)) -> Lopez | AJ69: =IF(W69=AD69,TRUE,INDEX(IF($M69="ATP",'ATP2014'!$AZ:$AZ,'WTA2014'!$AV:$AV),IF(ISNUMBER($AB69),$AB69,$AC69))) -> TRUE | AK69: =IF(K69=30,IF($M69="ATP",MATCH($N69&"The Final",'ATP2014'!$BA:$BA,0),MATCH($N69&"The Final",'WTA2014'!$AW:$AW,0)),"N/A") -> N/A | AL69: =IF(K69=30,INDEX(IF(M69="ATP",'ATP2014'!AQ:AQ,'WTA2014'!AM:AM),AK69),"N/A") -> N/A | AM69: Win | AN69: 2 | AO69: 4 | AP69: 4 | AQ69: 51.03546176 | AR69: JUN2014
A70: 2014-06-25 | B70: Petra Kvitova v Mona Barthel | C70: Wimbledon 2014 Women's Singles | D70: Petran Kvitova 2-1 (Set Betting) | E70: 11/4 | F70: Petra Kvitova v Mona Barthel | G70: Wimbledon 2014 Women's Singles | H70: Petran Kvitova 2-1 (Set Betting) | I70: 20 | J70: Set Betting | K70: =VLOOKUP(J70,Mapping!$A$5:$B$18,2,0) -> 2 | L70: London | M70: WTA | N70: London | O70: 6 | P70: 14 | Q70: 21 | R70: Kvitova | S70: Barthel | T70: 7 | U70: 15 | V70: 20 | W70: Kvitova | X70: 1 | Y70: N/A | Z70: N/A | AA70: LondonKvitovaBarthel | AB70: =IF($M70="ATP",MATCH($AA70,'ATP2014'!$AS:$AS,0),MATCH($AA70,'WTA2014'!$AO:$AO,0)) -> 1464 | AC70: =IF($M70="ATP",MATCH($AA70,'ATP2014'!AT:AT,0),MATCH($AA70,'WTA2014'!$AP:$AP,0)) ->  | AD70: =INDEX(IF(M70="ATP",'ATP2014'!AQ:AQ,'WTA2014'!AM:AM),IF(ISNUMBER(AB70),AB70,AC70)) -> Kvitova | AE70: =INDEX(IF($M70="ATP",'ATP2014'!$AU:$AU,'WTA2014'!$AQ:$AQ),IF(ISNUMBER($AB70),$AB70,$AC70)) -> 2 | AF70: =INDEX(IF($M70="ATP",'ATP2014'!$AV:$AV,'WTA2014'!$AR:$AR),IF(ISNUMBER($AB70),$AB70,$AC70)) -> 10 | AG70: =INDEX(IF($M70="ATP",'ATP2014'!$AW:$AW,'WTA2014'!$AS:$AS),IF(ISNUMBER($AB70),$AB70,$AC70)) -> 14 | AH70: =INDEX(IF($M70="ATP",'ATP2014'!$AX:$AX,'WTA2014'!$AT:$AT),IF(ISNUMBER($AB70),$AB70,$AC70)) -> FALSE | AI70: =INDEX(IF($M70="ATP",'ATP2014'!$AY:$AY,'WTA2014'!$AU:$AU),IF(ISNUMBER($AB70),$AB70,$AC70)) -> Kvitova | AJ70: =IF(W70=AD70,TRUE,INDEX(IF($M70="ATP",'ATP2014'!$AZ:$AZ,'WTA2014'!$AV:$AV),IF(ISNUMBER($AB70),$AB70,$AC70))) -> TRUE | AK70: =IF(K70=30,IF($M70="ATP",MATCH($N70&"The Final",'ATP2014'!$BA:$BA,0),MATCH($N70&"The Final",'WTA2014'!$AW:$AW,0)),"N/A") -> N/A | AL70: =IF(K70=30,INDEX(IF(M70="ATP",'ATP2014'!AQ:AQ,'WTA2014'!AM:AM),AK70),"N/A") -> N/A | AM70: Win | AN70: 3 | AO70: 2.75 | AP70: 2.75 | AQ70: 53.78546176 | AR70: JUN2014
A71: 2014-06-26 | B71: Rafael Nadal v Lukas Rosol | C71: Wimbledon 2014 | D71: Rafael Nadal 3-1 (Set Betting) | E71: 11/4 | F71: =TRIM(B71) -> Rafael Nadal v Lukas Rosol | G71: Wimbledon 2014 | H71: Rafael Nadal 3-1 (Set Betting) | I71: 18 | J71: Set Betting | K71: =VLOOKUP(J71,Mapping!$A$5:$B$18,2,0) -> 2 | L71: London | M71: ATP | N71: London | O71: 7 | P71: 13 | Q71: 21 | R71: Nadal | S71: Rosol | T71: 7 | U71: 13 | V71: 18 | W71: Nadal | X71: 2 | Y71: N/A | Z71: N/A | AA71: LondonNadalRosol | AB71: =IF($M71="ATP",MATCH($AA71,'ATP2014'!$AS:$AS,0),MATCH($AA71,'WTA2014'!$AO:$AO,0)) -> 1560 | AC71: =IF($M71="ATP",MATCH($AA71,'ATP2014'!AT:AT,0),MATCH($AA71,'WTA2014'!$AP:$AP,0)) ->  | AD71: =INDEX(IF(M71="ATP",'ATP2014'!AQ:AQ,'WTA2014'!AM:AM),IF(ISNUMBER(AB71),AB71,AC71)) -> Nadal | AE71: =INDEX(IF($M71="ATP",'ATP2014'!$AU:$AU,'WTA2014'!$AQ:$AQ),IF(ISNUMBER($AB71),$AB71,$AC71)) -> 2 | AF71: =INDEX(IF($M71="ATP",'ATP2014'!$AV:$AV,'WTA2014'!$AR:$AR),IF(ISNUMBER($AB71),$AB71,$AC71)) -> 3 | AG71: =INDEX(IF($M71="ATP",'ATP2014'!$AW:$AW,'WTA2014'!$AS:$AS),IF(ISNUMBER($AB71),$AB71,$AC71)) -> 43 | AH71: =INDEX(IF($M71="ATP",'ATP2014'!$AX:$AX,'WTA2014'!$AT:$AT),IF(ISNUMBER($AB71),$AB71,$AC71)) -> TRUE | AI71: =INDEX(IF($M71="ATP",'ATP2014'!$AY:$AY,'WTA2014'!$AU:$AU),IF(ISNUMBER($AB71),$AB71,$AC71)) -> Rosol | AJ71: =IF(W71=AD71,TRUE,INDEX(IF($M71="ATP",'ATP2014'!$AZ:$AZ,'WTA2014'!$AV:$AV),IF(ISNUMBER($AB71),$AB71,$AC71))) -> TRUE | AK71: =IF(K71=30,IF($M71="ATP",MATCH($N71&"The Final",'ATP2014'!$BA:$BA,0),MATCH($N71&"The Final",'WTA2014'!$AW:$AW,0)),"N/A") -> N/A | AL71: =IF(K71=30,INDEX(IF(M71="ATP",'ATP2014'!AQ:AQ,'WTA2014'!AM:AM),AK71),"N/A") -> N/A | AM71: Win | AN71: 3 | AO71: 2.75 | AP71: 2.75 | AQ71: 56.53546176 | AR71: JUN2014
A72: 2014-06-29 | B72: Tommy Robredo v Roger Federer | C72: Wimbledon 2014 | D72: Roger Federer 3-0 (Set Betting) | E72: 4/9 | F72: Tommy Robredo v Roger Federer | G72: Wimbledon 2014 | H72: Roger Federer 3-0 (Set Betting) | I72: 19 | J72: Set Betting | K72: =VLOOKUP(J72,Mapping!$A$5:$B$18,2,0) -> 2 | L72: London | M72: ATP | N72: London | O72: 6 | P72: 14 | Q72: 22 | R72: Robredo | S72: Federer | T72: 6 | U72: 14 | V72: 19 | W72: Federer | X72: 3 | Y72: N/A | Z72: N/A | AA72: LondonRobredoFederer | AB72: =IF($M72="ATP",MATCH($AA72,'ATP2014'!$AS:$AS,0),MATCH($AA72,'WTA2014'!$AO:$AO,0)) ->  | AC72: =IF($M72="ATP",MATCH($AA72,'ATP2014'!AT:AT,0),MATCH($AA72,'WTA2014'!$AP:$AP,0)) -> 1591 | AD72: =INDEX(IF(M72="ATP",'ATP2014'!AQ:AQ,'WTA2014'!AM:AM),IF(ISNUMBER(AB72),AB72,AC72)) -> Federer | AE72: =INDEX(IF($M72="ATP",'ATP2014'!$AU:$AU,'WTA2014'!$AQ:$AQ),IF(ISNUMBER($AB72),$AB72,$AC72)) -> 3 | AF72: =INDEX(IF($M72="ATP",'ATP2014'!$AV:$AV,'WTA2014'!$AR:$AR),IF(ISNUMBER($AB72),$AB72,$AC72)) -> 9 | AG72: =INDEX(IF($M72="ATP",'ATP2014'!$AW:$AW,'WTA2014'!$AS:$AS),IF(ISNUMBER($AB72),$AB72,$AC72)) -> 27 | AH72: =INDEX(IF($M72="ATP",'ATP2014'!$AX:$AX,'WTA2014'!$AT:$AT),IF(ISNUMBER($AB72),$AB72,$AC72)) -> FALSE | AI72: =INDEX(IF($M72="ATP",'ATP2014'!$AY:$AY,'WTA2014'!$AU:$AU),IF(ISNUMBER($AB72),$AB72,$AC72)) -> Federer | AJ72: =IF(W72=AD72,TRUE,INDEX(IF($M72="ATP",'ATP2014'!$AZ:$AZ,'WTA2014'!$AV:$AV),IF(ISNUMBER($AB72),$AB72,$AC72))) -> TRUE | AK72: =IF(K72=30,IF($M72="ATP",MATCH($N72&"The Final",'ATP2014'!$BA:$BA,0),MATCH($N72&"The Final",'WTA2014'!$AW:$AW,0)),"N/A") -> N/A | AL72: =IF(K72=30,INDEX(IF(M72="ATP",'ATP2014'!AQ:AQ,'WTA2014'!AM:AM),AK72),"N/A") -> N/A | AM72: Loss | AN72: 2 | AO72: 0.4444444444 | AP72: -1 | AQ72: 55.53546176 | AR72: JUN2014
A73: 2014-06-30 | B73: Stanislas Wawrinka v Feliciano Lopez | C73: Wimbledon 2014 | D73: Wawrinka 3-1 (Set Betting) | E73: 10/3 | F73: Stanislas Wawrinka v Feliciano Lopez | G73: Wimbledon 2014 | H73: Wawrinka 3-1 (Set Betting) | I73: 14 | J73: Set Betting | K73: =VLOOKUP(J73,Mapping!$A$5:$B$18,2,0) -> 2 | L73: London | M73: ATP | N73: London | O73: 10 | P73: 19 | Q73: 31 | R73: Wawrinka | S73: Lopez | T73: 9 | U73: 9 | V73: 14 | W73: Wawrinka | X73: 2 | Y73: N/A | Z73: N/A | AA73: LondonWawrinkaLopez | AB73: =IF($M73="ATP",MATCH($AA73,'ATP2014'!$AS:$AS,0),MATCH($AA73,'WTA2014'!$AO:$AO,0)) -> 1590 | AC73: =IF($M73="ATP",MATCH($AA73,'ATP2014'!AT:AT,0),MATCH($AA73,'WTA2014'!$AP:$AP,0)) ->  | AD73: =INDEX(IF(M73="ATP",'ATP2014'!AQ:AQ,'WTA2014'!AM:AM),IF(ISNUMBER(AB73),AB73,AC73)) -> Wawrinka | AE73: =INDEX(IF($M73="ATP",'ATP2014'!$AU:$AU,'WTA2014'!$AQ:$AQ),IF(ISNUMBER($AB73),$AB73,$AC73)) -> 3 | AF73: =INDEX(IF($M73="ATP",'ATP2014'!$AV:$AV,'WTA2014'!$AR:$AR),IF(ISNUMBER($AB73),$AB73,$AC73)) -> 5 | AG73: =INDEX(IF($M73="ATP",'ATP2014'!$AW:$AW,'WTA2014'!$AS:$AS),IF(ISNUMBER($AB73),$AB73,$AC73)) -> 35 | AH73: =INDEX(IF($M73="ATP",'ATP2014'!$AX:$AX,'WTA2014'!$AT:$AT),IF(ISNUMBER($AB73),$AB73,$AC73)) -> TRUE | AI73: =INDEX(IF($M73="ATP",'ATP2014'!$AY:$AY,'WTA2014'!$AU:$AU),IF(ISNUMBER($AB73),$AB73,$AC73)) -> Wawrinka | AJ73: =IF(W73=AD73,TRUE,INDEX(IF($M73="ATP",'ATP2014'!$AZ:$AZ,'WTA2014'!$AV:$AV),IF(ISNUMBER($AB73),$AB73,$AC73))) -> TRUE | AK73: =IF(K73=30,IF($M73="ATP",MATCH($N73&"The Final",'ATP2014'!$BA:$BA,0),MATCH($N73&"The Final",'WTA2014'!$AW:$AW,0)),"N/A") -> N/A | AL73: =IF(K73=30,INDEX(IF(M73="ATP",'ATP2014'!AQ:AQ,'WTA2014'!AM:AM),AK73),"N/A") -> N/A | AM73: Loss | AN73: 3 | AO73: 3.333333333 | AP73: -1 | AQ73: 54.53546176 | AR73: JUN2014
A74: 2014-07-06 | B74: N/A | C74: ATP Bastad | D74: Pablo Cuevas (Outright Winner) | E74: 14/1 | F74: N/A | G74: ATP Bastad | H74: Pablo Cuevas (Outright Winner) | I74: 14 | J74: Outright Winner | K74: =VLOOKUP(J74,Mapping!$A$5:$B$18,2,0) -> 30 | L74: NO | M74: ATP | N74: Bastad | O74: 6 | P74: 14 | Q74: 6 | R74: Cuevas | T74: 6 | U74: 13 | V74: 14 | W74: Cuevas | X74: N/A | Y74: N/A | Z74: N/A | AA74: BastadCuevas | AB74: =IF($M74="ATP",MATCH($AA74,'ATP2014'!$AS:$AS,0),MATCH($AA74,'WTA2014'!$AO:$AO,0)) ->  | AC74: =IF($M74="ATP",MATCH($AA74,'ATP2014'!AT:AT,0),MATCH($AA74,'WTA2014'!$AP:$AP,0)) ->  | AD74: =INDEX(IF(M74="ATP",'ATP2014'!AQ:AQ,'WTA2014'!AM:AM),IF(ISNUMBER(AB74),AB74,AC74)) ->  | AE74: =INDEX(IF($M74="ATP",'ATP2014'!$AU:$AU,'WTA2014'!$AQ:$AQ),IF(ISNUMBER($AB74),$AB74,$AC74)) ->  | AF74: =INDEX(IF($M74="ATP",'ATP2014'!$AV:$AV,'WTA2014'!$AR:$AR),IF(ISNUMBER($AB74),$AB74,$AC74)) ->  | AG74: =INDEX(IF($M74="ATP",'ATP2014'!$AW:$AW,'WTA2014'!$AS:$AS),IF(ISNUMBER($AB74),$AB74,$AC74)) ->  | AH74: =INDEX(IF($M74="ATP",'ATP2014'!$AX:$AX,'WTA2014'!$AT:$AT),IF(ISNUMBER($AB74),$AB74,$AC74)) ->  | AI74: =INDEX(IF($M74="ATP",'ATP2014'!$AY:$AY,'WTA2014'!$AU:$AU),IF(ISNUMBER($AB74),$AB74,$AC74)) ->  | AJ74: =IF(W74=AD74,TRUE,INDEX(IF($M74="ATP",'ATP2014'!$AZ:$AZ,'WTA2014'!$AV:$AV),IF(ISNUMBER($AB74),$AB74,$AC74))) ->  | AK74: =IF(K74=30,IF($M74="ATP",MATCH($N74&"The Final",'ATP2014'!$BA:$BA,0),MATCH($N74&"The Final",'WTA2014'!$AW:$AW,0)),"N/A") -> 1627 | AL74: =IF(K74=30,INDEX(IF(M74="ATP",'ATP2014'!AQ:AQ,'WTA2014'!AM:AM),AK74),"N/A") -> Cuevas | AM74: Win | AN74: 3 | AO74: 14 | AP74: 14 | AQ74: 68.53546176 | AR74: JUL2014
A75: 2014-07-20 | B75: N/A | C75: ATP Gstaad | D75: Garcia-Lopez (Outright Winner) | E75: 9/1 | F75: N/A | G75: ATP Gstaad | H75: Garcia-Lopez (Outright Winner) | I75: 14 | J75: Outright Winner | K75: =VLOOKUP(J75,Mapping!$A$5:$B$18,2,0) -> 30 | L75: NO | M75: ATP | N75: Gstaad | O75: =IF(K75<>30,FIND(" ",F75),FIND(" ",H75)) -> 13 | P75: =IF(K75<>30,FIND(" v ",F75),FIND("(",H75)) -> 14 | Q75: =IF(K75<>30,IF(O75<>P75,FIND(" ",F75,P75+3),O75),O75) -> 13 | R75: Garcia-Lopez | T75: 13 | U75: 13 | V75: 14 | W75: Garcia-Lopez | X75: N/A | Y75: N/A | Z75: N/A | AA75: GstaadGarcia-Lopez | AB75: =IF($M75="ATP",MATCH($AA75,'ATP2014'!$AS:$AS,0),MATCH($AA75,'WTA2014'!$AO:$AO,0)) ->  | AC75: =IF($M75="ATP",MATCH($AA75,'ATP2014'!AT:AT,0),MATCH($AA75,'WTA2014'!$AP:$AP,0)) ->  | AD75: =INDEX(IF(M75="ATP",'ATP2014'!AQ:AQ,'WTA2014'!AM:AM),IF(ISNUMBER(AB75),AB75,AC75)) ->  | AE75: =INDEX(IF($M75="ATP",'ATP2014'!$AU:$AU,'WTA2014'!$AQ:$AQ),IF(ISNUMBER($AB75),$AB75,$AC75)) ->  | AF75: =INDEX(IF($M75="ATP",'ATP2014'!$AV:$AV,'WTA2014'!$AR:$AR),IF(ISNUMBER($AB75),$AB75,$AC75)) ->  | AG75: =INDEX(IF($M75="ATP",'ATP2014'!$AW:$AW,'WTA2014'!$AS:$AS),IF(ISNUMBER($AB75),$AB75,$AC75)) ->  | AH75: =INDEX(IF($M75="ATP",'ATP2014'!$AX:$AX,'WTA2014'!$AT:$AT),IF(ISNUMBER($AB75),$AB75,$AC75)) ->  | AI75: =INDEX(IF($M75="ATP",'ATP2014'!$AY:$AY,'WTA2014'!$AU:$AU),IF(ISNUMBER($AB75),$AB75,$AC75)) ->  | AJ75: =IF(W75=AD75,TRUE,INDEX(IF($M75="ATP",'ATP2014'!$AZ:$AZ,'WTA2014'!$AV:$AV),IF(ISNUMBER($AB75),$AB75,$AC75))) ->  | AK75: =IF(K75=30,IF($M75="ATP",MATCH($N75&"The Final",'ATP2014'!$BA:$BA,0),MATCH($N75&"The Final",'WTA2014'!$AW:$AW,0)),"N/A") -> 1813 | AL75: =IF(K75=30,INDEX(IF(M75="ATP",'ATP2014'!AQ:AQ,'WTA2014'!AM:AM),AK75),"N/A") -> Andujar | AM75: Loss | AN75: 2 | AO75: 9 | AP75: -1 | AQ75: 67.53546176 | AR75: JUL2014
A76: 2014-07-23 | B76: Seppi v Cuevas | C76: ATP Umag | D76: Cuevas 2-0 (Set Betting) | E76: 7/4 | F76: Seppi v Cuevas | G76: ATP Umag | H76: Cuevas 2-0 (Set Betting) | I76: 12 | J76: Set Betting | K76: =VLOOKUP(J76,Mapping!$A$5:$B$18,2,0) -> 2 | L76: NO | M76: ATP | N76: Umag | O76: 6 | P76: 6 | Q76: 6 | R76: Seppi | S76: Cuevas | T76: 7 | U76: 7 | V76: 12 | W76: Cuevas | X76: 2 | Y76: N/A | Z76: N/A | AA76: UmagSeppiCuevas | AB76: =IF($M76="ATP",MATCH($AA76,'ATP2014'!$AS:$AS,0),MATCH($AA76,'WTA2014'!$AO:$AO,0)) ->  | AC76: =IF($M76="ATP",MATCH($AA76,'ATP2014'!AT:AT,0),MATCH($AA76,'WTA2014'!$AP:$AP,0)) -> 1830 | AD76: =INDEX(IF(M76="ATP",'ATP2014'!AQ:AQ,'WTA2014'!AM:AM),IF(ISNUMBER(AB76),AB76,AC76)) -> Cuevas | AE76: =INDEX(IF($M76="ATP",'ATP2014'!$AU:$AU,'WTA2014'!$AQ:$AQ),IF(ISNUMBER($AB76),$AB76,$AC76)) -> 2 | AF76: =INDEX(IF($M76="ATP",'ATP2014'!$AV:$AV,'WTA2014'!$AR:$AR),IF(ISNUMBER($AB76),$AB76,$AC76)) -> 8 | AG76: =INDEX(IF($M76="ATP",'ATP2014'!$AW:$AW,'WTA2014'!$AS:$AS),IF(ISNUMBER($AB76),$AB76,$AC76)) -> 16 | AH76: =INDEX(IF($M76="ATP",'ATP2014'!$AX:$AX,'WTA2014'!$AT:$AT),IF(ISNUMBER($AB76),$AB76,$AC76)) -> FALSE | AI76: =INDEX(IF($M76="ATP",'ATP2014'!$AY:$AY,'WTA2014'!$AU:$AU),IF(ISNUMBER($AB76),$AB76,$AC76)) -> Cuevas | AJ76: =IF(W76=AD76,TRUE,INDEX(IF($M76="ATP",'ATP2014'!$AZ:$AZ,'WTA2014'!$AV:$AV),IF(ISNUMBER($AB76),$AB76,$AC76))) -> TRUE | AK76: =IF(K76=30,IF($M76="ATP",MATCH($N76&"The Final",'ATP2014'!$BA:$BA,0),MATCH($N76&"The Final",'WTA2014'!$AW:$AW,0)),"N/A") -> N/A | AL76: =IF(K76=30,INDEX(IF(M76="ATP",'ATP2014'!AQ:AQ,'WTA2014'!AM:AM),AK76),"N/A") -> N/A | AM76: Win | AN76: 2 | AO76: 1.75 | AP76: 1.75 | AQ76: 69.28546176 | AR76: JUL2014
A77: 2014-07-23 | B77: Verdasco v Struff | C77: ATP Gstaad | D77: Fernando Verdasco 2-1 (Set Betting) | E77: 11/4 | F77: Verdasco v Struff | G77: ATP Gstaad | H77: Fernando Verdasco 2-1 (Set Betting) | I77: 23 | J77: Set Betting | K77: =VLOOKUP(J77,Mapping!$A$5:$B$18,2,0) -> 2 | L77: NO | M77: ATP | N77: Gstaad | O77: 9 | P77: 9 | Q77: 9 | R77: Verdasco | S77: Struff | T77: 9 | U77: 18 | V77: 23 | W77: Verdasco | X77: 1 | Y77: N/A | Z77: N/A | AA77: GstaadVerdascoStruff | AB77: =IF($M77="ATP",MATCH($AA77,'ATP2014'!$AS:$AS,0),MATCH($AA77,'WTA2014'!$AO:$AO,0)) -> 1806 | AC77: =IF($M77="ATP",MATCH($AA77,'ATP2014'!AT:AT,0),MATCH($AA77,'WTA2014'!$AP:$AP,0)) ->  | AD77: =INDEX(IF(M77="ATP",'ATP2014'!AQ:AQ,'WTA2014'!AM:AM),IF(ISNUMBER(AB77),AB77,AC77)) -> Verdasco | AE77: =INDEX(IF($M77="ATP",'ATP2014'!$AU:$AU,'WTA2014'!$AQ:$AQ),IF(ISNUMBER($AB77),$AB77,$AC77)) -> 1 | AF77: =INDEX(IF($M77="ATP",'ATP2014'!$AV:$AV,'WTA2014'!$AR:$AR),IF(ISNUMBER($AB77),$AB77,$AC77)) -> 1 | AG77: =INDEX(IF($M77="ATP",'ATP2014'!$AW:$AW,'WTA2014'!$AS:$AS),IF(ISNUMBER($AB77),$AB77,$AC77)) -> 31 | AH77: =INDEX(IF($M77="ATP",'ATP2014'!$AX:$AX,'WTA2014'!$AT:$AT),IF(ISNUMBER($AB77),$AB77,$AC77)) -> TRUE | AI77: =INDEX(IF($M77="ATP",'ATP2014'!$AY:$AY,'WTA2014'!$AU:$AU),IF(ISNUMBER($AB77),$AB77,$AC77)) -> Struff | AJ77: =IF(W77=AD77,TRUE,INDEX(IF($M77="ATP",'ATP2014'!$AZ:$AZ,'WTA2014'!$AV:$AV),IF(ISNUMBER($AB77),$AB77,$AC77))) -> TRUE | AK77: =IF(K77=30,IF($M77="ATP",MATCH($N77&"The Final",'ATP2014'!$BA:$BA,0),MATCH($N77&"The Final",'WTA2014'!$AW:$AW,0)),"N/A") -> N/A | AL77: =IF(K77=30,INDEX(IF(M77="ATP",'ATP2014'!AQ:AQ,'WTA2014'!AM:AM),AK77),"N/A") -> N/A | AM77: Win | AN77: 3 | AO77: 2.75 | AP77: 2.75 | AQ77: 72.03546176 | AR77: JUL2014
A78: 2014-07-25 | B78: Bellucci v Monaco | C78: ATP Gstaad | D78: Monaco 2-0 (Set Betting) | E78: 7/4 | F78: Bellucci v Monaco | G78: ATP Gstaad | H78: Monaco 2-0 (Set Betting) | I78: 12 | J78: Set Betting | K78: =VLOOKUP(J78,Mapping!$A$5:$B$18,2,0) -> 2 | L78: NO | M78: ATP | N78: Gstaad | O78: 9 | P78: 9 | Q78: 9 | R78: Bellucci | S78: Monaco | T78: 7 | U78: 7 | V78: 12 | W78: Monaco | X78: 2 | Y78: N/A | Z78: N/A | AA78: GstaadBellucciMonaco | AB78: =IF($M78="ATP",MATCH($AA78,'ATP2014'!$AS:$AS,0),MATCH($AA78,'WTA2014'!$AO:$AO,0)) ->  | AC78: =IF($M78="ATP",MATCH($AA78,'ATP2014'!AT:AT,0),MATCH($AA78,'WTA2014'!$AP:$AP,0)) -> 1807 | AD78: =INDEX(IF(M78="ATP",'ATP2014'!AQ:AQ,'WTA2014'!AM:AM),IF(ISNUMBER(AB78),AB78,AC78)) -> Monaco | AE78: =INDEX(IF($M78="ATP",'ATP2014'!$AU:$AU,'WTA2014'!$AQ:$AQ),IF(ISNUMBER($AB78),$AB78,$AC78)) -> 2 | AF78: =INDEX(IF($M78="ATP",'ATP2014'!$AV:$AV,'WTA2014'!$AR:$AR),IF(ISNUMBER($AB78),$AB78,$AC78)) -> 6 | AG78: =INDEX(IF($M78="ATP",'ATP2014'!$AW:$AW,'WTA2014'!$AS:$AS),IF(ISNUMBER($AB78),$AB78,$AC78)) -> 20 | AH78: =INDEX(IF($M78="ATP",'ATP2014'!$AX:$AX,'WTA2014'!$AT:$AT),IF(ISNUMBER($AB78),$AB78,$AC78)) -> TRUE | AI78: =INDEX(IF($M78="ATP",'ATP2014'!$AY:$AY,'WTA2014'!$AU:$AU),IF(ISNUMBER($AB78),$AB78,$AC78)) -> Monaco | AJ78: =IF(W78=AD78,TRUE,INDEX(IF($M78="ATP",'ATP2014'!$AZ:$AZ,'WTA2014'!$AV:$AV),IF(ISNUMBER($AB78),$AB78,$AC78))) -> TRUE | AK78: =IF(K78=30,IF($M78="ATP",MATCH($N78&"The Final",'ATP2014'!$BA:$BA,0),MATCH($N78&"The Final",'WTA2014'!$AW:$AW,0)),"N/A") -> N/A | AL78: =IF(K78=30,INDEX(IF(M78="ATP",'ATP2014'!AQ:AQ,'WTA2014'!AM:AM),AK78),"N/A") -> N/A | AM78: Win | AN78: 2 | AO78: 1.75 | AP78: 1.75 | AQ78: 73.78546176 | AR78: JUL2014
A79: 2014-07-26 | B79: Andujar v Granollers | C79: ATP Gstaad | D79: Andujar 2-0 (Set Betting) | E79: 5/2 | F79: Andujar v Granollers | G79: ATP Gstaad | H79: Andujar 2-0 (Set Betting) | I79: 13 | J79: Set Betting | K79: =VLOOKUP(J79,Mapping!$A$5:$B$18,2,0) -> 2 | L79: NO | M79: ATP | N79: Gstaad | O79: 8 | P79: 8 | Q79: 8 | R79: Andujar | S79: Granollers | T79: 8 | U79: 8 | V79: 13 | W79: Andujar | X79: 2 | Y79: N/A | Z79: N/A | AA79: GstaadAndujarGranollers | AB79: =IF($M79="ATP",MATCH($AA79,'ATP2014'!$AS:$AS,0),MATCH($AA79,'WTA2014'!$AO:$AO,0)) -> 1809 | AC79: =IF($M79="ATP",MATCH($AA79,'ATP2014'!AT:AT,0),MATCH($AA79,'WTA2014'!$AP:$AP,0)) ->  | AD79: =INDEX(IF(M79="ATP",'ATP2014'!AQ:AQ,'WTA2014'!AM:AM),IF(ISNUMBER(AB79),AB79,AC79)) -> Andujar | AE79: =INDEX(IF($M79="ATP",'ATP2014'!$AU:$AU,'WTA2014'!$AQ:$AQ),IF(ISNUMBER($AB79),$AB79,$AC79)) -> 2 | AF79: =INDEX(IF($M79="ATP",'ATP2014'!$AV:$AV,'WTA2014'!$AR:$AR),IF(ISNUMBER($AB79),$AB79,$AC79)) -> 5 | AG79: =INDEX(IF($M79="ATP",'ATP2014'!$AW:$AW,'WTA2014'!$AS:$AS),IF(ISNUMBER($AB79),$AB79,$AC79)) -> 21 | AH79: =INDEX(IF($M79="ATP",'ATP2014'!$AX:$AX,'WTA2014'!$AT:$AT),IF(ISNUMBER($AB79),$AB79,$AC79)) -> FALSE | AI79: =INDEX(IF($M79="ATP",'ATP2014'!$AY:$AY,'WTA2014'!$AU:$AU),IF(ISNUMBER($AB79),$AB79,$AC79)) -> Andujar | AJ79: =IF(W79=AD79,TRUE,INDEX(IF($M79="ATP",'ATP2014'!$AZ:$AZ,'WTA2014'!$AV:$AV),IF(ISNUMBER($AB79),$AB79,$AC79))) -> TRUE | AK79: =IF(K79=30,IF($M79="ATP",MATCH($N79&"The Final",'ATP2014'!$BA:$BA,0),MATCH($N79&"The Final",'WTA2014'!$AW:$AW,0)),"N/A") -> N/A | AL79: =IF(K79=30,INDEX(IF(M79="ATP",'ATP2014'!AQ:AQ,'WTA2014'!AM:AM),AK79),"N/A") -> N/A | AM79: Win | AN79: 2 | AO79: 2.5 | AP79: 2.5 | AQ79: 76.28546176 | AR79: JUL2014
A80: 2014-07-26 | B80: Dudi Sela v Vasek Pospisil | C80: ATP Atlanta | D80: Sela (Match Winner) | E80: 11/10 | F80: Dudi Sela v Vasek Pospisil | G80: ATP Atlanta | H80: Sela (Match Winner) | I80: 6 | J80: Match Winner | K80: =VLOOKUP(J80,Mapping!$A$5:$B$18,2,0) -> 1 | L80: NO | M80: ATP | N80: Atlanta | O80: 5 | P80: 10 | Q80: 18 | R80: Sela | S80: Pospisil | T80: 5 | U80: 5 | V80: 6 | W80: Sela | X80: N/A | Y80: N/A | Z80: N/A | AA80: AtlantaSelaPospisil | AB80: =IF($M80="ATP",MATCH($AA80,'ATP2014'!$AS:$AS,0),MATCH($AA80,'WTA2014'!$AO:$AO,0)) -> 1783 | AC80: =IF($M80="ATP",MATCH($AA80,'ATP2014'!AT:AT,0),MATCH($AA80,'WTA2014'!$AP:$AP,0)) ->  | AD80: =INDEX(IF(M80="ATP",'ATP2014'!AQ:AQ,'WTA2014'!AM:AM),IF(ISNUMBER(AB80),AB80,AC80)) -> Sela | AE80: =INDEX(IF($M80="ATP",'ATP2014'!$AU:$AU,'WTA2014'!$AQ:$AQ),IF(ISNUMBER($AB80),$AB80,$AC80)) -> 1 | AF80: =INDEX(IF($M80="ATP",'ATP2014'!$AV:$AV,'WTA2014'!$AR:$AR),IF(ISNUMBER($AB80),$AB80,$AC80)) -> 1 | AG80: =INDEX(IF($M80="ATP",'ATP2014'!$AW:$AW,'WTA2014'!$AS:$AS),IF(ISNUMBER($AB80),$AB80,$AC80)) -> 27 | AH80: =INDEX(IF($M80="ATP",'ATP2014'!$AX:$AX,'WTA2014'!$AT:$AT),IF(ISNUMBER($AB80),$AB80,$AC80)) -> FALSE | AI80: =INDEX(IF($M80="ATP",'ATP2014'!$AY:$AY,'WTA2014'!$AU:$AU),IF(ISNUMBER($AB80),$AB80,$AC80)) -> Sela | AJ80: =IF(W80=AD80,TRUE,INDEX(IF($M80="ATP",'ATP2014'!$AZ:$AZ,'WTA2014'!$AV:$AV),IF(ISNUMBER($AB80),$AB80,$AC80))) -> TRUE | AK80: =IF(K80=30,IF($M80="ATP",MATCH($N80&"The Final",'ATP2014'!$BA:$BA,0),MATCH($N80&"The Final",'WTA2014'!$AW:$AW,0)),"N/A") -> N/A | AL80: =IF(K80=30,INDEX(IF(M80="ATP",'ATP2014'!AQ:AQ,'WTA2014'!AM:AM),AK80),"N/A") -> N/A | AM80: Win | AN80: 3 | AO80: 1.1 | AP80: 1.1 | AQ80: 77.38546176 | AR80: JUL2014
A81: 2014-07-26 | B81: Ricardas Berankis v Kyle Edmund | C81: Challenger Astana 2 | D81: Berankis (Match Winner) | E81: 8/11 | F81: Ricardas Berankis v Kyle Edmund | G81: Challenger Astana 2 | H81: Berankis (Match Winner) | I81: 10 | J81: Match Winner | K81: =VLOOKUP(J81,Mapping!$A$5:$B$18,2,0) -> 1 | L81: NO | M81: Challenger | N81: Astana 2 | O81: 9 | P81: 18 | Q81: 25 | R81: Berankis | S81: Edmund | T81: 9 | U81: 9 | V81: 10 | W81: Berankis | X81: N/A | Y81: N/A | Z81: N/A | AA81: Astana 2BerankisEdmund | AB81: =IF($M81="ATP",MATCH($AA81,'ATP2014'!$AS:$AS,0),MATCH($AA81,'WTA2014'!$AO:$AO,0)) ->  | AC81: =IF($M81="ATP",MATCH($AA81,'ATP2014'!AT:AT,0),MATCH($AA81,'WTA2014'!$AP:$AP,0)) ->  | AD81: Berankis | AE81: =INDEX(IF($M81="ATP",'ATP2014'!$AU:$AU,'WTA2014'!$AQ:$AQ),IF(ISNUMBER($AB81),$AB81,$AC81)) ->  | AF81: =INDEX(IF($M81="ATP",'ATP2014'!$AV:$AV,'WTA2014'!$AR:$AR),IF(ISNUMBER($AB81),$AB81,$AC81)) ->  | AG81: =INDEX(IF($M81="ATP",'ATP2014'!$AW:$AW,'WTA2014'!$AS:$AS),IF(ISNUMBER($AB81),$AB81,$AC81)) ->  | AH81: =INDEX(IF($M81="ATP",'ATP2014'!$AX:$AX,'WTA2014'!$AT:$AT),IF(ISNUMBER($AB81),$AB81,$AC81)) ->  | AI81: =INDEX(IF($M81="ATP",'ATP2014'!$AY:$AY,'WTA2014'!$AU:$AU),IF(ISNUMBER($AB81),$AB81,$AC81)) ->  | AJ81: =IF(W81=AD81,TRUE,INDEX(IF($M81="ATP",'ATP2014'!$AZ:$AZ,'WTA2014'!$AV:$AV),IF(ISNUMBER($AB81),$AB81,$AC81))) -> TRUE | AK81: =IF(K81=30,IF($M81="ATP",MATCH($N81&"The Final",'ATP2014'!$BA:$BA,0),MATCH($N81&"The Final",'WTA2014'!$AW:$AW,0)),"N/A") -> N/A | AL81: =IF(K81=30,INDEX(IF(M81="ATP",'ATP2014'!AQ:AQ,'WTA2014'!AM:AM),AK81),"N/A") -> N/A | AM81: Win | AN81: 2 | AO81: 0.7272727273 | AP81: 0.7272727273 | AQ81: 78.11273449 | AR81: JUL2014
A82: 2014-07-27 | B82: John Isner v Dudi Sela | C82: ATP Atlanta | D82: John Isner (Match Winner) | E82: 2/7 | F82: John Isner v Dudi Sela | G82: ATP Atlanta | H82: John Isner (Match Winner) | I82: 12 | J82: Match Winner | K82: =VLOOKUP(J82,Mapping!$A$5:$B$18,2,0) -> 1 | L82: NO | M82: ATP | N82: Atlanta | O82: 5 | P82: 11 | Q82: 18 | R82: Isner | S82: Sela | T82: 5 | U82: 11 | V82: 12 | W82: Isner | X82: N/A | Y82: N/A | Z82: N/A | AA82: AtlantaIsnerSela | AB82: =IF($M82="ATP",MATCH($AA82,'ATP2014'!$AS:$AS,0),MATCH($AA82,'WTA2014'!$AO:$AO,0)) -> 1786 | AC82: =IF($M82="ATP",MATCH($AA82,'ATP2014'!AT:AT,0),MATCH($AA82,'WTA2014'!$AP:$AP,0)) ->  | AD82: =INDEX(IF(M82="ATP",'ATP2014'!AQ:AQ,'WTA2014'!AM:AM),IF(ISNUMBER(AB82),AB82,AC82)) -> Isner | AE82: =INDEX(IF($M82="ATP",'ATP2014'!$AU:$AU,'WTA2014'!$AQ:$AQ),IF(ISNUMBER($AB82),$AB82,$AC82)) -> 2 | AF82: =INDEX(IF($M82="ATP",'ATP2014'!$AV:$AV,'WTA2014'!$AR:$AR),IF(ISNUMBER($AB82),$AB82,$AC82)) -> 5 | AG82: =INDEX(IF($M82="ATP",'ATP2014'!$AW:$AW,'WTA2014'!$AS:$AS),IF(ISNUMBER($AB82),$AB82,$AC82)) -> 19 | AH82: =INDEX(IF($M82="ATP",'ATP2014'!$AX:$AX,'WTA2014'!$AT:$AT),IF(ISNUMBER($AB82),$AB82,$AC82)) -> FALSE | AI82: =INDEX(IF($M82="ATP",'ATP2014'!$AY:$AY,'WTA2014'!$AU:$AU),IF(ISNUMBER($AB82),$AB82,$AC82)) -> Isner | AJ82: =IF(W82=AD82,TRUE,INDEX(IF($M82="ATP",'ATP2014'!$AZ:$AZ,'WTA2014'!$AV:$AV),IF(ISNUMBER($AB82),$AB82,$AC82))) -> TRUE | AK82: =IF(K82=30,IF($M82="ATP",MATCH($N82&"The Final",'ATP2014'!$BA:$BA,0),MATCH($N82&"The Final",'WTA2014'!$AW:$AW,0)),"N/A") -> N/A | AL82: =IF(K82=30,INDEX(IF(M82="ATP",'ATP2014'!AQ:AQ,'WTA2014'!AM:AM),AK82),"N/A") -> N/A | AM82: Win | AN82: 2 | AO82: 0.2857142857 | AP82: 0.2857142857 | AQ82: 78.39844877 | AR82: JUL2014
A83: 2014-07-27 | B83: Fabio Fognini v Pablo Cuevas | C83: ATP Umag | D83: Pablo Cuevas (Match Winner) | E83: 27/20 | F83: Fabio Fognini v Pablo Cuevas | G83: ATP Umag | H83: Pablo Cuevas (Match Winner) | I83: 14 | J83: Match Winner | K83: =VLOOKUP(J83,Mapping!$A$5:$B$18,2,0) -> 1 | L83: NO | M83: ATP | N83: Umag | O83: 6 | P83: 14 | Q83: 22 | R83: Fognini | S83: Cuevas | T83: 6 | U83: 13 | V83: 14 | W83: Cuevas | X83: N/A | Y83: N/A | Z83: N/A | AA83: UmagFogniniCuevas | AB83: =IF($M83="ATP",MATCH($AA83,'ATP2014'!$AS:$AS,0),MATCH($AA83,'WTA2014'!$AO:$AO,0)) ->  | AC83: =IF($M83="ATP",MATCH($AA83,'ATP2014'!AT:AT,0),MATCH($AA83,'WTA2014'!$AP:$AP,0)) -> 1838 | AD83: =INDEX(IF(M83="ATP",'ATP2014'!AQ:AQ,'WTA2014'!AM:AM),IF(ISNUMBER(AB83),AB83,AC83)) -> Cuevas | AE83: =INDEX(IF($M83="ATP",'ATP2014'!$AU:$AU,'WTA2014'!$AQ:$AQ),IF(ISNUMBER($AB83),$AB83,$AC83)) -> 2 | AF83: =INDEX(IF($M83="ATP",'ATP2014'!$AV:$AV,'WTA2014'!$AR:$AR),IF(ISNUMBER($AB83),$AB83,$AC83)) -> 5 | AG83: =INDEX(IF($M83="ATP",'ATP2014'!$AW:$AW,'WTA2014'!$AS:$AS),IF(ISNUMBER($AB83),$AB83,$AC83)) -> 19 | AH83: =INDEX(IF($M83="ATP",'ATP2014'!$AX:$AX,'WTA2014'!$AT:$AT),IF(ISNUMBER($AB83),$AB83,$AC83)) -> FALSE | AI83: =INDEX(IF($M83="ATP",'ATP2014'!$AY:$AY,'WTA2014'!$AU:$AU),IF(ISNUMBER($AB83),$AB83,$AC83)) -> Cuevas | AJ83: =IF(W83=AD83,TRUE,INDEX(IF($M83="ATP",'ATP2014'!$AZ:$AZ,'WTA2014'!$AV:$AV),IF(ISNUMBER($AB83),$AB83,$AC83))) -> TRUE | AK83: =IF(K83=30,IF($M83="ATP",MATCH($N83&"The Final",'ATP2014'!$BA:$BA,0),MATCH($N83&"The Final",'WTA2014'!$AW:$AW,0)),"N/A") -> N/A | AL83: =IF(K83=30,INDEX(IF(M83="ATP",'ATP2014'!AQ:AQ,'WTA2014'!AM:AM),AK83),"N/A") -> N/A | AM83: Win | AN83: 3 | AO83: 1.35 | AP83: 1.35 | AQ83: 79.74844877 | AR83: JUL2014
A84: 2014-07-27 | B84: Marin Cilic v Tommy Robredo | C84: ATP Umag | D84: Marin Cilic -3 (Games Handicap) | E84: 1/1 | F84: Marin Cilic v Tommy Robredo | G84: ATP Umag | H84: Marin Cilic -3 (Games Handicap) | I84: 16 | J84: Games Handicap | K84: =VLOOKUP(J84,Mapping!$A$5:$B$18,2,0) -> 4 | L84: NO | M84: ATP | N84: Umag | O84: 6 | P84: 12 | Q84: 20 | R84: Cilic | S84: Robredo | T84: 6 | U84: 12 | V84: 16 | W84: Cilic | X84: N/A | Y84: -3 | Z84: N/A | AA84: UmagCilicRobredo | AB84: =IF($M84="ATP",MATCH($AA84,'ATP2014'!$AS:$AS,0),MATCH($AA84,'WTA2014'!$AO:$AO,0)) ->  | AC84: =IF($M84="ATP",MATCH($AA84,'ATP2014'!AT:AT,0),MATCH($AA84,'WTA2014'!$AP:$AP,0)) -> 1839 | AD84: =INDEX(IF(M84="ATP",'ATP2014'!AQ:AQ,'WTA2014'!AM:AM),IF(ISNUMBER(AB84),AB84,AC84)) -> Robredo | AE84: =INDEX(IF($M84="ATP",'ATP2014'!$AU:$AU,'WTA2014'!$AQ:$AQ),IF(ISNUMBER($AB84),$AB84,$AC84)) -> 2 | AF84: =INDEX(IF($M84="ATP",'ATP2014'!$AV:$AV,'WTA2014'!$AR:$AR),IF(ISNUMBER($AB84),$AB84,$AC84)) -> 4 | AG84: =INDEX(IF($M84="ATP",'ATP2014'!$AW:$AW,'WTA2014'!$AS:$AS),IF(ISNUMBER($AB84),$AB84,$AC84)) -> 22 | AH84: =INDEX(IF($M84="ATP",'ATP2014'!$AX:$AX,'WTA2014'!$AT:$AT),IF(ISNUMBER($AB84),$AB84,$AC84)) -> TRUE | AI84: =INDEX(IF($M84="ATP",'ATP2014'!$AY:$AY,'WTA2014'!$AU:$AU),IF(ISNUMBER($AB84),$AB84,$AC84)) -> Robredo | AJ84: =IF(W84=AD84,TRUE,INDEX(IF($M84="ATP",'ATP2014'!$AZ:$AZ,'WTA2014'!$AV:$AV),IF(ISNUMBER($AB84),$AB84,$AC84))) -> FALSE | AK84: =IF(K84=30,IF($M84="ATP",MATCH($N84&"The Final",'ATP2014'!$BA:$BA,0),MATCH($N84&"The Final",'WTA2014'!$AW:$AW,0)),"N/A") -> N/A | AL84: =IF(K84=30,INDEX(IF(M84="ATP",'ATP2014'!AQ:AQ,'WTA2014'!AM:AM),AK84),"N/A") -> N/A | AM84: Win | AN84: 2 | AO84: 1 | AP84: 1 | AQ84: 80.74844877 | AR84: JUL2014
A85: 2014-07-28 | B85: Svetlana Kuznetsova v Polana Hercog | C85: WTA Washington | D85: Kuznetsova -2.5 (Games Handicap) | E85: 4/7 | F85: Svetlana Kuznetsova v Polana Hercog | G85: WTA Washington | H85: Kuznetsova -2.5 (Games Handicap) | I85: 17 | J85: Games Handicap | K85: =VLOOKUP(J85,Mapping!$A$5:$B$18,2,0) -> 4 | L85: NO | M85: WTA | N85: Washington | O85: 9 | P85: 20 | Q85: 29 | R85: Kuznetsova | S85: Hercog | T85: 11 | U85: 11 | V85: 17 | W85: Kuznetsova | X85: N/A | Y85: -2.5 | Z85: N/A | AA85: WashingtonKuznetsovaHercog | AB85: =IF($M85="ATP",MATCH($AA85,'ATP2014'!$AS:$AS,0),MATCH($AA85,'WTA2014'!$AO:$AO,0)) -> 1704 | AC85: =IF($M85="ATP",MATCH($AA85,'ATP2014'!AT:AT,0),MATCH($AA85,'WTA2014'!$AP:$AP,0)) ->  | AD85: =INDEX(IF(M85="ATP",'ATP2014'!AQ:AQ,'WTA2014'!AM:AM),IF(ISNUMBER(AB85),AB85,AC85)) -> Kuznetsova | AE85: =INDEX(IF($M85="ATP",'ATP2014'!$AU:$AU,'WTA2014'!$AQ:$AQ),IF(ISNUMBER($AB85),$AB85,$AC85)) -> 2 | AF85: =INDEX(IF($M85="ATP",'ATP2014'!$AV:$AV,'WTA2014'!$AR:$AR),IF(ISNUMBER($AB85),$AB85,$AC85)) -> 7 | AG85: =INDEX(IF($M85="ATP",'ATP2014'!$AW:$AW,'WTA2014'!$AS:$AS),IF(ISNUMBER($AB85),$AB85,$AC85)) -> 17 | AH85: =INDEX(IF($M85="ATP",'ATP2014'!$AX:$AX,'WTA2014'!$AT:$AT),IF(ISNUMBER($AB85),$AB85,$AC85)) -> FALSE | AI85: =INDEX(IF($M85="ATP",'ATP2014'!$AY:$AY,'WTA2014'!$AU:$AU),IF(ISNUMBER($AB85),$AB85,$AC85)) -> Kuznetsova | AJ85: =IF(W85=AD85,TRUE,INDEX(IF($M85="ATP",'ATP2014'!$AZ:$AZ,'WTA2014'!$AV:$AV),IF(ISNUMBER($AB85),$AB85,$AC85))) -> TRUE | AK85: =IF(K85=30,IF($M85="ATP",MATCH($N85&"The Final",'ATP2014'!$BA:$BA,0),MATCH($N85&"The Final",'WTA2014'!$AW:$AW,0)),"N/A") -> N/A | AL85: =IF(K85=30,INDEX(IF(M85="ATP",'ATP2014'!AQ:AQ,'WTA2014'!AM:AM),AK85),"N/A") -> N/A | AM85: Win | AN85: 2 | AO85: 0.5714285714 | AP85: 0.5714285714 | AQ85: 81.31987734 | AR85: JUL2014
A86: 2014-07-28 | B86: Kurumi Nara v Madison Keys | C86: WTA Washington | D86: Madison Keys -4.5 (Games Handicap) | E86: 10/11 | F86: Kurumi Nara v Madison Keys | G86: WTA Washington | H86: Madison Keys -4.5 (Games Handicap) | I86: 19 | J86: Games Handicap | K86: =VLOOKUP(J86,Mapping!$A$5:$B$18,2,0) -> 4 | L86: NO | M86: WTA | N86: Washington | O86: 7 | P86: 12 | Q86: 22 | R86: Nara | S86: Keys | T86: 8 | U86: 13 | V86: 19 | W86: Keys | X86: N/A | Y86: -4.5 | Z86: N/A | AA86: WashingtonNaraKeys | AB86: =IF($M86="ATP",MATCH($AA86,'ATP2014'!$AS:$AS,0),MATCH($AA86,'WTA2014'!$AO:$AO,0)) -> 1709 | AC86: =IF($M86="ATP",MATCH($AA86,'ATP2014'!AT:AT,0),MATCH($AA86,'WTA2014'!$AP:$AP,0)) ->  | AD86: =INDEX(IF(M86="ATP",'ATP2014'!AQ:AQ,'WTA2014'!AM:AM),IF(ISNUMBER(AB86),AB86,AC86)) -> Nara | AE86: =INDEX(IF($M86="ATP",'ATP2014'!$AU:$AU,'WTA2014'!$AQ:$AQ),IF(ISNUMBER($AB86),$AB86,$AC86)) -> 2 | AF86: =INDEX(IF($M86="ATP",'ATP2014'!$AV:$AV,'WTA2014'!$AR:$AR),IF(ISNUMBER($AB86),$AB86,$AC86)) -> 5 | AG86: =INDEX(IF($M86="ATP",'ATP2014'!$AW:$AW,'WTA2014'!$AS:$AS),IF(ISNUMBER($AB86),$AB86,$AC86)) -> 21 | AH86: =INDEX(IF($M86="ATP",'ATP2014'!$AX:$AX,'WTA2014'!$AT:$AT),IF(ISNUMBER($AB86),$AB86,$AC86)) -> FALSE | AI86: =INDEX(IF($M86="ATP",'ATP2014'!$AY:$AY,'WTA2014'!$AU:$AU),IF(ISNUMBER($AB86),$AB86,$AC86)) -> Nara | AJ86: =IF(W86=AD86,TRUE,INDEX(IF($M86="ATP",'ATP2014'!$AZ:$AZ,'WTA2014'!$AV:$AV),IF(ISNUMBER($AB86),$AB86,$AC86))) -> FALSE | AK86: =IF(K86=30,IF($M86="ATP",MATCH($N86&"The Final",'ATP2014'!$BA:$BA,0),MATCH($N86&"The Final",'WTA2014'!$AW:$AW,0)),"N/A") -> N/A | AL86: =IF(K86=30,INDEX(IF(M86="ATP",'ATP2014'!AQ:AQ,'WTA2014'!AM:AM),AK86),"N/A") -> N/A | AM86: Win | AN86: 3 | AO86: 0.9090909091 | AP86: 0.9090909091 | AQ86: 82.22896825 | AR86: JUL2014
A87: 2014-07-29 | B87: Vesely v Thiem | C87: ATP Kitzbuhel | D87: Vesely (Match Winner) | E87: 6/5 | F87: Vesely v Thiem | G87: ATP Kitzbuhel | H87: Vesely (Match Winner) | I87: 8 | J87: Match Winner | K87: =VLOOKUP(J87,Mapping!$A$5:$B$18,2,0) -> 1 | L87: NO | M87: ATP | N87: Kitzbuhel | O87: 7 | P87: 7 | Q87: 7 | R87: Vesely | S87: Thiem | T87: 7 | U87: 7 | V87: 8 | W87: Vesely | X87: N/A | Y87: N/A | Z87: N/A | AA87: KitzbuhelVeselyThiem | AB87: =IF($M87="ATP",MATCH($AA87,'ATP2014'!$AS:$AS,0),MATCH($AA87,'WTA2014'!$AO:$AO,0)) ->  | AC87: =IF($M87="ATP",MATCH($AA87,'ATP2014'!AT:AT,0),MATCH($AA87,'WTA2014'!$AP:$AP,0)) -> 1859 | AD87: =INDEX(IF(M87="ATP",'ATP2014'!AQ:AQ,'WTA2014'!AM:AM),IF(ISNUMBER(AB87),AB87,AC87)) -> Thiem | AE87: =INDEX(IF($M87="ATP",'ATP2014'!$AU:$AU,'WTA2014'!$AQ:$AQ),IF(ISNUMBER($AB87),$AB87,$AC87)) -> 2 | AF87: =INDEX(IF($M87="ATP",'ATP2014'!$AV:$AV,'WTA2014'!$AR:$AR),IF(ISNUMBER($AB87),$AB87,$AC87)) -> 4 | AG87: =INDEX(IF($M87="ATP",'ATP2014'!$AW:$AW,'WTA2014'!$AS:$AS),IF(ISNUMBER($AB87),$AB87,$AC87)) -> 22 | AH87: =INDEX(IF($M87="ATP",'ATP2014'!$AX:$AX,'WTA2014'!$AT:$AT),IF(ISNUMBER($AB87),$AB87,$AC87)) -> TRUE | AI87: =INDEX(IF($M87="ATP",'ATP2014'!$AY:$AY,'WTA2014'!$AU:$AU),IF(ISNUMBER($AB87),$AB87,$AC87)) -> Thiem | AJ87: =IF(W87=AD87,TRUE,INDEX(IF($M87="ATP",'ATP2014'!$AZ:$AZ,'WTA2014'!$AV:$AV),IF(ISNUMBER($AB87),$AB87,$AC87))) -> FALSE | AK87: =IF(K87=30,IF($M87="ATP",MATCH($N87&"The Final",'ATP2014'!$BA:$BA,0),MATCH($N87&"The Final",'WTA2014'!$AW:$AW,0)),"N/A") -> N/A | AL87: =IF(K87=30,INDEX(IF(M87="ATP",'ATP2014'!AQ:AQ,'WTA2014'!AM:AM),AK87),"N/A") -> N/A | AM87: Loss | AN87: 2 | AO87: 1.2 | AP87: -1 | AQ87: 81.22896825 | AR87: JUL2014
A88: 2014-07-29 | B88: Monaco v Golubev | C88: ATP Kitzbuhel | D88: Monaco -3.5 (Games Handicap) | E88: 5/4 | F88: Monaco v Golubev | G88: ATP Kitzbuhel | H88: Monaco -3.5 (Games Handicap) | I88: 13 | J88: Games Handicap | K88: =VLOOKUP(J88,Mapping!$A$5:$B$18,2,0) -> 4 | L88: NO | M88: ATP | N88: Kitzbuhel | O88: 7 | P88: 7 | Q88: 7 | R88: Monaco | S88: Golubev | T88: 7 | U88: 7 | V88: 13 | W88: Monaco | X88: N/A | Y88: -3.5 | Z88: N/A | AA88: KitzbuhelMonacoGolubev | AB88: =IF($M88="ATP",MATCH($AA88,'ATP2014'!$AS:$AS,0),MATCH($AA88,'WTA2014'!$AO:$AO,0)) -> 1850 | AC88: =IF($M88="ATP",MATCH($AA88,'ATP2014'!AT:AT,0),MATCH($AA88,'WTA2014'!$AP:$AP,0)) ->  | AD88: =INDEX(IF(M88="ATP",'ATP2014'!AQ:AQ,'WTA2014'!AM:AM),IF(ISNUMBER(AB88),AB88,AC88)) -> Monaco | AE88: =INDEX(IF($M88="ATP",'ATP2014'!$AU:$AU,'WTA2014'!$AQ:$AQ),IF(ISNUMBER($AB88),$AB88,$AC88)) -> 1 | AF88: =INDEX(IF($M88="ATP",'ATP2014'!$AV:$AV,'WTA2014'!$AR:$AR),IF(ISNUMBER($AB88),$AB88,$AC88)) -> 3 | AG88: =INDEX(IF($M88="ATP",'ATP2014'!$AW:$AW,'WTA2014'!$AS:$AS),IF(ISNUMBER($AB88),$AB88,$AC88)) -> 21 | AH88: =INDEX(IF($M88="ATP",'ATP2014'!$AX:$AX,'WTA2014'!$AT:$AT),IF(ISNUMBER($AB88),$AB88,$AC88)) -> FALSE | AI88: =INDEX(IF($M88="ATP",'ATP2014'!$AY:$AY,'WTA2014'!$AU:$AU),IF(ISNUMBER($AB88),$AB88,$AC88)) -> Golubev | AJ88: =IF(W88=AD88,TRUE,INDEX(IF($M88="ATP",'ATP2014'!$AZ:$AZ,'WTA2014'!$AV:$AV),IF(ISNUMBER($AB88),$AB88,$AC88))) -> TRUE | AK88: =IF(K88=30,IF($M88="ATP",MATCH($N88&"The Final",'ATP2014'!$BA:$BA,0),MATCH($N88&"The Final",'WTA2014'!$AW:$AW,0)),"N/A") -> N/A | AL88: =IF(K88=30,INDEX(IF(M88="ATP",'ATP2014'!AQ:AQ,'WTA2014'!AM:AM),AK88),"N/A") -> N/A | AM88: Loss | AN88: 2 | AO88: 1.25 | AP88: -1 | AQ88: 80.22896825 | AR88: JUL2014
A89: 2014-07-29 | B89: Sock v Berrer | C89: ATP Washington | D89: Sock -3.5 (Games Handicap) | E89: 4/5 | F89: Sock v Berrer | G89: ATP Washington | H89: Sock -3.5 (Games Handicap) | I89: 11 | J89: Games Handicap | K89: =VLOOKUP(J89,Mapping!$A$5:$B$18,2,0) -> 4 | L89: NO | M89: ATP | N89: Washington | O89: 5 | P89: 5 | Q89: 5 | R89: Sock | S89: Berrer | T89: 5 | U89: 5 | V89: 11 | W89: Sock | X89: N/A | Y89: -3.5 | Z89: N/A | AA89: WashingtonSockBerrer | AB89: =IF($M89="ATP",MATCH($AA89,'ATP2014'!$AS:$AS,0),MATCH($AA89,'WTA2014'!$AO:$AO,0)) -> 1882 | AC89: =IF($M89="ATP",MATCH($AA89,'ATP2014'!AT:AT,0),MATCH($AA89,'WTA2014'!$AP:$AP,0)) ->  | AD89: =INDEX(IF(M89="ATP",'ATP2014'!AQ:AQ,'WTA2014'!AM:AM),IF(ISNUMBER(AB89),AB89,AC89)) -> Sock | AE89: =INDEX(IF($M89="ATP",'ATP2014'!$AU:$AU,'WTA2014'!$AQ:$AQ),IF(ISNUMBER($AB89),$AB89,$AC89)) -> 2 | AF89: =INDEX(IF($M89="ATP",'ATP2014'!$AV:$AV,'WTA2014'!$AR:$AR),IF(ISNUMBER($AB89),$AB89,$AC89)) -> 3 | AG89: =INDEX(IF($M89="ATP",'ATP2014'!$AW:$AW,'WTA2014'!$AS:$AS),IF(ISNUMBER($AB89),$AB89,$AC89)) -> 23 | AH89: =INDEX(IF($M89="ATP",'ATP2014'!$AX:$AX,'WTA2014'!$AT:$AT),IF(ISNUMBER($AB89),$AB89,$AC89)) -> TRUE | AI89: =INDEX(IF($M89="ATP",'ATP2014'!$AY:$AY,'WTA2014'!$AU:$AU),IF(ISNUMBER($AB89),$AB89,$AC89)) -> Sock | AJ89: =IF(W89=AD89,TRUE,INDEX(IF($M89="ATP",'ATP2014'!$AZ:$AZ,'WTA2014'!$AV:$AV),IF(ISNUMBER($AB89),$AB89,$AC89))) -> TRUE | AK89: =IF(K89=30,IF($M89="ATP",MATCH($N89&"The Final",'ATP2014'!$BA:$BA,0),MATCH($N89&"The Final",'WTA2014'!$AW:$AW,0)),"N/A") -> N/A | AL89: =IF(K89=30,INDEX(IF(M89="ATP",'ATP2014'!AQ:AQ,'WTA2014'!AM:AM),AK89),"N/A") -> N/A | AM89: Loss | AN89: 2 | AO89: 0.8 | AP89: -1 | AQ89: 79.22896825 | AR89: JUL2014
A90: 2014-07-29 | B90: Lorenzi v Haase | C90: ATP Kitzbuhel | D90: Haase -3.5 (Games Handicap) | E90: 5/6 | F90: Lorenzi v Haase | G90: ATP Kitzbuhel | H90: Haase -3.5 (Games Handicap) | I90: 12 | J90: Games Handicap | K90: =VLOOKUP(J90,Mapping!$A$5:$B$18,2,0) -> 4 | L90: NO | M90: ATP | N90: Kitzbuhel | O90: 8 | P90: 8 | Q90: 8 | R90: Lorenzi | S90: Haase | T90: 6 | U90: 6 | V90: 12 | W90: Haase | X90: N/A | Y90: -3.5 | Z90: N/A | AA90: KitzbuhelLorenziHaase | AB90: =IF($M90="ATP",MATCH($AA90,'ATP2014'!$AS:$AS,0),MATCH($AA90,'WTA2014'!$AO:$AO,0)) -> 1849 | AC90: =IF($M90="ATP",MATCH($AA90,'ATP2014'!AT:AT,0),MATCH($AA90,'WTA2014'!$AP:$AP,0)) ->  | AD90: =INDEX(IF(M90="ATP",'ATP2014'!AQ:AQ,'WTA2014'!AM:AM),IF(ISNUMBER(AB90),AB90,AC90)) -> Lorenzi | AE90: =INDEX(IF($M90="ATP",'ATP2014'!$AU:$AU,'WTA2014'!$AQ:$AQ),IF(ISNUMBER($AB90),$AB90,$AC90)) -> 2 | AF90: =INDEX(IF($M90="ATP",'ATP2014'!$AV:$AV,'WTA2014'!$AR:$AR),IF(ISNUMBER($AB90),$AB90,$AC90)) -> 7 | AG90: =INDEX(IF($M90="ATP",'ATP2014'!$AW:$AW,'WTA2014'!$AS:$AS),IF(ISNUMBER($AB90),$AB90,$AC90)) -> 17 | AH90: =INDEX(IF($M90="ATP",'ATP2014'!$AX:$AX,'WTA2014'!$AT:$AT),IF(ISNUMBER($AB90),$AB90,$AC90)) -> FALSE | AI90: =INDEX(IF($M90="ATP",'ATP2014'!$AY:$AY,'WTA2014'!$AU:$AU),IF(ISNUMBER($AB90),$AB90,$AC90)) -> Lorenzi | AJ90: =IF(W90=AD90,TRUE,INDEX(IF($M90="ATP",'ATP2014'!$AZ:$AZ,'WTA2014'!$AV:$AV),IF(ISNUMBER($AB90),$AB90,$AC90))) -> FALSE | AK90: =IF(K90=30,IF($M90="ATP",MATCH($N90&"The Final",'ATP2014'!$BA:$BA,0),MATCH($N90&"The Final",'WTA2014'!$AW:$AW,0)),"N/A") -> N/A | AL90: =IF(K90=30,INDEX(IF(M90="ATP",'ATP2014'!AQ:AQ,'WTA2014'!AM:AM),AK90),"N/A") -> N/A | AM90: Win | AN90: 2 | AO90: 0.8333333333 | AP90: 0.8333333333 | AQ90: 80.06230159 | AR90: JUL2014
A91: 2014-07-30 | B91: n/a | C91: ATP Atlanta | D91: John Isner (Outright Winner) | E91: 5/2 | F91: n/a | G91: ATP Atlanta | H91: John Isner (Outright Winner) | I91: 12 | J91: Outright Winner | K91: =VLOOKUP(J91,Mapping!$A$5:$B$18,2,0) -> 30 | L91: NO | M91: ATP | N91: Atlanta | O91: 5 | P91: 12 | Q91: 5 | R91: Isner | T91: 5 | U91: 11 | V91: 12 | W91: Isner | X91: N/A | Y91: N/A | Z91: N/A | AA91: AtlantaIsner | AB91: =IF($M91="ATP",MATCH($AA91,'ATP2014'!$AS:$AS,0),MATCH($AA91,'WTA2014'!$AO:$AO,0)) ->  | AC91: =IF($M91="ATP",MATCH($AA91,'ATP2014'!AT:AT,0),MATCH($AA91,'WTA2014'!$AP:$AP,0)) ->  | AD91: =INDEX(IF(M91="ATP",'ATP2014'!AQ:AQ,'WTA2014'!AM:AM),IF(ISNUMBER(AB91),AB91,AC91)) ->  | AE91: =INDEX(IF($M91="ATP",'ATP2014'!$AU:$AU,'WTA2014'!$AQ:$AQ),IF(ISNUMBER($AB91),$AB91,$AC91)) ->  | AF91: =INDEX(IF($M91="ATP",'ATP2014'!$AV:$AV,'WTA2014'!$AR:$AR),IF(ISNUMBER($AB91),$AB91,$AC91)) ->  | AG91: =INDEX(IF($M91="ATP",'ATP2014'!$AW:$AW,'WTA2014'!$AS:$AS),IF(ISNUMBER($AB91),$AB91,$AC91)) ->  | AH91: =INDEX(IF($M91="ATP",'ATP2014'!$AX:$AX,'WTA2014'!$AT:$AT),IF(ISNUMBER($AB91),$AB91,$AC91)) ->  | AI91: =INDEX(IF($M91="ATP",'ATP2014'!$AY:$AY,'WTA2014'!$AU:$AU),IF(ISNUMBER($AB91),$AB91,$AC91)) ->  | AJ91: =IF(W91=AD91,TRUE,INDEX(IF($M91="ATP",'ATP2014'!$AZ:$AZ,'WTA2014'!$AV:$AV),IF(ISNUMBER($AB91),$AB91,$AC91))) ->  | AK91: =IF(K91=30,IF($M91="ATP",MATCH($N91&"The Final",'ATP2014'!$BA:$BA,0),MATCH($N91&"The Final",'WTA2014'!$AW:$AW,0)),"N/A") -> 1786 | AL91: =IF(K91=30,INDEX(IF(M91="ATP",'ATP2014'!AQ:AQ,'WTA2014'!AM:AM),AK91),"N/A") -> Isner | AM91: Win | AN91: 2 | AO91: 2.5 | AP91: 2.5 | AQ91: 82.56230159 | AR91: JUL2014
A92: 2014-07-29 | B92: Cuevas v Robredo | C92: ATP Umag | D92: Cuevas (Match Winner) | E92: 7/4 | F92: Cuevas v Robredo | G92: ATP Umag | H92: Cuevas (Match Winner) | I92: 8 | J92: Match Winner | K92: =VLOOKUP(J92,Mapping!$A$5:$B$18,2,0) -> 1 | L92: NO | M92: ATP | N92: Umag | O92: 7 | P92: 7 | Q92: 7 | R92: Cuevas | S92: Robredo | T92: 7 | U92: 7 | V92: 8 | W92: Cuevas | X92: N/A | Y92: N/A | Z92: N/A | AA92: UmagCuevasRobredo | AB92: =IF($M92="ATP",MATCH($AA92,'ATP2014'!$AS:$AS,0),MATCH($AA92,'WTA2014'!$AO:$AO,0)) -> 1840 | AC92: =IF($M92="ATP",MATCH($AA92,'ATP2014'!AT:AT,0),MATCH($AA92,'WTA2014'!$AP:$AP,0)) ->  | AD92: =INDEX(IF(M92="ATP",'ATP2014'!AQ:AQ,'WTA2014'!AM:AM),IF(ISNUMBER(AB92),AB92,AC92)) -> Cuevas | AE92: =INDEX(IF($M92="ATP",'ATP2014'!$AU:$AU,'WTA2014'!$AQ:$AQ),IF(ISNUMBER($AB92),$AB92,$AC92)) -> 2 | AF92: =INDEX(IF($M92="ATP",'ATP2014'!$AV:$AV,'WTA2014'!$AR:$AR),IF(ISNUMBER($AB92),$AB92,$AC92)) -> 5 | AG92: =INDEX(IF($M92="ATP",'ATP2014'!$AW:$AW,'WTA2014'!$AS:$AS),IF(ISNUMBER($AB92),$AB92,$AC92)) -> 19 | AH92: =INDEX(IF($M92="ATP",'ATP2014'!$AX:$AX,'WTA2014'!$AT:$AT),IF(ISNUMBER($AB92),$AB92,$AC92)) -> FALSE | AI92: =INDEX(IF($M92="ATP",'ATP2014'!$AY:$AY,'WTA2014'!$AU:$AU),IF(ISNUMBER($AB92),$AB92,$AC92)) -> Cuevas | AJ92: =IF(W92=AD92,TRUE,INDEX(IF($M92="ATP",'ATP2014'!$AZ:$AZ,'WTA2014'!$AV:$AV),IF(ISNUMBER($AB92),$AB92,$AC92))) -> TRUE | AK92: =IF(K92=30,IF($M92="ATP",MATCH($N92&"The Final",'ATP2014'!$BA:$BA,0),MATCH($N92&"The Final",'WTA2014'!$AW:$AW,0)),"N/A") -> N/A | AL92: =IF(K92=30,INDEX(IF(M92="ATP",'ATP2014'!AQ:AQ,'WTA2014'!AM:AM),AK92),"N/A") -> N/A | AM92: Win | AN92: 2 | AO92: 1.75 | AP92: 1.75 | AQ92: 84.31230159 | AR92: JUL2014
A93: 2014-07-27 | B93: Isner v Sela | C93: ATP Atlanta | D93: Isner (Match Winner) | E93: 2/7 | F93: Isner v Sela | G93: ATP Atlanta | H93: Isner (Match Winner) | I93: 7 | J93: Match Winner | K93: =VLOOKUP(J93,Mapping!$A$5:$B$18,2,0) -> 1 | L93: NO | M93: ATP | N93: Atlanta | O93: 6 | P93: 6 | Q93: 6 | R93: Isner | S93: Sela | T93: 6 | U93: 6 | V93: 7 | W93: Isner | X93: N/A | Y93: N/A | Z93: N/A | AA93: AtlantaIsnerSela | AB93: =IF($M93="ATP",MATCH($AA93,'ATP2014'!$AS:$AS,0),MATCH($AA93,'WTA2014'!$AO:$AO,0)) -> 1786 | AC93: =IF($M93="ATP",MATCH($AA93,'ATP2014'!AT:AT,0),MATCH($AA93,'WTA2014'!$AP:$AP,0)) ->  | AD93: =INDEX(IF(M93="ATP",'ATP2014'!AQ:AQ,'WTA2014'!AM:AM),IF(ISNUMBER(AB93),AB93,AC93)) -> Isner | AE93: =INDEX(IF($M93="ATP",'ATP2014'!$AU:$AU,'WTA2014'!$AQ:$AQ),IF(ISNUMBER($AB93),$AB93,$AC93)) -> 2 | AF93: =INDEX(IF($M93="ATP",'ATP2014'!$AV:$AV,'WTA2014'!$AR:$AR),IF(ISNUMBER($AB93),$AB93,$AC93)) -> 5 | AG93: =INDEX(IF($M93="ATP",'ATP2014'!$AW:$AW,'WTA2014'!$AS:$AS),IF(ISNUMBER($AB93),$AB93,$AC93)) -> 19 | AH93: =INDEX(IF($M93="ATP",'ATP2014'!$AX:$AX,'WTA2014'!$AT:$AT),IF(ISNUMBER($AB93),$AB93,$AC93)) -> FALSE | AI93: =INDEX(IF($M93="ATP",'ATP2014'!$AY:$AY,'WTA2014'!$AU:$AU),IF(ISNUMBER($AB93),$AB93,$AC93)) -> Isner | AJ93: =IF(W93=AD93,TRUE,INDEX(IF($M93="ATP",'ATP2014'!$AZ:$AZ,'WTA2014'!$AV:$AV),IF(ISNUMBER($AB93),$AB93,$AC93))) -> TRUE | AK93: =IF(K93=30,IF($M93="ATP",MATCH($N93&"The Final",'ATP2014'!$BA:$BA,0),MATCH($N93&"The Final",'WTA2014'!$AW:$AW,0)),"N/A") -> N/A | AL93: =IF(K93=30,INDEX(IF(M93="ATP",'ATP2014'!AQ:AQ,'WTA2014'!AM:AM),AK93),"N/A") -> N/A | AM93: Win | AN93: 2 | AO93: 0.2857142857 | AP93: 0.2857142857 | AQ93: 84.59801587 | AR93: JUL2014
A94: 2014-07-29 | B94: Kohlschreiber v Goffin | C94: ATP Kitzbuhel | D94: Kohlschreiber -1.5 (Set Handicap) | E94: 11/8 | F94: Kohlschreiber v Goffin | G94: ATP Kitzbuhel | H94: Kohlschreiber -1.5 (Set Handicap) | I94: 20 | J94: Set Handicap | K94: =VLOOKUP(J94,Mapping!$A$5:$B$18,2,0) -> 3 | L94: NO | M94: ATP | N94: Kitzbuhel | O94: 14 | P94: 14 | Q94: 14 | R94: Kohlschreiber | S94: Goffin | T94: 14 | U94: 14 | V94: 20 | W94: Kohlschreiber | X94: -1.5 | Y94: N/A | Z94: N/A | AA94: KitzbuhelKohlschreiberGoffin | AB94: =IF($M94="ATP",MATCH($AA94,'ATP2014'!$AS:$AS,0),MATCH($AA94,'WTA2014'!$AO:$AO,0)) ->  | AC94: =IF($M94="ATP",MATCH($AA94,'ATP2014'!AT:AT,0),MATCH($AA94,'WTA2014'!$AP:$AP,0)) -> 1855 | AD94: =INDEX(IF(M94="ATP",'ATP2014'!AQ:AQ,'WTA2014'!AM:AM),IF(ISNUMBER(AB94),AB94,AC94)) -> Goffin | AE94: =INDEX(IF($M94="ATP",'ATP2014'!$AU:$AU,'WTA2014'!$AQ:$AQ),IF(ISNUMBER($AB94),$AB94,$AC94)) -> 2 | AF94: =INDEX(IF($M94="ATP",'ATP2014'!$AV:$AV,'WTA2014'!$AR:$AR),IF(ISNUMBER($AB94),$AB94,$AC94)) -> 5 | AG94: =INDEX(IF($M94="ATP",'ATP2014'!$AW:$AW,'WTA2014'!$AS:$AS),IF(ISNUMBER($AB94),$AB94,$AC94)) -> 21 | AH94: =INDEX(IF($M94="ATP",'ATP2014'!$AX:$AX,'WTA2014'!$AT:$AT),IF(ISNUMBER($AB94),$AB94,$AC94)) -> FALSE | AI94: =INDEX(IF($M94="ATP",'ATP2014'!$AY:$AY,'WTA2014'!$AU:$AU),IF(ISNUMBER($AB94),$AB94,$AC94)) -> Goffin | AJ94: =IF(W94=AD94,TRUE,INDEX(IF($M94="ATP",'ATP2014'!$AZ:$AZ,'WTA2014'!$AV:$AV),IF(ISNUMBER($AB94),$AB94,$AC94))) -> FALSE | AK94: =IF(K94=30,IF($M94="ATP",MATCH($N94&"The Final",'ATP2014'!$BA:$BA,0),MATCH($N94&"The Final",'WTA2014'!$AW:$AW,0)),"N/A") -> N/A | AL94: =IF(K94=30,INDEX(IF(M94="ATP",'ATP2014'!AQ:AQ,'WTA2014'!AM:AM),AK94),"N/A") -> N/A | AM94: Loss | AN94: 3 | AO94: 1.375 | AP94: -1 | AQ94: 83.59801587 | AR94: JUL2014
A95: 2014-07-29 | B95: Ramos v Gonzalez | C95: ATP Kitzbuhel | D95: Ramos -1.5 (Games Handicap) | E95: 11/10 | F95: Ramos v Gonzalez | G95: ATP Kitzbuhel | H95: Ramos -1.5 (Games Handicap) | I95: 12 | J95: Games Handicap | K95: =VLOOKUP(J95,Mapping!$A$5:$B$18,2,0) -> 4 | L95: NO | M95: ATP | N95: Kitzbuhel | O95: 6 | P95: 6 | Q95: 6 | R95: Ramos | S95: Gonzalez | T95: 6 | U95: 6 | V95: 12 | W95: Ramos | X95: N/A | Y95: -1.5 | Z95: N/A | AA95: KitzbuhelRamosGonzalez | AB95: =IF($M95="ATP",MATCH($AA95,'ATP2014'!$AS:$AS,0),MATCH($AA95,'WTA2014'!$AO:$AO,0)) ->  | AC95: =IF($M95="ATP",MATCH($AA95,'ATP2014'!AT:AT,0),MATCH($AA95,'WTA2014'!$AP:$AP,0)) -> 1853 | AD95: =INDEX(IF(M95="ATP",'ATP2014'!AQ:AQ,'WTA2014'!AM:AM),IF(ISNUMBER(AB95),AB95,AC95)) -> Gonzalez | AE95: =INDEX(IF($M95="ATP",'ATP2014'!$AU:$AU,'WTA2014'!$AQ:$AQ),IF(ISNUMBER($AB95),$AB95,$AC95)) -> 2 | AF95: =INDEX(IF($M95="ATP",'ATP2014'!$AV:$AV,'WTA2014'!$AR:$AR),IF(ISNUMBER($AB95),$AB95,$AC95)) -> 4 | AG95: =INDEX(IF($M95="ATP",'ATP2014'!$AW:$AW,'WTA2014'!$AS:$AS),IF(ISNUMBER($AB95),$AB95,$AC95)) -> 20 | AH95: =INDEX(IF($M95="ATP",'ATP2014'!$AX:$AX,'WTA2014'!$AT:$AT),IF(ISNUMBER($AB95),$AB95,$AC95)) -> FALSE | AI95: =INDEX(IF($M95="ATP",'ATP2014'!$AY:$AY,'WTA2014'!$AU:$AU),IF(ISNUMBER($AB95),$AB95,$AC95)) -> Gonzalez | AJ95: =IF(W95=AD95,TRUE,INDEX(IF($M95="ATP",'ATP2014'!$AZ:$AZ,'WTA2014'!$AV:$AV),IF(ISNUMBER($AB95),$AB95,$AC95))) -> FALSE | AK95: =IF(K95=30,IF($M95="ATP",MATCH($N95&"The Final",'ATP2014'!$BA:$BA,0),MATCH($N95&"The Final",'WTA2014'!$AW:$AW,0)),"N/A") -> N/A | AL95: =IF(K95=30,INDEX(IF(M95="ATP",'ATP2014'!AQ:AQ,'WTA2014'!AM:AM),AK95),"N/A") -> N/A | AM95: Win | AN95: 3 | AO95: 1.1 | AP95: 1.1 | AQ95: 84.69801587 | AR95: JUL2014
A96: 2014-07-30 | B96: Monaco v Nieminen | C96: ATP Kitzbuhel | D96: Nieminem (Match Winner) | E96: 7/4 | F96: Monaco v Nieminen | G96: ATP Kitzbuhel | H96: Nieminem (Match Winner) | I96: 10 | J96: Match Winner | K96: =VLOOKUP(J96,Mapping!$A$5:$B$18,2,0) -> 1 | L96: NO | M96: ATP | N96: Kitzbuhel | O96: 7 | P96: 7 | Q96: 7 | R96: Monaco | S96: Nieminen | T96: 9 | U96: 9 | V96: 10 | W96: Nieminem | X96: N/A | Y96: N/A | Z96: N/A | AA96: KitzbuhelMonacoNieminen | AB96: =IF($M96="ATP",MATCH($AA96,'ATP2014'!$AS:$AS,0),MATCH($AA96,'WTA2014'!$AO:$AO,0)) -> 1857 | AC96: =IF($M96="ATP",MATCH($AA96,'ATP2014'!AT:AT,0),MATCH($AA96,'WTA2014'!$AP:$AP,0)) ->  | AD96: =INDEX(IF(M96="ATP",'ATP2014'!AQ:AQ,'WTA2014'!AM:AM),IF(ISNUMBER(AB96),AB96,AC96)) -> Monaco | AE96: =INDEX(IF($M96="ATP",'ATP2014'!$AU:$AU,'WTA2014'!$AQ:$AQ),IF(ISNUMBER($AB96),$AB96,$AC96)) -> 2 | AF96: =INDEX(IF($M96="ATP",'ATP2014'!$AV:$AV,'WTA2014'!$AR:$AR),IF(ISNUMBER($AB96),$AB96,$AC96)) -> 5 | AG96: =INDEX(IF($M96="ATP",'ATP2014'!$AW:$AW,'WTA2014'!$AS:$AS),IF(ISNUMBER($AB96),$AB96,$AC96)) -> 19 | AH96: =INDEX(IF($M96="ATP",'ATP2014'!$AX:$AX,'WTA2014'!$AT:$AT),IF(ISNUMBER($AB96),$AB96,$AC96)) -> FALSE | AI96: =INDEX(IF($M96="ATP",'ATP2014'!$AY:$AY,'WTA2014'!$AU:$AU),IF(ISNUMBER($AB96),$AB96,$AC96)) -> Monaco | AJ96: =IF(W96=AD96,TRUE,INDEX(IF($M96="ATP",'ATP2014'!$AZ:$AZ,'WTA2014'!$AV:$AV),IF(ISNUMBER($AB96),$AB96,$AC96))) -> FALSE | AK96: =IF(K96=30,IF($M96="ATP",MATCH($N96&"The Final",'ATP2014'!$BA:$BA,0),MATCH($N96&"The Final",'WTA2014'!$AW:$AW,0)),"N/A") -> N/A | AL96: =IF(K96=30,INDEX(IF(M96="ATP",'ATP2014'!AQ:AQ,'WTA2014'!AM:AM),AK96),"N/A") -> N/A | AM96: Loss | AN96: 2 | AO96: 1.75 | AP96: -1 | AQ96: 83.69801587 | AR96: JUL2014
A97: 2014-07-30 | B97: Lorenzi v Andujar | C97: ATP Kitzbuhel | D97: Andujar -2.5 (Games Handicap) | E97: 4/5 | F97: Lorenzi v Andujar | G97: ATP Kitzbuhel | H97: Andujar -2.5 (Games Handicap) | I97: 14 | J97: Games Handicap | K97: =VLOOKUP(J97,Mapping!$A$5:$B$18,2,0) -> 4 | L97: NO | M97: ATP | N97: Kitzbuhel | O97: 8 | P97: 8 | Q97: 8 | R97: Lorenzi | S97: Andujar | T97: 8 | U97: 8 | V97: 14 | W97: Andujar | X97: N/A | Y97: -2.5 | Z97: N/A | AA97: KitzbuhelLorenziAndujar | AB97: =IF($M97="ATP",MATCH($AA97,'ATP2014'!$AS:$AS,0),MATCH($AA97,'WTA2014'!$AO:$AO,0)) -> 1856 | AC97: =IF($M97="ATP",MATCH($AA97,'ATP2014'!AT:AT,0),MATCH($AA97,'WTA2014'!$AP:$AP,0)) ->  | AD97: =INDEX(IF(M97="ATP",'ATP2014'!AQ:AQ,'WTA2014'!AM:AM),IF(ISNUMBER(AB97),AB97,AC97)) -> Lorenzi | AE97: =INDEX(IF($M97="ATP",'ATP2014'!$AU:$AU,'WTA2014'!$AQ:$AQ),IF(ISNUMBER($AB97),$AB97,$AC97)) -> 2 | AF97: =INDEX(IF($M97="ATP",'ATP2014'!$AV:$AV,'WTA2014'!$AR:$AR),IF(ISNUMBER($AB97),$AB97,$AC97)) -> 10 | AG97: =INDEX(IF($M97="ATP",'ATP2014'!$AW:$AW,'WTA2014'!$AS:$AS),IF(ISNUMBER($AB97),$AB97,$AC97)) -> 14 | AH97: =INDEX(IF($M97="ATP",'ATP2014'!$AX:$AX,'WTA2014'!$AT:$AT),IF(ISNUMBER($AB97),$AB97,$AC97)) -> FALSE | AI97: =INDEX(IF($M97="ATP",'ATP2014'!$AY:$AY,'WTA2014'!$AU:$AU),IF(ISNUMBER($AB97),$AB97,$AC97)) -> Lorenzi | AJ97: =IF(W97=AD97,TRUE,INDEX(IF($M97="ATP",'ATP2014'!$AZ:$AZ,'WTA2014'!$AV:$AV),IF(ISNUMBER($AB97),$AB97,$AC97))) -> FALSE | AK97: =IF(K97=30,IF($M97="ATP",MATCH($N97&"The Final",'ATP2014'!$BA:$BA,0),MATCH($N97&"The Final",'WTA2014'!$AW:$AW,0)),"N/A") -> N/A | AL97: =IF(K97=30,INDEX(IF(M97="ATP",'ATP2014'!AQ:AQ,'WTA2014'!AM:AM),AK97),"N/A") -> N/A | AM97: Win | AN97: 2 | AO97: 0.8 | AP97: 0.8 | AQ97: 84.49801587 | AR97: JUL2014
A98: 2014-07-30 | B98: Berdych v Ginepri | C98: ATP Washington | D98: Berdych -1.5 (Set Handicap) | E98: 3/10 | F98: Berdych v Ginepri | G98: ATP Washington | H98: Berdych -1.5 (Set Handicap) | I98: 14 | J98: Set Handicap | K98: =VLOOKUP(J98,Mapping!$A$5:$B$18,2,0) -> 3 | L98: NO | M98: ATP | N98: Washington | O98: 8 | P98: 8 | Q98: 8 | R98: Berdych | S98: Ginepri | T98: 8 | U98: 8 | V98: 14 | W98: Berdych | X98: -1.5 | Y98: N/A | Z98: N/A | AA98: WashingtonBerdychGinepri | AB98: =IF($M98="ATP",MATCH($AA98,'ATP2014'!$AS:$AS,0),MATCH($AA98,'WTA2014'!$AO:$AO,0)) -> 1898 | AC98: =IF($M98="ATP",MATCH($AA98,'ATP2014'!AT:AT,0),MATCH($AA98,'WTA2014'!$AP:$AP,0)) ->  | AD98: =INDEX(IF(M98="ATP",'ATP2014'!AQ:AQ,'WTA2014'!AM:AM),IF(ISNUMBER(AB98),AB98,AC98)) -> Berdych | AE98: =INDEX(IF($M98="ATP",'ATP2014'!$AU:$AU,'WTA2014'!$AQ:$AQ),IF(ISNUMBER($AB98),$AB98,$AC98)) -> 2 | AF98: =INDEX(IF($M98="ATP",'ATP2014'!$AV:$AV,'WTA2014'!$AR:$AR),IF(ISNUMBER($AB98),$AB98,$AC98)) -> 7 | AG98: =INDEX(IF($M98="ATP",'ATP2014'!$AW:$AW,'WTA2014'!$AS:$AS),IF(ISNUMBER($AB98),$AB98,$AC98)) -> 17 | AH98: =INDEX(IF($M98="ATP",'ATP2014'!$AX:$AX,'WTA2014'!$AT:$AT),IF(ISNUMBER($AB98),$AB98,$AC98)) -> FALSE | AI98: =INDEX(IF($M98="ATP",'ATP2014'!$AY:$AY,'WTA2014'!$AU:$AU),IF(ISNUMBER($AB98),$AB98,$AC98)) -> Berdych | AJ98: =IF(W98=AD98,TRUE,INDEX(IF($M98="ATP",'ATP2014'!$AZ:$AZ,'WTA2014'!$AV:$AV),IF(ISNUMBER($AB98),$AB98,$AC98))) -> TRUE | AK98: =IF(K98=30,IF($M98="ATP",MATCH($N98&"The Final",'ATP2014'!$BA:$BA,0),MATCH($N98&"The Final",'WTA2014'!$AW:$AW,0)),"N/A") -> N/A | AL98: =IF(K98=30,INDEX(IF(M98="ATP",'ATP2014'!AQ:AQ,'WTA2014'!AM:AM),AK98),"N/A") -> N/A | AM98: Win | AN98: 2 | AO98: =VALUE(LEFT(E98,AN98-1))/VALUE(RIGHT(E98,LEN(E98)-AN98))*1 -> 0.3 | AP98: 0.3 | AQ98: 84.79801587 | AR98: JUL2014
A99: 2014-07-30 | B99: Sock v Raonic | C99: ATP Washington | D99: Sock (To win a set Yes) | E99: 11/10 | F99: Sock v Raonic | G99: ATP Washington | H99: Sock (To win a set Yes) | I99: 6 | J99: To win a set Yes | K99: =VLOOKUP(J99,Mapping!$A$5:$B$18,2,0) -> 11 | L99: NO | M99: ATP | N99: Washington | O99: 5 | P99: 5 | Q99: 5 | R99: Sock | S99: Raonic | T99: 5 | U99: 5 | V99: 6 | W99: Sock | X99: N/A | Y99: N/A | Z99: N/A | AA99: WashingtonSockRaonic | AB99: =IF($M99="ATP",MATCH($AA99,'ATP2014'!$AS:$AS,0),MATCH($AA99,'WTA2014'!$AO:$AO,0)) ->  | AC99: =IF($M99="ATP",MATCH($AA99,'ATP2014'!AT:AT,0),MATCH($AA99,'WTA2014'!$AP:$AP,0)) -> 1896 | AD99: =INDEX(IF(M99="ATP",'ATP2014'!AQ:AQ,'WTA2014'!AM:AM),IF(ISNUMBER(AB99),AB99,AC99)) -> Raonic | AE99: =INDEX(IF($M99="ATP",'ATP2014'!$AU:$AU,'WTA2014'!$AQ:$AQ),IF(ISNUMBER($AB99),$AB99,$AC99)) -> 2 | AF99: =INDEX(IF($M99="ATP",'ATP2014'!$AV:$AV,'WTA2014'!$AR:$AR),IF(ISNUMBER($AB99),$AB99,$AC99)) -> 2 | AG99: =INDEX(IF($M99="ATP",'ATP2014'!$AW:$AW,'WTA2014'!$AS:$AS),IF(ISNUMBER($AB99),$AB99,$AC99)) -> 26 | AH99: =INDEX(IF($M99="ATP",'ATP2014'!$AX:$AX,'WTA2014'!$AT:$AT),IF(ISNUMBER($AB99),$AB99,$AC99)) -> TRUE | AI99: =INDEX(IF($M99="ATP",'ATP2014'!$AY:$AY,'WTA2014'!$AU:$AU),IF(ISNUMBER($AB99),$AB99,$AC99)) -> Raonic | AJ99: =IF(W99=AD99,TRUE,INDEX(IF($M99="ATP",'ATP2014'!$AZ:$AZ,'WTA2014'!$AV:$AV),IF(ISNUMBER($AB99),$AB99,$AC99))) -> FALSE | AK99: =IF(K99=30,IF($M99="ATP",MATCH($N99&"The Final",'ATP2014'!$BA:$BA,0),MATCH($N99&"The Final",'WTA2014'!$AW:$AW,0)),"N/A") -> N/A | AL99: =IF(K99=30,INDEX(IF(M99="ATP",'ATP2014'!AQ:AQ,'WTA2014'!AM:AM),AK99),"N/A") -> N/A | AM99: Loss | AN99: 3 | AO99: 1.1 | AP99: -1 | AQ99: 83.79801587 | AR99: JUL2014
A100: 2014-07-30 | B100: Ram v Pospisil | C100: ATP Washington | D100: Pospisil -3.5 (Games Handicap) | E100: 11/10 | F100: Ram v Pospisil | G100: ATP Washington | H100: Pospisil -3.5 (Games Handicap) | I100: 15 | J100: Games Handicap | K100: =VLOOKUP(J100,Mapping!$A$5:$B$18,2,0) -> 4 | L100: NO | M100: ATP | N100: Washington | O100: 4 | P100: 4 | Q100: 4 | R100: Ram | S100: Pospisil | T100: 9 | U100: 9 | V100: 15 | W100: Pospisil | X100: N/A | Y100: -3.5 | Z100: N/A | AA100: WashingtonRamPospisil | AB100: =IF($M100="ATP",MATCH($AA100,'ATP2014'!$AS:$AS,0),MATCH($AA100,'WTA2014'!$AO:$AO,0)) ->  | AC100: =IF($M100="ATP",MATCH($AA100,'ATP2014'!AT:AT,0),MATCH($AA100,'WTA2014'!$AP:$AP,0)) -> 1897 | AD100: =INDEX(IF(M100="ATP",'ATP2014'!AQ:AQ,'WTA2014'!AM:AM),IF(ISNUMBER(AB100),AB100,AC100)) -> Pospisil | AE100: =INDEX(IF($M100="ATP",'ATP2014'!$AU:$AU,'WTA2014'!$AQ:$AQ),IF(ISNUMBER($AB100),$AB100,$AC100)) -> 2 | AF100: =INDEX(IF($M100="ATP",'ATP2014'!$AV:$AV,'WTA2014'!$AR:$AR),IF(ISNUMBER($AB100),$AB100,$AC100)) -> 7 | AG100: =INDEX(IF($M100="ATP",'ATP2014'!$AW:$AW,'WTA2014'!$AS:$AS),IF(ISNUMBER($AB100),$AB100,$AC100)) -> 19 | AH100: =INDEX(IF($M100="ATP",'ATP2014'!$AX:$AX,'WTA2014'!$AT:$AT),IF(ISNUMBER($AB100),$AB100,$AC100)) -> TRUE | AI100: =INDEX(IF($M100="ATP",'ATP2014'!$AY:$AY,'WTA2014'!$AU:$AU),IF(ISNUMBER($AB100),$AB100,$AC100)) -> Pospisil | AJ100: =IF(W100=AD100,TRUE,INDEX(IF($M100="ATP",'ATP2014'!$AZ:$AZ,'WTA2014'!$AV:$AV),IF(ISNUMBER($AB100),$AB100,$AC100))) -> TRUE | AK100: =IF(K100=30,IF($M100="ATP",MATCH($N100&"The Final",'ATP2014'!$BA:$BA,0),MATCH($N100&"The Final",'WTA2014'!$AW:$AW,0)),"N/A") -> N/A | AL100: =IF(K100=30,INDEX(IF(M100="ATP",'ATP2014'!AQ:AQ,'WTA2014'!AM:AM),AK100),"N/A") -> N/A | AM100: Win | AN100: 3 | AO100: 1.1 | AP100: 1.1 | AQ100: 84.89801587 | AR100: JUL2014
A101: 2014-07-31 | B101: King v McHale | C101: WTA Washington | D101: McHale -1.5 (Set Handicap) | E101: 6/5 | F101: King v McHale | G101: WTA Washington | H101: McHale -1.5 (Set Handicap) | I101: 13 | J101: Set Handicap | K101: =VLOOKUP(J101,Mapping!$A$5:$B$18,2,0) -> 3 | L101: NO | M101: WTA | N101: Washington | O101: 5 | P101: 5 | Q101: 5 | R101: King | S101: McHale | T101: 7 | U101: 7 | V101: 13 | W101: McHale | X101: -1.5 | Y101: N/A | Z101: N/A | AA101: WashingtonKingMcHale | AB101: =IF($M101="ATP",MATCH($AA101,'ATP2014'!$AS:$AS,0),MATCH($AA101,'WTA2014'!$AO:$AO,0)) -> 1726 | AC101: =IF($M101="ATP",MATCH($AA101,'ATP2014'!AT:AT,0),MATCH($AA101,'WTA2014'!$AP:$AP,0)) ->  | AD101: =INDEX(IF(M101="ATP",'ATP2014'!AQ:AQ,'WTA2014'!AM:AM),IF(ISNUMBER(AB101),AB101,AC101)) -> King | AE101: =INDEX(IF($M101="ATP",'ATP2014'!$AU:$AU,'WTA2014'!$AQ:$AQ),IF(ISNUMBER($AB101),$AB101,$AC101)) -> 2 | AF101: =INDEX(IF($M101="ATP",'ATP2014'!$AV:$AV,'WTA2014'!$AR:$AR),IF(ISNUMBER($AB101),$AB101,$AC101)) -> 8 | AG101: =INDEX(IF($M101="ATP",'ATP2014'!$AW:$AW,'WTA2014'!$AS:$AS),IF(ISNUMBER($AB101),$AB101,$AC101)) -> 16 | AH101: =INDEX(IF($M101="ATP",'ATP2014'!$AX:$AX,'WTA2014'!$AT:$AT),IF(ISNUMBER($AB101),$AB101,$AC101)) -> FALSE | AI101: =INDEX(IF($M101="ATP",'ATP2014'!$AY:$AY,'WTA2014'!$AU:$AU),IF(ISNUMBER($AB101),$AB101,$AC101)) -> King | AJ101: =IF(W101=AD101,TRUE,INDEX(IF($M101="ATP",'ATP2014'!$AZ:$AZ,'WTA2014'!$AV:$AV),IF(ISNUMBER($AB101),$AB101,$AC101))) -> FALSE | AK101: =IF(K101=30,IF($M101="ATP",MATCH($N101&"The Final",'ATP2014'!$BA:$BA,0),MATCH($N101&"The Final",'WTA2014'!$AW:$AW,0)),"N/A") -> N/A | AL101: =IF(K101=30,INDEX(IF(M101="ATP",'ATP2014'!AQ:AQ,'WTA2014'!AM:AM),AK101),"N/A") -> N/A | AM101: Loss | AN101: 2 | AO101: 1.2 | AP101: -1 | AQ101: 83.89801587 | AR101: JUL2014
A102: 2014-07-31 | B102: Granollers v Schwartzman | C102: ATP Kitzbuhel | D102: Granollers (Match Winner) | E102: 4/7 | F102: Granollers v Schwartzman | G102: ATP Kitzbuhel | H102: Granollers (Match Winner) | I102: 12 | J102: Match Winner | K102: =VLOOKUP(J102,Mapping!$A$5:$B$18,2,0) -> 1 | L102: NO | M102: ATP | N102: Kitzbuhel | O102: 11 | P102: 11 | Q102: 11 | R102: Granollers | S102: Schwartzman | T102: 11 | U102: 11 | V102: 12 | W102: Granollers | X102: N/A | Y102: N/A | Z102: N/A | AA102: KitzbuhelGranollersSchwartzman | AB102: =IF($M102="ATP",MATCH($AA102,'ATP2014'!$AS:$AS,0),MATCH($AA102,'WTA2014'!$AO:$AO,0)) -> 1860 | AC102: =IF($M102="ATP",MATCH($AA102,'ATP2014'!AT:AT,0),MATCH($AA102,'WTA2014'!$AP:$AP,0)) ->  | AD102: =INDEX(IF(M102="ATP",'ATP2014'!AQ:AQ,'WTA2014'!AM:AM),IF(ISNUMBER(AB102),AB102,AC102)) -> Granollers | AE102: =INDEX(IF($M102="ATP",'ATP2014'!$AU:$AU,'WTA2014'!$AQ:$AQ),IF(ISNUMBER($AB102),$AB102,$AC102)) -> 2 | AF102: =INDEX(IF($M102="ATP",'ATP2014'!$AV:$AV,'WTA2014'!$AR:$AR),IF(ISNUMBER($AB102),$AB102,$AC102)) -> 5 | AG102: =INDEX(IF($M102="ATP",'ATP2014'!$AW:$AW,'WTA2014'!$AS:$AS),IF(ISNUMBER($AB102),$AB102,$AC102)) -> 19 | AH102: =INDEX(IF($M102="ATP",'ATP2014'!$AX:$AX,'WTA2014'!$AT:$AT),IF(ISNUMBER($AB102),$AB102,$AC102)) -> FALSE | AI102: =INDEX(IF($M102="ATP",'ATP2014'!$AY:$AY,'WTA2014'!$AU:$AU),IF(ISNUMBER($AB102),$AB102,$AC102)) -> Granollers | AJ102: =IF(W102=AD102,TRUE,INDEX(IF($M102="ATP",'ATP2014'!$AZ:$AZ,'WTA2014'!$AV:$AV),IF(ISNUMBER($AB102),$AB102,$AC102))) -> TRUE | AK102: =IF(K102=30,IF($M102="ATP",MATCH($N102&"The Final",'ATP2014'!$BA:$BA,0),MATCH($N102&"The Final",'WTA2014'!$AW:$AW,0)),"N/A") -> N/A | AL102: =IF(K102=30,INDEX(IF(M102="ATP",'ATP2014'!AQ:AQ,'WTA2014'!AM:AM),AK102),"N/A") -> N/A | AM102: Win | AN102: 2 | AO102: 0.5714285714 | AP102: 0.5714285714 | AQ102: 84.46944444 | AR102: JUL2014
A103: 2014-07-31 | B103: Rosol v Gonzalez | C103: ATP Kitzbuhel | D103: Rosol 2-0 (Set Betting) | E103: 6/4 | F103: Rosol v Gonzalez | G103: ATP Kitzbuhel | H103: Rosol 2-0 (Set Betting) | I103: 11 | J103: Set Betting | K103: =VLOOKUP(J103,Mapping!$A$5:$B$18,2,0) -> 2 | L103: NO | M103: ATP | N103: Kitzbuhel | O103: 6 | P103: 6 | Q103: 6 | R103: Rosol | S103: Gonzalez | T103: 6 | U103: 6 | V103: 11 | W103: Rosol | X103: 2 | Y103: N/A | Z103: N/A | AA103: KitzbuhelRosolGonzalez | AB103: =IF($M103="ATP",MATCH($AA103,'ATP2014'!$AS:$AS,0),MATCH($AA103,'WTA2014'!$AO:$AO,0)) ->  | AC103: =IF($M103="ATP",MATCH($AA103,'ATP2014'!AT:AT,0),MATCH($AA103,'WTA2014'!$AP:$AP,0)) -> 1861 | AD103: =INDEX(IF(M103="ATP",'ATP2014'!AQ:AQ,'WTA2014'!AM:AM),IF(ISNUMBER(AB103),AB103,AC103)) -> Gonzalez | AE103: =INDEX(IF($M103="ATP",'ATP2014'!$AU:$AU,'WTA2014'!$AQ:$AQ),IF(ISNUMBER($AB103),$AB103,$AC103)) -> 1 | AF103: =INDEX(IF($M103="ATP",'ATP2014'!$AV:$AV,'WTA2014'!$AR:$AR),IF(ISNUMBER($AB103),$AB103,$AC103)) -> 4 | AG103: =INDEX(IF($M103="ATP",'ATP2014'!$AW:$AW,'WTA2014'!$AS:$AS),IF(ISNUMBER($AB103),$AB103,$AC103)) -> 28 | AH103: =INDEX(IF($M103="ATP",'ATP2014'!$AX:$AX,'WTA2014'!$AT:$AT),IF(ISNUMBER($AB103),$AB103,$AC103)) -> FALSE | AI103: =INDEX(IF($M103="ATP",'ATP2014'!$AY:$AY,'WTA2014'!$AU:$AU),IF(ISNUMBER($AB103),$AB103,$AC103)) -> Gonzalez | AJ103: =IF(W103=AD103,TRUE,INDEX(IF($M103="ATP",'ATP2014'!$AZ:$AZ,'WTA2014'!$AV:$AV),IF(ISNUMBER($AB103),$AB103,$AC103))) -> TRUE | AK103: =IF(K103=30,IF($M103="ATP",MATCH($N103&"The Final",'ATP2014'!$BA:$BA,0),MATCH($N103&"The Final",'WTA2014'!$AW:$AW,0)),"N/A") -> N/A | AL103: =IF(K103=30,INDEX(IF(M103="ATP",'ATP2014'!AQ:AQ,'WTA2014'!AM:AM),AK103),"N/A") -> N/A | AM103: Loss | AN103: 2 | AO103: 1.5 | AP103: -1 | AQ103: 83.46944444 | AR103: JUL2014
A104: 2014-07-31 | B104: Sela v Gasquet | C104: ATP Washington | D104: Sela +3.5 (Games Handicap) | E104: 5/6 | F104: Sela v Gasquet | G104: ATP Washington | H104: Sela +3.5 (Games Handicap) | I104: 11 | J104: Games Handicap | K104: =VLOOKUP(J104,Mapping!$A$5:$B$18,2,0) -> 4 | L104: NO | M104: ATP | N104: Washington | O104: 5 | P104: 5 | Q104: 5 | R104: Sela | S104: Gasquet | T104: 5 | U104: 5 | V104: 11 | W104: Sela | X104: N/A | Y104: 3.5 | Z104: N/A | AA104: WashingtonSelaGasquet | AB104: =IF($M104="ATP",MATCH($AA104,'ATP2014'!$AS:$AS,0),MATCH($AA104,'WTA2014'!$AO:$AO,0)) ->  | AC104: =IF($M104="ATP",MATCH($AA104,'ATP2014'!AT:AT,0),MATCH($AA104,'WTA2014'!$AP:$AP,0)) -> 1899 | AD104: =INDEX(IF(M104="ATP",'ATP2014'!AQ:AQ,'WTA2014'!AM:AM),IF(ISNUMBER(AB104),AB104,AC104)) -> Gasquet | AE104: =INDEX(IF($M104="ATP",'ATP2014'!$AU:$AU,'WTA2014'!$AQ:$AQ),IF(ISNUMBER($AB104),$AB104,$AC104)) -> 2 | AF104: =INDEX(IF($M104="ATP",'ATP2014'!$AV:$AV,'WTA2014'!$AR:$AR),IF(ISNUMBER($AB104),$AB104,$AC104)) -> 7 | AG104: =INDEX(IF($M104="ATP",'ATP2014'!$AW:$AW,'WTA2014'!$AS:$AS),IF(ISNUMBER($AB104),$AB104,$AC104)) -> 17 | AH104: =INDEX(IF($M104="ATP",'ATP2014'!$AX:$AX,'WTA2014'!$AT:$AT),IF(ISNUMBER($AB104),$AB104,$AC104)) -> FALSE | AI104: =INDEX(IF($M104="ATP",'ATP2014'!$AY:$AY,'WTA2014'!$AU:$AU),IF(ISNUMBER($AB104),$AB104,$AC104)) -> Gasquet | AJ104: =IF(W104=AD104,TRUE,INDEX(IF($M104="ATP",'ATP2014'!$AZ:$AZ,'WTA2014'!$AV:$AV),IF(ISNUMBER($AB104),$AB104,$AC104))) -> FALSE | AK104: =IF(K104=30,IF($M104="ATP",MATCH($N104&"The Final",'ATP2014'!$BA:$BA,0),MATCH($N104&"The Final",'WTA2014'!$AW:$AW,0)),"N/A") -> N/A | AL104: =IF(K104=30,INDEX(IF(M104="ATP",'ATP2014'!AQ:AQ,'WTA2014'!AM:AM),AK104),"N/A") -> N/A | AM104: Win | AN104: 2 | AO104: 0.8333333333 | AP104: 0.8333333333 | AQ104: 84.30277778 | AR104: JUL2014
A105: 2014-07-31 | B105: Anderson v Jaziri | C105: ATP Washington | D105: Anderson 2-0 (Set Betting) | E105: 8/15 | F105: Anderson v Jaziri | G105: ATP Washington | H105: Anderson 2-0 (Set Betting) | I105: 14 | J105: Set Betting | K105: =VLOOKUP(J105,Mapping!$A$5:$B$18,2,0) -> 2 | L105: NO | M105: ATP | N105: Washington | O105: 9 | P105: 9 | Q105: 9 | R105: Anderson | S105: Jaziri | T105: 9 | U105: 9 | V105: 14 | W105: Anderson | X105: 2 | Y105: N/A | Z105: N/A | AA105: WashingtonAndersonJaziri | AB105: =IF($M105="ATP",MATCH($AA105,'ATP2014'!$AS:$AS,0),MATCH($AA105,'WTA2014'!$AO:$AO,0)) -> 1901 | AC105: =IF($M105="ATP",MATCH($AA105,'ATP2014'!AT:AT,0),MATCH($AA105,'WTA2014'!$AP:$AP,0)) ->  | AD105: =INDEX(IF(M105="ATP",'ATP2014'!AQ:AQ,'WTA2014'!AM:AM),IF(ISNUMBER(AB105),AB105,AC105)) -> Anderson | AE105: =INDEX(IF($M105="ATP",'ATP2014'!$AU:$AU,'WTA2014'!$AQ:$AQ),IF(ISNUMBER($AB105),$AB105,$AC105)) -> 2 | AF105: =INDEX(IF($M105="ATP",'ATP2014'!$AV:$AV,'WTA2014'!$AR:$AR),IF(ISNUMBER($AB105),$AB105,$AC105)) -> 5 | AG105: =INDEX(IF($M105="ATP",'ATP2014'!$AW:$AW,'WTA2014'!$AS:$AS),IF(ISNUMBER($AB105),$AB105,$AC105)) -> 19 | AH105: =INDEX(IF($M105="ATP",'ATP2014'!$AX:$AX,'WTA2014'!$AT:$AT),IF(ISNUMBER($AB105),$AB105,$AC105)) -> FALSE | AI105: =INDEX(IF($M105="ATP",'ATP2014'!$AY:$AY,'WTA2014'!$AU:$AU),IF(ISNUMBER($AB105),$AB105,$AC105)) -> Anderson | AJ105: =IF(W105=AD105,TRUE,INDEX(IF($M105="ATP",'ATP2014'!$AZ:$AZ,'WTA2014'!$AV:$AV),IF(ISNUMBER($AB105),$AB105,$AC105))) -> TRUE | AK105: =IF(K105=30,IF($M105="ATP",MATCH($N105&"The Final",'ATP2014'!$BA:$BA,0),MATCH($N105&"The Final",'WTA2014'!$AW:$AW,0)),"N/A") -> N/A | AL105: =IF(K105=30,INDEX(IF(M105="ATP",'ATP2014'!AQ:AQ,'WTA2014'!AM:AM),AK105),"N/A") -> N/A | AM105: Win | AN105: 2 | AO105: 0.5333333333 | AP105: 0.5333333333 | AQ105: 84.83611111 | AR105: JUL2014
A106: 2014-07-31 | B106: Klein v Bozoljac | C106: Challenger Tour 2014 | D106: Klein (Match Winner) | E106: 15/8 | F106: Klein v Bozoljac | G106: Challenger Tour 2014 | H106: Klein (Match Winner) | I106: 7 | J106: Match Winner | K106: =VLOOKUP(J106,Mapping!$A$5:$B$18,2,0) -> 1 | L106: NO | M106: Challenger | N106: Tour 2014 | O106: 6 | P106: 6 | Q106: 6 | R106: Klein | S106: Bozoljac | T106: 6 | U106: 6 | V106: 7 | W106: Klein | X106: N/A | Y106: N/A | Z106: N/A | AA106: Tour 2014KleinBozoljac | AB106: =IF($M106="ATP",MATCH($AA106,'ATP2014'!$AS:$AS,0),MATCH($AA106,'WTA2014'!$AO:$AO,0)) ->  | AC106: =IF($M106="ATP",MATCH($AA106,'ATP2014'!AT:AT,0),MATCH($AA106,'WTA2014'!$AP:$AP,0)) ->  | AD106: Klein | AE106: =INDEX(IF($M106="ATP",'ATP2014'!$AU:$AU,'WTA2014'!$AQ:$AQ),IF(ISNUMBER($AB106),$AB106,$AC106)) ->  | AF106: =INDEX(IF($M106="ATP",'ATP2014'!$AV:$AV,'WTA2014'!$AR:$AR),IF(ISNUMBER($AB106),$AB106,$AC106)) ->  | AG106: =INDEX(IF($M106="ATP",'ATP2014'!$AW:$AW,'WTA2014'!$AS:$AS),IF(ISNUMBER($AB106),$AB106,$AC106)) ->  | AH106: =INDEX(IF($M106="ATP",'ATP2014'!$AX:$AX,'WTA2014'!$AT:$AT),IF(ISNUMBER($AB106),$AB106,$AC106)) ->  | AI106: =INDEX(IF($M106="ATP",'ATP2014'!$AY:$AY,'WTA2014'!$AU:$AU),IF(ISNUMBER($AB106),$AB106,$AC106)) ->  | AJ106: =IF(W106=AD106,TRUE,INDEX(IF($M106="ATP",'ATP2014'!$AZ:$AZ,'WTA2014'!$AV:$AV),IF(ISNUMBER($AB106),$AB106,$AC106))) -> TRUE | AK106: =IF(K106=30,IF($M106="ATP",MATCH($N106&"The Final",'ATP2014'!$BA:$BA,0),MATCH($N106&"The Final",'WTA2014'!$AW:$AW,0)),"N/A") -> N/A | AL106: =IF(K106=30,INDEX(IF(M106="ATP",'ATP2014'!AQ:AQ,'WTA2014'!AM:AM),AK106),"N/A") -> N/A | AM106: Win | AN106: 3 | AO106: 1.875 | AP106: 1.875 | AQ106: 86.71111111 | AR106: JUL2014
A107: 2014-07-31 | B107: Azarenka v Williams | C107: WTA Stanford | D107: Azarenka (Match Winner) | E107: 1/1 | F107: Azarenka v Williams | G107: WTA Stanford | H107: Azarenka (Match Winner) | I107: 10 | J107: Match Winner | K107: =VLOOKUP(J107,Mapping!$A$5:$B$18,2,0) -> 1 | L107: NO | M107: WTA | N107: Stanford | O107: 9 | P107: 9 | Q107: 9 | R107: Azarenka | S107: Williams | T107: 9 | U107: 9 | V107: 10 | W107: Azarenka | X107: N/A | Y107: N/A | Z107: N/A | AA107: StanfordAzarenkaWilliams | AB107: =IF($M107="ATP",MATCH($AA107,'ATP2014'!$AS:$AS,0),MATCH($AA107,'WTA2014'!$AO:$AO,0)) ->  | AC107: =IF($M107="ATP",MATCH($AA107,'ATP2014'!AT:AT,0),MATCH($AA107,'WTA2014'!$AP:$AP,0)) -> 1696 | AD107: =INDEX(IF(M107="ATP",'ATP2014'!AQ:AQ,'WTA2014'!AM:AM),IF(ISNUMBER(AB107),AB107,AC107)) -> Williams | AE107: =INDEX(IF($M107="ATP",'ATP2014'!$AU:$AU,'WTA2014'!$AQ:$AQ),IF(ISNUMBER($AB107),$AB107,$AC107)) -> 2 | AF107: =INDEX(IF($M107="ATP",'ATP2014'!$AV:$AV,'WTA2014'!$AR:$AR),IF(ISNUMBER($AB107),$AB107,$AC107)) -> 3 | AG107: =INDEX(IF($M107="ATP",'ATP2014'!$AW:$AW,'WTA2014'!$AS:$AS),IF(ISNUMBER($AB107),$AB107,$AC107)) -> 23 | AH107: =INDEX(IF($M107="ATP",'ATP2014'!$AX:$AX,'WTA2014'!$AT:$AT),IF(ISNUMBER($AB107),$AB107,$AC107)) -> TRUE | AI107: =INDEX(IF($M107="ATP",'ATP2014'!$AY:$AY,'WTA2014'!$AU:$AU),IF(ISNUMBER($AB107),$AB107,$AC107)) -> Williams | AJ107: =IF(W107=AD107,TRUE,INDEX(IF($M107="ATP",'ATP2014'!$AZ:$AZ,'WTA2014'!$AV:$AV),IF(ISNUMBER($AB107),$AB107,$AC107))) -> FALSE | AK107: =IF(K107=30,IF($M107="ATP",MATCH($N107&"The Final",'ATP2014'!$BA:$BA,0),MATCH($N107&"The Final",'WTA2014'!$AW:$AW,0)),"N/A") -> N/A | AL107: =IF(K107=30,INDEX(IF(M107="ATP",'ATP2014'!AQ:AQ,'WTA2014'!AM:AM),AK107),"N/A") -> N/A | AM107: Loss | AN107: 2 | AO107: 1 | AP107: -1 | AQ107: 85.71111111 | AR107: JUL2014
A108: 2014-07-31 | B108: Pospisil v Berdych | C108: ATP Washington | D108: Pospisil +4.5 (Games Handicap) | E108: 4/5 | F108: Pospisil v Berdych | G108: ATP Washington | H108: Pospisil +4.5 (Games Handicap) | I108: 15 | J108: Games Handicap | K108: =VLOOKUP(J108,Mapping!$A$5:$B$18,2,0) -> 4 | L108: NO | M108: ATP | N108: Washington | O108: 9 | P108: 9 | Q108: 9 | R108: Pospisil | S108: Berdych | T108: 9 | U108: 9 | V108: 15 | W108: Pospisil | X108: N/A | Y108: 4.5 | Z108: N/A | AA108: WashingtonPospisilBerdych | AB108: =IF($M108="ATP",MATCH($AA108,'ATP2014'!$AS:$AS,0),MATCH($AA108,'WTA2014'!$AO:$AO,0)) -> 1905 | AC108: =IF($M108="ATP",MATCH($AA108,'ATP2014'!AT:AT,0),MATCH($AA108,'WTA2014'!$AP:$AP,0)) ->  | AD108: =INDEX(IF(M108="ATP",'ATP2014'!AQ:AQ,'WTA2014'!AM:AM),IF(ISNUMBER(AB108),AB108,AC108)) -> Pospisil | AE108: =INDEX(IF($M108="ATP",'ATP2014'!$AU:$AU,'WTA2014'!$AQ:$AQ),IF(ISNUMBER($AB108),$AB108,$AC108)) -> 2 | AF108: =INDEX(IF($M108="ATP",'ATP2014'!$AV:$AV,'WTA2014'!$AR:$AR),IF(ISNUMBER($AB108),$AB108,$AC108)) -> 6 | AG108: =INDEX(IF($M108="ATP",'ATP2014'!$AW:$AW,'WTA2014'!$AS:$AS),IF(ISNUMBER($AB108),$AB108,$AC108)) -> 18 | AH108: =INDEX(IF($M108="ATP",'ATP2014'!$AX:$AX,'WTA2014'!$AT:$AT),IF(ISNUMBER($AB108),$AB108,$AC108)) -> FALSE | AI108: =INDEX(IF($M108="ATP",'ATP2014'!$AY:$AY,'WTA2014'!$AU:$AU),IF(ISNUMBER($AB108),$AB108,$AC108)) -> Pospisil | AJ108: =IF(W108=AD108,TRUE,INDEX(IF($M108="ATP",'ATP2014'!$AZ:$AZ,'WTA2014'!$AV:$AV),IF(ISNUMBER($AB108),$AB108,$AC108))) -> TRUE | AK108: =IF(K108=30,IF($M108="ATP",MATCH($N108&"The Final",'ATP2014'!$BA:$BA,0),MATCH($N108&"The Final",'WTA2014'!$AW:$AW,0)),"N/A") -> N/A | AL108: =IF(K108=30,INDEX(IF(M108="ATP",'ATP2014'!AQ:AQ,'WTA2014'!AM:AM),AK108),"N/A") -> N/A | AM108: Win | AN108: 2 | AO108: 0.8 | AP108: 0.8 | AQ108: 86.51111111 | AR108: JUL2014
A109: 2014-08-01 | B109: Monaco v Seppi | C109: ATP Kitzbuhel | D109: Monaco -2.5 (Games Handicap) | E109: 10/11 | F109: Monaco v Seppi | G109: ATP Kitzbuhel | H109: Monaco -2.5 (Games Handicap) | I109: 13 | J109: Games Handicap | K109: =VLOOKUP(J109,Mapping!$A$5:$B$18,2,0) -> 4 | L109: NO | M109: ATP | N109: Kitzbuhel | O109: 7 | P109: 7 | Q109: 7 | R109: Monaco | S109: Seppi | T109: 7 | U109: 7 | V109: 13 | W109: Monaco | X109: N/A | Y109: -2.5 | Z109: N/A | AA109: KitzbuhelMonacoSeppi | AB109: =IF($M109="ATP",MATCH($AA109,'ATP2014'!$AS:$AS,0),MATCH($AA109,'WTA2014'!$AO:$AO,0)) -> 1863 | AC109: =IF($M109="ATP",MATCH($AA109,'ATP2014'!AT:AT,0),MATCH($AA109,'WTA2014'!$AP:$AP,0)) ->  | AD109: =INDEX(IF(M109="ATP",'ATP2014'!AQ:AQ,'WTA2014'!AM:AM),IF(ISNUMBER(AB109),AB109,AC109)) -> Monaco | AE109: =INDEX(IF($M109="ATP",'ATP2014'!$AU:$AU,'WTA2014'!$AQ:$AQ),IF(ISNUMBER($AB109),$AB109,$AC109)) -> 1 | AF109: =INDEX(IF($M109="ATP",'ATP2014'!$AV:$AV,'WTA2014'!$AR:$AR),IF(ISNUMBER($AB109),$AB109,$AC109)) -> 4 | AG109: =INDEX(IF($M109="ATP",'ATP2014'!$AW:$AW,'WTA2014'!$AS:$AS),IF(ISNUMBER($AB109),$AB109,$AC109)) -> 26 | AH109: =INDEX(IF($M109="ATP",'ATP2014'!$AX:$AX,'WTA2014'!$AT:$AT),IF(ISNUMBER($AB109),$AB109,$AC109)) -> FALSE | AI109: =INDEX(IF($M109="ATP",'ATP2014'!$AY:$AY,'WTA2014'!$AU:$AU),IF(ISNUMBER($AB109),$AB109,$AC109)) -> Monaco | AJ109: =IF(W109=AD109,TRUE,INDEX(IF($M109="ATP",'ATP2014'!$AZ:$AZ,'WTA2014'!$AV:$AV),IF(ISNUMBER($AB109),$AB109,$AC109))) -> TRUE | AK109: =IF(K109=30,IF($M109="ATP",MATCH($N109&"The Final",'ATP2014'!$BA:$BA,0),MATCH($N109&"The Final",'WTA2014'!$AW:$AW,0)),"N/A") -> N/A | AL109: =IF(K109=30,INDEX(IF(M109="ATP",'ATP2014'!AQ:AQ,'WTA2014'!AM:AM),AK109),"N/A") -> N/A | AM109: Win | AN109: 3 | AO109: 0.9090909091 | AP109: 0.9090909091 | AQ109: 87.42020202 | AR109: AUG2014
A110: 2014-08-01 | B110: Raonic v Hewitt | C110: ATP Washington | D110: Raonic (Match Winner) | E110: 4/11 | F110: Raonic v Hewitt | G110: ATP Washington | H110: Raonic (Match Winner) | I110: 8 | J110: Match Winner | K110: =VLOOKUP(J110,Mapping!$A$5:$B$18,2,0) -> 1 | L110: NO | M110: ATP | N110: Washington | O110: 7 | P110: 7 | Q110: 7 | R110: Raonic | S110: Hewitt | T110: 7 | U110: 7 | V110: 8 | W110: Raonic | X110: N/A | Y110: N/A | Z110: N/A | AA110: WashingtonRaonicHewitt | AB110: =IF($M110="ATP",MATCH($AA110,'ATP2014'!$AS:$AS,0),MATCH($AA110,'WTA2014'!$AO:$AO,0)) -> 1903 | AC110: =IF($M110="ATP",MATCH($AA110,'ATP2014'!AT:AT,0),MATCH($AA110,'WTA2014'!$AP:$AP,0)) ->  | AD110: =INDEX(IF(M110="ATP",'ATP2014'!AQ:AQ,'WTA2014'!AM:AM),IF(ISNUMBER(AB110),AB110,AC110)) -> Raonic | AE110: =INDEX(IF($M110="ATP",'ATP2014'!$AU:$AU,'WTA2014'!$AQ:$AQ),IF(ISNUMBER($AB110),$AB110,$AC110)) -> 2 | AF110: =INDEX(IF($M110="ATP",'ATP2014'!$AV:$AV,'WTA2014'!$AR:$AR),IF(ISNUMBER($AB110),$AB110,$AC110)) -> 2 | AG110: =INDEX(IF($M110="ATP",'ATP2014'!$AW:$AW,'WTA2014'!$AS:$AS),IF(ISNUMBER($AB110),$AB110,$AC110)) -> 26 | AH110: =INDEX(IF($M110="ATP",'ATP2014'!$AX:$AX,'WTA2014'!$AT:$AT),IF(ISNUMBER($AB110),$AB110,$AC110)) -> TRUE | AI110: =INDEX(IF($M110="ATP",'ATP2014'!$AY:$AY,'WTA2014'!$AU:$AU),IF(ISNUMBER($AB110),$AB110,$AC110)) -> Raonic | AJ110: =IF(W110=AD110,TRUE,INDEX(IF($M110="ATP",'ATP2014'!$AZ:$AZ,'WTA2014'!$AV:$AV),IF(ISNUMBER($AB110),$AB110,$AC110))) -> TRUE | AK110: =IF(K110=30,IF($M110="ATP",MATCH($N110&"The Final",'ATP2014'!$BA:$BA,0),MATCH($N110&"The Final",'WTA2014'!$AW:$AW,0)),"N/A") -> N/A | AL110: =IF(K110=30,INDEX(IF(M110="ATP",'ATP2014'!AQ:AQ,'WTA2014'!AM:AM),AK110),"N/A") -> N/A | AM110: Win | AN110: 2 | AO110: 0.3636363636 | AP110: 0.3636363636 | AQ110: 87.78383838 | AR110: AUG2014
A111: 2014-08-01 | B111: Anderson v Young | C111: ATP Washington | D111: Anderson -2.5 (Games Handicap) | E111: 4/6 | F111: Anderson v Young | G111: ATP Washington | H111: Anderson -2.5 (Games Handicap) | I111: 15 | J111: Games Handicap | K111: =VLOOKUP(J111,Mapping!$A$5:$B$18,2,0) -> 4 | L111: NO | M111: ATP | N111: Washington | O111: 9 | P111: 9 | Q111: 9 | R111: Anderson | S111: Young | T111: 9 | U111: 9 | V111: 15 | W111: Anderson | X111: N/A | Y111: -2.5 | Z111: N/A | AA111: WashingtonAndersonYoung | AB111: =IF($M111="ATP",MATCH($AA111,'ATP2014'!$AS:$AS,0),MATCH($AA111,'WTA2014'!$AO:$AO,0)) ->  | AC111: =IF($M111="ATP",MATCH($AA111,'ATP2014'!AT:AT,0),MATCH($AA111,'WTA2014'!$AP:$AP,0)) -> 1908 | AD111: =INDEX(IF(M111="ATP",'ATP2014'!AQ:AQ,'WTA2014'!AM:AM),IF(ISNUMBER(AB111),AB111,AC111)) -> Young | AE111: =INDEX(IF($M111="ATP",'ATP2014'!$AU:$AU,'WTA2014'!$AQ:$AQ),IF(ISNUMBER($AB111),$AB111,$AC111)) -> 1 | AF111: =INDEX(IF($M111="ATP",'ATP2014'!$AV:$AV,'WTA2014'!$AR:$AR),IF(ISNUMBER($AB111),$AB111,$AC111)) -> 2 | AG111: =INDEX(IF($M111="ATP",'ATP2014'!$AW:$AW,'WTA2014'!$AS:$AS),IF(ISNUMBER($AB111),$AB111,$AC111)) -> 30 | AH111: =INDEX(IF($M111="ATP",'ATP2014'!$AX:$AX,'WTA2014'!$AT:$AT),IF(ISNUMBER($AB111),$AB111,$AC111)) -> TRUE | AI111: =INDEX(IF($M111="ATP",'ATP2014'!$AY:$AY,'WTA2014'!$AU:$AU),IF(ISNUMBER($AB111),$AB111,$AC111)) -> Anderson | AJ111: =IF(W111=AD111,TRUE,INDEX(IF($M111="ATP",'ATP2014'!$AZ:$AZ,'WTA2014'!$AV:$AV),IF(ISNUMBER($AB111),$AB111,$AC111))) -> TRUE | AK111: =IF(K111=30,IF($M111="ATP",MATCH($N111&"The Final",'ATP2014'!$BA:$BA,0),MATCH($N111&"The Final",'WTA2014'!$AW:$AW,0)),"N/A") -> N/A | AL111: =IF(K111=30,INDEX(IF(M111="ATP",'ATP2014'!AQ:AQ,'WTA2014'!AM:AM),AK111),"N/A") -> N/A | AM111: Loss | AN111: 2 | AO111: 0.6666666667 | AP111: -1 | AQ111: 86.78383838 | AR111: AUG2014
A112: 2014-08-01 | B112: Raonic v Johnson | C112: ATP Washington | D112: Johnson +2.5 (Games Handicap) | E112: 6/5 | F112: Raonic v Johnson | G112: ATP Washington | H112: Johnson +2.5 (Games Handicap) | I112: 14 | J112: Games Handicap | K112: =VLOOKUP(J112,Mapping!$A$5:$B$18,2,0) -> 4 | L112: NO | M112: ATP | N112: Washington | O112: 7 | P112: 7 | Q112: 7 | R112: Raonic | S112: Johnson | T112: 8 | U112: 8 | V112: 14 | W112: Johnson | X112: N/A | Y112: 2.5 | Z112: N/A | AA112: WashingtonRaonicJohnson | AB112: =IF($M112="ATP",MATCH($AA112,'ATP2014'!$AS:$AS,0),MATCH($AA112,'WTA2014'!$AO:$AO,0)) -> 1909 | AC112: =IF($M112="ATP",MATCH($AA112,'ATP2014'!AT:AT,0),MATCH($AA112,'WTA2014'!$AP:$AP,0)) ->  | AD112: =INDEX(IF(M112="ATP",'ATP2014'!AQ:AQ,'WTA2014'!AM:AM),IF(ISNUMBER(AB112),AB112,AC112)) -> Raonic | AE112: =INDEX(IF($M112="ATP",'ATP2014'!$AU:$AU,'WTA2014'!$AQ:$AQ),IF(ISNUMBER($AB112),$AB112,$AC112)) -> 2 | AF112: =INDEX(IF($M112="ATP",'ATP2014'!$AV:$AV,'WTA2014'!$AR:$AR),IF(ISNUMBER($AB112),$AB112,$AC112)) -> 5 | AG112: =INDEX(IF($M112="ATP",'ATP2014'!$AW:$AW,'WTA2014'!$AS:$AS),IF(ISNUMBER($AB112),$AB112,$AC112)) -> 21 | AH112: =INDEX(IF($M112="ATP",'ATP2014'!$AX:$AX,'WTA2014'!$AT:$AT),IF(ISNUMBER($AB112),$AB112,$AC112)) -> TRUE | AI112: =INDEX(IF($M112="ATP",'ATP2014'!$AY:$AY,'WTA2014'!$AU:$AU),IF(ISNUMBER($AB112),$AB112,$AC112)) -> Raonic | AJ112: =IF(W112=AD112,TRUE,INDEX(IF($M112="ATP",'ATP2014'!$AZ:$AZ,'WTA2014'!$AV:$AV),IF(ISNUMBER($AB112),$AB112,$AC112))) -> FALSE | AK112: =IF(K112=30,IF($M112="ATP",MATCH($N112&"The Final",'ATP2014'!$BA:$BA,0),MATCH($N112&"The Final",'WTA2014'!$AW:$AW,0)),"N/A") -> N/A | AL112: =IF(K112=30,INDEX(IF(M112="ATP",'ATP2014'!AQ:AQ,'WTA2014'!AM:AM),AK112),"N/A") -> N/A | AM112: Win | AN112: 2 | AO112: 1.2 | AP112: 1.2 | AQ112: 87.98383838 | AR112: AUG2014
A113: 2014-08-01 | B113: Nishikori v Gasquet | C113: ATP Washington | D113: Kei Nishikori -1.5 (Games Handicap) | E113: 6/5 | F113: Nishikori v Gasquet | G113: ATP Washington | H113: Kei Nishikori -1.5 (Games Handicap) | I113: 20 | J113: Games Handicap | K113: =VLOOKUP(J113,Mapping!$A$5:$B$18,2,0) -> 4 | L113: NO | M113: ATP | N113: Washington | O113: 10 | P113: 10 | Q113: 10 | R113: Nishikori | S113: Gasquet | T113: 4 | U113: 14 | V113: 20 | W113: Nishikori | X113: N/A | Y113: -1.5 | Z113: N/A | AA113: WashingtonNishikoriGasquet | AB113: =IF($M113="ATP",MATCH($AA113,'ATP2014'!$AS:$AS,0),MATCH($AA113,'WTA2014'!$AO:$AO,0)) ->  | AC113: =IF($M113="ATP",MATCH($AA113,'ATP2014'!AT:AT,0),MATCH($AA113,'WTA2014'!$AP:$AP,0)) -> 1910 | AD113: =INDEX(IF(M113="ATP",'ATP2014'!AQ:AQ,'WTA2014'!AM:AM),IF(ISNUMBER(AB113),AB113,AC113)) -> Gasquet | AE113: =INDEX(IF($M113="ATP",'ATP2014'!$AU:$AU,'WTA2014'!$AQ:$AQ),IF(ISNUMBER($AB113),$AB113,$AC113)) -> 2 | AF113: =INDEX(IF($M113="ATP",'ATP2014'!$AV:$AV,'WTA2014'!$AR:$AR),IF(ISNUMBER($AB113),$AB113,$AC113)) -> 7 | AG113: =INDEX(IF($M113="ATP",'ATP2014'!$AW:$AW,'WTA2014'!$AS:$AS),IF(ISNUMBER($AB113),$AB113,$AC113)) -> 17 | AH113: =INDEX(IF($M113="ATP",'ATP2014'!$AX:$AX,'WTA2014'!$AT:$AT),IF(ISNUMBER($AB113),$AB113,$AC113)) -> FALSE | AI113: =INDEX(IF($M113="ATP",'ATP2014'!$AY:$AY,'WTA2014'!$AU:$AU),IF(ISNUMBER($AB113),$AB113,$AC113)) -> Gasquet | AJ113: =IF(W113=AD113,TRUE,INDEX(IF($M113="ATP",'ATP2014'!$AZ:$AZ,'WTA2014'!$AV:$AV),IF(ISNUMBER($AB113),$AB113,$AC113))) -> FALSE | AK113: =IF(K113=30,IF($M113="ATP",MATCH($N113&"The Final",'ATP2014'!$BA:$BA,0),MATCH($N113&"The Final",'WTA2014'!$AW:$AW,0)),"N/A") -> N/A | AL113: =IF(K113=30,INDEX(IF(M113="ATP",'ATP2014'!AQ:AQ,'WTA2014'!AM:AM),AK113),"N/A") -> N/A | AM113: Win | AN113: 2 | AO113: 1.2 | AP113: 1.2 | AQ113: 89.18383838 | AR113: AUG2014
A114: 2014-08-02 | B114: Pospisil v Giraldo | C114: ATP Washington | D114: Pospisil -1.5 (Games Handicap) | E114: 8/11 | F114: Pospisil v Giraldo | G114: ATP Washington | H114: Pospisil -1.5 (Games Handicap) | I114: 15 | J114: Games Handicap | K114: =VLOOKUP(J114,Mapping!$A$5:$B$18,2,0) -> 4 | L114: NO | M114: ATP | N114: Washington | O114: 9 | P114: 9 | Q114: 9 | R114: Pospisil | S114: Giraldo | T114: 9 | U114: 9 | V114: 15 | W114: Pospisil | X114: N/A | Y114: -1.5 | Z114: N/A | AA114: WashingtonPospisilGiraldo | AB114: =IF($M114="ATP",MATCH($AA114,'ATP2014'!$AS:$AS,0),MATCH($AA114,'WTA2014'!$AO:$AO,0)) -> 1911 | AC114: =IF($M114="ATP",MATCH($AA114,'ATP2014'!AT:AT,0),MATCH($AA114,'WTA2014'!$AP:$AP,0)) ->  | AD114: =INDEX(IF(M114="ATP",'ATP2014'!AQ:AQ,'WTA2014'!AM:AM),IF(ISNUMBER(AB114),AB114,AC114)) -> Pospisil | AE114: =INDEX(IF($M114="ATP",'ATP2014'!$AU:$AU,'WTA2014'!$AQ:$AQ),IF(ISNUMBER($AB114),$AB114,$AC114)) -> 1 | AF114: =INDEX(IF($M114="ATP",'ATP2014'!$AV:$AV,'WTA2014'!$AR:$AR),IF(ISNUMBER($AB114),$AB114,$AC114)) -> 4 | AG114: =INDEX(IF($M114="ATP",'ATP2014'!$AW:$AW,'WTA2014'!$AS:$AS),IF(ISNUMBER($AB114),$AB114,$AC114)) -> 32 | AH114: =INDEX(IF($M114="ATP",'ATP2014'!$AX:$AX,'WTA2014'!$AT:$AT),IF(ISNUMBER($AB114),$AB114,$AC114)) -> TRUE | AI114: =INDEX(IF($M114="ATP",'ATP2014'!$AY:$AY,'WTA2014'!$AU:$AU),IF(ISNUMBER($AB114),$AB114,$AC114)) -> Giraldo | AJ114: =IF(W114=AD114,TRUE,INDEX(IF($M114="ATP",'ATP2014'!$AZ:$AZ,'WTA2014'!$AV:$AV),IF(ISNUMBER($AB114),$AB114,$AC114))) -> TRUE | AK114: =IF(K114=30,IF($M114="ATP",MATCH($N114&"The Final",'ATP2014'!$BA:$BA,0),MATCH($N114&"The Final",'WTA2014'!$AW:$AW,0)),"N/A") -> N/A | AL114: =IF(K114=30,INDEX(IF(M114="ATP",'ATP2014'!AQ:AQ,'WTA2014'!AM:AM),AK114),"N/A") -> N/A | AM114: Win | AN114: 2 | AO114: 0.7272727273 | AP114: 0.7272727273 | AQ114: 89.91111111 | AR114: AUG2014
A115: 2014-08-02 | B115: Williams v Ivanovic | C115: WTA Stanford | D115: Ana Ivanovic +4.5 (Games Handicap) | E115: 11/10 | F115: Williams v Ivanovic | G115: WTA Stanford | H115: Ana Ivanovic +4.5 (Games Handicap) | I115: 19 | J115: Games Handicap | K115: =VLOOKUP(J115,Mapping!$A$5:$B$18,2,0) -> 4 | L115: NO | M115: WTA | N115: Stanford | O115: 9 | P115: 9 | Q115: 9 | R115: Williams | S115: Ivanovic | T115: 4 | U115: 13 | V115: 19 | W115: Ivanovic | X115: N/A | Y115: 4.5 | Z115: N/A | AA115: StanfordWilliamsIvanovic | AB115: =IF($M115="ATP",MATCH($AA115,'ATP2014'!$AS:$AS,0),MATCH($AA115,'WTA2014'!$AO:$AO,0)) -> 1700 | AC115: =IF($M115="ATP",MATCH($AA115,'ATP2014'!AT:AT,0),MATCH($AA115,'WTA2014'!$AP:$AP,0)) ->  | AD115: =INDEX(IF(M115="ATP",'ATP2014'!AQ:AQ,'WTA2014'!AM:AM),IF(ISNUMBER(AB115),AB115,AC115)) -> Williams | AE115: =INDEX(IF($M115="ATP",'ATP2014'!$AU:$AU,'WTA2014'!$AQ:$AQ),IF(ISNUMBER($AB115),$AB115,$AC115)) -> 1 | AF115: =INDEX(IF($M115="ATP",'ATP2014'!$AV:$AV,'WTA2014'!$AR:$AR),IF(ISNUMBER($AB115),$AB115,$AC115)) -> 1 | AG115: =INDEX(IF($M115="ATP",'ATP2014'!$AW:$AW,'WTA2014'!$AS:$AS),IF(ISNUMBER($AB115),$AB115,$AC115)) -> 29 | AH115: =INDEX(IF($M115="ATP",'ATP2014'!$AX:$AX,'WTA2014'!$AT:$AT),IF(ISNUMBER($AB115),$AB115,$AC115)) -> FALSE | AI115: =INDEX(IF($M115="ATP",'ATP2014'!$AY:$AY,'WTA2014'!$AU:$AU),IF(ISNUMBER($AB115),$AB115,$AC115)) -> Ivanovic | AJ115: =IF(W115=AD115,TRUE,INDEX(IF($M115="ATP",'ATP2014'!$AZ:$AZ,'WTA2014'!$AV:$AV),IF(ISNUMBER($AB115),$AB115,$AC115))) -> TRUE | AK115: =IF(K115=30,IF($M115="ATP",MATCH($N115&"The Final",'ATP2014'!$BA:$BA,0),MATCH($N115&"The Final",'WTA2014'!$AW:$AW,0)),"N/A") -> N/A | AL115: =IF(K115=30,INDEX(IF(M115="ATP",'ATP2014'!AQ:AQ,'WTA2014'!AM:AM),AK115),"N/A") -> N/A | AM115: Win | AN115: 3 | AO115: 1.1 | AP115: 1.1 | AQ115: 91.01111111 | AR115: AUG2014
A116: 2014-08-02 | B116: Monaco v Thiem | C116: ATP Kitzbuhel | D116: Over 24 (Total Games) | E116: 11/10 | F116: Monaco v Thiem | G116: ATP Kitzbuhel | H116: Over 24 (Total Games) | I116: 9 | J116: Total Games | K116: =VLOOKUP(J116,Mapping!$A$5:$B$18,2,0) -> 5 | L116: NO | M116: ATP | N116: Kitzbuhel | O116: 7 | P116: 7 | Q116: 7 | R116: Monaco | S116: Thiem | T116: 5 | U116: 5 | V116: 9 | W116: Over | X116: N/A | Y116: N/A | Z116: 24 | AA116: KitzbuhelMonacoThiem | AB116: =IF($M116="ATP",MATCH($AA116,'ATP2014'!$AS:$AS,0),MATCH($AA116,'WTA2014'!$AO:$AO,0)) ->  | AC116: =IF($M116="ATP",MATCH($AA116,'ATP2014'!AT:AT,0),MATCH($AA116,'WTA2014'!$AP:$AP,0)) -> 1866 | AD116: =INDEX(IF(M116="ATP",'ATP2014'!AQ:AQ,'WTA2014'!AM:AM),IF(ISNUMBER(AB116),AB116,AC116)) -> Thiem | AE116: =INDEX(IF($M116="ATP",'ATP2014'!$AU:$AU,'WTA2014'!$AQ:$AQ),IF(ISNUMBER($AB116),$AB116,$AC116)) -> 2 | AF116: =INDEX(IF($M116="ATP",'ATP2014'!$AV:$AV,'WTA2014'!$AR:$AR),IF(ISNUMBER($AB116),$AB116,$AC116)) -> 8 | AG116: =INDEX(IF($M116="ATP",'ATP2014'!$AW:$AW,'WTA2014'!$AS:$AS),IF(ISNUMBER($AB116),$AB116,$AC116)) -> 16 | AH116: =INDEX(IF($M116="ATP",'ATP2014'!$AX:$AX,'WTA2014'!$AT:$AT),IF(ISNUMBER($AB116),$AB116,$AC116)) -> FALSE | AI116: =INDEX(IF($M116="ATP",'ATP2014'!$AY:$AY,'WTA2014'!$AU:$AU),IF(ISNUMBER($AB116),$AB116,$AC116)) -> Thiem | AJ116: =IF(W116=AD116,TRUE,INDEX(IF($M116="ATP",'ATP2014'!$AZ:$AZ,'WTA2014'!$AV:$AV),IF(ISNUMBER($AB116),$AB116,$AC116))) -> FALSE | AK116: =IF(K116=30,IF($M116="ATP",MATCH($N116&"The Final",'ATP2014'!$BA:$BA,0),MATCH($N116&"The Final",'WTA2014'!$AW:$AW,0)),"N/A") -> N/A | AL116: =IF(K116=30,INDEX(IF(M116="ATP",'ATP2014'!AQ:AQ,'WTA2014'!AM:AM),AK116),"N/A") -> N/A | AM116: Loss | AN116: 3 | AO116: 1.1 | AP116: -1 | AQ116: 90.01111111 | AR116: AUG2014
A117: 2014-08-02 | B117: Thiem v Goffin | C117: ATP Kitzbuhel | D117: Thiem (Match Winner) | E117: 8/11 | F117: Thiem v Goffin | G117: ATP Kitzbuhel | H117: Thiem (Match Winner) | I117: 7 | J117: Match Winner | K117: =VLOOKUP(J117,Mapping!$A$5:$B$18,2,0) -> 1 | L117: NO | M117: ATP | N117: Kitzbuhel | O117: 6 | P117: 6 | Q117: 6 | R117: Thiem | S117: Goffin | T117: 6 | U117: 6 | V117: 7 | W117: Thiem | X117: N/A | Y117: N/A | Z117: N/A | AA117: KitzbuhelThiemGoffin | AB117: =IF($M117="ATP",MATCH($AA117,'ATP2014'!$AS:$AS,0),MATCH($AA117,'WTA2014'!$AO:$AO,0)) ->  | AC117: =IF($M117="ATP",MATCH($AA117,'ATP2014'!AT:AT,0),MATCH($AA117,'WTA2014'!$AP:$AP,0)) -> 1867 | AD117: =INDEX(IF(M117="ATP",'ATP2014'!AQ:AQ,'WTA2014'!AM:AM),IF(ISNUMBER(AB117),AB117,AC117)) -> Goffin | AE117: =INDEX(IF($M117="ATP",'ATP2014'!$AU:$AU,'WTA2014'!$AQ:$AQ),IF(ISNUMBER($AB117),$AB117,$AC117)) -> 1 | AF117: =INDEX(IF($M117="ATP",'ATP2014'!$AV:$AV,'WTA2014'!$AR:$AR),IF(ISNUMBER($AB117),$AB117,$AC117)) -> 6 | AG117: =INDEX(IF($M117="ATP",'ATP2014'!$AW:$AW,'WTA2014'!$AS:$AS),IF(ISNUMBER($AB117),$AB117,$AC117)) -> 26 | AH117: =INDEX(IF($M117="ATP",'ATP2014'!$AX:$AX,'WTA2014'!$AT:$AT),IF(ISNUMBER($AB117),$AB117,$AC117)) -> FALSE | AI117: =INDEX(IF($M117="ATP",'ATP2014'!$AY:$AY,'WTA2014'!$AU:$AU),IF(ISNUMBER($AB117),$AB117,$AC117)) -> Thiem | AJ117: =IF(W117=AD117,TRUE,INDEX(IF($M117="ATP",'ATP2014'!$AZ:$AZ,'WTA2014'!$AV:$AV),IF(ISNUMBER($AB117),$AB117,$AC117))) -> TRUE | AK117: =IF(K117=30,IF($M117="ATP",MATCH($N117&"The Final",'ATP2014'!$BA:$BA,0),MATCH($N117&"The Final",'WTA2014'!$AW:$AW,0)),"N/A") -> N/A | AL117: =IF(K117=30,INDEX(IF(M117="ATP",'ATP2014'!AQ:AQ,'WTA2014'!AM:AM),AK117),"N/A") -> N/A | AM117: Loss | AN117: 2 | AO117: 0.7272727273 | AP117: -1 | AQ117: 89.01111111 | AR117: AUG2014
A118: 2014-08-02 | B118: Raonic v Young | C118: ATP Washington | D118: Raonic 2-0 (Set Betting) | E118: 4/9 | F118: Raonic v Young | G118: ATP Washington | H118: Raonic 2-0 (Set Betting) | I118: 12 | J118: Set Betting | K118: =VLOOKUP(J118,Mapping!$A$5:$B$18,2,0) -> 2 | L118: NO | M118: ATP | N118: Washington | O118: 7 | P118: 7 | Q118: 7 | R118: Raonic | S118: Young | T118: 7 | U118: 7 | V118: 12 | W118: Raonic | X118: 2 | Y118: N/A | Z118: N/A | AA118: WashingtonRaonicYoung | AB118: =IF($M118="ATP",MATCH($AA118,'ATP2014'!$AS:$AS,0),MATCH($AA118,'WTA2014'!$AO:$AO,0)) -> 1912 | AC118: =IF($M118="ATP",MATCH($AA118,'ATP2014'!AT:AT,0),MATCH($AA118,'WTA2014'!$AP:$AP,0)) ->  | AD118: =INDEX(IF(M118="ATP",'ATP2014'!AQ:AQ,'WTA2014'!AM:AM),IF(ISNUMBER(AB118),AB118,AC118)) -> Raonic | AE118: =INDEX(IF($M118="ATP",'ATP2014'!$AU:$AU,'WTA2014'!$AQ:$AQ),IF(ISNUMBER($AB118),$AB118,$AC118)) -> 2 | AF118: =INDEX(IF($M118="ATP",'ATP2014'!$AV:$AV,'WTA2014'!$AR:$AR),IF(ISNUMBER($AB118),$AB118,$AC118)) -> 4 | AG118: =INDEX(IF($M118="ATP",'ATP2014'!$AW:$AW,'WTA2014'!$AS:$AS),IF(ISNUMBER($AB118),$AB118,$AC118)) -> 22 | AH118: =INDEX(IF($M118="ATP",'ATP2014'!$AX:$AX,'WTA2014'!$AT:$AT),IF(ISNUMBER($AB118),$AB118,$AC118)) -> FALSE | AI118: =INDEX(IF($M118="ATP",'ATP2014'!$AY:$AY,'WTA2014'!$AU:$AU),IF(ISNUMBER($AB118),$AB118,$AC118)) -> Raonic | AJ118: =IF(W118=AD118,TRUE,INDEX(IF($M118="ATP",'ATP2014'!$AZ:$AZ,'WTA2014'!$AV:$AV),IF(ISNUMBER($AB118),$AB118,$AC118))) -> TRUE | AK118: =IF(K118=30,IF($M118="ATP",MATCH($N118&"The Final",'ATP2014'!$BA:$BA,0),MATCH($N118&"The Final",'WTA2014'!$AW:$AW,0)),"N/A") -> N/A | AL118: =IF(K118=30,INDEX(IF(M118="ATP",'ATP2014'!AQ:AQ,'WTA2014'!AM:AM),AK118),"N/A") -> N/A | AM118: Win | AN118: 2 | AO118: 0.4444444444 | AP118: 0.4444444444 | AQ118: 89.45555556 | AR118: AUG2014
A119: 2014-08-02 | B119: Gasquet v Pospisil | C119: ATP Washington | D119: Gasquet (Match Winner) | E119: 4/11 | F119: Gasquet v Pospisil | G119: ATP Washington | H119: Gasquet (Match Winner) | I119: 9 | J119: Match Winner | K119: =VLOOKUP(J119,Mapping!$A$5:$B$18,2,0) -> 1 | L119: NO | M119: ATP | N119: Washington | O119: 8 | P119: 8 | Q119: 8 | R119: Gasquet | S119: Pospisil | T119: 8 | U119: 8 | V119: 9 | W119: Gasquet | X119: N/A | Y119: N/A | Z119: N/A | AA119: WashingtonGasquetPospisil | AB119: =IF($M119="ATP",MATCH($AA119,'ATP2014'!$AS:$AS,0),MATCH($AA119,'WTA2014'!$AO:$AO,0)) ->  | AC119: =IF($M119="ATP",MATCH($AA119,'ATP2014'!AT:AT,0),MATCH($AA119,'WTA2014'!$AP:$AP,0)) -> 1913 | AD119: =INDEX(IF(M119="ATP",'ATP2014'!AQ:AQ,'WTA2014'!AM:AM),IF(ISNUMBER(AB119),AB119,AC119)) -> Pospisil | AE119: =INDEX(IF($M119="ATP",'ATP2014'!$AU:$AU,'WTA2014'!$AQ:$AQ),IF(ISNUMBER($AB119),$AB119,$AC119)) -> 1 | AF119: =INDEX(IF($M119="ATP",'ATP2014'!$AV:$AV,'WTA2014'!$AR:$AR),IF(ISNUMBER($AB119),$AB119,$AC119)) -> 4 | AG119: =INDEX(IF($M119="ATP",'ATP2014'!$AW:$AW,'WTA2014'!$AS:$AS),IF(ISNUMBER($AB119),$AB119,$AC119)) -> 34 | AH119: =INDEX(IF($M119="ATP",'ATP2014'!$AX:$AX,'WTA2014'!$AT:$AT),IF(ISNUMBER($AB119),$AB119,$AC119)) -> TRUE | AI119: =INDEX(IF($M119="ATP",'ATP2014'!$AY:$AY,'WTA2014'!$AU:$AU),IF(ISNUMBER($AB119),$AB119,$AC119)) -> Gasquet | AJ119: =IF(W119=AD119,TRUE,INDEX(IF($M119="ATP",'ATP2014'!$AZ:$AZ,'WTA2014'!$AV:$AV),IF(ISNUMBER($AB119),$AB119,$AC119))) -> TRUE | AK119: =IF(K119=30,IF($M119="ATP",MATCH($N119&"The Final",'ATP2014'!$BA:$BA,0),MATCH($N119&"The Final",'WTA2014'!$AW:$AW,0)),"N/A") -> N/A | AL119: =IF(K119=30,INDEX(IF(M119="ATP",'ATP2014'!AQ:AQ,'WTA2014'!AM:AM),AK119),"N/A") -> N/A | AM119: Loss | AN119: 2 | AO119: 0.3636363636 | AP119: -1 | AQ119: 88.45555556 | AR119: AUG2014

Sheet ATP2014
A1: ATP | B1: Location | C1: Tournament | D1: Date | E1: Series | F1: Court | G1: Surface | H1: Round | I1: Best of | J1: Winner | K1: Loser | L1: WRank | M1: LRank | N1: WPts | O1: LPts | P1: W1 | Q1: L1 | R1: W2 | S1: L2 | T1: W3 | U1: L3 | V1: W4 | W1: L4 | X1: W5 | Y1: L5 | Z1: Wsets | AA1: Lsets | AB1: Comment | AC1: B365W | AD1: B365L | AE1: EXW | AF1: EXL | AG1: LBW | AH1: LBL | AI1: PSW | AJ1: PSL | AK1: SJW | AL1: SJL | AM1: MaxW | AN1: MaxL | AO1: AvgW | AP1: AvgL | AQ1: Player 1 | AR1: Player 2 | AS1: LookupKey1 | AT1: LookupKey2 | AU1: Set Margin | AV1: Game Margin | AW1: Total Games | AX1: Tie Break In Match | AY1: First Set Winner | AZ1: Loser Wins a Set | BA1: LookupKeyOutrightFinal
A2: 1 | B2: Brisbane | C2: Brisbane International | D2: 2013-12-30 | E2: ATP250 | F2: Outdoor | G2: Hard | H2: 1st Round | I2: 3 | J2: Matosevic M. | K2: Benneteau J. | L2: 61 | M2: 35 | N2: 774 | O2: 1160 | P2: 5 | Q2: 7 | R2: 6 | S2: 4 | T2: 7 | U2: 6 | Z2: 2 | AA2: 1 | AB2: Completed | AC2: 1.72 | AD2: 2 | AE2: 1.8 | AF2: 2 | AG2: 1.91 | AH2: 1.8 | AI2: 1.88 | AJ2: 2.01 | AK2: 1.91 | AL2: 1.8 | AM2: 2 | AN2: 2.1 | AO2: 1.82 | AP2: 1.94 | AQ2: =LEFT(J2,FIND(" ",J2)-1) -> Matosevic | AR2: =LEFT(K2,FIND(" ",K2)-1) -> Benneteau | AS2: =B2&AQ2&AR2 -> BrisbaneMatosevicBenneteau | AT2: =B2&AR2&AQ2 -> BrisbaneBenneteauMatosevic | AU2: =Z2-AA2 -> 1 | AV2: =X2+V2+T2+R2+P2-Y2-W2-U2-S2-Q2 -> 1 | AW2: =X2+V2+T2+R2+P2+Y2+W2+U2+S2+Q2 -> 35 | AX2: =OR(P2+Q2=13,R2+S2=13,T2+U2=13,V2+W2=13,X2+Y2=13) -> TRUE | AY2: =IF(P2>Q2,AQ2,AR2) -> Benneteau | AZ2: =AA2<>0 -> TRUE | BA2: =B2&H2 -> Brisbane1st Round
A3: 1 | B3: Brisbane | C3: Brisbane International | D3: 2013-12-30 | E3: ATP250 | F3: Outdoor | G3: Hard | H3: 1st Round | I3: 3 | J3: Nieminen J. | K3: Duckworth J. | L3: 39 | M3: 136 | N3: 1090 | O3: 425 | P3: 6 | Q3: 2 | R3: 6 | S3: 3 | Z3: 2 | AA3: 0 | AB3: Completed | AC3: 1.28 | AD3: 3.5 | AE3: 1.33 | AF3: 3.2 | AG3: 1.33 | AH3: 3.25 | AI3: 1.35 | AJ3: 3.47 | AK3: 1.36 | AL3: 2.88 | AM3: 1.36 | AN3: 3.8 | AO3: 1.32 | AP3: 3.32 | AQ3: =LEFT(J3,FIND(" ",J3)-1) -> Nieminen | AR3: =LEFT(K3,FIND(" ",K3)-1) -> Duckworth | AS3: =B3&AQ3&AR3 -> BrisbaneNieminenDuckworth | AT3: =B3&AR3&AQ3 -> BrisbaneDuckworthNieminen | AU3: =Z3-AA3 -> 2 | AV3: =X3+V3+T3+R3+P3-Y3-W3-U3-S3-Q3 -> 7 | AW3: =X3+V3+T3+R3+P3+Y3+W3+U3+S3+Q3 -> 17 | AX3: =OR(P3+Q3=13,R3+S3=13,T3+U3=13,V3+W3=13,X3+Y3=13) -> FALSE | AY3: =IF(P3>Q3,AQ3,AR3) -> Nieminen | AZ3: =AA3<>0 -> FALSE | BA3: =B3&H3 -> Brisbane1st Round
A4: 1 | B4: Brisbane | C4: Brisbane International | D4: 2013-12-30 | E4: ATP250 | F4: Outdoor | G4: Hard | H4: 1st Round | I4: 3 | J4: Cilic M. | K4: Istomin D. | L4: 37 | M4: 45 | N4: 1130 | O4: 965 | P4: 6 | Q4: 7 | R4: 7 | S4: 6 | T4: 6 | U4: 4 | Z4: 2 | AA4: 1 | AB4: Completed | AC4: 1.36 | AD4: 3 | AE4: 1.4 | AF4: 2.9 | AG4: 1.44 | AH4: 2.62 | AI4: 1.39 | AJ4: 3.22 | AK4: 1.4 | AL4: 2.75 | AM4: 1.44 | AN4: 3.55 | AO4: 1.39 | AP4: 2.93 | AQ4: Cilic | AR4: Istomin | AS4: BrisbaneCilicIstomin | AT4: BrisbaneIstominCilic | AU4: 1 | AV4: 2 | AW4: 36 | AX4: TRUE | AY4: Istomin | AZ4: TRUE | BA4: Brisbane1st Round
A5: 1 | B5: Brisbane | C5: Brisbane International | D5: 2013-12-30 | E5: ATP250 | F5: Outdoor | G5: Hard | H5: 1st Round | I5: 3 | J5: Querrey S. | K5: Tursunov D. | L5: 46 | M5: 29 | N5: 960 | O5: 1244 | P5: 7 | Q5: 5 | R5: 6 | S5: 4 | Z5: 2 | AA5: 0 | AB5: Completed | AC5: 1.9 | AD5: 1.8 | AE5: 1.9 | AF5: 1.85 | AG5: 1.91 | AH5: 1.8 | AI5: 1.99 | AJ5: 1.9 | AK5: 1.91 | AL5: 1.8 | AM5: 2.1 | AN5: 1.91 | AO5: 1.92 | AP5: 1.83 | AQ5: Querrey | AR5: Tursunov | AS5: BrisbaneQuerreyTursunov | AT5: BrisbaneTursunovQuerrey | AU5: 2 | AV5: 4 | AW5: 22 | AX5: FALSE | AY5: Querrey | AZ5: FALSE | BA5: Brisbane1st Round
A6: 1 | B6: Brisbane | C6: Brisbane International | D6: 2013-12-30 | E6: ATP250 | F6: Outdoor | G6: Hard | H6: 1st Round | I6: 3 | J6: Dimitrov G. | K6: Haase R. | L6: 23 | M6: 43 | N6: 1520 | O6: 977 | P6: 6 | Q6: 2 | R6: 6 | S6: 3 | Z6: 2 | AA6: 0 | AB6: Completed | AC6: 1.25 | AD6: 3.75 | AE6: 1.3 | AF6: 3.4 | AG6: 1.33 | AH6: 3.25 | AI6: 1.28 | AJ6: 4.01 | AK6: 1.29 | AL6: 3.25 | AM6: 1.33 | AN6: 4.33 | AO6: 1.29 | AP6: 3.53 | AQ6: Dimitrov | AR6: Haase | AS6: BrisbaneDimitrovHaase | AT6: BrisbaneHaaseDimitrov | AU6: 2 | AV6: 7 | AW6: 17 | AX6: FALSE | AY6: Dimitrov | AZ6: FALSE | BA6: Brisbane1st Round
A7: 1 | B7: Brisbane | C7: Brisbane International | D7: 2013-12-31 | E7: ATP250 | F7: Outdoor | G7: Hard | H7: 1st Round | I7: 3 | J7: Mahut N. | K7: Sijsling I. | L7: 50 | M7: 70 | N7: 918 | O7: 697 | P7: 3 | Q7: 6 | R7: 6 | S7: 4 | T7: 6 | U7: 4 | Z7: 2 | AA7: 1 | AB7: Completed | AC7: 2.25 | AD7: 1.57 | AE7: 2.35 | AF7: 1.58 | AG7: 2.38 | AH7: 1.53 | AI7: 2.49 | AJ7: 1.6 | AK7: 2.38 | AL7: 1.53 | AM7: 2.6 | AN7: 1.63 | AO7: 2.37 | AP7: 1.56 | AQ7: Mahut | AR7: Sijsling | AS7: BrisbaneMahutSijsling | AT7: BrisbaneSijslingMahut | AU7: 1 | AV7: 1 | AW7: 29 | AX7: FALSE | AY7: Sijsling | AZ7: TRUE | BA7: Brisbane1st Round
A8: 1 | B8: Brisbane | C8: Brisbane International | D8: 2013-12-31 | E8: ATP250 | F8: Outdoor | G8: Hard | H8: 1st Round | I8: 3 | J8: Ebden M. | K8: Kuznetsov Al. | L8: 68 | M8: 142 | N8: 706 | O8: 397 | P8: 6 | Q8: 3 | R8: 6 | S8: 4 | Z8: 2 | AA8: 0 | AB8: Completed | AC8: 1.25 | AD8: 3.75 | AE8: 1.3 | AF8: 3.4 | AG8: 1.3 | AH8: 3.4 | AI8: 1.36 | AJ8: 3.39 | AK8: 1.33 | AL8: 3 | AM8: 1.36 | AN8: 3.8 | AO8: 1.31 | AP8: 3.34 | AQ8: Ebden | AR8: Kuznetsov | AS8: BrisbaneEbdenKuznetsov | AT8: BrisbaneKuznetsovEbden | AU8: 2 | AV8: 5 | AW8: 19 | AX8: FALSE | AY8: Ebden | AZ8: FALSE | BA8: Brisbane1st Round
A9: 1 | B9: Brisbane | C9: Brisbane International | D9: 2013-12-31 | E9: ATP250 | F9: Outdoor | G9: Hard | H9: 1st Round | I9: 3 | J9: Lopez F. | K9: Kukushkin M. | L9: 28 | M9: 67 | N9: 1310 | O9: 721 | P9: 6 | Q9: 4 | R9: 6 | S9: 4 | Z9: 2 | AA9: 0 | AB9: Completed | AC9: 1.66 | AD9: 2.1 | AE9: 1.65 | AF9: 2.2 | AG9: 1.67 | AH9: 2.1 | AI9: 1.75 | AJ9: 2.18 | AK9: 1.62 | AL9: 2.2 | AM9: 1.83 | AN9: 2.2 | AO9: 1.71 | AP9: 2.09 | AQ9: Lopez | AR9: Kukushkin | AS9: BrisbaneLopezKukushkin | AT9: BrisbaneKukushkinLopez | AU9: 2 | AV9: 4 | AW9: 20 | AX9: FALSE | AY9: Lopez | AZ9: FALSE | BA9: Brisbane1st Round
A10: 1 | B10: Brisbane | C10: Brisbane International | D10: 2013-12-31 | E10: ATP250 | F10: Outdoor | G10: Hard | H10: 1st Round | I10: 3 | J10: Chardy J. | K10: Mannarino A. | L10: 34 | M10: 59 | N10: 1175 | O10: 784 | P10: 7 | Q10: 6 | R10: 7 | S10: 5 | Z10: 2 | AA10: 0 | AB10: Completed | AC10: 1.44 | AD10: 2.62 | AE10: 1.55 | AF10: 2.4 | AG10: 1.62 | AH10: 2.2 | AI10: 1.55 | AJ10: 2.6 | AK10: 1.57 | AL10: 2.25 | AM10: 1.62 | AN10: 2.75 | AO10: 1.55 | AP10: 2.41 | AQ10: Chardy | AR10: Mannarino | AS10: BrisbaneChardyMannarino | AT10: BrisbaneMannarinoChardy | AU10: 2 | AV10: 3 | AW10: 25 | AX10: TRUE | AY10: Chardy | AZ10: FALSE | BA10: Brisbane1st Round
A11: 1 | B11: Brisbane | C11: Brisbane International | D11: 2013-12-31 | E11: ATP250 | F11: Outdoor | G11: Hard | H11: 1st Round | I11: 3 | J11: Copil M. | K11: Sugita Y. | L11: 147 | M11: 170 | N11: 369 | O11: 310 | P11: 7 | Q11: 6 | R11: 6 | S11: 7 | T11: 7 | U11: 6 | Z11: 2 | AA11: 1 | AB11: Completed | AC11: 1.57 | AD11: 2.25 | AE11: 1.55 | AF11: 2.4 | AG11: 1.57 | AH11: 2.25 | AI11: 1.63 | AJ11: 2.43 | AK11: 1.67 | AL11: 2.1 | AM11: 1.65 | AN11: 2.43 | AO11: 1.6 | AP11: 2.29 | AQ11: Copil | AR11: Sugita | AS11: BrisbaneCopilSugita | AT11: BrisbaneSugitaCopil | AU11: 1 | AV11: 1 | AW11: 39 | AX11: TRUE | AY11: Copil | AZ11: TRUE | BA11: Brisbane1st Round
A12: 1 | B12: Brisbane | C12: Brisbane International | D12: 2013-12-31 | E12: ATP250 | F12: Outdoor | G12: Hard | H12: 1st Round | I12: 3 | J12: Hewitt L. | K12: Kokkinakis T. | L12: 60 | M12: 628 | N12: 780 | O12: 41 | P12: 6 | Q12: 3 | R12: 7 | S12: 5 | Z12: 2 | AA12: 0 | AB12: Completed | AC12: 1.28 | AD12: 3.5 | AE12: 1.33 | AF12: 3.2 | AG12: 1.29 | AH12: 3.5 | AI12: 1.36 | AJ12: 3.42 | AK12: 1.33 | AL12: 3 | AM12: 1.4 | AN12: 3.6 | AO12: 1.34 | AP12: 3.17 | AQ12: Hewitt | AR12: Kokkinakis | AS12: BrisbaneHewittKokkinakis | AT12: BrisbaneKokkinakisHewitt | AU12: 2 | AV12: 5 | AW12: 21 | AX12: FALSE | AY12: Hewitt | AZ12: FALSE | BA12: Brisbane1st Round
A13: 1 | B13: Brisbane | C13: Brisbane International | D13: 2013-12-31 | E13: ATP250 | F13: Outdoor | G13: Hard | H13: 1st Round | I13: 3 | J13: Groth S. | K13: Harrison R. | L13: 172 | M13: 100 | N13: 307 | O13: 549 | P13: 7 | Q13: 6 | R13: 7 | S13: 6 | Z13: 2 | AA13: 0 | AB13: Completed | AC13: 2.75 | AD13: 1.4 | AE13: 2.5 | AF13: 1.5 | AG13: 2.75 | AH13: 1.4 | AI13: 2.94 | AJ13: 1.45 | AK13: 2.63 | AL13: 1.44 | AM13: 2.95 | AN13: 1.53 | AO13: 2.72 | AP13: 1.43 | AQ13: Groth | AR13: Harrison | AS13: BrisbaneGrothHarrison | AT13: BrisbaneHarrisonGroth | AU13: 2 | AV13: 2 | AW13: 26 | AX13: TRUE | AY13: Groth | AZ13: FALSE | BA13: Brisbane1st Round
A14: 1 | B14: Brisbane | C14: Brisbane International | D14: 2014-01-01 | E14: ATP250 | F14: Outdoor | G14: Hard | H14: 2nd Round | I14: 3 | J14: Matosevic M. | K14: Querrey S. | L14: 61 | M14: 46 | N14: 774 | O14: 960 | P14: 5 | Q14: 7 | R14: 7 | S14: 6 | T14: 6 | U14: 4 | Z14: 2 | AA14: 1 | AB14: Completed | AC14: 2.2 | AD14: 1.61 | AE14: 2.2 | AF14: 1.65 | AG14: 2.1 | AH14: 1.67 | AI14: 2.35 | AJ14: 1.67 | AK14: 2.2 | AL14: 1.67 | AM14: 2.35 | AN14: 1.72 | AO14: 2.2 | AP14: 1.64 | AQ14: Matosevic | AR14: Querrey | AS14: BrisbaneMatosevicQuerrey | AT14: BrisbaneQuerreyMatosevic | AU14: 1 | AV14: 1 | AW14: 35 | AX14: TRUE | AY14: Querrey | AZ14: TRUE | BA14: Brisbane2nd Round
A15: 1 | B15: Brisbane | C15: Brisbane International | D15: 2014-01-01 | E15: ATP250 | F15: Outdoor | G15: Hard | H15: 2nd Round | I15: 3 | J15: Cilic M. | K15: Dimitrov G. | L15: 37 | M15: 23 | N15: 1130 | O15: 1520 | P15: 7 | Q15: 5 | R15: 7 | S15: 5 | Z15: 2 | AA15: 0 | AB15: Completed | AC15: 2.2 | AD15: 1.61 | AE15: 2.35 | AF15: 1.58 | AG15: 2.25 | AH15: 1.57 | AI15: 2.37 | AJ15: 1.66 | AK15: 2.25 | AL15: 1.62 | AM15: 2.56 | AN15: 1.67 | AO15: 2.29 | AP15: 1.6 | AQ15: Cilic | AR15: Dimitrov | AS15: BrisbaneCilicDimitrov | AT15: BrisbaneDimitrovCilic | AU15: 2 | AV15: 4 | AW15: 24 | AX15: FALSE | AY15: Cilic | AZ15: FALSE | BA15: Brisbane2nd Round
A16: 1 | B16: Brisbane | C16: Brisbane International | D16: 2014-01-01 | E16: ATP250 | F16: Outdoor | G16: Hard | H16: 2nd Round | I16: 3 | J16: Nishikori K. | K16: Ebden M. | L16: 17 | M16: 68 | N16: 1915 | O16: 706 | P16: 6 | Q16: 2 | R16: 6 | S16: 4 | Z16: 2 | AA16: 0 | AB16: Completed | AC16: 1.36 | AD16: 3 | AE16: 1.38 | AF16: 3 | AG16: 1.29 | AH16: 3.5 | AI16: 1.4 | AJ16: 3.21 | AK16: 1.33 | AL16: 3.25 | AM16: 1.44 | AN16: 3.5 | AO16: 1.37 | AP16: 3.02 | AQ16: Nishikori | AR16: Ebden | AS16: BrisbaneNishikoriEbden | AT16: BrisbaneEbdenNishikori | AU16: 2 | AV16: 6 | AW16: 18 | AX16: FALSE | AY16: Nishikori | AZ16: FALSE | BA16: Brisbane2nd Round
A17: 1 | B17: Brisbane | C17: Brisbane International | D17: 2014-01-01 | E17: ATP250 | F17: Outdoor | G17: Hard | H17: 2nd Round | I17: 3 | J17: Federer R. | K17: Nieminen J. | L17: 6 | M17: 39 | N17: 4205 | O17: 1090 | P17: 6 | Q17: 4 | R17: 6 | S17: 2 | Z17: 2 | AA17: 0 | AB17: Completed | AC17: 1.1 | AD17: 6.5 | AE17: 1.12 | AF17: 5.75 | AG17: 1.12 | AH17: 5.5 | AI17: 1.14 | AJ17: 6.7 | AK17: 1.13 | AL17: 6 | AM17: 1.15 | AN17: 6.7 | AO17: 1.13 | AP17: 5.77 | AQ17: Federer | AR17: Nieminen | AS17: BrisbaneFedererNieminen | AT17: BrisbaneNieminenFederer | AU17: 2 | AV17: 6 | AW17: 18 | AX17: FALSE | AY17: Federer | AZ17: FALSE | BA17: Brisbane2nd Round
A18: 1 | B18: Brisbane | C18: Brisbane International | D18: 2014-01-02 | E18: ATP250 | F18: Outdoor | G18: Hard | H18: 2nd Round | I18: 3 | J18: Chardy J. | K18: Mahut N. | L18: 34 | M18: 50 | N18: 1175 | O18: 918 | P18: 7 | Q18: 5 | R18: 6 | S18: 7 | T18: 6 | U18: 3 | Z18: 2 | AA18: 1 | AB18: Completed | AC18: 1.66 | AD18: 2.1 | AE18: 1.75 | AF18: 2.05 | AG18: 1.67 | AH18: 2.1 | AI18: 1.85 | AJ18: 2.07 | AK18: 1.73 | AL18: 2.1 | AM18: 1.85 | AN18: 2.17 | AO18: 1.74 | AP18: 2.04 | AQ18: Chardy | AR18: Mahut | AS18: BrisbaneChardyMahut | AT18: BrisbaneMahutChardy | AU18: 1 | AV18: 4 | AW18: 34 | AX18: TRUE | AY18: Chardy | AZ18: TRUE | BA18: Brisbane2nd Round
A19: 1 | B19: Brisbane | C19: Brisbane International | D19: 2014-01-02 | E19: ATP250 | F19: Outdoor | G19: Hard | H19: 2nd Round | I19: 3 | J19: Copil M. | K19: Simon G. | L19: 147 | M19: 19 | N19: 369 | O19: 1790 | P19: 7 | Q19: 5 | R19: 6 | S19: 3 | Z19: 2 | AA19: 0 | AB19: Completed | AC19: 2.75 | AD19: 1.4 | AE19: 2.9 | AF19: 1.4 | AG19: 3 | AH19: 1.36 | AI19: 2.98 | AJ19: 1.45 | AK19: 3.75 | AL19: 1.25 | AM19: 3.75 | AN19: 1.49 | AO19: 2.85 | AP19: 1.41 | AQ19: Copil | AR19: Simon | AS19: BrisbaneCopilSimon | AT19: BrisbaneSimonCopil | AU19: 2 | AV19: 5 | AW19: 21 | AX19: FALSE | AY19: Copil | AZ19: FALSE | BA19: Brisbane2nd Round
A20: 1 | B20: Brisbane | C20: Brisbane International | D20: 2014-01-02 | E20: ATP250 | F20: Outdoor | G20: Hard | H20: 2nd Round | I20: 3 | J20: Hewitt L. | K20: Lopez F. | L20: 60 | M20: 28 | N20: 780 | O20: 1310 | P20: 7 | Q20: 5 | R20: 6 | S20: 3 | Z20: 2 | AA20: 0 | AB20: Completed | AC20: 1.61 | AD20: 2.2 | AE20: 1.65 | AF20: 2.2 | AG20: 1.67 | AH20: 2.1 | AI20: 1.54 | AJ20: 2.66 | AK20: 1.67 | AL20: 2.2 | AM20: 1.67 | AN20: 2.66 | AO20: 1.59 | AP20: 2.33 | AQ20: Hewitt | AR20: Lopez | AS20: BrisbaneHewittLopez | AT20: BrisbaneLopezHewitt | AU20: 2 | AV20: 5 | AW20: 21 | AX20: FALSE | AY20: Hewitt | AZ20: FALSE | BA20: Brisbane2nd Round
A21: 1 | B21: Brisbane | C21: Brisbane International | D21: 2014-01-02 | E21: ATP250 | F21: Outdoor | G21: Hard | H21: 2nd Round | I21: 3 | J21: Groth S. | K21: Herbert P.H. | L21: 172 | M21: 151 | N21: 307 | O21: 344 | P21: 4 | Q21: 6 | R21: 7 | S21: 6 | T21: 7 | U21: 6 | Z21: 2 | AA21: 1 | AB21: Completed | AC21: 1.57 | AD21: 2.25 | AE21: 1.55 | AF21: 2.4 | AM21: 1.6 | AN21: 2.6 | AO21: 1.55 | AP21: 2.41 | AQ21: Groth | AR21: Herbert | AS21: BrisbaneGrothHerbert | AT21: BrisbaneHerbertGroth | AU21: 1 | AV21: 0 | AW21: 36 | AX21: TRUE | AY21: Herbert | AZ21: TRUE | BA21: Brisbane2nd Round
A22: 1 | B22: Brisbane | C22: Brisbane International | D22: 2014-01-03 | E22: ATP250 | F22: Outdoor | G22: Hard | H22: Quarterfinals | I22: 3 | J22: Nishikori K. | K22: Cilic M. | L22: 17 | M22: 37 | N22: 1915 | O22: 1130 | P22: 6 | Q22: 4 | R22: 5 | S22: 7 | T22: 6 | U22: 2 | Z22: 2 | AA22: 1 | AB22: Completed | AC22: 2.1 | AD22: 1.66 | AE22: 2.05 | AF22: 1.75 | AG22: 2 | AH22: 1.73 | AI22: 2.14 | AJ22: 1.81 | AK22: 2 | AL22: 1.8 | AM22: 2.14 | AN22: 1.83 | AO22: 2.04 | AP22: 1.74 | AQ22: Nishikori | AR22: Cilic | AS22: BrisbaneNishikoriCilic | AT22: BrisbaneCilicNishikori | AU22: 1 | AV22: 4 | AW22: 30 | AX22: FALSE | AY22: Nishikori | AZ22: TRUE | BA22: BrisbaneQuarterfinals
A23: 1 | B23: Brisbane | C23: Brisbane International | D23: 2014-01-03 | E23: ATP250 | F23: Outdoor | G23: Hard | H23: Quarterfinals | I23: 3 | J23: Hewitt L. | K23: Copil M. | L23: 60 | M23: 147 | N23: 780 | O23: 369 | P23: 6 | Q23: 4 | R23: 6 | S23: 2 | Z23: 2 | AA23: 0 | AB23: Completed | AC23: 1.3 | AD23: 3.4 | AE23: 1.33 | AF23: 3.2 | AG23: 1.33 | AH23: 3.25 | AI23: 1.32 | AJ23: 3.79 | AK23: 1.29 | AL23: 3.5 | AM23: 1.36 | AN23: 3.9 | AO23: 1.32 | AP23: 3.35 | AQ23: Hewitt | AR23: Copil | AS23: BrisbaneHewittCopil | AT23: BrisbaneCopilHewitt | AU23: 2 | AV23: 6 | AW23: 18 | AX23: FALSE | AY23: Hewitt | AZ23: FALSE | BA23: BrisbaneQuarterfinals
A24: 1 | B24: Brisbane | C24: Brisbane International | D24: 2014-01-03 | E24: ATP250 | F24: Outdoor | G24: Hard | H24: Quarterfinals | I24: 3 | J24: Chardy J. | K24: Groth S. | L24: 34 | M24: 172 | N24: 1175 | O24: 307 | P24: 7 | Q24: 5 | R24: 6 | S24: 4 | Z24: 2 | AA24: 0 | AB24: Completed | AC24: 1.36 | AD24: 3 | AE24: 1.48 | AF24: 2.6 | AG24: 1.44 | AH24: 2.62 | AI24: 1.43 | AJ24: 3.1 | AK24: 1.44 | AL24: 2.75 | AM24: 1.48 | AN24: 3.15 | AO24: 1.42 | AP24: 2.83 | AQ24: Chardy | AR24: Groth | AS24: BrisbaneChardyGroth | AT24: BrisbaneGrothChardy | AU24: 2 | AV24: 4 | AW24: 22 | AX24: FALSE | AY24: Chardy | AZ24: FALSE | BA24: BrisbaneQuarterfinals
A25: 1 | B25: Brisbane | C25: Brisbane International | D25: 2014-01-03 | E25: ATP250 | F25: Outdoor | G25: Hard | H25: Quarterfinals | I25: 3 | J25: Federer R. | K25: Matosevic M. | L25: 6 | M25: 61 | N25: 4205 | O25: 774 | P25: 6 | Q25: 1 | R25: 6 | S25: 1 | Z25: 2 | AA25: 0 | AB25: Completed | AC25: 1.05 | AD25: 9 | AE25: 1.08 | AF25: 7.5 | AG25: 1.11 | AH25: 6 | AI25: 1.08 | AJ25: 10.75 | AK25: 1.1 | AL25: 7 | AM25: 1.12 | AN25: 10.75 | AO25: 1.08 | AP25: 7.72 | AQ25: Federer | AR25: Matosevic | AS25: BrisbaneFedererMatosevic | AT25: BrisbaneMatosevicFederer | AU25: 2 | AV25: 10 | AW25: 14 | AX25: FALSE | AY25: Federer | AZ25: FALSE | BA25: BrisbaneQuarterfinals
A26: 1 | B26: Brisbane | C26: Brisbane International | D26: 2014-01-04 | E26: ATP250 | F26: Outdoor | G26: Hard | H26: Semifinals | I26: 3 | J26: Hewitt L. | K26: Nishikori K. | L26: 60 | M26: 17 | N26: 780 | O26: 1915 | P26: 5 | Q26: 7 | R26: 6 | S26: 4 | T26: 6 | U26: 3 | Z26: 2 | AA26: 1 | AB26: Completed | AC26: 2.37 | AD26: 1.57 | AE26: 2.35 | AF26: 1.58 | AG26: 2.38 | AH26: 1.57 | AI26: 2.45 | AJ26: 1.64 | AK26: 2.38 | AL26: 1.57 | AM26: 2.5 | AN26: 1.85 | AO26: 2.35 | AP26: 1.58 | AQ26: Hewitt | AR26: Nishikori | AS26: BrisbaneHewittNishikori | AT26: BrisbaneNishikoriHewitt | AU26: 1 | AV26: 3 | AW26: 31 | AX26: FALSE | AY26: Nishikori | AZ26: TRUE | BA26: BrisbaneSemifinals
A27: 1 | B27: Brisbane | C27: Brisbane International | D27: 2014-01-04 | E27: ATP250 | F27: Outdoor | G27: Hard | H27: Semifinals | I27: 3 | J27: Federer R. | K27: Chardy J. | L27: 6 | M27: 34 | N27: 4205 | O27: 1175 | P27: 6 | Q27: 3 | R27: 6 | S27: 7 | T27: 6 | U27: 3 | Z27: 2 | AA27: 1 | AB27: Completed | AC27: 1.07 | AD27: 9 | AE27: 1.07 | AF27: 8 | AG27: 1.07 | AH27: 7.5 | AI27: 1.08 | AJ27: 10.75 | AK27: 1.08 | AL27: 7.5 | AM27: 1.1 | AN27: 11.5 | AO27: 1.07 | AP27: 8.35 | AQ27: Federer | AR27: Chardy | AS27: BrisbaneFedererChardy | AT27: BrisbaneChardyFederer | AU27: 1 | AV27: 5 | AW27: 31 | AX27: TRUE | AY27: Federer | AZ27: TRUE | BA27: BrisbaneSemifinals
A28: 1 | B28: Brisbane | C28: Brisbane International | D28: 2014-01-05 | E28: ATP250 | F28: Outdoor | G28: Hard | H28: The Final | I28: 3 | J28: Hewitt L. | K28: Federer R. | L28: 60 | M28: 6 | N28: 780 | O28: 4205 | P28: 6 | Q28: 1 | R28: 4 | S28: 6 | T28: 6 | U28: 3 | Z28: 2 | AA28: 1 | AB28: Completed | AC28: 5 | AD28: 1.14 | AE28: 4.5 | AF28: 1.18 | AG28: 5 | AH28: 1.17 | AI28: 6 | AJ28: 1.17 | AK28: 5 | AL28: 1.17 | AM28: 6 | AN28: 1.21 | AO28: 5.05 | AP28: 1.16 | AQ28: Hewitt | AR28: Federer | AS28: BrisbaneHewittFederer | AT28: BrisbaneFedererHewitt | AU28: 1 | AV28: 6 | AW28: 26 | AX28: FALSE | AY28: Hewitt | AZ28: TRUE | BA28: BrisbaneThe Final
A29: 2 | B29: Chennai | C29: Chennai Open | D29: 2013-12-30 | E29: ATP250 | F29: Outdoor | G29: Hard | H29: 1st Round | I29: 3 | J29: Lu Y.H. | K29: Smyczek T. | L29: 65 | M29: 89 | N29: 730 | O29: 600 | P29: 6 | Q29: 4 | R29: 6 | S29: 2 | Z29: 2 | AA29: 0 | AB29: Completed | AC29: 1.53 | AD29: 2.37 | AE29: 1.55 | AF29: 2.4 | AG29: 1.5 | AH29: 2.5 | AI29: 1.61 | AJ29: 2.45 | AK29: 1.57 | AL29: 2.25 | AM29: 1.85 | AN29: 2.63 | AO29: 1.57 | AP29: 2.36 | AQ29: Lu | AR29: Smyczek | AS29: ChennaiLuSmyczek | AT29: ChennaiSmyczekLu | AU29: 2 | AV29: 6 | AW29: 18 | AX29: FALSE | AY29: Lu | AZ29: FALSE | BA29: Chennai1st Round
A30: 2 | B30: Chennai | C30: Chennai Open | D30: 2013-12-30 | E30: ATP250 | F30: Outdoor | G30: Hard | H30: 1st Round | I30: 3 | J30: Vesely J. | K30: Nedunchezhiyan J. | L30: 85 | M30: 314 | N30: 616 | O30: 141 | P30: 7 | Q30: 5 | R30: 6 | S30: 2 | Z30: 2 | AA30: 0 | AB30: Completed | AC30: 1.12 | AD30: 6 | AE30: 1.12 | AF30: 5.75 | AG30: 1.11 | AH30: 6 | AI30: 1.14 | AJ30: 6.5 | AK30: 1.13 | AL30: 5.5 | AM30: 1.17 | AN30: 6.5 | AO30: 1.13 | AP30: 5.75 | AQ30: Vesely | AR30: Nedunchezhiyan | AS30: ChennaiVeselyNedunchezhiyan | AT30: ChennaiNedunchezhiyanVesely | AU30: 2 | AV30: 6 | AW30: 20 | AX30: FALSE | AY30: Vesely | AZ30: FALSE | BA30: Chennai1st Round
A31: 2 | B31: Chennai | C31: Chennai Open | D31: 2013-12-30 | E31: ATP250 | F31: Outdoor | G31: Hard | H31: 1st Round | I31: 3 | J31: Sela D. | K31: Lacko L. | L31: 73 | M31: 81 | N31: 681 | O31: 625 | P31: 6 | Q31: 4 | R31: 6 | S31: 2 | Z31: 2 | AA31: 0 | AB31: Completed | AC31: 1.8 | AD31: 1.9 | AE31: 1.85 | AF31: 1.9 | AG31: 1.83 | AH31: 1.83 | AI31: 1.93 | AJ31: 1.96 | AK31: 1.73 | AL31: 2 | AM31: 1.93 | AN31: 2.2 | AO31: 1.83 | AP31: 1.92 | AQ31: Sela | AR31: Lacko | AS31: ChennaiSelaLacko | AT31: ChennaiLackoSela | AU31: 2 | AV31: 6 | AW31: 18 | AX31: FALSE | AY31: Sela | AZ31: FALSE | BA31: Chennai1st Round
A32: 2 | B32: Chennai | C32: Chennai Open | D32: 2013-12-30 | E32: ATP250 | F32: Outdoor | G32: Hard | H32: 1st Round | I32: 3 | J32: Pospisil V. | K32: Edmund K. | L32: 32 | M32: 376 | N32: 1219 | O32: 110 | P32: 6 | Q32: 3 | R32: 7 | S32: 5 | Z32: 2 | AA32: 0 | AB32: Completed | AC32: 1.12 | AD32: 6 | AE32: 1.12 | AF32: 5.75 | AG32: 1.1 | AH32: 6.5 | AI32: 1.17 | AJ32: 5.75 | AK32: 1.1 | AL32: 6 | AM32: 1.17 | AN32: 7.6 | AO32: 1.12 | AP32: 6.03 | AQ32: Pospisil | AR32: Edmund | AS32: ChennaiPospisilEdmund | AT32: ChennaiEdmundPospisil | AU32: 2 | AV32: 5 | AW32: 21 | AX32: FALSE | AY32: Pospisil | AZ32: FALSE | BA32: Chennai1st Round
A33: 2 | B33: Chennai | C33: Chennai Open | D33: 2013-12-31 | E33: ATP250 | F33: Outdoor | G33: Hard | H33: 1st Round | I33: 3 | J33: Bedene A. | K33: Laaksonen H. | L33: 95 | M33: 244 | N33: 573 | O33: 191 | P33: 6 | Q33: 3 | R33: 5 | S33: 7 | T33: 7 | U33: 6 | Z33: 2 | AA33: 1 | AB33: Completed | AC33: 1.83 | AD33: 1.83 | AE33: 1.85 | AF33: 1.9 | AG33: 1.67 | AH33: 2.1 | AI33: 1.87 | AJ33: 2.02 | AK33: 1.83 | AL33: 1.83 | AM33: 1.94 | AN33: 2.1 | AO33: 1.84 | AP33: 1.91 | AQ33: Bedene | AR33: Laaksonen | AS33: ChennaiBedeneLaaksonen | AT33: ChennaiLaaksonenBedene | AU33: 1 | AV33: 2 | AW33: 34 | AX33: TRUE | AY33: Bedene | AZ33: TRUE | BA33: Chennai1st Round
A34: 2 | B34: Chennai | C34: Chennai Open | D34: 2013-12-31 | E34: ATP250 | F34: Outdoor | G34: Hard | H34: 1st Round | I34: 3 | J34: Roger-Vasselin E. | K34: Ramos A. | L34: 52 | M34: 83 | N34: 908 | O34: 617 | P34: 6 | Q34: 1 | R34: 6 | S34: 3 | Z34: 2 | AA34: 0 | AB34: Completed | AC34: 1.33 | AD34: 3.25 | AE34: 1.33 | AF34: 3.2 | AG34: 1.33 | AH34: 3.25 | AI34: 1.42 | AJ34: 3.07 | AK34: 1.33 | AL34: 3 | AM34: 1.42 | AN34: 3.6 | AO34: 1.34 | AP34: 3.17 | AQ34: Roger-Vasselin | AR34: Ramos | AS34: ChennaiRoger-VasselinRamos | AT34: ChennaiRamosRoger-Vasselin | AU34: 2 | AV34: 8 | AW34: 16 | AX34: FALSE | AY34: Roger-Vasselin | AZ34: FALSE | BA34: Chennai1st Round
A35: 2 | B35: Chennai | C35: Chennai Open | D35: 2013-12-31 | E35: ATP250 | F35: Outdoor | G35: Hard | H35: 1st Round | I35: 3 | J35: Bhambri Y. | K35: Carreno-Busta P. | L35: 195 | M35: 64 | N35: 258 | O35: 739 | P35: 6 | Q35: 4 | R35: 6 | S35: 3 | Z35: 2 | AA35: 0 | AB35: Completed | AC35: 2.2 | AD35: 1.61 | AE35: 2.25 | AF35: 1.62 | AG35: 2.25 | AH35: 1.57 | AI35: 2.3 | AJ35: 1.68 | AK35: 2.2 | AL35: 1.62 | AM35: 2.3 | AN35: 1.76 | AO35: 2.2 | AP35: 1.64 | AQ35: Bhambri | AR35: Carreno-Busta | AS35: ChennaiBhambriCarreno-Busta | AT35: ChennaiCarreno-BustaBhambri | AU35: 2 | AV35: 5 | AW35: 19 | AX35: FALSE | AY35: Bhambri | AZ35: FALSE | BA35: Chennai1st Round
A36: 2 | B36: Chennai | C36: Chennai Open | D36: 2013-12-31 | E36: ATP250 | F36: Outdoor | G36: Hard | H36: 1st Round | I36: 3 | J36: Kudryavtsev A. | K36: Bautista R. | L36: 270 | M36: 58 | N36: 170 | O36: 810 | P36: 6 | Q36: 4 | R36: 3 | S36: 6 | T36: 6 | U36: 3 | Z36: 2 | AA36: 1 | AB36: Completed | AC36: 4.33 | AD36: 1.2 | AE36: 4 | AF36: 1.22 | AG36: 4 | AH36: 1.22 | AI36: 4.45 | AJ36: 1.24 | AK36: 3.75 | AL36: 1.22 | AM36: 5 | AN36: 1.25 | AO36: 4.22 | AP36: 1.21 | AQ36: Kudryavtsev | AR36: Bautista | AS36: ChennaiKudryavtsevBautista | AT36: ChennaiBautistaKudryavtsev | AU36: 1 | AV36: 2 | AW36: 28 | AX36: FALSE | AY36: Kudryavtsev | AZ36: TRUE | BA36: Chennai1st Round
A37: 2 | B37: Chennai | C37: Chennai Open | D37: 2013-12-31 | E37: ATP250 | F37: Outdoor | G37: Hard | H37: 1st Round | I37: 3 | J37: Ramanathan R. | K37: Devvarman S. | L37: 526 | M37: 90 | N37: 65 | O37: 599 | P37: 4 | Q37: 6 | R37: 6 | S37: 3 | T37: 6 | U37: 4 | Z37: 2 | AA37: 1 | AB37: Completed | AC37: 5 | AD37: 1.14 | AE37: 4.75 | AF37: 1.17 | AG37: 5 | AH37: 1.14 | AI37: 5 | AJ37: 1.21 | AK37: 4.5 | AL37: 1.17 | AM37: 6 | AN37: 1.21 | AO37: 4.88 | AP37: 1.16 | AQ37: Ramanathan | AR37: Devvarman | AS37: ChennaiRamanathanDevvarman | AT37: ChennaiDevvarmanRamanathan | AU37: 1 | AV37: 3 | AW37: 29 | AX37: FALSE | AY37: Devvarman | AZ37: TRUE | BA37: Chennai1st Round
A38: 2 | B38: Chennai | C38: Chennai Open | D38: 2013-12-31 | E38: ATP250 | F38: Outdoor | G38: Hard | H38: 1st Round | I38: 3 | J38: Becker B. | K38: Reister J. | L38: 79 | M38: 86 | N38: 637 | O38: 612 | P38: 6 | Q38: 4 | R38: 2 | S38: 1 | Z38: 1 | AA38: 0 | AB38: Retired | AC38: 1.44 | AD38: 2.62 | AE38: 1.45 | AF38: 2.7 | AG38: 1.44 | AH38: 2.62 | AI38: 1.46 | AJ38: 2.9 | AK38: 1.44 | AL38: 2.63 | AM38: 1.51 | AN38: 2.95 | AO38: 1.44 | AP38: 2.73 | AQ38: Becker | AR38: Reister | AS38: ChennaiBeckerReister | AT38: ChennaiReisterBecker | AU38: 1 | AV38: 3 | AW38: 13 | AX38: FALSE | AY38: Becker | AZ38: FALSE | BA38: Chennai1st Round
A39: 2 | B39: Chennai | C39: Chennai Open | D39: 2013-12-31 | E39: ATP250 | F39: Outdoor | G39: Hard | H39: 1st Round | I39: 3 | J39: Granollers M. | K39: Albot R. | L39: 222 | M39: 169 | N39: 215 | O39: 311 | P39: 6 | Q39: 4 | R39: 3 | S39: 6 | T39: 6 | U39: 0 | Z39: 2 | AA39: 1 | AB39: Completed | AC39: 1.28 | AD39: 3.5 | AE39: 1.3 | AF39: 3.4 | AG39: 1.29 | AH39: 3.5 | AI39: 1.37 | AJ39: 3.34 | AK39: 1.29 | AL39: 3.25 | AM39: 1.37 | AN39: 4.7 | AO39: 1.31 | AP39: 3.36 | AQ39: Granollers | AR39: Albot | AS39: ChennaiGranollersAlbot | AT39: ChennaiAlbotGranollers | AU39: 1 | AV39: 5 | AW39: 25 | AX39: FALSE | AY39: Granollers | AZ39: TRUE | BA39: Chennai1st Round
A40: 2 | B40: Chennai | C40: Chennai Open | D40: 2013-12-31 | E40: ATP250 | F40: Outdoor | G40: Hard | H40: 1st Round | I40: 3 | J40: Garcia-Lopez G. | K40: Nedovyesov A. | L40: 62 | M40: 93 | N40: 768 | O40: 586 | P40: 7 | Q40: 5 | R40: 6 | S40: 0 | Z40: 2 | AA40: 0 | AB40: Completed | AC40: 1.4 | AD40: 2.75 | AE40: 1.45 | AF40: 2.7 | AG40: 1.5 | AH40: 2.5 | AI40: 1.43 | AJ40: 3.05 | AK40: 1.5 | AL40: 2.5 | AM40: 1.55 | AN40: 3.2 | AO40: 1.47 | AP40: 2.61 | AQ40: Garcia-Lopez | AR40: Nedovyesov | AS40: ChennaiGarcia-LopezNedovyesov | AT40: ChennaiNedovyesovGarcia-Lopez | AU40: 2 | AV40: 8 | AW40: 18 | AX40: FALSE | AY40: Garcia-Lopez | AZ40: FALSE | BA40: Chennai1st Round
A41: 2 | B41: Chennai | C41: Chennai Open | D41: 2014-01-01 | E41: ATP250 | F41: Outdoor | G41: Hard | H41: 2nd Round | I41: 3 | J41: Roger-Vasselin E. | K41: Vesely J. | L41: 52 | M41: 85 | N41: 908 | O41: 616 | P41: 6 | Q41: 4 | R41: 6 | S41: 4 | Z41: 2 | AA41: 0 | AB41: Completed | AC41: 1.36 | AD41: 3 | AE41: 1.33 | AF41: 3.2 | AG41: 1.4 | AH41: 2.75 | AI41: 1.4 | AJ41: 3.2 | AK41: 1.36 | AL41: 3 | AM41: 1.4 | AN41: 3.45 | AO41: 1.35 | AP41: 3.11 | AQ41: Roger-Vasselin | AR41: Vesely | AS41: ChennaiRoger-VasselinVesely | AT41: ChennaiVeselyRoger-Vasselin | AU41: 2 | AV41: 4 | AW41: 20 | AX41: FALSE | AY41: Roger-Vasselin | AZ41: FALSE | BA41: Chennai2nd Round
A42: 2 | B42: Chennai | C42: Chennai Open | D42: 2014-01-01 | E42: ATP250 | F42: Outdoor | G42: Hard | H42: 2nd Round | I42: 3 | J42: Sela D. | K42: Youzhny M. | L42: 73 | M42: 15 | N42: 681 | O42: 2145 | P42: 3 | Q42: 1 | Z42: 0 | AA42: 0 | AB42: Retired | AC42: 3 | AD42: 1.36 | AE42: 3.1 | AF42: 1.35 | AG42: 3.25 | AH42: 1.33 | AI42: 3.05 | AJ42: 1.43 | AK42: 3.25 | AL42: 1.33 | AM42: 3.4 | AN42: 1.43 | AO42: 3.07 | AP42: 1.35 | AQ42: Sela | AR42: Youzhny | AS42: ChennaiSelaYouzhny | AT42: ChennaiYouzhnySela | AU42: 0 | AV42: 2 | AW42: 4 | AX42: FALSE | AY42: Sela | AZ42: FALSE | BA42: Chennai2nd Round
A43: 2 | B43: Chennai | C43: Chennai Open | D43: 2014-01-01 | E43: ATP250 | F43: Outdoor | G43: Hard | H43: 2nd Round | I43: 3 | J43: Wawrinka S. | K43: Becker B. | L43: 8 | M43: 79 | N43: 3730 | O43: 637 | P43: 6 | Q43: 3 | R43: 6 | S43: 1 | Z43: 2 | AA43: 0 | AB43: Completed | AC43: 1.16 | AD43: 4.5 | AE43: 1.2 | AF43: 4.3 | AG43: 1.2 | AH43: 4.33 | AI43: 1.19 | AJ43: 5.33 | AK43: 1.2 | AL43: 4.5 | AM43: 1.23 | AN43: 5.4 | AO43: 1.19 | AP43: 4.54 | AQ43: Wawrinka | AR43: Becker | AS43: ChennaiWawrinkaBecker | AT43: ChennaiBeckerWawrinka | AU43: 2 | AV43: 8 | AW43: 16 | AX43: FALSE | AY43: Wawrinka | AZ43: FALSE | BA43: Chennai2nd Round
A44: 2 | B44: Chennai | C44: Chennai Open | D44: 2014-01-01 | E44: ATP250 | F44: Outdoor | G44: Hard | H44: 2nd Round | I44: 3 | J44: Bedene A. | K44: Kudryavtsev A. | L44: 95 | M44: 270 | N44: 573 | O44: 170 | P44: 1 | Q44: 6 | R44: 3 | S44: 0 | Z44: 0 | AA44: 1 | AB44: Retired | AC44: 1.5 | AD44: 2.5 | AE44: 1.52 | AF44: 2.45 | AG44: 1.57 | AH44: 2.25 | AI44: 1.54 | AJ44: 2.66 | AK44: 1.53 | AL44: 2.5 | AM44: 1.57 | AN44: 2.66 | AO44: 1.52 | AP44: 2.49 | AQ44: Bedene | AR44: Kudryavtsev | AS44: ChennaiBedeneKudryavtsev | AT44: ChennaiKudryavtsevBedene | AU44: -1 | AV44: -2 | AW44: 10 | AX44: FALSE | AY44: Kudryavtsev | AZ44: TRUE | BA44: Chennai2nd Round
A45: 2 | B45: Chennai | C45: Chennai Open | D45: 2014-01-02 | E45: ATP250 | F45: Outdoor | G45: Hard | H45: 2nd Round | I45: 3 | J45: Bhambri Y. | K45: Fognini F. | L45: 195 | M45: 16 | N45: 258 | O45: 1930 | P45: 6 | Q45: 1 | R45: 5 | S45: 5 | Z45: 1 | AA45: 0 | AB45: Retired | AC45: 2.2 | AD45: 1.61 | AE45: 2.25 | AF45: 1.62 | AG45: 2.2 | AH45: 1.62 | AI45: 2.27 | AJ45: 1.71 | AK45: 2.63 | AL45: 1.5 | AM45: 2.8 | AN45: 1.73 | AO45: 2.24 | AP45: 1.63 | AQ45: Bhambri | AR45: Fognini | AS45: ChennaiBhambriFognini | AT45: ChennaiFogniniBhambri | AU45: 1 | AV45: 5 | AW45: 17 | AX45: FALSE | AY45: Bhambri | AZ45: FALSE | BA45: Chennai2nd Round
A46: 2 | B46: Chennai | C46: Chennai Open | D46: 2014-01-02 | E46: ATP250 | F46: Outdoor | G46: Hard | H46: 2nd Round | I46: 3 | J46: Granollers M. | K46: Ramanathan R. | L46: 222 | M46: 526 | N46: 215 | O46: 65 | P46: 6 | Q46: 2 | R46: 6 | S46: 4 | Z46: 2 | AA46: 0 | AB46: Completed | AC46: 1.14 | AD46: 5.5 | AE46: 1.16 | AF46: 5 | AG46: 1.17 | AH46: 4.5 | AI46: 1.13 | AJ46: 7 | AK46: 1.17 | AL46: 5 | AM46: 1.2 | AN46: 7 | AO46: 1.15 | AP46: 5.21 | AQ46: Granollers | AR46: Ramanathan | AS46: ChennaiGranollersRamanathan | AT46: ChennaiRamanathanGranollers | AU46: 2 | AV46: 6 | AW46: 18 | AX46: FALSE | AY46: Granollers | AZ46: FALSE | BA46: Chennai2nd Round
A47: 2 | B47: Chennai | C47: Chennai Open | D47: 2014-01-02 | E47: ATP250 | F47: Outdoor | G47: Hard | H47: 2nd Round | I47: 3 | J47: Pospisil V. | K47: Lu Y.H. | L47: 32 | M47: 65 | N47: 1219 | O47: 730 | AB47: Walkover | AC47: 1.4 | AD47: 2.75 | AE47: 1.42 | AF47: 2.8 | AG47: 1.4 | AH47: 2.75 | AI47: 1.43 | AJ47: 3.05 | AK47: 1.44 | AL47: 2.75 | AM47: 1.48 | AN47: 3.1 | AO47: 1.41 | AP47: 2.81 | AQ47: Pospisil | AR47: Lu | AS47: ChennaiPospisilLu | AT47: ChennaiLuPospisil | AU47: 0 | AV47: 0 | AW47: 0 | AX47: FALSE | AY47: Lu | AZ47: FALSE | BA47: Chennai2nd Round
A48: 2 | B48: Chennai | C48: Chennai Open | D48: 2014-01-02 | E48: ATP250 | F48: Outdoor | G48: Hard | H48: 2nd Round | I48: 3 | J48: Paire B. | K48: Garcia-Lopez G. | L48: 26 | M48: 62 | N48: 1345 | O48: 768 | P48: 6 | Q48: 1 | R48: 6 | S48: 4 | Z48: 2 | AA48: 0 | AB48: Completed | AC48: 1.72 | AD48: 2 | AE48: 1.75 | AF48: 2.05 | AG48: 1.73 | AH48: 2 | AI48: 1.79 | AJ48: 2.14 | AK48: 1.8 | AL48: 2 | AM48: 1.8 | AN48: 2.26 | AO48: 1.75 | AP48: 2.03 | AQ48: Paire | AR48: Garcia-Lopez | AS48: ChennaiPaireGarcia-Lopez | AT48: ChennaiGarcia-LopezPaire | AU48: 2 | AV48: 7 | AW48: 17 | AX48: FALSE | AY48: Paire | AZ48: FALSE | BA48: Chennai2nd Round
A49: 2 | B49: Chennai | C49: Chennai Open | D49: 2014-01-03 | E49: ATP250 | F49: Outdoor | G49: Hard | H49: Quarterfinals | I49: 3 | J49: Roger-Vasselin E. | K49: Sela D. | L49: 52 | M49: 73 | N49: 908 | O49: 681 | P49: 7 | Q49: 5 | R49: 6 | S49: 7 | T49: 6 | U49: 0 | Z49: 2 | AA49: 1 | AB49: Completed | AC49: 1.57 | AD49: 2.25 | AE49: 1.62 | AF49: 2.25 | AG49: 1.53 | AH49: 2.38 | AI49: 1.72 | AJ49: 2.28 | AK49: 1.62 | AL49: 2.25 | AM49: 1.75 | AN49: 2.4 | AO49: 1.64 | AP49: 2.21 | AQ49: Roger-Vasselin | AR49: Sela | AS49: ChennaiRoger-VasselinSela | AT49: ChennaiSelaRoger-Vasselin | AU49: 1 | AV49: 7 | AW49: 31 | AX49: TRUE | AY49: Roger-Vasselin | AZ49: TRUE | BA49: ChennaiQuarterfinals
A50: 2 | B50: Chennai | C50: Chennai Open | D50: 2014-01-03 | E50: ATP250 | F50: Outdoor | G50: Hard | H50: Quarterfinals | I50: 3 | J50: Wawrinka S. | K50: Bedene A. | L50: 8 | M50: 95 | N50: 3730 | O50: 573 | P50: 6 | Q50: 2 | R50: 6 | S50: 1 | Z50: 2 | AA50: 0 | AB50: Completed | AC50: 1.1 | AD50: 7 | AE50: 1.13 | AF50: 5.75 | AG50: 1.11 | AH50: 6 | AI50: 1.13 | AJ50: 8.04 | AK50: 1.13 | AL50: 6 | AM50: 1.15 | AN50: 8.3 | AO50: 1.11 | AP50: 6.29 | AQ50: Wawrinka | AR50: Bedene | AS50: ChennaiWawrinkaBedene | AT50: ChennaiBedeneWawrinka | AU50: 2 | AV50: 9 | AW50: 15 | AX50: FALSE | AY50: Wawrinka | AZ50: FALSE | BA50: ChennaiQuarterfinals
A51: 2 | B51: Chennai | C51: Chennai Open | D51: 2014-01-03 | E51: ATP250 | F51: Outdoor | G51: Hard | H51: Quarterfinals | I51: 3 | J51: Granollers M. | K51: Paire B. | L51: 222 | M51: 26 | N51: 215 | O51: 1345 | P51: 6 | Q51: 2 | R51: 3 | S51: 6 | T51: 7 | U51: 6 | Z51: 2 | AA51: 1 | AB51: Completed | AC51: 2.37 | AD51: 1.53 | AE51: 2.35 | AF51: 1.58 | AG51: 2.38 | AH51: 1.53 | AI51: 2.4 | AJ51: 1.66 | AK51: 2.38 | AL51: 1.57 | AM51: 2.6 | AN51: 1.85 | AO51: 2.29 | AP51: 1.6 | AQ51: Granollers | AR51: Paire | AS51: ChennaiGranollersPaire | AT51: ChennaiPaireGranollers | AU51: 1 | AV51: 2 | AW51: 30 | AX51: TRUE | AY51: Granollers | AZ51: TRUE | BA51: ChennaiQuarterfinals
A52: 2 | B52: Chennai | C52: Chennai Open | D52: 2014-01-03 | E52: ATP250 | F52: Outdoor | G52: Hard | H52: Quarterfinals | I52: 3 | J52: Pospisil V. | K52: Bhambri Y. | L52: 32 | M52: 195 | N52: 1219 | O52: 258 | P52: 6 | Q52: 3 | R52: 6 | S52: 3 | Z52: 2 | AA52: 0 | AB52: Completed | AC52: 1.36 | AD52: 3 | AE52: 1.4 | AF52: 2.9 | AG52: 1.33 | AH52: 3.25 | AI52: 1.43 | AJ52: 3.12 | AK52: 1.36 | AL52: 3 | AM52: 1.46 | AN52: 3.5 | AO52: 1.38 | AP52: 2.99 | AQ52: Pospisil | AR52: Bhambri | AS52: ChennaiPospisilBhambri | AT52: ChennaiBhambriPospisil | AU52: 2 | AV52: 6 | AW52: 18 | AX52: FALSE | AY52: Pospisil | AZ52: FALSE | BA52: ChennaiQuarterfinals
A53: 2 | B53: Chennai | C53: Chennai Open | D53: 2014-01-04 | E53: ATP250 | F53: Outdoor | G53: Hard | H53: Semifinals | I53: 3 | J53: Roger-Vasselin E. | K53: Granollers M. | L53: 52 | M53: 222 | N53: 908 | O53: 215 | P53: 6 | Q53: 2 | R53: 4 | S53: 6 | T53: 6 | U53: 3 | Z53: 2 | AA53: 1 | AB53: Completed | AC53: 1.8 | AD53: 2 | AE53: 1.85 | AF53: 1.9 | AG53: 1.8 | AH53: 2 | AI53: 1.93 | AJ53: 2 | AK53: 1.73 | AL53: 2.1 | AM53: 1.95 | AN53: 2.15 | AO53: 1.81 | AP53: 1.96 | AQ53: Roger-Vasselin | AR53: Granollers | AS53: ChennaiRoger-VasselinGranollers | AT53: ChennaiGranollersRoger-Vasselin | AU53: 1 | AV53: 5 | AW53: 27 | AX53: FALSE | AY53: Roger-Vasselin | AZ53: TRUE | BA53: ChennaiSemifinals
A54: 2 | B54: Chennai | C54: Chennai Open | D54: 2014-01-04 | E54: ATP250 | F54: Outdoor | G54: Hard | H54: Semifinals | I54: 3 | J54: Wawrinka S. | K54: Pospisil V. | L54: 8 | M54: 32 | N54: 3730 | O54: 1219 | P54: 6 | Q54: 4 | R54: 5 | S54: 5 | Z54: 1 | AA54: 0 | AB54: Retired | AC54: 1.2 | AD54: 4.5 | AE54: 1.25 | AF54: 3.75 | AG54: 1.25 | AH54: 4 | AI54: 1.25 | AJ54: 4.51 | AK54: 1.17 | AL54: 5 | AM54: 1.28 | AN54: 5 | AO54: 1.24 | AP54: 4 | AQ54: Wawrinka | AR54: Pospisil | AS54: ChennaiWawrinkaPospisil | AT54: ChennaiPospisilWawrinka | AU54: 1 | AV54: 2 | AW54: 20 | AX54: FALSE | AY54: Wawrinka | AZ54: FALSE | BA54: ChennaiSemifinals
A55: 2 | B55: Chennai | C55: Chennai Open | D55: 2014-01-05 | E55: ATP250 | F55: Outdoor | G55: Hard | H55: The Final | I55: 3 | J55: Wawrinka S. | K55: Roger-Vasselin E. | L55: 8 | M55: 52 | N55: 3730 | O55: 908 | P55: 7 | Q55: 5 | R55: 6 | S55: 2 | Z55: 2 | AA55: 0 | AB55: Sched | AC55: 1.2 | AD55: 4.5 | AE55: 1.22 | AF55: 4 | AG55: 1.17 | AH55: 5 | AI55: 1.24 | AJ55: 4.72 | AK55: 1.2 | AL55: 4.5 | AM55: 1.27 | AN55: 5 | AO55: 1.22 | AP55: 4.2 | AQ55: Wawrinka | AR55: Roger-Vasselin | AS55: ChennaiWawrinkaRoger-Vasselin | AT55: ChennaiRoger-VasselinWawrinka | AU55: 2 | AV55: 6 | AW55: 20 | AX55: FALSE | AY55: Wawrinka | AZ55: FALSE | BA55: ChennaiThe Final
A56: 3 | B56: Doha | C56: Qatar Exxon Mobil Open | D56: 2013-12-30 | E56: ATP250 | F56: Outdoor | G56: Hard | H56: 1st Round | I56: 3 | J56: Monfils G. | K56: Giraldo S. | L56: 31 | M56: 69 | N56: 1230 | O56: 703 | P56: 7 | Q56: 6 | R56: 6 | S56: 2 | Z56: 2 | AA56: 0 | AB56: Completed | AC56: 1.33 | AD56: 3.25 | AE56: 1.3 | AF56: 3.4 | AG56: 1.29 | AH56: 3.5 | AI56: 1.37 | AJ56: 3.29 | AK56: 1.29 | AL56: 3.25 | AM56: 1.38 | AN56: 3.8 | AO56: 1.32 | AP56: 3.26 | AQ56: Monfils | AR56: Giraldo | AS56: DohaMonfilsGiraldo | AT56: DohaGiraldoMonfils | AU56: 2 | AV56: 5 | AW56: 21 | AX56: TRUE | AY56: Monfils | AZ56: FALSE | BA56: Doha1st Round
A57: 3 | B57: Doha | C57: Qatar Exxon Mobil Open | D57: 2013-12-30 | E57: ATP250 | F57: Outdoor | G57: Hard | H57: 1st Round | I57: 3 | J57: Kubot L. | K57: Gimeno-Traver D. | L57: 72 | M57: 77 | N57: 686 | O57: 650 | P57: 6 | Q57: 4 | R57: 6 | S57: 3 | Z57: 2 | AA57: 0 | AB57: Completed | AC57: 1.53 | AD57: 2.37 | AE57: 1.58 | AF57: 2.35 | AG57: 1.62 | AH57: 2.2 | AI57: 1.59 | AJ57: 2.49 | AK57: 1.57 | AL57: 2.25 | AM57: 1.65 | AN57: 2.5 | AO57: 1.57 | AP57: 2.34 | AQ57: Kubot | AR57: Gimeno-Traver | AS57: DohaKubotGimeno-Traver | AT57: DohaGimeno-TraverKubot | AU57: 2 | AV57: 5 | AW57: 19 | AX57: FALSE | AY57: Kubot | AZ57: FALSE | BA57: Doha1st Round
A58: 3 | B58: Doha | C58: Qatar Exxon Mobil Open | D58: 2013-12-30 | E58: ATP250 | F58: Outdoor | G58: Hard | H58: 1st Round | I58: 3 | J58: Karlovic I. | K58: Berdych T. | L58: 78 | M58: 7 | N58: 647 | O58: 4180 | P58: 7 | Q58: 6 | R58: 7 | S58: 6 | Z58: 2 | AA58: 0 | AB58: Completed | AC58: 4.5 | AD58: 1.18 | AE58: 4.5 | AF58: 1.18 | AG58: 4.5 | AH58: 1.17 | AI58: 5 | AJ58: 1.21 | AK58: 4.5 | AL58: 1.17 | AM58: 5.2 | AN58: 1.22 | AO58: 4.49 | AP58: 1.19 | AQ58: Karlovic | AR58: Berdych | AS58: DohaKarlovicBerdych | AT58: DohaBerdychKarlovic | AU58: 2 | AV58: 2 | AW58: 26 | AX58: TRUE | AY58: Karlovic | AZ58: FALSE | BA58: Doha1st Round
A59: 3 | B59: Doha | C59: Qatar Exxon Mobil Open | D59: 2013-12-30 | E59: ATP250 | F59: Outdoor | G59: Hard | H59: 1st Round | I59: 3 | J59: Verdasco F. | K59: Volandri F. | L59: 30 | M59: 71 | N59: 1235 | O59: 694 | P59: 6 | Q59: 3 | R59: 6 | S59: 3 | Z59: 2 | AA59: 0 | AB59: Completed | AC59: 1.08 | AD59: 8 | AE59: 1.08 | AF59: 7.5 | AG59: 1.06 | AH59: 8 | AI59: 1.1 | AJ59: 8.4 | AK59: 1.06 | AL59: 7.5 | AM59: 1.1 | AN59: 9.05 | AO59: 1.08 | AP59: 7.63 | AQ59: Verdasco | AR59: Volandri | AS59: DohaVerdascoVolandri | AT59: DohaVolandriVerdasco | AU59: 2 | AV59: 6 | AW59: 18 | AX59: FALSE | AY59: Verdasco | AZ59: FALSE | BA59: Doha1st Round
A60: 3 | B60: Doha | C60: Qatar Exxon Mobil Open | D60: 2013-12-30 | E60: ATP250 | F60: Outdoor | G60: Hard | H60: 1st Round | I60: 3 | J60: Hanescu V. | K60: Sousa J. | L60: 80 | M60: 49 | N60: 636 | O60: 934 | P60: 6 | Q60: 3 | R60: 6 | S60: 2 | Z60: 2 | AA60: 0 | AB60: Completed | AC60: 2.5 | AD60: 1.5 | AE60: 2.7 | AF60: 1.45 | AG60: 2.62 | AH60: 1.44 | AI60: 2.61 | AJ60: 1.55 | AK60: 2.63 | AL60: 1.44 | AM60: 2.8 | AN60: 1.59 | AO60: 2.59 | AP60: 1.48 | AQ60: Hanescu | AR60: Sousa | AS60: DohaHanescuSousa | AT60: DohaSousaHanescu | AU60: 2 | AV60: 7 | AW60: 17 | AX60: FALSE | AY60: Hanescu | AZ60: FALSE | BA60: Doha1st Round
A61: 3 | B61: Doha | C61: Qatar Exxon Mobil Open | D61: 2013-12-30 | E61: ATP250 | F61: Outdoor | G61: Hard | H61: 1st Round | I61: 3 | J61: Kamke T. | K61: Jaziri M. | L61: 74 | M61: 168 | N61: 663 | O61: 312 | P61: 6 | Q61: 3 | R61: 6 | S61: 4 | Z61: 2 | AA61: 0 | AB61: Completed | AC61: 1.5 | AD61: 2.5 | AE61: 1.58 | AF61: 2.35 | AG61: 1.57 | AH61: 2.25 | AI61: 1.53 | AJ61: 2.65 | AK61: 1.57 | AL61: 2.25 | AM61: 1.62 | AN61: 2.65 | AO61: 1.54 | AP61: 2.43 | AQ61: Kamke | AR61: Jaziri | AS61: DohaKamkeJaziri | AT61: DohaJaziriKamke | AU61: 2 | AV61: 5 | AW61: 19 | AX61: FALSE | AY61: Kamke | AZ61: FALSE | BA61: Doha1st Round
A62: 3 | B62: Doha | C62: Qatar Exxon Mobil Open | D62: 2013-12-31 | E62: ATP250 | F62: Outdoor | G62: Hard | H62: 1st Round | I62: 3 | J62: Brown D. | K62: Dodig I. | L62: 111 | M62: 33 | N62: 506 | O62: 1190 | P62: 6 | Q62: 4 | R62: 6 | S62: 2 | Z62: 2 | AA62: 0 | AB62: Completed | AC62: 3 | AD62: 1.36 | AE62: 3.1 | AF62: 1.35 | AG62: 2.75 | AH62: 1.4 | AI62: 3.27 | AJ62: 1.38 | AK62: 2.88 | AL62: 1.36 | AM62: 3.3 | AN62: 1.42 | AO62: 3.01 | AP62: 1.37 | AQ62: Brown | AR62: Dodig | AS62: DohaBrownDodig | AT62: DohaDodigBrown | AU62: 2 | AV62: 6 | AW62: 18 | AX62: FALSE | AY62: Brown | AZ62: FALSE | BA62: Doha1st Round
A63: 3 | B63: Doha | C63: Qatar Exxon Mobil Open | D63: 2013-12-31 | E63: ATP250 | F63: Outdoor | G63: Hard | H63: 1st Round | I63: 3 | J63: Gojowczyk P. | K63: Thiem D. | L63: 162 | M63: 139 | N63: 321 | O63: 410 | P63: 7 | Q63: 5 | R63: 6 | S63: 0 | Z63: 2 | AA63: 0 | AB63: Completed | AC63: 2.1 | AD63: 1.66 | AE63: 2.2 | AF63: 1.65 | AG63: 2.25 | AH63: 1.57 | AI63: 2.2 | AJ63: 1.74 | AK63: 2.1 | AL63: 1.67 | AM63: 2.25 | AN63: 1.84 | AO63: 2.14 | AP63: 1.68 | AQ63: Gojowczyk | AR63: Thiem | AS63: DohaGojowczykThiem | AT63: DohaThiemGojowczyk | AU63: 2 | AV63: 8 | AW63: 18 | AX63: FALSE | AY63: Gojowczyk | AZ63: FALSE | BA63: Doha1st Round
A64: 3 | B64: Doha | C64: Qatar Exxon Mobil Open | D64: 2013-12-31 | E64: ATP250 | F64: Outdoor | G64: Hard | H64: 1st Round | I64: 3 | J64: Murray A. | K64: Zayed M.S. | L64: 4 | M64: N/A | N64: 5790 | O64: N/A | P64: 6 | Q64: 0 | R64: 6 | S64: 0 | Z64: 2 | AA64: 0 | AB64: Completed | AD64: 51 | AE64: 1.01 | AF64: 13 | AH64: 26 | AI64: 1.01 | AJ64: 76 | AK64: 1.01 | AL64: 21 | AM64: 1.01 | AN64: 101 | AO64: 1.01 | AP64: 34.46 | AQ64: Murray | AR64: Zayed | AS64: DohaMurrayZayed | AT64: DohaZayedMurray | AU64: 2 | AV64: 12 | AW64: 12 | AX64: FALSE | AY64: Murray | AZ64: FALSE | BA64: Doha1st Round
A65: 3 | B65: Doha | C65: Qatar Exxon Mobil Open | D65: 2013-12-31 | E65: ATP250 | F65: Outdoor | G65: Hard | H65: 1st Round | I65: 3 | J65: Brands D. | K65: Davydenko N. | L65: 54 | M65: 53 | N65: 836 | O65: 890 | P65: 6 | Q65: 4 | R65: 6 | S65: 4 | Z65: 2 | AA65: 0 | AB65: Completed | AC65: 1.83 | AD65: 1.83 | AE65: 1.9 | AF65: 1.85 | AG65: 2 | AH65: 1.73 | AI65: 2.1 | AJ65: 1.81 | AK65: 2 | AL65: 1.73 | AM65: 2.1 | AN65: 1.88 | AO65: 1.96 | AP65: 1.8 | AQ65: Brands | AR65: Davydenko | AS65: DohaBrandsDavydenko | AT65: DohaDavydenkoBrands | AU65: 2 | AV65: 4 | AW65: 20 | AX65: FALSE | AY65: Brands | AZ65: FALSE | BA65: Doha1st Round
A66: 3 | B66: Doha | C66: Qatar Exxon Mobil Open | D66: 2013-12-31 | E66: ATP250 | F66: Outdoor | G66: Hard | H66: 1st Round | I66: 3 | J66: Ferrer D. | K66: Dolgopolov O. | L66: 3 | M66: 57 | N66: 5800 | O66: 825 | P66: 6 | Q66: 3 | R66: 5 | S66: 7 | T66: 6 | U66: 3 | Z66: 2 | AA66: 1 | AB66: Completed | AC66: 1.14 | AD66: 5.5 | AE66: 1.15 | AF66: 5.25 | AG66: 1.14 | AH66: 5 | AI66: 1.21 | AJ66: 4.9 | AK66: 1.14 | AL66: 5 | AM66: 1.21 | AN66: 5.75 | AO66: 1.16 | AP66: 5.09 | AQ66: Ferrer | AR66: Dolgopolov | AS66: DohaFerrerDolgopolov | AT66: DohaDolgopolovFerrer | AU66: 1 | AV66: 4 | AW66: 30 | AX66: FALSE | AY66: Ferrer | AZ66: TRUE | BA66: Doha1st Round
A67: 3 | B67: Doha | C67: Qatar Exxon Mobil Open | D67: 2013-12-31 | E67: ATP250 | F67: Outdoor | G67: Hard | H67: 1st Round | I67: 3 | J67: Mayer F. | K67: Przysiezny M. | L67: 40 | M67: 66 | N67: 1065 | O67: 730 | P67: 6 | Q67: 2 | R67: 3 | S67: 6 | T67: 7 | U67: 6 | Z67: 2 | AA67: 1 | AB67: Completed | AC67: 1.44 | AD67: 2.62 | AE67: 1.48 | AF67: 2.6 | AG67: 1.4 | AH67: 2.75 | AI67: 1.38 | AJ67: 3.26 | AK67: 1.44 | AL67: 2.63 | AM67: 1.56 | AN67: 3.26 | AO67: 1.44 | AP67: 2.72 | AQ67: =LEFT(J67,FIND(" ",J67)-1) -> Mayer | AR67: =LEFT(K67,FIND(" ",K67)-1) -> Przysiezny | AS67: =B67&AQ67&AR67 -> DohaMayerPrzysiezny | AT67: =B67&AR67&AQ67 -> DohaPrzysieznyMayer | AU67: =Z67-AA67 -> 1 | AV67: =X67+V67+T67+R67+P67-Y67-W67-U67-S67-Q67 -> 2 | AW67: =X67+V67+T67+R67+P67+Y67+W67+U67+S67+Q67 -> 30 | AX67: =OR(P67+Q67=13,R67+S67=13,T67+U67=13,V67+W67=13,X67+Y67=13) -> TRUE | AY67: =IF(P67>Q67,AQ67,AR67) -> Mayer | AZ67: =AA67<>0 -> TRUE | BA67: =B67&H67 -> Doha1st Round
A68: 3 | B68: Doha | C68: Qatar Exxon Mobil Open | D68: 2013-12-31 | E68: ATP250 | F68: Outdoor | G68: Hard | H68: 1st Round | I68: 3 | J68: Gulbis E. | K68: Evans D. | L68: 24 | M68: 150 | N68: 1393 | O68: 346 | P68: 6 | Q68: 2 | R68: 4 | S68: 6 | T68: 6 | U68: 0 | Z68: 2 | AA68: 1 | AB68: Completed | AC68: 1.22 | AD68: 4 | AE68: 1.22 | AF68: 4 | AG68: 1.2 | AH68: 4.33 | AI68: 1.24 | AJ68: 4.55 | AK68: 1.25 | AL68: 3.5 | AM68: 1.28 | AN68: 4.7 | AO68: 1.24 | AP68: 3.95 | AQ68: Gulbis | AR68: Evans | AS68: DohaGulbisEvans | AT68: DohaEvansGulbis | AU68: 1 | AV68: 8 | AW68: 24 | AX68: FALSE | AY68: Gulbis | AZ68: TRUE | BA68: Doha1st Round
A69: 3 | B69: Doha | C69: Qatar Exxon Mobil Open | D69: 2013-12-31 | E69: ATP250 | F69: Outdoor | G69: Hard | H69: 1st Round | I69: 3 | J69: Nadal R. | K69: Rosol L. | L69: 1 | M69: 47 | N69: 13030 | O69: 956 | P69: 6 | Q69: 2 | R69: 7 | S69: 6 | Z69: 2 | AA69: 0 | AB69: Completed | AC69: 1.04 | AD69: 13 | AE69: 1.03 | AF69: 11 | AG69: 1.03 | AH69: 10 | AI69: 1.05 | AJ69: 12.44 | AK69: 1.03 | AL69: 10 | AM69: 1.06 | AN69: 15 | AO69: 1.04 | AP69: 11.03 | AQ69: Nadal | AR69: Rosol | AS69: DohaNadalRosol | AT69: DohaRosolNadal | AU69: 2 | AV69: 5 | AW69: 21 | AX69: TRUE | AY69: Nadal | AZ69: FALSE | BA69: Doha1st Round
A70: 3 | B70: Doha | C70: Qatar Exxon Mobil Open | D70: 2013-12-31 | E70: ATP250 | F70: Outdoor | G70: Hard | H70: 1st Round | I70: 3 | J70: Kohlschreiber P. | K70: Andujar P. | L70: 22 | M70: 48 | N70: 1525 | O70: 946 | P70: 7 | Q70: 6 | R70: 6 | S70: 2 | Z70: 2 | AA70: 0 | AB70: Completed | AC70: 1.14 | AD70: 5 | AE70: 1.15 | AF70: 5.25 | AG70: 1.17 | AH70: 4.5 | AI70: 1.14 | AJ70: 6.65 | AK70: 1.17 | AL70: 4.5 | AM70: 1.17 | AN70: 6.65 | AO70: 1.15 | AP70: 5.21 | AQ70: Kohlschreiber | AR70: Andujar | AS70: DohaKohlschreiberAndujar | AT70: DohaAndujarKohlschreiber | AU70: 2 | AV70: 5 | AW70: 21 | AX70: TRUE | AY70: Kohlschreiber | AZ70: FALSE | BA70: Doha1st Round
A71: 3 | B71: Doha | C71: Qatar Exxon Mobil Open | D71: 2013-12-31 | E71: ATP250 | F71: Outdoor | G71: Hard | H71: 1st Round | I71: 3 | J71: Gasquet R. | K71: Hossam K. | L71: 9 | M71: 338 | N71: 3300 | O71: 127 | P71: 7 | Q71: 5 | R71: 6 | S71: 1 | Z71: 2 | AA71: 0 | AB71: Completed | AC71: 1.01 | AD71: 21 | AE71: 1.03 | AF71: 11 | AG71: 1.02 | AH71: 13 | AI71: 1.03 | AJ71: 18.68 | AK71: 1.02 | AL71: 13 | AM71: 1.03 | AN71: 40 | AO71: 1.02 | AP71: 16.19 | AQ71: Gasquet | AR71: Hossam | AS71: DohaGasquetHossam | AT71: DohaHossamGasquet | AU71: 2 | AV71: 7 | AW71: 19 | AX71: FALSE | AY71: Gasquet | AZ71: FALSE | BA71: Doha1st Round
A72: 3 | B72: Doha | C72: Qatar Exxon Mobil Open | D72: 2014-01-01 | E72: ATP250 | F72: Outdoor | G72: Hard | H72: 2nd Round | I72: 3 | J72: Gojowczyk P. | K72: Kohlschreiber P. | L72: 162 | M72: 22 | N72: 321 | O72: 1525 | P72: 7 | Q72: 6 | R72: 7 | S72: 6 | Z72: 2 | AA72: 0 | AB72: Completed | AC72: 4 | AD72: 1.22 | AE72: 4 | AF72: 1.22 | AG72: 4 | AH72: 1.22 | AI72: 4.3 | AJ72: 1.26 | AK72: 4 | AL72: 1.22 | AM72: 4.3 | AN72: 1.27 | AO72: 3.97 | AP72: 1.23 | AQ72: Gojowczyk | AR72: Kohlschreiber | AS72: DohaGojowczykKohlschreiber | AT72: DohaKohlschreiberGojowczyk | AU72: 2 | AV72: 2 | AW72: 26 | AX72: TRUE | AY72: Gojowczyk | AZ72: FALSE | BA72: Doha2nd Round
A73: 3 | B73: Doha | C73: Qatar Exxon Mobil Open | D73: 2014-01-01 | E73: ATP250 | F73: Outdoor | G73: Hard | H73: 2nd Round | I73: 3 | J73: Mayer F. | K73: Murray A. | L73: 40 | M73: 4 | N73: 1065 | O73: 5790 | P73: 3 | Q73: 6 | R73: 6 | S73: 4 | T73: 6 | U73: 2 | Z73: 2 | AA73: 1 | AB73: Completed | AC73: 5 | AD73: 1.14 | AE73: 5.25 | AF73: 1.15 | AG73: 5.5 | AH73: 1.12 | AI73: 6.55 | AJ73: 1.15 | AK73: 6 | AL73: 1.13 | AM73: 6.88 | AN73: 1.17 | AO73: 5.41 | AP73: 1.14 | AQ73: Mayer | AR73: Murray | AS73: DohaMayerMurray | AT73: DohaMurrayMayer | AU73: 1 | AV73: 3 | AW73: 27 | AX73: FALSE | AY73: Murray | AZ73: TRUE | BA73: Doha2nd Round
A74: 3 | B74: Doha | C74: Qatar Exxon Mobil Open | D74: 2014-01-01 | E74: ATP250 | F74: Outdoor | G74: Hard | H74: 2nd Round | I74: 3 | J74: Hanescu V. | K74: Verdasco F. | L74: 80 | M74: 30 | N74: 636 | O74: 1235 | P74: 4 | Q74: 6 | R74: 7 | S74: 6 | T74: 6 | U74: 2 | Z74: 2 | AA74: 1 | AB74: Completed | AC74: 4 | AD74: 1.22 | AE74: 3.75 | AF74: 1.25 | AG74: 3.75 | AH74: 1.25 | AI74: 4.6 | AJ74: 1.24 | AK74: 4 | AL74: 1.22 | AM74: 4.63 | AN74: 1.3 | AO74: 3.9 | AP74: 1.24 | AQ74: Hanescu | AR74: Verdasco | AS74: DohaHanescuVerdasco | AT74: DohaVerdascoHanescu | AU74: 1 | AV74: 3 | AW74: 31 | AX74: TRUE | AY74: Verdasco | AZ74: TRUE | BA74: Doha2nd Round
A75: 3 | B75: Doha | C75: Qatar Exxon Mobil Open | D75: 2014-01-01 | E75: ATP250 | F75: Outdoor | G75: Hard | H75: 2nd Round | I75: 3 | J75: Brown D. | K75: Karlovic I. | L75: 111 | M75: 78 | N75: 506 | O75: 647 | P75: 3 | Q75: 6 | R75: 7 | S75: 6 | T75: 6 | U75: 4 | Z75: 2 | AA75: 1 | AB75: Completed | AC75: 2.25 | AD75: 1.57 | AE75: 2.15 | AF75: 1.68 | AG75: 2.25 | AH75: 1.57 | AI75: 2.52 | AJ75: 1.59 | AK75: 2.2 | AL75: 1.67 | AM75: 2.52 | AN75: 1.68 | AO75: 2.26 | AP75: 1.62 | AQ75: Brown | AR75: Karlovic | AS75: DohaBrownKarlovic | AT75: DohaKarlovicBrown | AU75: 1 | AV75: 0 | AW75: 32 | AX75: TRUE | AY75: Karlovic | AZ75: TRUE | BA75: Doha2nd Round
A76: 3 | B76: Doha | C76: Qatar Exxon Mobil Open | D76: 2014-01-01 | E76: ATP250 | F76: Outdoor | G76: Hard | H76: 2nd Round | I76: 3 | J76: Nadal R. | K76: Kamke T. | L76: 1 | M76: 74 | N76: 13030 | O76: 663 | P76: 6 | Q76: 3 | R76: 6 | S76: 7 | T76: 6 | U76: 3 | Z76: 2 | AA76: 1 | AB76: Completed | AC76: 1.04 | AD76: 13 | AE76: 1.02 | AF76: 12 | AG76: 1.03 | AH76: 10 | AI76: 1.04 | AJ76: 15.5 | AK76: 1.03 | AL76: 11 | AM76: 1.06 | AN76: 17.5 | AO76: 1.03 | AP76: 12.05 | AQ76: Nadal | AR76: Kamke | AS76: DohaNadalKamke | AT76: DohaKamkeNadal | AU76: 1 | AV76: 5 | AW76: 31 | AX76: TRUE | AY76: Nadal | AZ76: TRUE | BA76: Doha2nd Round
A77: 3 | B77: Doha | C77: Qatar Exxon Mobil Open | D77: 2014-01-01 | E77: ATP250 | F77: Outdoor | G77: Hard | H77: 2nd Round | I77: 3 | J77: Gulbis E. | K77: Kubot L. | L77: 24 | M77: 72 | N77: 1393 | O77: 686 | P77: 6 | Q77: 2 | R77: 4 | S77: 6 | T77: 6 | U77: 3 | Z77: 2 | AA77: 1 | AB77: Completed | AC77: 1.16 | AD77: 5 | AE77: 1.18 | AF77: 4.5 | AG77: 1.22 | AH77: 4 | AI77: 1.2 | AJ77: 5.27 | AK77: 1.17 | AL77: 5 | AM77: 1.22 | AN77: 5.5 | AO77: 1.19 | AP77: 4.58 | AQ77: Gulbis | AR77: Kubot | AS77: DohaGulbisKubot | AT77: DohaKubotGulbis | AU77: 1 | AV77: 5 | AW77: 27 | AX77: FALSE | AY77: Gulbis | AZ77: TRUE | BA77: Doha2nd Round
A78: 3 | B78: Doha | C78: Qatar Exxon Mobil Open | D78: 2014-01-01 | E78: ATP250 | F78: Outdoor | G78: Hard | H78: 2nd Round | I78: 3 | J78: Brands D. | K78: Ferrer D. | L78: 54 | M78: 3 | N78: 836 | O78: 5800 | P78: 6 | Q78: 4 | R78: 7 | S78: 5 | Z78: 2 | AA78: 0 | AB78: Completed | AC78: 5.5 | AD78: 1.14 | AE78: 5.5 | AF78: 1.12 | AG78: 5 | AH78: 1.14 | AI78: 5.8 | AJ78: 1.17 | AK78: 5.5 | AL78: 1.14 | AM78: 6 | AN78: 1.18 | AO78: 5.23 | AP78: 1.15 | AQ78: Brands | AR78: Ferrer | AS78: DohaBrandsFerrer | AT78: DohaFerrerBrands | AU78: 2 | AV78: 4 | AW78: 22 | AX78: FALSE | AY78: Brands | AZ78: FALSE | BA78: Doha2nd Round
A79: 3 | B79: Doha | C79: Qatar Exxon Mobil Open | D79: 2014-01-01 | E79: ATP250 | F79: Outdoor | G79: Hard | H79: 2nd Round | I79: 3 | J79: Monfils G. | K79: Gasquet R. | L79: 31 | M79: 9 | N79: 1230 | O79: 3300 | P79: 6 | Q79: 2 | R79: 7 | S79: 5 | Z79: 2 | AA79: 0 | AB79: Completed | AC79: 1.57 | AD79: 2.25 | AE79: 1.6 | AF79: 2.3 | AG79: 1.62 | AH79: 2.2 | AI79: 1.63 | AJ79: 2.45 | AK79: 1.57 | AL79: 2.38 | AM79: 1.66 | AN79: 2.54 | AO79: 1.6 | AP79: 2.29 | AQ79: Monfils | AR79: Gasquet | AS79: DohaMonfilsGasquet | AT79: DohaGasquetMonfils | AU79: 2 | AV79: 6 | AW79: 20 | AX79: FALSE | AY79: Monfils | AZ79: FALSE | BA79: Doha2nd Round
A80: 3 | B80: Doha | C80: Qatar Exxon Mobil Open | D80: 2014-01-02 | E80: ATP250 | F80: Outdoor | G80: Hard | H80: Quarterfinals | I80: 3 | J80: Gojowczyk P. | K80: Brown D. | L80: 162 | M80: 111 | N80: 321 | O80: 506 | P80: 6 | Q80: 3 | R80: 3 | S80: 6 | T80: 7 | U80: 6 | Z80: 2 | AA80: 1 | AB80: Completed | AC80: 2.1 | AD80: 1.66 | AE80: 2.1 | AF80: 1.7 | AG80: 2.1 | AH80: 1.67 | AI80: 2.11 | AJ80: 1.83 | AK80: 2.2 | AL80: 1.67 | AM80: 2.2 | AN80: 1.85 | AO80: 2.1 | AP80: 1.71 | AQ80: Gojowczyk | AR80: Brown | AS80: DohaGojowczykBrown | AT80: DohaBrownGojowczyk | AU80: 1 | AV80: 1 | AW80: 31 | AX80: TRUE | AY80: Gojowczyk | AZ80: TRUE | BA80: DohaQuarterfinals
A81: 3 | B81: Doha | C81: Qatar Exxon Mobil Open | D81: 2014-01-02 | E81: ATP250 | F81: Outdoor | G81: Hard | H81: Quarterfinals | I81: 3 | J81: Nadal R. | K81: Gulbis E. | L81: 1 | M81: 24 | N81: 13030 | O81: 1393 | P81: 7 | Q81: 5 | R81: 6 | S81: 4 | Z81: 2 | AA81: 0 | AB81: Completed | AC81: 1.2 | AD81: 4.33 | AE81: 1.22 | AF81: 4 | AG81: 1.2 | AH81: 4.33 | AI81: 1.26 | AJ81: 4.43 | AK81: 1.22 | AL81: 4 | AM81: 1.27 | AN81: 5.2 | AO81: 1.23 | AP81: 4.06 | AQ81: Nadal | AR81: Gulbis | AS81: DohaNadalGulbis | AT81: DohaGulbisNadal | AU81: 2 | AV81: 4 | AW81: 22 | AX81: FALSE | AY81: Nadal | AZ81: FALSE | BA81: DohaQuarterfinals
A82: 3 | B82: Doha | C82: Qatar Exxon Mobil Open | D82: 2014-01-02 | E82: ATP250 | F82: Outdoor | G82: Hard | H82: Quarterfinals | I82: 3 | J82: Mayer F. | K82: Hanescu V. | L82: 40 | M82: 80 | N82: 1065 | O82: 636 | P82: 6 | Q82: 4 | R82: 6 | S82: 7 | T82: 6 | U82: 4 | Z82: 2 | AA82: 1 | AB82: Completed | AC82: 1.3 | AD82: 3.4 | AE82: 1.33 | AF82: 3.2 | AG82: 1.36 | AH82: 3 | AI82: 1.34 | AJ82: 3.62 | AK82: 1.29 | AL82: 3.5 | AM82: 1.34 | AN82: 4.3 | AO82: 1.3 | AP82: 3.55 | AQ82: Mayer | AR82: Hanescu | AS82: DohaMayerHanescu | AT82: DohaHanescuMayer | AU82: 1 | AV82: 3 | AW82: 33 | AX82: TRUE | AY82: Mayer | AZ82: TRUE | BA82: DohaQuarterfinals
A83: 3 | B83: Doha | C83: Qatar Exxon Mobil Open | D83: 2014-01-02 | E83: ATP250 | F83: Outdoor | G83: Hard | H83: Quarterfinals | I83: 3 | J83: Monfils G. | K83: Brands D. | L83: 31 | M83: 54 | N83: 1230 | O83: 836 | P83: 6 | Q83: 2 | R83: 6 | S83: 1 | Z83: 2 | AA83: 0 | AB83: Completed | AC83: 1.44 | AD83: 2.62 | AE83: 1.55 | AF83: 2.4 | AG83: 1.57 | AH83: 2.25 | AI83: 1.54 | AJ83: 2.69 | AK83: 1.57 | AL83: 2.38 | AM83: 1.57 | AN83: 2.69 | AO83: 1.53 | AP83: 2.46 | AQ83: Monfils | AR83: Brands | AS83: DohaMonfilsBrands | AT83: DohaBrandsMonfils | AU83: 2 | AV83: 9 | AW83: 15 | AX83: FALSE | AY83: Monfils | AZ83: FALSE | BA83: DohaQuarterfinals
A84: 3 | B84: Doha | C84: Qatar Exxon Mobil Open | D84: 2014-01-03 | E84: ATP250 | F84: Outdoor | G84: Hard | H84: Semifinals | I84: 3 | J84: Nadal R. | K84: Gojowczyk P. | L84: 1 | M84: 162 | N84: 13030 | O84: 321 | P84: 4 | Q84: 6 | R84: 6 | S84: 2 | T84: 6 | U84: 3 | Z84: 2 | AA84: 1 | AB84: Completed | AC84: 1.01 | AD84: 26 | AE84: 1.02 | AF84: 12 | AG84: 1.02 | AH84: 15 | AI84: 1.02 | AJ84: 27.78 | AK84: 1.02 | AL84: 15 | AM84: 1.04 | AN84: 28.5 | AO84: 1.02 | AP84: 15.74 | AQ84: Nadal | AR84: Gojowczyk | AS84: DohaNadalGojowczyk | AT84: DohaGojowczykNadal | AU84: 1 | AV84: 5 | AW84: 27 | AX84: FALSE | AY84: Gojowczyk | AZ84: TRUE | BA84: DohaSemifinals
A85: 3 | B85: Doha | C85: Qatar Exxon Mobil Open | D85: 2014-01-03 | E85: ATP250 | F85: Outdoor | G85: Hard | H85: Semifinals | I85: 3 | J85: Monfils G. | K85: Mayer F. | L85: 31 | M85: 40 | N85: 1230 | O85: 1065 | P85: 6 | Q85: 3 | R85: 6 | S85: 2 | Z85: 2 | AA85: 0 | AB85: Completed | AC85: 1.28 | AD85: 3.75 | AE85: 1.33 | AF85: 3.2 | AG85: 1.3 | AH85: 3.5 | AI85: 1.32 | AJ85: 3.79 | AK85: 1.3 | AL85: 3.4 | AM85: 1.36 | AN85: 4.4 | AO85: 1.3 | AP85: 3.43 | AQ85: Monfils | AR85: Mayer | AS85: DohaMonfilsMayer | AT85: DohaMayerMonfils | AU85: 2 | AV85: 7 | AW85: 17 | AX85: FALSE | AY85: Monfils | AZ85: FALSE | BA85: DohaSemifinals
A86: 3 | B86: Doha | C86: Qatar Exxon Mobil Open | D86: 2014-01-04 | E86: ATP250 | F86: Outdoor | G86: Hard | H86: The Final | I86: 3 | J86: Nadal R. | K86: Monfils G. | L86: 1 | M86: 31 | N86: 13030 | O86: 1230 | P86: 6 | Q86: 1 | R86: 6 | S86: 7 | T86: 6 | U86: 2 | Z86: 2 | AA86: 1 | AB86: Completed | AC86: 1.4 | AD86: 3 | AE86: 1.42 | AF86: 2.8 | AG86: 1.4 | AH86: 3 | AI86: 1.41 | AJ86: 3.23 | AK86: 1.36 | AL86: 3 | AM86: 1.45 | AN86: 3.5 | AO86: 1.39 | AP86: 2.94 | AQ86: Nadal | AR86: Monfils | AS86: DohaNadalMonfils | AT86: DohaMonfilsNadal | AU86: 1 | AV86: 8 | AW86: 28 | AX86: TRUE | AY86: Nadal | AZ86: TRUE | BA86: DohaThe Final
A87: 4 | B87: Auckland | C87: Heineken Open | D87: 2014-01-06 | E87: ATP250 | F87: Outdoor | G87: Hard | H87: 1st Round | I87: 3 | J87: Giraldo S. | K87: Montanes A. | L87: 68 | M87: 59 | N87: 703 | O87: 766 | P87: 6 | Q87: 1 | R87: 7 | S87: 6 | Z87: 2 | AA87: 0 | AB87: Completed | AC87: 1.2 | AD87: 4.33 | AE87: 1.25 | AF87: 3.75 | AG87: 1.25 | AH87: 3.75 | AI87: 1.22 | AJ87: 4.73 | AK87: 1.22 | AL87: 4 | AM87: 1.26 | AN87: 5.1 | AO87: 1.21 | AP87: 4.22 | AQ87: Giraldo | AR87: Montanes | AS87: AucklandGiraldoMontanes | AT87: AucklandMontanesGiraldo | AU87: 2 | AV87: 6 | AW87: 20 | AX87: TRUE | AY87: Giraldo | AZ87: FALSE | BA87: Auckland1st Round
A88: 4 | B88: Auckland | C88: Heineken Open | D88: 2014-01-06 | E88: ATP250 | F88: Outdoor | G88: Hard | H88: 1st Round | I88: 3 | J88: Sock J. | K88: Mannarino A. | L88: 100 | M88: 71 | N88: 545 | O88: 692 | P88: 6 | Q88: 3 | R88: 6 | S88: 4 | Z88: 2 | AA88: 0 | AB88: Completed | AC88: 2.2 | AD88: 1.61 | AE88: 2.15 | AF88: 1.68 | AG88: 2.2 | AH88: 1.62 | AI88: 2.2 | AJ88: 1.74 | AK88: 2.25 | AL88: 1.62 | AM88: 2.35 | AN88: 1.77 | AO88: 2.18 | AP88: 1.65 | AQ88: Sock | AR88: Mannarino | AS88: AucklandSockMannarino | AT88: AucklandMannarinoSock | AU88: 2 | AV88: 5 | AW88: 19 | AX88: FALSE | AY88: Sock | AZ88: FALSE | BA88: Auckland1st Round
A89: 4 | B89: Auckland | C89: Heineken Open | D89: 2014-01-06 | E89: ATP250 | F89: Outdoor | G89: Hard | H89: 1st Round | I89: 3 | J89: Zeballos H. | K89: Volandri F. | L89: 66 | M89: 70 | N89: 710 | O89: 694 | P89: 6 | Q89: 0 | R89: 7 | S89: 6 | Z89: 2 | AA89: 0 | AB89: Completed | AC89: 1.33 | AD89: 3.25 | AE89: 1.3 | AF89: 3.4 | AG89: 1.3 | AH89: 3.4 | AI89: 1.4 | AJ89: 3.2 | AK89: 1.33 | AL89: 3.25 | AM89: 1.41 | AN89: 3.75 | AO89: 1.33 | AP89: 3.22 | AQ89: Zeballos | AR89: Volandri | AS89: AucklandZeballosVolandri | AT89: AucklandVolandriZeballos | AU89: 2 | AV89: 7 | AW89: 19 | AX89: TRUE | AY89: Zeballos | AZ89: FALSE | BA89: Auckland1st Round
A90: 4 | B90: Auckland | C90: Heineken Open | D90: 2014-01-06 | E90: ATP250 | F90: Outdoor | G90: Hard | H90: 1st Round | I90: 3 | J90: Young D. | K90: Delbonis F. | L90: 96 | M90: 54 | N90: 563 | O90: 826 | P90: 7 | Q90: 5 | R90: 6 | S90: 2 | Z90: 2 | AA90: 0 | AB90: Completed | AC90: 1.33 | AD90: 3.25 | AE90: 1.35 | AF90: 3.1 | AG90: 1.36 | AH90: 3 | AI90: 1.38 | AJ90: 3.31 | AK90: 1.36 | AL90: 3 | AM90: 1.45 | AN90: 3.35 | AO90: 1.36 | AP90: 3.05 | AQ90: Young | AR90: Delbonis | AS90: AucklandYoungDelbonis | AT90: AucklandDelbonisYoung | AU90: 2 | AV90: 6 | AW90: 20 | AX90: FALSE | AY90: Young | AZ90: FALSE | BA90: Auckland1st Round
A91: 4 | B91: Auckland | C91: Heineken Open | D91: 2014-01-06 | E91: ATP250 | F91: Outdoor | G91: Hard | H91: 1st Round | I91: 3 | J91: Lacko L. | K91: Statham J. | L91: 90 | M91: 288 | N91: 595 | O91: 155 | P91: 6 | Q91: 3 | R91: 6 | S91: 1 | Z91: 2 | AA91: 0 | AB91: Completed | AC91: 1.12 | AD91: 6 | AE91: 1.16 | AF91: 5 | AG91: 1.14 | AH91: 5 | AI91: 1.15 | AJ91: 6.16 | AK91: 1.13 | AL91: 6 | AM91: 1.17 | AN91: 7.5 | AO91: 1.14 | AP91: 5.55 | AQ91: Lacko | AR91: Statham | AS91: AucklandLackoStatham | AT91: AucklandStathamLacko | AU91: 2 | AV91: 8 | AW91: 16 | AX91: FALSE | AY91: Lacko | AZ91: FALSE | BA91: Auckland1st Round
A92: 4 | B92: Auckland | C92: Heineken Open | D92: 2014-01-07 | E92: ATP250 | F92: Outdoor | G92: Hard | H92: 1st Round | I92: 3 | J92: Garcia-Lopez G. | K92: Haase R. | L92: 58 | M92: 44 | N92: 776 | O92: 977 | P92: 4 | Q92: 6 | R92: 7 | S92: 5 | T92: 7 | U92: 6 | Z92: 2 | AA92: 1 | AB92: Completed | AC92: 2 | AD92: 1.72 | AE92: 2.05 | AF92: 1.75 | AG92: 2.1 | AH92: 1.67 | AI92: 2.19 | AJ92: 1.75 | AK92: 2.1 | AL92: 1.73 | AM92: 2.2 | AN92: 1.87 | AO92: 2.03 | AP92: 1.75 | AQ92: Garcia-Lopez | AR92: Haase | AS92: AucklandGarcia-LopezHaase | AT92: AucklandHaaseGarcia-Lopez | AU92: 1 | AV92: 1 | AW92: 35 | AX92: TRUE | AY92: Haase | AZ92: TRUE | BA92: Auckland1st Round
A93: 4 | B93: Auckland | C93: Heineken Open | D93: 2014-01-07 | E93: ATP250 | F93: Outdoor | G93: Hard | H93: 1st Round | I93: 3 | J93: Bautista R. | K93: Gimeno-Traver D. | L93: 73 | M93: 80 | N93: 680 | O93: 650 | P93: 6 | Q93: 1 | R93: 3 | S93: 6 | T93: 6 | U93: 4 | Z93: 2 | AA93: 1 | AB93: Completed | AC93: 1.4 | AD93: 2.75 | AE93: 1.4 | AF93: 2.9 | AG93: 1.44 | AH93: 2.62 | AI93: 1.45 | AJ93: 2.93 | AK93: 1.44 | AL93: 2.75 | AM93: 1.45 | AN93: 3.07 | AO93: 1.41 | AP93: 2.82 | AQ93: Bautista | AR93: Gimeno-Traver | AS93: AucklandBautistaGimeno-Traver | AT93: AucklandGimeno-TraverBautista | AU93: 1 | AV93: 4 | AW93: 26 | AX93: FALSE | AY93: Bautista | AZ93: TRUE | BA93: Auckland1st Round
A94: 4 | B94: Auckland | C94: Heineken Open | D94: 2014-01-07 | E94: ATP250 | F94: Outdoor | G94: Hard | H94: 1st Round | I94: 3 | J94: Kohlschreiber P. | K94: Carreno-Busta P. | L94: 22 | M94: 61 | N94: 1525 | O94: 739 | P94: 6 | Q94: 2 | R94: 3 | S94: 6 | T94: 7 | U94: 5 | Z94: 2 | AA94: 1 | AB94: Completed | AC94: 1.14 | AD94: 5.5 | AE94: 1.18 | AF94: 4.5 | AG94: 1.17 | AH94: 4.5 | AI94: 1.22 | AJ94: 4.81 | AK94: 1.17 | AL94: 5 | AM94: 1.22 | AN94: 6 | AO94: 1.18 | AP94: 4.71 | AQ94: Kohlschreiber | AR94: Carreno-Busta | AS94: AucklandKohlschreiberCarreno-Busta | AT94: AucklandCarreno-BustaKohlschreiber | AU94: 1 | AV94: 3 | AW94: 29 | AX94: FALSE | AY94: Kohlschreiber | AZ94: TRUE | BA94: Auckland1st Round
A95: 4 | B95: Auckland | C95: Heineken Open | D95: 2014-01-07 | E95: ATP250 | F95: Outdoor | G95: Hard | H95: 1st Round | I95: 3 | J95: Lu Y.H. | K95: Sijsling I. | L95: 62 | M95: 69 | N95: 730 | O95: 697 | P95: 7 | Q95: 5 | R95: 7 | S95: 6 | Z95: 2 | AA95: 0 | AB95: Completed | AC95: 3 | AD95: 1.36 | AE95: 2.8 | AF95: 1.42 | AG95: 2.62 | AH95: 1.44 | AI95: 2.76 | AJ95: 1.5 | AK95: 2.88 | AL95: 1.4 | AM95: 3.05 | AN95: 1.55 | AO95: 2.77 | AP95: 1.43 | AQ95: Lu | AR95: Sijsling | AS95: AucklandLuSijsling | AT95: AucklandSijslingLu | AU95: 2 | AV95: 3 | AW95: 25 | AX95: TRUE | AY95: Lu | AZ95: FALSE | BA95: Auckland1st Round
A96: 4 | B96: Auckland | C96: Heineken Open | D96: 2014-01-07 | E96: ATP250 | F96: Outdoor | G96: Hard | H96: 1st Round | I96: 3 | J96: Paire B. | K96: Przysiezny M. | L96: 28 | M96: 63 | N96: 1300 | O96: 730 | P96: 6 | Q96: 4 | R96: 6 | S96: 2 | Z96: 2 | AA96: 0 | AB96: Completed | AC96: 1.5 | AD96: 2.5 | AE96: 1.52 | AF96: 2.45 | AG96: 1.5 | AH96: 2.5 | AI96: 1.5 | AJ96: 2.78 | AK96: 1.53 | AL96: 2.5 | AM96: 1.57 | AN96: 2.78 | AO96: 1.52 | AP96: 2.5 | AQ96: Paire | AR96: Przysiezny | AS96: AucklandPairePrzysiezny | AT96: AucklandPrzysieznyPaire | AU96: 2 | AV96: 6 | AW96: 18 | AX96: FALSE | AY96: Paire | AZ96: FALSE | BA96: Auckland1st Round
A97: 4 | B97: Auckland | C97: Heineken Open | D97: 2014-01-07 | E97: ATP250 | F97: Outdoor | G97: Hard | H97: 1st Round | I97: 3 | J97: Klahn B. | K97: Brands D. | L97: 95 | M97: 57 | N97: 568 | O97: 779 | P97: 7 | Q97: 5 | R97: 4 | S97: 6 | T97: 6 | U97: 3 | Z97: 2 | AA97: 1 | AB97: Completed | AC97: 3 | AD97: 1.36 | AE97: 2.45 | AF97: 1.52 | AG97: 2.5 | AH97: 1.5 | AI97: 2.5 | AJ97: 1.59 | AK97: 2.5 | AL97: 1.53 | AM97: 3 | AN97: 1.6 | AO97: 2.53 | AP97: 1.51 | AQ97: Klahn | AR97: Brands | AS97: AucklandKlahnBrands | AT97: AucklandBrandsKlahn | AU97: 1 | AV97: 3 | AW97: 31 | AX97: FALSE | AY97: Klahn | AZ97: TRUE | BA97: Auckland1st Round
A98: 4 | B98: Auckland | C98: Heineken Open | D98: 2014-01-07 | E98: ATP250 | F98: Outdoor | G98: Hard | H98: 1st Round | I98: 3 | J98: Johnson S. | K98: Baghdatis M. | L98: 160 | M98: 109 | N98: 327 | O98: 515 | P98: 7 | Q98: 5 | R98: 6 | S98: 7 | T98: 6 | U98: 4 | Z98: 2 | AA98: 1 | AB98: Completed | AC98: 3 | AD98: 1.36 | AE98: 2.8 | AF98: 1.42 | AG98: 2.75 | AH98: 1.4 | AI98: 3.01 | AJ98: 1.43 | AK98: 2.75 | AL98: 1.44 | AM98: 3.45 | AN98: 1.48 | AO98: 2.83 | AP98: 1.41 | AQ98: Johnson | AR98: Baghdatis | AS98: AucklandJohnsonBaghdatis | AT98: AucklandBaghdatisJohnson | AU98: 1 | AV98: 3 | AW98: 35 | AX98: TRUE | AY98: Johnson | AZ98: TRUE | BA98: Auckland1st Round
A99: 4 | B99: Auckland | C99: Heineken Open | D99: 2014-01-07 | E99: ATP250 | F99: Outdoor | G99: Hard | H99: 2nd Round | I99: 3 | J99: Sock J. | K99: Haas T. | L99: 100 | M99: 12 | N99: 545 | O99: 2435 | P99: 6 | Q99: 4 | R99: 6 | S99: 4 | Z99: 2 | AA99: 0 | AB99: Completed | AC99: 3.4 | AD99: 1.3 | AE99: 3.1 | AF99: 1.35 | AG99: 3 | AH99: 1.36 | AI99: 3.39 | AJ99: 1.37 | AK99: 3.5 | AL99: 1.29 | AM99: 4.15 | AN99: 1.38 | AO99: 3.24 | AP99: 1.33 | AQ99: Sock | AR99: Haas | AS99: AucklandSockHaas | AT99: AucklandHaasSock | AU99: 2 | AV99: 4 | AW99: 20 | AX99: FALSE | AY99: Sock | AZ99: FALSE | BA99: Auckland2nd Round
A100: 4 | B100: Auckland | C100: Heineken Open | D100: 2014-01-07 | E100: ATP250 | F100: Outdoor | G100: Hard | H100: 2nd Round | I100: 3 | J100: Kohlschreiber P. | K100: Zeballos H. | L100: 22 | M100: 66 | N100: 1525 | O100: 710 | P100: 6 | Q100: 4 | R100: 6 | S100: 2 | Z100: 2 | AA100: 0 | AB100: Completed | AC100: 1.14 | AD100: 5 | AE100: 1.2 | AF100: 4.3 | AG100: 1.2 | AH100: 4.33 | AI100: 1.18 | AJ100: 5.61 | AK100: 1.22 | AL100: 4 | AM100: 1.25 | AN100: 5.61 | AO100: 1.19 | AP100: 4.56 | AQ100: Kohlschreiber | AR100: Zeballos | AS100: AucklandKohlschreiberZeballos | AT100: AucklandZeballosKohlschreiber | AU100: 2 | AV100: 6 | AW100: 18 | AX100: FALSE | AY100: Kohlschreiber | AZ100: FALSE | BA100: Auckland2nd Round
A101: 4 | B101: Auckland | C101: Heineken Open | D101: 2014-01-08 | E101: ATP250 | F101: Outdoor | G101: Hard | H101: 2nd Round | I101: 3 | J101: Isner J. | K101: Lacko L. | L101: 14 | M101: 90 | N101: 2150 | O101: 595 | P101: 7 | Q101: 6 | R101: 3 | S101: 6 | T101: 6 | U101: 2 | Z101: 2 | AA101: 1 | AB101: Completed | AC101: 1.36 | AD101: 3 | AE101: 1.45 | AF101: 2.7 | AG101: 1.4 | AH101: 2.75 | AI101: 1.46 | AJ101: 2.93 | AK101: 1.44 | AL101: 2.75 | AM101: 1.46 | AN101: 3 | AO101: 1.41 | AP101: 2.82 | AQ101: Isner | AR101: Lacko | AS101: AucklandIsnerLacko | AT101: AucklandLackoIsner | AU101: 1 | AV101: 2 | AW101: 30 | AX101: TRUE | AY101: Isner | AZ101: TRUE | BA101: Auckland2nd Round
A102: 4 | B102: Auckland | C102: Heineken Open | D102: 2014-01-08 | E102: ATP250 | F102: Outdoor | G102: Hard | H102: 2nd Round | I102: 3 | J102: Bautista R. | K102: Paire B. | L102: 73 | M102: 28 | N102: 680 | O102: 1300 | P102: 6 | Q102: 3 | R102: 6 | S102: 4 | Z102: 2 | AA102: 0 | AB102: Completed | AC102: 2.1 | AD102: 1.66 | AE102: 2.1 | AF102: 1.7 | AG102: 2.2 | AH102: 1.62 | AI102: 2.12 | AJ102: 1.81 | AK102: 2.2 | AL102: 1.67 | AM102: 2.3 | AN102: 1.81 | AO102: 2.09 | AP102: 1.71 | AQ102: Bautista | AR102: Paire | AS102: AucklandBautistaPaire | AT102: AucklandPaireBautista | AU102: 2 | AV102: 5 | AW102: 19 | AX102: FALSE | AY102: Bautista | AZ102: FALSE | BA102: Auckland2nd Round
A103: 4 | B103: Auckland | C103: Heineken Open | D103: 2014-01-08 | E103: ATP250 | F103: Outdoor | G103: Hard | H103: 2nd Round | I103: 3 | J103: Lu Y.H. | K103: Klahn B. | L103: 62 | M103: 95 | N103: 730 | O103: 568 | P103: 6 | Q103: 7 | R103: 6 | S103: 2 | T103: 6 | U103: 3 | Z103: 2 | AA103: 1 | AB103: Completed | AC103: 1.66 | AD103: 2.1 | AI103: 1.84 | AJ103: 2.08 | AM103: 1.91 | AN103: 2.29 | AO103: 1.75 | AP103: 2.08 | AQ103: Lu | AR103: Klahn | AS103: AucklandLuKlahn | AT103: AucklandKlahnLu | AU103: 1 | AV103: 6 | AW103: 30 | AX103: TRUE | AY103: Klahn | AZ103: TRUE | BA103: Auckland2nd Round
A104: 4 | B104: Auckland | C104: Heineken Open | D104: 2014-01-08 | E104: ATP250 | F104: Outdoor | G104: Hard | H104: 2nd Round | I104: 3 | J104: Johnson S. | K104: Anderson K. | L104: 160 | M104: 20 | N104: 327 | O104: 1685 | P104: 7 | Q104: 5 | R104: 6 | S104: 4 | Z104: 2 | AA104: 0 | AB104: Completed | AC104: 3.25 | AD104: 1.33 | AI104: 3.35 | AJ104: 1.38 | AK104: 3.5 | AL104: 1.29 | AM104: 3.8 | AN104: 1.38 | AO104: 3.28 | AP104: 1.33 | AQ104: Johnson | AR104: Anderson | AS104: AucklandJohnsonAnderson | AT104: AucklandAndersonJohnson | AU104: 2 | AV104: 4 | AW104: 22 | AX104: FALSE | AY104: Johnson | AZ104: FALSE | BA104: Auckland2nd Round
A105: 4 | B105: Auckland | C105: Heineken Open | D105: 2014-01-08 | E105: ATP250 | F105: Outdoor | G105: Hard | H105: 2nd Round | I105: 3 | J105: Garcia-Lopez G. | K105: Giraldo S. | L105: 58 | M105: 68 | N105: 776 | O105: 703 | P105: 6 | Q105: 7 | R105: 6 | S105: 2 | T105: 6 | U105: 3 | Z105: 2 | AA105: 1 | AB105: Completed | AC105: 1.72 | AD105: 2 | AE105: 1.8 | AF105: 2 | AG105: 1.73 | AH105: 2 | AI105: 1.9 | AJ105: 2.01 | AK105: 1.91 | AL105: 1.91 | AM105: 1.91 | AN105: 2.01 | AO105: 1.82 | AP105: 1.94 | AQ105: Garcia-Lopez | AR105: Giraldo | AS105: AucklandGarcia-LopezGiraldo | AT105: AucklandGiraldoGarcia-Lopez | AU105: 1 | AV105: 6 | AW105: 30 | AX105: TRUE | AY105: Giraldo | AZ105: TRUE | BA105: Auckland2nd Round
A106: 4 | B106: Auckland | C106: Heineken Open | D106: 2014-01-08 | E106: ATP250 | F106: Outdoor | G106: Hard | H106: 2nd Round | I106: 3 | J106: Ferrer D. | K106: Young D. | L106: 3 | M106: 96 | N106: 5800 | O106: 563 | P106: 6 | Q106: 7 | R106: 6 | S106: 3 | T106: 6 | U106: 1 | Z106: 2 | AA106: 1 | AB106: Completed | AC106: 1.1 | AD106: 7 | AE106: 1.12 | AF106: 5.75 | AG106: 1.14 | AH106: 5 | AI106: 1.13 | AJ106: 7.41 | AK106: 1.13 | AL106: 6 | AM106: 1.15 | AN106: 8 | AO106: 1.11 | AP106: 6.35 | AQ106: Ferrer | AR106: Young | AS106: AucklandFerrerYoung | AT106: AucklandYoungFerrer | AU106: 1 | AV106: 7 | AW106: 29 | AX106: TRUE | AY106: Young | AZ106: TRUE | BA106: Auckland2nd Round
A107: 4 | B107: Auckland | C107: Heineken Open | D107: 2014-01-08 | E107: ATP250 | F107: Outdoor | G107: Hard | H107: Quarterfinals | I107: 3 | J107: Bautista R. | K107: Sock J. | L107: 73 | M107: 100 | N107: 680 | O107: 545 | P107: 6 | Q107: 1 | R107: 6 | S107: 3 | Z107: 2 | AA107: 0 | AB107: Completed | AC107: 1.66 | AD107: 2.1 | AE107: 1.7 | AF107: 2.1 | AG107: 1.73 | AH107: 2 | AI107: 1.73 | AJ107: 2.26 | AK107: 1.73 | AL107: 2.1 | AM107: 1.77 | AN107: 2.26 | AO107: 1.72 | AP107: 2.09 | AQ107: Bautista | AR107: Sock | AS107: AucklandBautistaSock | AT107: AucklandSockBautista | AU107: 2 | AV107: 8 | AW107: 16 | AX107: FALSE | AY107: Bautista | AZ107: FALSE | BA107: AucklandQuarterfinals
A108: 4 | B108: Auckland | C108: Heineken Open | D108: 2014-01-09 | E108: ATP250 | F108: Outdoor | G108: Hard | H108: Quarterfinals | I108: 3 | J108: Isner J. | K108: Kohlschreiber P. | L108: 14 | M108: 22 | N108: 2150 | O108: 1525 | P108: 6 | Q108: 7 | R108: 7 | S108: 6 | T108: 7 | U108: 6 | Z108: 2 | AA108: 1 | AB108: Completed | AC108: 2 | AD108: 1.72 | AE108: 2.05 | AF108: 1.75 | AG108: 2.1 | AH108: 1.67 | AI108: 2.22 | AJ108: 1.76 | AK108: 2.1 | AL108: 1.73 | AM108: 2.22 | AN108: 1.82 | AO108: 2.06 | AP108: 1.74 | AQ108: Isner | AR108: Kohlschreiber | AS108: AucklandIsnerKohlschreiber | AT108: AucklandKohlschreiberIsner | AU108: 1 | AV108: 1 | AW108: 39 | AX108: TRUE | AY108: Kohlschreiber | AZ108: TRUE | BA108: AucklandQuarterfinals
A109: 4 | B109: Auckland | C109: Heineken Open | D109: 2014-01-09 | E109: ATP250 | F109: Outdoor | G109: Hard | H109: Quarterfinals | I109: 3 | J109: Lu Y.H. | K109: Johnson S. | L109: 62 | M109: 160 | N109: 730 | O109: 327 | P109: 6 | Q109: 4 | R109: 6 | S109: 4 | Z109: 2 | AA109: 0 | AB109: Completed | AC109: 1.53 | AD109: 2.37 | AE109: 1.58 | AF109: 2.35 | AG109: 1.67 | AH109: 2.1 | AI109: 1.59 | AJ109: 2.56 | AK109: 1.62 | AL109: 2.25 | AM109: 1.67 | AN109: 2.56 | AO109: 1.58 | AP109: 2.34 | AQ109: Lu | AR109: Johnson | AS109: AucklandLuJohnson | AT109: AucklandJohnsonLu | AU109: 2 | AV109: 4 | AW109: 20 | AX109: FALSE | AY109: Lu | AZ109: FALSE | BA109: AucklandQuarterfinals
A110: 4 | B110: Auckland | C110: Heineken Open | D110: 2014-01-09 | E110: ATP250 | F110: Outdoor | G110: Hard | H110: Quarterfinals | I110: 3 | J110: Ferrer D. | K110: Garcia-Lopez G. | L110: 3 | M110: 58 | N110: 5800 | O110: 776 | P110: 6 | Q110: 3 | R110: 5 | S110: 7 | T110: 6 | U110: 4 | Z110: 2 | AA110: 1 | AB110: Completed | AC110: 1.14 | AD110: 5.5 | AE110: 1.17 | AF110: 4.75 | AG110: 1.17 | AH110: 4.5 | AI110: 1.17 | AJ110: 6.16 | AK110: 1.14 | AL110: 5.5 | AM110: 1.18 | AN110: 6.5 | AO110: 1.15 | AP110: 5.25 | AQ110: Ferrer | AR110: Garcia-Lopez | AS110: AucklandFerrerGarcia-Lopez | AT110: AucklandGarcia-LopezFerrer | AU110: 1 | AV110: 3 | AW110: 31 | AX110: FALSE | AY110: Ferrer | AZ110: TRUE | BA110: AucklandQuarterfinals
A111: 4 | B111: Auckland | C111: Heineken Open | D111: 2014-01-10 | E111: ATP250 | F111: Outdoor | G111: Hard | H111: Semifinals | I111: 3 | J111: Isner J. | K111: Bautista R. | L111: 14 | M111: 73 | N111: 2150 | O111: 680 | P111: 3 | Q111: 6 | R111: 7 | S111: 6 | T111: 6 | U111: 4 | Z111: 2 | AA111: 1 | AB111: Completed | AC111: 1.44 | AD111: 2.75 | AE111: 1.42 | AF111: 2.8 | AG111: 1.44 | AH111: 2.62 | AI111: 1.51 | AJ111: 2.79 | AK111: 1.4 | AL111: 2.88 | AM111: 1.51 | AN111: 2.95 | AO111: 1.43 | AP111: 2.75 | AQ111: Isner | AR111: Bautista | AS111: AucklandIsnerBautista | AT111: AucklandBautistaIsner | AU111: 1 | AV111: 0 | AW111: 32 | AX111: TRUE | AY111: Bautista | AZ111: TRUE | BA111: AucklandSemifinals
A112: 4 | B112: Auckland | C112: Heineken Open | D112: 2014-01-10 | E112: ATP250 | F112: Outdoor | G112: Hard | H112: Semifinals | I112: 3 | J112: Lu Y.H. | K112: Ferrer D. | L112: 62 | M112: 3 | N112: 730 | O112: 5800 | P112: 6 | Q112: 4 | R112: 7 | S112: 6 | Z112: 2 | AA112: 0 | AB112: Completed | AC112: 5 | AD112: 1.16 | AE112: 4.75 | AF112: 1.17 | AG112: 4.5 | AH112: 1.17 | AI112: 5.61 | AJ112: 1.19 | AK112: 5 | AL112: 1.17 | AM112: 5.7 | AN112: 1.22 | AO112: 4.78 | AP112: 1.18 | AQ112: Lu | AR112: Ferrer | AS112: AucklandLuFerrer | AT112: AucklandFerrerLu | AU112: 2 | AV112: 3 | AW112: 23 | AX112: TRUE | AY112: Lu | AZ112: FALSE | BA112: AucklandSemifinals
A113: 4 | B113: Auckland | C113: Heineken Open | D113: 2014-01-11 | E113: ATP250 | F113: Outdoor | G113: Hard | H113: The Final | I113: 3 | J113: Isner J. | K113: Lu Y.H. | L113: 14 | M113: 62 | N113: 2150 | O113: 730 | P113: 7 | Q113: 6 | R113: 7 | S113: 6 | Z113: 2 | AA113: 0 | AB113: Completed | AC113: 1.44 | AD113: 2.75 | AE113: 1.42 | AF113: 2.8 | AG113: 1.44 | AH113: 2.75 | AI113: 1.49 | AJ113: 2.87 | AK113: 1.44 | AL113: 2.75 | AM113: 1.5 | AN113: 3.1 | AO113: 1.43 | AP113: 2.75 | AQ113: Isner | AR113: Lu | AS113: AucklandIsnerLu | AT113: AucklandLuIsner | AU113: 2 | AV113: 2 | AW113: 26 | AX113: TRUE | AY113: Isner | AZ113: FALSE | BA113: AucklandThe Final
A114: 5 | B114: Sydney | C114: Apia International | D114: 2014-01-06 | E114: ATP250 | F114: Outdoor | G114: Hard | H114: 1st Round | I114: 3 | J114: Istomin D. | K114: Andujar P. | L114: 49 | M114: 48 | N114: 945 | O114: 946 | P114: 6 | Q114: 1 | R114: 6 | S114: 2 | Z114: 2 | AA114: 0 | AB114: Completed | AC114: 1.18 | AD114: 4.5 | AE114: 1.18 | AF114: 4.5 | AG114: 1.22 | AH114: 4 | AI114: 1.2 | AJ114: 5.03 | AK114: 1.22 | AL114: 4 | AM114: 1.25 | AN114: 5.03 | AO114: 1.2 | AP114: 4.39 | AQ114: Istomin | AR114: Andujar | AS114: SydneyIstominAndujar | AT114: SydneyAndujarIstomin | AU114: 2 | AV114: 9 | AW114: 15 | AX114: FALSE | AY114: Istomin | AZ114: FALSE | BA114: Sydney1st Round
A115: 5 | B115: Sydney | C115: Apia International | D115: 2014-01-06 | E115: ATP250 | F115: Outdoor | G115: Hard | H115: 1st Round | I115: 3 | J115: Benneteau J. | K115: Ebden M. | L115: 35 | M115: 65 | N115: 1160 | O115: 711 | P115: 6 | Q115: 2 | R115: 6 | S115: 2 | Z115: 2 | AA115: 0 | AB115: Completed | AC115: 1.57 | AD115: 2.25 | AE115: 1.68 | AF115: 2.15 | AG115: 1.53 | AH115: 2.38 | AI115: 1.7 | AJ115: 2.26 | AK115: 1.62 | AL115: 2.25 | AM115: 1.77 | AN115: 2.38 | AO115: 1.65 | AP115: 2.19 | AQ115: Benneteau | AR115: Ebden | AS115: SydneyBenneteauEbden | AT115: SydneyEbdenBenneteau | AU115: 2 | AV115: 8 | AW115: 16 | AX115: FALSE | AY115: Benneteau | AZ115: FALSE | BA115: Sydney1st Round
A116: 5 | B116: Sydney | C116: Apia International | D116: 2014-01-06 | E116: ATP250 | F116: Outdoor | G116: Hard | H116: 1st Round | I116: 3 | J116: Rosol L. | K116: Sousa J. | L116: 47 | M116: 51 | N116: 956 | O116: 934 | P116: 7 | Q116: 6 | R116: 4 | S116: 6 | T116: 7 | U116: 6 | Z116: 2 | AA116: 1 | AB116: Completed | AC116: 1.61 | AD116: 2.2 | AE116: 1.62 | AF116: 2.25 | AG116: 1.62 | AH116: 2.2 | AI116: 1.83 | AJ116: 2.07 | AK116: 1.62 | AL116: 2.25 | AM116: 1.83 | AN116: 2.25 | AO116: 1.67 | AP116: 2.15 | AQ116: Rosol | AR116: Sousa | AS116: SydneyRosolSousa | AT116: SydneySousaRosol | AU116: 1 | AV116: 0 | AW116: 36 | AX116: TRUE | AY116: Rosol | AZ116: TRUE | BA116: Sydney1st Round
A117: 5 | B117: Sydney | C117: Apia International | D117: 2014-01-07 | E117: ATP250 | F117: Outdoor | G117: Hard | H117: 1st Round | I117: 3 | J117: Cilic M. | K117: Struff J-L. | L117: 37 | M117: 106 | N117: 1130 | O117: 523 | P117: 3 | Q117: 6 | R117: 6 | S117: 3 | T117: 6 | U117: 3 | Z117: 2 | AA117: 1 | AB117: Completed | AC117: 1.12 | AD117: 6 | AE117: 1.18 | AF117: 4.5 | AG117: 1.17 | AH117: 4.5 | AI117: 1.18 | AJ117: 5.57 | AK117: 1.17 | AL117: 5 | AM117: 1.2 | AN117: 6 | AO117: 1.16 | AP117: 5.01 | AQ117: Cilic | AR117: Struff | AS117: SydneyCilicStruff | AT117: SydneyStruffCilic | AU117: 1 | AV117: 3 | AW117: 27 | AX117: FALSE | AY117: Struff | AZ117: TRUE | BA117: Sydney1st Round
A118: 5 | B118: Sydney | C118: Apia International | D118: 2014-01-07 | E118: ATP250 | F118: Outdoor | G118: Hard | H118: 1st Round | I118: 3 | J118: Mahut N. | K118: Harrison R. | L118: 50 | M118: 99 | N118: 938 | O118: 549 | P118: 7 | Q118: 6 | R118: 7 | S118: 5 | Z118: 2 | AA118: 0 | AB118: Completed | AC118: 1.83 | AD118: 1.83 | AE118: 2.05 | AF118: 1.75 | AG118: 1.83 | AH118: 1.83 | AI118: 2.01 | AJ118: 1.88 | AK118: 2 | AL118: 1.8 | AM118: 2.1 | AN118: 1.9 | AO118: 1.96 | AP118: 1.8 | AQ118: Mahut | AR118: Harrison | AS118: SydneyMahutHarrison | AT118: SydneyHarrisonMahut | AU118: 2 | AV118: 3 | AW118: 25 | AX118: TRUE | AY118: Mahut | AZ118: FALSE | BA118: Sydney1st Round
A119: 5 | B119: Sydney | C119: Apia International | D119: 2014-01-07 | E119: ATP250 | F119: Outdoor | G119: Hard | H119: 1st Round | I119: 3 | J119: Ramos A. | K119: Querrey S. | L119: 85 | M119: 46 | N119: 617 | O119: 960 | P119: 4 | Q119: 6 | R119: 6 | S119: 3 | T119: 6 | U119: 4 | Z119: 2 | AA119: 1 | AB119: Completed | AC119: 4.5 | AD119: 1.16 | AI119: 4.16 | AJ119: 1.27 | AM119: 4.5 | AN119: 1.27 | AO119: 4.19 | AP119: 1.22 | AQ119: Ramos | AR119: Querrey | AS119: SydneyRamosQuerrey | AT119: SydneyQuerreyRamos | AU119: 1 | AV119: 3 | AW119: 29 | AX119: FALSE | AY119: Querrey | AZ119: TRUE | BA119: Sydney1st Round
A120: 5 | B120: Sydney | C120: Apia International | D120: 2014-01-07 | E120: ATP250 | F120: Outdoor | G120: Hard | H120: 1st Round | I120: 3 | J120: Stepanek R. | K120: Groth S. | L120: 45 | M120: 157 | N120: 970 | O120: 334 | P120: 6 | Q120: 7 | R120: 7 | S120: 6 | T120: 6 | U120: 2 | Z120: 2 | AA120: 1 | AB120: Completed | AC120: 1.2 | AD120: 4.33 | AE120: 1.25 | AF120: 3.75 | AG120: 1.25 | AH120: 3.75 | AI120: 1.24 | AJ120: 4.44 | AK120: 1.22 | AL120: 4 | AM120: 1.25 | AN120: 4.6 | AO120: 1.22 | AP120: 4.09 | AQ120: Stepanek | AR120: Groth | AS120: SydneyStepanekGroth | AT120: SydneyGrothStepanek | AU120: 1 | AV120: 4 | AW120: 34 | AX120: TRUE | AY120: Groth | AZ120: TRUE | BA120: Sydney1st Round
A121: 5 | B121: Sydney | C121: Apia International | D121: 2014-01-07 | E121: ATP250 | F121: Outdoor | G121: Hard | H121: 1st Round | I121: 3 | J121: Stakhovsky S. | K121: Berlocq C. | L121: 101 | M121: 41 | N121: 544 | O121: 1020 | P121: 6 | Q121: 3 | R121: 6 | S121: 4 | Z121: 2 | AA121: 0 | AB121: Completed | AC121: 1.44 | AD121: 2.62 | AE121: 1.48 | AF121: 2.6 | AG121: 1.5 | AH121: 2.5 | AI121: 1.56 | AJ121: 2.57 | AK121: 1.5 | AL121: 2.63 | AM121: 1.59 | AN121: 2.8 | AO121: 1.5 | AP121: 2.54 | AQ121: Stakhovsky | AR121: Berlocq | AS121: SydneyStakhovskyBerlocq | AT121: SydneyBerlocqStakhovsky | AU121: 2 | AV121: 5 | AW121: 19 | AX121: FALSE | AY121: Stakhovsky | AZ121: FALSE | BA121: Sydney1st Round
A122: 5 | B122: Sydney | C122: Apia International | D122: 2014-01-07 | E122: ATP250 | F122: Outdoor | G122: Hard | H122: 1st Round | I122: 3 | J122: Kavcic B. | K122: Nieminen J. | L122: 102 | M122: 39 | N122: 542 | O122: 1090 | P122: 6 | Q122: 4 | R122: 6 | S122: 3 | Z122: 2 | AA122: 0 | AB122: Completed | AC122: 3.75 | AD122: 1.25 | AE122: 3.1 | AF122: 1.35 | AG122: 3.25 | AH122: 1.33 | AI122: 3.26 | AJ122: 1.38 | AK122: 3.5 | AL122: 1.29 | AM122: 3.75 | AN122: 1.38 | AO122: 3.28 | AP122: 1.32 | AQ122: Kavcic | AR122: Nieminen | AS122: SydneyKavcicNieminen | AT122: SydneyNieminenKavcic | AU122: 2 | AV122: 5 | AW122: 19 | AX122: FALSE | AY122: Kavcic | AZ122: FALSE | BA122: Sydney1st Round
A123: 5 | B123: Sydney | C123: Apia International | D123: 2014-01-07 | E123: ATP250 | F123: Outdoor | G123: Hard | H123: 1st Round | I123: 3 | J123: Matosevic M. | K123: Mayer F. | L123: 56 | M123: 38 | N123: 819 | O123: 1110 | P123: 6 | Q123: 2 | R123: 4 | S123: 6 | T123: 6 | U123: 3 | Z123: 2 | AA123: 1 | AB123: Completed | AC123: 2.1 | AD123: 1.66 | AE123: 2 | AF123: 1.8 | AG123: 2 | AH123: 1.73 | AI123: 2.09 | AJ123: 1.81 | AK123: 2 | AL123: 1.8 | AM123: 2.25 | AN123: 1.81 | AO123: 2.05 | AP123: 1.74 | AQ123: Matosevic | AR123: Mayer | AS123: SydneyMatosevicMayer | AT123: SydneyMayerMatosevic | AU123: 1 | AV123: 5 | AW123: 27 | AX123: FALSE | AY123: Matosevic | AZ123: TRUE | BA123: Sydney1st Round
A124: 5 | B124: Sydney | C124: Apia International | D124: 2014-01-07 | E124: ATP250 | F124: Outdoor | G124: Hard | H124: 1st Round | I124: 3 | J124: Dolgopolov O. | K124: Roger-Vasselin E. | L124: 55 | M124: 40 | N124: 825 | O124: 1038 | P124: 6 | Q124: 3 | Z124: 1 | AA124: 0 | AB124: Retired | AC124: 1.4 | AD124: 2.75 | AE124: 1.45 | AF124: 2.7 | AG124: 1.4 | AH124: 2.75 | AI124: 1.52 | AJ124: 2.7 | AK124: 1.4 | AL124: 2.88 | AM124: 1.56 | AN124: 2.9 | AO124: 1.46 | AP124: 2.66 | AQ124: Dolgopolov | AR124: Roger-Vasselin | AS124: SydneyDolgopolovRoger-Vasselin | AT124: SydneyRoger-VasselinDolgopolov | AU124: 1 | AV124: 3 | AW124: 9 | AX124: FALSE | AY124: Dolgopolov | AZ124: FALSE | BA124: Sydney1st Round
A125: 5 | B125: Sydney | C125: Apia International | D125: 2014-01-07 | E125: ATP250 | F125: Outdoor | G125: Hard | H125: 1st Round | I125: 3 | J125: Tomic B. | K125: Granollers M. | L125: 52 | M125: 224 | N125: 910 | O125: 215 | P125: 6 | Q125: 3 | R125: 6 | S125: 0 | Z125: 2 | AA125: 0 | AB125: Completed | AC125: 1.3 | AD125: 3.4 | AE125: 1.33 | AF125: 3.2 | AG125: 1.33 | AH125: 3.25 | AI125: 1.38 | AJ125: 3.31 | AK125: 1.33 | AL125: 3.25 | AM125: 1.4 | AN125: 3.45 | AO125: 1.34 | AP125: 3.16 | AQ125: Tomic | AR125: Granollers | AS125: SydneyTomicGranollers | AT125: SydneyGranollersTomic | AU125: 2 | AV125: 9 | AW125: 15 | AX125: FALSE | AY125: Tomic | AZ125: FALSE | BA125: Sydney1st Round
A126: 5 | B126: Sydney | C126: Apia International | D126: 2014-01-08 | E126: ATP250 | F126: Outdoor | G126: Hard | H126: 2nd Round | I126: 3 | J126: Matosevic M. | K126: Seppi A. | L126: 56 | M126: 25 | N126: 819 | O126: 1360 | P126: 6 | Q126: 3 | R126: 6 | S126: 4 | Z126: 2 | AA126: 0 | AB126: Completed | AC126: 1.66 | AD126: 2.1 | AE126: 1.8 | AF126: 2 | AG126: 1.73 | AH126: 2 | AI126: 1.76 | AJ126: 2.18 | AK126: 1.8 | AL126: 2 | AM126: 1.83 | AN126: 2.2 | AO126: 1.74 | AP126: 2.04 | AQ126: Matosevic | AR126: Seppi | AS126: SydneyMatosevicSeppi | AT126: SydneySeppiMatosevic | AU126: 2 | AV126: 5 | AW126: 19 | AX126: FALSE | AY126: Matosevic | AZ126: FALSE | BA126: Sydney2nd Round
A127: 5 | B127: Sydney | C127: Apia International | D127: 2014-01-08 | E127: ATP250 | F127: Outdoor | G127: Hard | H127: 2nd Round | I127: 3 | J127: Stakhovsky S. | K127: Benneteau J. | L127: 101 | M127: 35 | N127: 544 | O127: 1160 | P127: 6 | Q127: 3 | R127: 6 | S127: 2 | Z127: 2 | AA127: 0 | AB127: Completed | AC127: 2.62 | AD127: 1.44 | AE127: 2.4 | AF127: 1.55 | AG127: 2.5 | AH127: 1.5 | AI127: 2.43 | AJ127: 1.63 | AK127: 2.5 | AL127: 1.53 | AM127: 2.62 | AN127: 1.65 | AO127: 2.41 | AP127: 1.55 | AQ127: Stakhovsky | AR127: Benneteau | AS127: SydneyStakhovskyBenneteau | AT127: SydneyBenneteauStakhovsky | AU127: 2 | AV127: 7 | AW127: 17 | AX127: FALSE | AY127: Stakhovsky | AZ127: FALSE | BA127: Sydney2nd Round
